Workbook

Sheet Velkomst

Sheet Tabel 1 F
A1: Tabel 1. Forsikrede medlemmer
A3: Fyn
C5: Mænd | E5: Kvinder | G5: I alt
A7: Civ. ing. | C7: 1318 | E7: 357 | G7: 1675
A8: Diplom ing. | C8: 2709 | E8: 617 | G8: 3326
A9: Cand. Scient. Tek. | C9: 702 | E9: 680 | G9: 1382
A10: MA. Hum. | C10: 1069 | E10: 2416 | G10: 3485
A11: MA. Nat. | C11: 609 | E11: 621 | G11: 1230
A12: MA. Ph.d. | C12: 88 | E12: 72 | G12: 160
A13: MA. Samf. | C13: 71 | E13: 176 | G13: 247
A14: Øvrige Mag. | C14: 85 | E14: 174 | G14: 259
A15: Agronom | C15: 75 | E15: 68 | G15: 143
A16: Landsk. Arkt. | C16: 8 | E16: 25 | G16: 33
A17: Hortonom | C17: 15 | E17: 18 | G17: 33
A18: Forstkand. | C18: 17 | E18: 7 | G18: 24
A19: Jordbrugsakad. | C19: 115 | E19: 118 | G19: 233
A20: Mejeriing. | C20: 8 | E20: 7 | G20: 15
A21: Levn.m.kand. | C21: 6 | E21: 12 | G21: 18
A22: Dyrlæge | C22: 22 | E22: 133 | G22: 155
A23: Farmaceut | C23: 67 | E23: 228 | G23: 295
A24: Læge | C24: 449 | E24: 905 | G24: 1354
A25: Tandlæge | C25: 16 | E25: 97 | G25: 113
A26: Arkitekt | C26: 76 | E26: 79 | G26: 155
A27: Landinspek. | C27: 45 | E27: 18 | G27: 63
A28: Bibliotekar | C28: 58 | E28: 133 | G28: 191
A29: Musikudd. | C29: 45 | E29: 50 | G29: 95
A30: Teolog | C30: 43 | E30: 72 | G30: 115
A31: Psykolog | C31: 133 | E31: 486 | G31: 619
A32: Jurist | C32: 225 | E32: 436 | G32: 661
A33: Økonom | C33: 329 | E33: 274 | G33: 603
A34: Samf. Adm. | C34: 599 | E34: 977 | G34: 1576
A35: Cand. Merc. | C35: 1006 | E35: 953 | G35: 1959
A36: HA | C36: 239 | E36: 190 | G36: 429
A37: HD | C37: 147 | E37: 131 | G37: 278
A38: Komm. og Sprog | C38: 78 | E38: 351 | G38: 429
A39: Bygningskonst. | C39: 819 | E39: 123 | G39: 942
A40: Cand. IT. | C40: 121 | E40: 101 | G40: 222
A41: Bac. Samf. | C41: 30 | E41: 45 | G41: 75
A42: Bac. Hum. | C42: 180 | E42: 325 | G42: 505
A43: Bac. Nat. | C43: 199 | E43: 74 | G43: 273
A44: Andre | C44: 799 | E44: 658 | G44: 1457
A46: Total | C46: 12505 | E46: 12089 | G46: 24594
A48: Ingeniører i alt | C48: 4027 | E48: 974 | G48: 5001
A49: Magistre i alt | C49: 1922 | E49: 3459 | G49: 5381
A50: DJØF'ere i alt | C50: 2398 | E50: 2830 | G50: 5228
A57: Middelfart
C59: Mænd | E59: Kvinder | G59: I alt
A61: Civ. ing. | C61: 91 | E61: 31 | G61: 122
A62: Diplom ing. | C62: 246 | E62: 60 | G62: 306
A63: Cand. Scient. Tek. | C63: 37 | E63: 36 | G63: 73
A64: MA. Hum. | C64: 61 | E64: 131 | G64: 192
A65: MA. Nat. | C65: 35 | E65: 44 | G65: 79
A66: MA. Ph.d. | C66: 2 | E66: 2 | G66: 4
A67: MA. Samf. | C67: 2 | E67: 19 | G67: 21
A68: Øvrige Mag. | C68: 3 | E68: 7 | G68: 10
A69: Agronom | C69: 17 | E69: 11 | G69: 28
A70: Landsk. Arkt. | C70: 2 | E70: 0 | G70: 2
A71: Hortonom | C71: 1 | E71: 2 | G71: 3
A72: Forstkand. | C72: 1 | E72: 1 | G72: 2
A73: Jordbrugsakad. | C73: 21 | E73: 14 | G73: 35
A74: Mejeriing. | C74: 4 | E74: 0 | G74: 4
A75: Levn.m.kand. | C75: 1 | E75: 1 | G75: 2
A76: Dyrlæge | C76: 4 | E76: 14 | G76: 18
A77: Farmaceut | C77: 3 | E77: 10 | G77: 13
A78: Læge | C78: 23 | E78: 87 | G78: 110
A79: Tandlæge | C79: 1 | E79: 9 | G79: 10
A80: Arkitekt | C80: 4 | E80: 8 | G80: 12
A81: Landinspek. | C81: 10 | E81: 4 | G81: 14
A82: Bibliotekar | C82: 4 | E82: 12 | G82: 16
A83: Musikudd. | C83: 3 | E83: 2 | G83: 5
A84: Teolog | C84: 7 | E84: 7 | G84: 14
A85: Psykolog | C85: 9 | E85: 43 | G85: 52
A86: Jurist | C86: 16 | E86: 39 | G86: 55
A87: Økonom | C87: 25 | E87: 22 | G87: 47
A88: Samf. Adm. | C88: 34 | E88: 60 | G88: 94
A89: Cand. Merc. | C89: 87 | E89: 76 | G89: 163
A90: HA | C90: 24 | E90: 13 | G90: 37
A91: HD | C91: 8 | E91: 15 | G91: 23
A92: Komm. og Sprog | C92: 3 | E92: 28 | G92: 31
A93: Bygningskonst. | C93: 80 | E93: 15 | G93: 95
A94: Cand. IT. | C94: 6 | E94: 7 | G94: 13
A95: Bac. Samf. | C95: 1 | E95: 5 | G95: 6
A96: Bac. Hum. | C96: 2 | E96: 14 | G96: 16
A97: Bac. Nat. | C97: 8 | E97: 6 | G97: 14
A98: Andre | C98: 50 | E98: 39 | G98: 89
A100: Total | C100: 915 | E100: 880 | G100: 1795
A102: Ingeniører i alt | C102: 337 | E102: 91 | G102: 428
A103: Magistre i alt | C103: 103 | E103: 203 | G103: 306
A104: DJØF'ere i alt | C104: 186 | E104: 210 | G104: 396
A111: Assens
C113: Mænd | E113: Kvinder | G113: I alt
A115: Civ. ing. | C115: 61 | E115: 18 | G115: 79
A116: Diplom ing. | C116: 206 | E116: 44 | G116: 250
A117: Cand. Scient. Tek. | C117: 24 | E117: 21 | G117: 45
A118: MA. Hum. | C118: 41 | E118: 117 | G118: 158
A119: MA. Nat. | C119: 28 | E119: 31 | G119: 59
A120: MA. Ph.d. | C120: 2 | E120: 2 | G120: 4
A121: MA. Samf. | C121: 1 | E121: 6 | G121: 7
A122: Øvrige Mag. | C122: 3 | E122: 2 | G122: 5
A123: Agronom | C123: 7 | E123: 11 | G123: 18
A124: Landsk. Arkt. | C124: 1 | E124: 6 | G124: 7
A125: Hortonom | C125: 1 | E125: 2 | G125: 3
A126: Forstkand. | C126: 4 | E126: 1 | G126: 5
A127: Jordbrugsakad. | C127: 13 | E127: 20 | G127: 33
A128: Mejeriing. | C128: 1 | E128: 0 | G128: 1
A129: Levn.m.kand. | C129: 0 | E129: 1 | G129: 1
A130: Dyrlæge | C130: 2 | E130: 16 | G130: 18
A131: Farmaceut | C131: 0 | E131: 13 | G131: 13
A132: Læge | C132: 11 | E132: 32 | G132: 43
A133: Tandlæge | C133: 2 | E133: 3 | G133: 5
A134: Arkitekt | C134: 2 | E134: 3 | G134: 5
A135: Landinspek. | C135: 2 | E135: 1 | G135: 3
A136: Bibliotekar | C136: 4 | E136: 11 | G136: 15
A137: Musikudd. | C137: 4 | E137: 8 | G137: 12
A138: Teolog | C138: 4 | E138: 6 | G138: 10
A139: Psykolog | C139: 5 | E139: 20 | G139: 25
A140: Jurist | C140: 12 | E140: 19 | G140: 31
A141: Økonom | C141: 8 | E141: 12 | G141: 20
A142: Samf. Adm. | C142: 22 | E142: 44 | G142: 66
A143: Cand. Merc. | C143: 34 | E143: 33 | G143: 67
A144: HA | C144: 11 | E144: 14 | G144: 25
A145: HD | C145: 9 | E145: 8 | G145: 17
A146: Komm. og Sprog | C146: 2 | E146: 18 | G146: 20
A147: Bygningskonst. | C147: 54 | E147: 7 | G147: 61
A148: Cand. IT. | C148: 6 | E148: 2 | G148: 8
A149: Bac. Samf. | C149: 0 | E149: 2 | G149: 2
A150: Bac. Hum. | C150: 4 | E150: 11 | G150: 15
A151: Bac. Nat. | C151: 5 | E151: 2 | G151: 7
A152: Andre | C152: 58 | E152: 26 | G152: 84
A154: Total | C154: 641 | E154: 573 | G154: 1214
A156: Ingeniører i alt | C156: 267 | E156: 62 | G156: 329
A157: Magistre i alt | C157: 75 | E157: 158 | G157: 233
A158: DJØF'ere i alt | C158: 87 | E158: 122 | G158: 209
A165: Faarborg-Midtfyn
C167: Mænd | E167: Kvinder | G167: I alt
A169: Civ. ing. | C169: 86 | E169: 18 | G169: 104
A170: Diplom ing. | C170: 239 | E170: 44 | G170: 283
A171: Cand. Scient. Tek. | C171: 35 | E171: 45 | G171: 80
A172: MA. Hum. | C172: 69 | E172: 140 | G172: 209
A173: MA. Nat. | C173: 33 | E173: 45 | G173: 78
A174: MA. Ph.d. | C174: 6 | E174: 4 | G174: 10
A175: MA. Samf. | C175: 3 | E175: 4 | G175: 7
A176: Øvrige Mag. | C176: 5 | E176: 9 | G176: 14
A177: Agronom | C177: 10 | E177: 15 | G177: 25
A178: Landsk. Arkt. | C178: 1 | E178: 6 | G178: 7
A179: Hortonom | C179: 2 | E179: 1 | G179: 3
A180: Forstkand. | C180: 5 | E180: 2 | G180: 7
A181: Jordbrugsakad. | C181: 18 | E181: 24 | G181: 42
A182: Mejeriing. | C182: 1 | E182: 2 | G182: 3
A183: Levn.m.kand. | C183: 0 | E183: 5 | G183: 5
A184: Dyrlæge | C184: 0 | E184: 17 | G184: 17
A185: Farmaceut | C185: 3 | E185: 19 | G185: 22
A186: Læge | C186: 12 | E186: 37 | G186: 49
A187: Tandlæge | C187: 1 | E187: 2 | G187: 3
A188: Arkitekt | C188: 7 | E188: 5 | G188: 12
A189: Landinspek. | C189: 4 | E189: 0 | G189: 4
A190: Bibliotekar | C190: 1 | E190: 11 | G190: 12
A191: Musikudd. | C191: 6 | E191: 4 | G191: 10
A192: Teolog | C192: 2 | E192: 6 | G192: 8
A193: Psykolog | C193: 4 | E193: 19 | G193: 23
A194: Jurist | C194: 12 | E194: 27 | G194: 39
A195: Økonom | C195: 15 | E195: 14 | G195: 29
A196: Samf. Adm. | C196: 27 | E196: 63 | G196: 90
A197: Cand. Merc. | C197: 33 | E197: 47 | G197: 80
A198: HA | C198: 14 | E198: 13 | G198: 27
A199: HD | C199: 10 | E199: 11 | G199: 21
A200: Komm. og Sprog | C200: 6 | E200: 11 | G200: 17
A201: Bygningskonst. | C201: 68 | E201: 10 | G201: 78
A202: Cand. IT. | C202: 6 | E202: 6 | G202: 12
A203: Bac. Samf. | C203: 5 | E203: 4 | G203: 9
A204: Bac. Hum. | C204: 7 | E204: 15 | G204: 22
A205: Bac. Nat. | C205: 9 | E205: 3 | G205: 12
A206: Andre | C206: 64 | E206: 45 | G206: 109
A208: Total | C208: 811 | E208: 729 | G208: 1540
A210: Ingeniører i alt | C210: 325 | E210: 62 | G210: 387
A211: Magistre i alt | C211: 116 | E211: 202 | G211: 318
A212: DJØF'ere i alt | C212: 101 | E212: 164 | G212: 265
A219: Kerteminde
C221: Mænd | E221: Kvinder | G221: I alt
A223: Civ. ing. | C223: 23 | E223: 11 | G223: 34
A224: Diplom ing. | C224: 130 | E224: 28 | G224: 158
A225: Cand. Scient. Tek. | C225: 22 | E225: 20 | G225: 42
A226: MA. Hum. | C226: 34 | E226: 79 | G226: 113
A227: MA. Nat. | C227: 14 | E227: 17 | G227: 31
A228: MA. Ph.d. | C228: 3 | E228: 4 | G228: 7
A229: MA. Samf. | C229: 1 | E229: 3 | G229: 4
A230: Øvrige Mag. | C230: 1 | E230: 5 | G230: 6
A231: Agronom | C231: 1 | E231: 2 | G231: 3
A232: Landsk. Arkt. | C232: 1 | E232: 2 | G232: 3
A233: Hortonom | C233: 1 | E233: 2 | G233: 3
A234: Forstkand. | C234: 0 | E234: 1 | G234: 1
A235: Jordbrugsakad. | C235: 3 | E235: 7 | G235: 10
A236: Mejeriing. | C236: 0 | E236: 0 | G236: 0
A237: Levn.m.kand. | C237: 0 | E237: 0 | G237: 0
A238: Dyrlæge | C238: 0 | E238: 2 | G238: 2
A239: Farmaceut | C239: 0 | E239: 3 | G239: 3
A240: Læge | C240: 8 | E240: 9 | G240: 17
A241: Tandlæge | C241: 0 | E241: 3 | G241: 3
A242: Arkitekt | C242: 2 | E242: 2 | G242: 4
A243: Landinspek. | C243: 4 | E243: 1 | G243: 5
... 285 more rows

Sheet Tabel 2 F
A1: Tabel 2. Antal bruttoledighedsberørte og gennemsnitlig antal ledige brutto
A3: Fyn
C5: Mænd | F5: Kvinder | I5: I alt
C6: Ledigheds- berørte | D6: Gns. brutto- ledighed | F6: Ledigheds- berørte | G6: Gns. brutto- ledighed | I6: Ledigheds- berørte | J6: Gns. brutto- ledighed
A9: Civ. ing. | C9: 33 | D9: 29.78606624 | F9: 14 | G9: 12.58903512 | I9: 47 | J9: 42.37510135
A10: Diplom ing. | C10: 58 | D10: 52.48799351 | F10: 21 | G10: 17.76398678 | I10: 79 | J10: 70.25198029
A11: Cand. Scient. Tek. | C11: 35 | D11: 31.20938065 | F11: 30 | G11: 24.4651656 | I11: 65 | J11: 55.67454625
A12: MA. Hum. | C12: 76 | D12: 64.90862596 | F12: 204 | G12: 165.8984594 | I12: 280 | J12: 230.8070854
A13: MA. Nat. | C13: 18 | D13: 16.54462671 | F13: 16 | G13: 13.5108838 | I13: 34 | J13: 30.05551051
A14: MA. Ph.d. | C14: 5 | D14: 3.749766107 | F14: 3 | G14: 2.676355018 | I14: 8 | J14: 6.426121125
A15: MA. Samf. | C15: 14 | D15: 13.1665939 | F15: 15 | G15: 11.96594524 | I15: 29 | J15: 25.13253914
A16: Øvrige Mag. | C16: 7 | D16: 6.738601634 | F16: 18 | G16: 14.29177322 | I16: 25 | J16: 21.03037485
A17: Agronom | C17: 1 | D17: 0.9998128859 | F17: 3 | G17: 2.122497349 | I17: 4 | J17: 3.122310235
A18: Landsk. Arkt. | C18: 0 | D18: 0 | F18: 0 | G18: 0 | I18: 0 | J18: 0
A19: Hortonom | C19: 0 | D19: 0 | F19: 1 | G19: 0.3854549991 | I19: 1 | J19: 0.3854549991
A20: Forstkand. | C20: 0 | D20: 0 | F20: 0 | G20: 0 | I20: 0 | J20: 0
A21: Jordbrugsakad. | C21: 1 | D21: 0.9998128859 | F21: 4 | G21: 2.507952348 | I21: 5 | J21: 3.507765234
A22: Mejeriing. | C22: 0 | D22: 0 | F22: 0 | G22: 0 | I22: 0 | J22: 0
A23: Levn.m.kand. | C23: 0 | D23: 0 | F23: 1 | G23: 0.2114389073 | I23: 1 | J23: 0.2114389073
A24: Dyrlæge | C24: 0 | D24: 0 | F24: 0 | G24: 0 | I24: 0 | J24: 0
A25: Farmaceut | C25: 5 | D25: 4.814445207 | F25: 8 | G25: 6.714900518 | I25: 13 | J25: 11.52934572
A26: Læge | C26: 4 | D26: 3.768477515 | F26: 8 | G26: 6.234017339 | I26: 12 | J26: 10.00249485
A27: Tandlæge | C27: 0 | D27: 0 | F27: 0 | G27: 0 | I27: 0 | J27: 0
A28: Arkitekt | C28: 2 | D28: 1.607933637 | F28: 3 | G28: 2.907129046 | I28: 5 | J28: 4.515062683
A29: Landinspek. | C29: 0 | D29: 0 | F29: 0 | G29: 0 | I29: 0 | J29: 0
A30: Bibliotekar | C30: 0 | D30: 0 | F30: 2 | G30: 1.810640554 | I30: 2 | J30: 1.810640554
A31: Musikudd. | C31: 0 | D31: 0 | F31: 2 | G31: 1.334123371 | I31: 2 | J31: 1.334123371
A32: Teolog | C32: 1 | D32: 0.6767292459 | F32: 3 | G32: 2.18175014 | I32: 4 | J32: 2.858479386
A33: Psykolog | C33: 3 | D33: 2.521674047 | F33: 19 | G33: 14.68408907 | I33: 22 | J33: 17.20576311
A34: Jurist | C34: 2 | D34: 1.922909 | F34: 4 | G34: 3.722322709 | I34: 6 | J34: 5.64523171
A35: Økonom | C35: 3 | D35: 2.537890601 | F35: 1 | G35: 0.4459552174 | I35: 4 | J35: 2.983845818
A36: Samf. Adm. | C36: 25 | D36: 23.97180815 | F36: 51 | G36: 43.61753883 | I36: 76 | J36: 67.58934697
A37: Cand. Merc. | C37: 36 | D37: 33.53458492 | F37: 41 | G37: 34.46204703 | I37: 77 | J37: 67.99663195
A38: HA | C38: 19 | D38: 16.28578557 | F38: 17 | G38: 16.10116634 | I38: 36 | J38: 32.38695191
A39: HD | C39: 4 | D39: 3.906941932 | F39: 2 | G39: 1.999625772 | I39: 6 | J39: 5.906567704
A40: Komm. og Sprog | C40: 4 | D40: 3.481569263 | F40: 18 | G40: 15.59346348 | I40: 22 | J40: 19.07503274
A41: Bygningskonst. | C41: 16 | D41: 14.13341234 | F41: 4 | G41: 3.151749517 | I41: 20 | J41: 17.28516185
A42: Cand. IT. | C42: 8 | D42: 7.998503087 | F42: 12 | G42: 10.37547558 | I42: 20 | J42: 18.37397867
A43: Bac. Samf. | C43: 3 | D43: 2.768664629 | F43: 6 | G43: 5.376411152 | I43: 9 | J43: 8.145075781
A44: Bac. Hum. | C44: 17 | D44: 14.63855797 | F44: 21 | G44: 17.42842887 | I44: 38 | J44: 32.06698684
A45: Bac. Nat. | C45: 18 | D45: 17.01365933 | F45: 4 | G45: 3.591342855 | I45: 22 | J45: 20.60500218
A46: Andre | C46: 35 | D46: 30.66737354 | F46: 35 | G46: 28.65340236 | I46: 70 | J46: 59.3207759
A48: Total | C48: =SUM(C9:C46)-C21 -> 452 | D48: 405.8423876 | E48: 0 | F48: 587 | G48: 486.2665752 | H48: 0 | I48: 1039 | J48: =SUM(J9:J46)-J21 -> 892.1089628
A50: Ingeniører i alt | C50: 91 | D50: 82.27405975 | F50: 35 | G50: 30.35302189 | I50: 126 | J50: 112.6270816
A51: Magistre i alt | C51: 120 | D51: 105.1082143 | F51: 256 | G51: 208.3434167 | I51: 376 | J51: 313.451631
A52: DJØF'ere i alt | C52: 85 | D52: 78.25297823 | F52: 114 | G52: 98.34903013 | I52: 199 | J52: 176.6020084
A57: Middelfart
C59: Mænd | F59: Kvinder | I59: I alt
C60: Ledigheds- berørte | D60: Gns. brutto- ledighed | F60: Ledigheds- berørte | G60: Gns. brutto- ledighed | I60: Ledigheds- berørte | J60: Gns. brutto- ledighed
A63: Civ. ing. | C63: 0 | D63: 0 | F63: 0 | G63: 0 | I63: 0 | J63: 0
A64: Diplom ing. | C64: 4 | D64: 3.999251544 | F64: 0 | G64: 0 | I64: 4 | J64: 3.999251544
A65: Cand. Scient. Tek. | C65: 1 | D65: 0.9075032745 | F65: 1 | G65: 0.7621780079 | I65: 2 | J65: 1.669681282
A66: MA. Hum. | C66: 1 | D66: 0.9998128859 | F66: 6 | G66: 4.79760494 | I66: 7 | J66: 5.797417826
A67: MA. Nat. | C67: 2 | D67: 1.999625772 | F67: 0 | G67: 0 | I67: 2 | J67: 1.999625772
A68: MA. Ph.d. | C68: 0 | D68: 0 | F68: 0 | G68: 0 | I68: 0 | J68: 0
A69: MA. Samf. | C69: 0 | D69: 0 | F69: 1 | G69: 0.9075032745 | I69: 1 | J69: 0.9075032745
A70: Øvrige Mag. | C70: 0 | D70: 0 | F70: 1 | G70: 0.2276554606 | I70: 1 | J70: 0.2276554606
A71: Agronom | C71: 0 | D71: 0 | F71: 0 | G71: 0 | I71: 0 | J71: 0
A72: Landsk. Arkt. | C72: 0 | D72: 0 | F72: 0 | G72: 0 | I72: 0 | J72: 0
A73: Hortonom | C73: 0 | D73: 0 | F73: 0 | G73: 0 | I73: 0 | J73: 0
A74: Forstkand. | C74: 0 | D74: 0 | F74: 0 | G74: 0 | I74: 0 | J74: 0
A75: Jordbrugsakad. | C75: 0 | D75: 0 | F75: 0 | G75: 0 | I75: 0 | J75: 0
A76: Mejeriing. | C76: 0 | D76: 0 | F76: 0 | G76: 0 | I76: 0 | J76: 0
A77: Levn.m.kand. | C77: 0 | D77: 0 | F77: 1 | G77: 0.2114389073 | I77: 1 | J77: 0.2114389073
A78: Dyrlæge | C78: 0 | D78: 0 | F78: 0 | G78: 0 | I78: 0 | J78: 0
A79: Farmaceut | C79: 0 | D79: 0 | F79: 0 | G79: 0 | I79: 0 | J79: 0
A80: Læge | C80: 0 | D80: 0 | F80: 1 | G80: 0.9998128859 | I80: 1 | J80: 0.9998128859
A81: Tandlæge | C81: 0 | D81: 0 | F81: 0 | G81: 0 | I81: 0 | J81: 0
A82: Arkitekt | C82: 0 | D82: 0 | F82: 1 | G82: 0.9998128859 | I82: 1 | J82: 0.9998128859
A83: Landinspek. | C83: 0 | D83: 0 | F83: 0 | G83: 0 | I83: 0 | J83: 0
A84: Bibliotekar | C84: 0 | D84: 0 | F84: 0 | G84: 0 | I84: 0 | J84: 0
A85: Musikudd. | C85: 0 | D85: 0 | F85: 0 | G85: 0 | I85: 0 | J85: 0
A86: Teolog | C86: 0 | D86: 0 | F86: 2 | G86: 1.181937254 | I86: 2 | J86: 1.181937254
A87: Psykolog | C87: 0 | D87: 0 | F87: 0 | G87: 0 | I87: 0 | J87: 0
A88: Jurist | C88: 0 | D88: 0 | F88: 0 | G88: 0 | I88: 0 | J88: 0
A89: Økonom | C89: 0 | D89: 0 | F89: 0 | G89: 0 | I89: 0 | J89: 0
A90: Samf. Adm. | C90: 1 | D90: 0.9998128859 | F90: 0 | G90: 0 | I90: 1 | J90: 0.9998128859
A91: Cand. Merc. | C91: 1 | D91: 0.9998128859 | F91: 2 | G91: 1.676542132 | I91: 3 | J91: 2.676355018
A92: HA | C92: 1 | D92: 0.4459552174 | F92: 0 | G92: 0 | I92: 1 | J92: 0.4459552174
A93: HD | C93: 0 | D93: 0 | F93: 0 | G93: 0 | I93: 0 | J93: 0
A94: Komm. og Sprog | C94: 0 | D94: 0 | F94: 0 | G94: 0 | I94: 0 | J94: 0
A95: Bygningskonst | C95: 0 | D95: 0 | F95: 0 | G95: 0 | I95: 0 | J95: 0
A96: Cand. IT. | C96: 1 | D96: 0.9998128859 | F96: 0 | G96: 0 | I96: 1 | J96: 0.9998128859
A97: Bac. Samf. | C97: 0 | D97: 0 | F97: 1 | G97: 0.9998128859 | I97: 1 | J97: 0.9998128859
A98: Bac. Hum. | C98: 0 | D98: 0 | F98: 0 | G98: 0 | I98: 0 | J98: 0
A99: Bac. Nat. | C99: 0 | D99: 0 | F99: 0 | G99: 0 | I99: 0 | J99: 0
A100: Andre | C100: 0 | D100: 0 | F100: 0 | G100: 0 | I100: 0 | J100: 0
A102: Total | C102: 13 | D102: 12.04016716 | F102: 17 | G102: 12.76429863 | I102: 30 | J102: 24.80446579
A104: Ingeniører i alt | C104: 4 | D104: 3.999251544 | F104: 0 | G104: 0 | I104: 4 | J104: 3.999251544
A105: Magistre i alt | C105: 3 | D105: 2.999438658 | F105: 8 | G105: 5.932763675 | I105: 11 | J105: 8.932202333
A106: DJØF'ere i alt | C106: 3 | D106: 2.445580989 | F106: 2 | G106: 1.676542132 | I106: 5 | J106: 4.122123121
A111: Assens
C113: Mænd | F113: Kvinder | I113: I alt
C114: Ledigheds- berørte | D114: Gns. brutto- ledighed | F114: Ledigheds- berørte | G114: Gns. brutto- ledighed | I114: Ledigheds- berørte | J114: Gns. brutto- ledighed
A117: Civ. ing. | C117: 0 | D117: 0 | F117: 1 | G117: 0.9998128859 | I117: 1 | J117: 0.9998128859
A118: Diplom ing. | C118: 2 | D118: 1.999625772 | F118: 2 | G118: 1.974677228 | I118: 4 | J118: 3.974303
A119: Cand. Scient. Tek. | C119: 0 | D119: 0 | F119: 0 | G119: 0 | I119: 0 | J119: 0
A120: MA. Hum. | C120: 1 | D120: 0.9998128859 | F120: 5 | G120: 4.593650596 | I120: 6 | J120: 5.593463482
A121: MA. Nat. | C121: 1 | D121: 0.793987401 | F121: 3 | G121: 2.56907628 | I121: 4 | J121: 3.363063681
A122: MA. Ph.d. | C122: 0 | D122: 0 | F122: 0 | G122: 0 | I122: 0 | J122: 0
A123: MA. Samf. | C123: 0 | D123: 0 | F123: 0 | G123: 0 | I123: 0 | J123: 0
A124: Øvrige Mag. | C124: 0 | D124: 0 | F124: 0 | G124: 0 | I124: 0 | J124: 0
A125: Agronom | C125: 0 | D125: 0 | F125: 0 | G125: 0 | I125: 0 | J125: 0
A126: Landsk. Arkt. | C126: 0 | D126: 0 | F126: 0 | G126: 0 | I126: 0 | J126: 0
A127: Hortonom | C127: 0 | D127: 0 | F127: 0 | G127: 0 | I127: 0 | J127: 0
A128: Forstkand. | C128: 0 | D128: 0 | F128: 0 | G128: 0 | I128: 0 | J128: 0
A129: Jordbrugsakad. | C129: 0 | D129: 0 | F129: 0 | G129: 0 | I129: 0 | J129: 0
A130: Mejeriing. | C130: 0 | D130: 0 | F130: 0 | G130: 0 | I130: 0 | J130: 0
A131: Levn.m.kand. | C131: 0 | D131: 0 | F131: 0 | G131: 0 | I131: 0 | J131: 0
A132: Dyrlæge | C132: 0 | D132: 0 | F132: 0 | G132: 0 | I132: 0 | J132: 0
A133: Farmaceut | C133: 0 | D133: 0 | F133: 0 | G133: 0 | I133: 0 | J133: 0
A134: Læge | C134: 0 | D134: 0 | F134: 0 | G134: 0 | I134: 0 | J134: 0
A135: Tandlæge | C135: 0 | D135: 0 | F135: 0 | G135: 0 | I135: 0 | J135: 0
A136: Arkitekt | C136: 0 | D136: 0 | F136: 0 | G136: 0 | I136: 0 | J136: 0
A137: Landinspek. | C137: 0 | D137: 0 | F137: 0 | G137: 0 | I137: 0 | J137: 0
A138: Bibliotekar | C138: 0 | D138: 0 | F138: 0 | G138: 0 | I138: 0 | J138: 0
A139: Musikudd. | C139: 0 | D139: 0 | F139: 1 | G139: 0.3343104846 | I139: 1 | J139: 0.3343104846
A140: Teolog | C140: 0 | D140: 0 | F140: 0 | G140: 0 | I140: 0 | J140: 0
A141: Psykolog | C141: 0 | D141: 0 | F141: 0 | G141: 0 | I141: 0 | J141: 0
A142: Jurist | C142: 0 | D142: 0 | F142: 1 | G142: 0.9075032745 | I142: 1 | J142: 0.9075032745
A143: Økonom | C143: 0 | D143: 0 | F143: 0 | G143: 0 | I143: 0 | J143: 0
A144: Samf. Adm. | C144: 1 | D144: 0.9998128859 | F144: 2 | G144: 1.999625772 | I144: 3 | J144: 2.999438658
A145: Cand. Merc. | C145: 0 | D145: 0 | F145: 1 | G145: 0.9998128859 | I145: 1 | J145: 0.9998128859
A146: HA | C146: 0 | D146: 0 | F146: 0 | G146: 0 | I146: 0 | J146: 0
A147: HD | C147: 0 | D147: 0 | F147: 1 | G147: 0.9998128859 | I147: 1 | J147: 0.9998128859
A148: Komm. og Sprog | C148: 0 | D148: 0 | F148: 0 | G148: 0 | I148: 0 | J148: 0
A149: Bygningskonst. | C149: 1 | D149: 0.8128859228 | F149: 0 | G149: 0 | I149: 1 | J149: 0.8128859228
A150: Cand. IT. | C150: 0 | D150: 0 | F150: 0 | G150: 0 | I150: 0 | J150: 0
A151: Bac. Samf. | C151: 0 | D151: 0 | F151: 0 | G151: 0 | I151: 0 | J151: 0
A152: Bac. Hum. | C152: 0 | D152: 0 | F152: 1 | G152: 0.9998128859 | I152: 1 | J152: 0.9998128859
A153: Bac. Nat. | C153: 1 | D153: 0.9998128859 | F153: 0 | G153: 0 | I153: 1 | J153: 0.9998128859
A154: Andre | C154: 1 | D154: 0.9998128859 | F154: 0 | G154: 0 | I154: 1 | J154: 0.9998128859
A156: Total | C156: 8 | D156: 7.605750639 | F156: 18 | G156: 16.37809518 | I156: 26 | J156: 23.98384582
A158: Ingeniører i alt | C158: 2 | D158: 1.999625772 | F158: 3 | G158: 2.974490114 | I158: 5 | J158: 4.974115886
A159: Magistre i alt | C159: 2 | D159: 1.793800287 | F159: 8 | G159: 7.162726876 | I159: 10 | J159: 8.956527163
A160: DJØF'ere i alt | C160: 1 | D160: 0.9998128859 | F160: 4 | G160: 3.906941932 | I160: 5 | J160: 4.906754818
A165: Faaborg-Midtfyn
C167: Mænd | F167: Kvinder | I167: I alt
C168: Ledigheds- berørte | D168: Gns. brutto- ledighed | F168: Ledigheds- berørte | G168: Gns. brutto- ledighed | I168: Ledigheds- berørte | J168: Gns. brutto- ledighed
A171: Civ. ing. | C171: 2 | D171: 1.23495291 | F171: 1 | G171: 0.9998128859 | I171: 3 | J171: 2.234765796
A172: Diplom ing. | C172: 5 | D172: 3.368677103 | F172: 2 | G172: 1.999625772 | I172: 7 | J172: 5.368302875
A173: Cand. Scient. Tek. | C173: 0 | D173: 0 | F173: 4 | G173: 3.131042225 | I173: 4 | J173: 3.131042225
A174: MA. Hum. | C174: 1 | D174: 0.9075032745 | F174: 10 | G174: 7.763986777 | I174: 11 | J174: 8.671490052
A175: MA. Nat. | C175: 2 | D175: 1.445768103 | F175: 0 | G175: 0 | I175: 2 | J175: 1.445768103
A176: MA. Ph.d. | C176: 1 | D176: 0.9998128859 | F176: 0 | G176: 0 | I176: 1 | J176: 0.9998128859
A177: MA. Samf. | C177: 0 | D177: 0 | F177: 1 | G177: 0.9998128859 | I177: 1 | J177: 0.9998128859
A178: Øvrige Mag. | C178: 0 | D178: 0 | F178: 0 | G178: 0 | I178: 0 | J178: 0
A179: Agronom | C179: 0 | D179: 0 | F179: 2 | G179: 1.122684463 | I179: 2 | J179: 1.122684463
A180: Landsk. Arkt. | C180: 0 | D180: 0 | F180: 0 | G180: 0 | I180: 0 | J180: 0
A181: Hortonom | C181: 0 | D181: 0 | F181: 0 | G181: 0 | I181: 0 | J181: 0
A182: Forstkand. | C182: 0 | D182: 0 | F182: 0 | G182: 0 | I182: 0 | J182: 0
A183: Jordbrugsakad. | C183: 0 | D183: 0 | F183: 2 | G183: 1.122684463 | I183: 2 | J183: 1.122684463
A184: Mejeriing. | C184: 0 | D184: 0 | F184: 0 | G184: 0 | I184: 0 | J184: 0
A185: Levn.m.kand. | C185: 0 | D185: 0 | F185: 0 | G185: 0 | I185: 0 | J185: 0
A186: Dyrlæge | C186: 0 | D186: 0 | F186: 0 | G186: 0 | I186: 0 | J186: 0
A187: Farmaceut | C187: 0 | D187: 0 | F187: 0 | G187: 0 | I187: 0 | J187: 0
A188: Læge | C188: 0 | D188: 0 | F188: 0 | G188: 0 | I188: 0 | J188: 0
A189: Tandlæge | C189: 0 | D189: 0 | F189: 0 | G189: 0 | I189: 0 | J189: 0
A190: Arkitekt | C190: 1 | D190: 0.608120751 | F190: 0 | G190: 0 | I190: 1 | J190: 0.608120751
A191: Landinspek. | C191: 0 | D191: 0 | F191: 0 | G191: 0 | I191: 0 | J191: 0
A192: Bibliotekar | C192: 0 | D192: 0 | F192: 0 | G192: 0 | I192: 0 | J192: 0
A193: Musikudd. | C193: 0 | D193: 0 | F193: 0 | G193: 0 | I193: 0 | J193: 0
A194: Teolog | C194: 0 | D194: 0 | F194: 0 | G194: 0 | I194: 0 | J194: 0
A195: Psykolog | C195: 0 | D195: 0 | F195: 1 | G195: 0.4072849747 | I195: 1 | J195: 0.4072849747
A196: Jurist | C196: 0 | D196: 0 | F196: 0 | G196: 0 | I196: 0 | J196: 0
A197: Økonom | C197: 0 | D197: 0 | F197: 0 | G197: 0 | I197: 0 | J197: 0
A198: Samf. Adm. | C198: 1 | D198: 0.9998128859 | F198: 4 | G198: 3.353084264 | I198: 5 | J198: 4.35289715
A199: Cand. Merc. | C199: 0 | D199: 0 | F199: 2 | G199: 1.647851307 | I199: 2 | J199: 1.647851307
A200: HA | C200: 1 | D200: 0.862595896 | F200: 0 | G200: 0 | I200: 1 | J200: 0.862595896
A201: HD | C201: 0 | D201: 0 | F201: 0 | G201: 0 | I201: 0 | J201: 0
A202: Komm. og Sprog | C202: 0 | D202: 0 | F202: 1 | G202: 0.9536580802 | I202: 1 | J202: 0.9536580802
A203: Bygningskonst. | C203: 2 | D203: 1.446142331 | F203: 0 | G203: 0 | I203: 2 | J203: 1.446142331
A204: Cand. IT. | C204: 1 | D204: 0.9998128859 | F204: 2 | G204: 1.296076842 | I204: 3 | J204: 2.295889727
A205: Bac. Samf. | C205: 0 | D205: 0 | F205: 0 | G205: 0 | I205: 0 | J205: 0
A206: Bac. Hum. | C206: 0 | D206: 0 | F206: 1 | G206: 0.7690388574 | I206: 1 | J206: 0.7690388574
A207: Bac. Nat. | C207: 1 | D207: 0.9998128859 | F207: 0 | G207: 0 | I207: 1 | J207: 0.9998128859
A208: Andre | C208: 3 | D208: 2.415642737 | F208: 1 | G208: 0.9998128859 | I208: 4 | J208: 3.415455623
A210: Total | C210: 21 | D210: 16.28865465 | F210: 32 | G210: 25.44377222 | I210: 53 | J210: 41.73242687
A212: Ingeniører i alt | C212: 7 | D212: 4.603630013 | F212: 3 | G212: 2.999438658 | I212: 10 | J212: 7.603068671
A213: Magistre i alt | C213: 4 | D213: 3.353084264 | F213: 11 | G213: 8.763799663 | I213: 15 | J213: 12.11688393
A214: DJØF'ere i alt | C214: 2 | D214: 1.862408782 | F214: 6 | G214: 5.00093557 | I214: 8 | J214: 6.863344352
A219: Kerteminde
C221: Mænd | F221: Kvinder | I221: I alt
C222: Ledigheds- berørte | D222: Gns. brutto- ledighed | F222: Ledigheds- berørte | G222: Gns. brutto- ledighed | I222: Ledigheds- berørte | J222: Gns. brutto- ledighed
A225: Civ. ing. | C225: 0 | D225: 0 | F225: 0 | G225: 0 | I225: 0 | J225: 0
A226: Diplom ing. | C226: 1 | D226: 0.9998128859 | F226: 1 | G226: 0.9998128859 | I226: 2 | J226: 1.999625772
A227: Cand. Scient. Tek. | C227: 0 | D227: 0 | F227: 1 | G227: 0.9998128859 | I227: 1 | J227: 0.9998128859
A228: MA. Hum. | C228: 2 | D228: 1.665315287 | F228: 8 | G228: 5.540447826 | I228: 10 | J228: 7.205763114
A229: MA. Nat. | C229: 1 | D229: 0.9998128859 | F229: 1 | G229: 0.9998128859 | I229: 2 | J229: 1.999625772
A230: MA. Ph.d. | C230: 0 | D230: 0 | F230: 0 | G230: 0 | I230: 0 | J230: 0
A231: MA. Samf. | C231: 0 | D231: 0 | F231: 0 | G231: 0 | I231: 0 | J231: 0
A232: Øvrige Mag. | C232: 0 | D232: 0 | F232: 0 | G232: 0 | I232: 0 | J232: 0
A233: Agronom | C233: 0 | D233: 0 | F233: 0 | G233: 0 | I233: 0 | J233: 0
A234: Landsk. Arkt. | C234: 0 | D234: 0 | F234: 0 | G234: 0 | I234: 0 | J234: 0
A235: Hortonom | C235: 0 | D235: 0 | F235: 0 | G235: 0 | I235: 0 | J235: 0
A236: Forstkand. | C236: 0 | D236: 0 | F236: 0 | G236: 0 | I236: 0 | J236: 0
A237: Jordbrugsakad. | C237: 0 | D237: 0 | F237: 0 | G237: 0 | I237: 0 | J237: 0
A238: Mejeriing. | C238: 0 | D238: 0 | F238: 0 | G238: 0 | I238: 0 | J238: 0
A239: Levn.m.kand. | C239: 0 | D239: 0 | F239: 0 | G239: 0 | I239: 0 | J239: 0
A240: Dyrlæge | C240: 0 | D240: 0 | F240: 0 | G240: 0 | I240: 0 | J240: 0
... 296 more rows

Sheet Tabel 3 F
A1: Tabel 3. Ledige i procent af forsikrede
A3: Fyn
C5: Mænd | F5: Kvinder | I5: I alt
C6: Ledigheds- berørte | D6: Gns. brutto- ledighed | F6: Ledigheds- berørte | G6: Gns. brutto- ledighed | I6: Ledigheds- berørte | J6: Gns. brutto- ledighed
A9: Civ. ing. | C9: =IF(OR('Tabel 1 F'!C7<5,'Tabel 2 F'!C9<0.5),"-",IFERROR('Tabel 2 F'!C9/'Tabel 1 F'!C7*100,"-")) -> 2.503793627 | D9: =IF(OR('Tabel 1 F'!C7<5,'Tabel 2 F'!D9<0.5),"-",IFERROR('Tabel 2 F'!D9/'Tabel 1 F'!C7*100,"-")) -> 2.259944328 | F9: =IF(OR('Tabel 1 F'!E7<5,'Tabel 2 F'!F9<0.5),"-",IFERROR('Tabel 2 F'!F9/'Tabel 1 F'!E7*100,"-")) -> 3.921568627 | G9: =IF(OR('Tabel 1 F'!E7<5,'Tabel 2 F'!G9<0.5),"-",IFERROR('Tabel 2 F'!G9/'Tabel 1 F'!E7*100,"-")) -> 3.526340368 | I9: =IF(OR('Tabel 1 F'!G7<5,'Tabel 2 F'!I9<0.5),"-",IFERROR('Tabel 2 F'!I9/'Tabel 1 F'!G7*100,"-")) -> 2.805970149 | J9: =IF(OR('Tabel 1 F'!G7<5,'Tabel 2 F'!J9<0.5),"-",IFERROR('Tabel 2 F'!J9/'Tabel 1 F'!G7*100,"-")) -> 2.529856797
A10: Diplom ing. | C10: =IF(OR('Tabel 1 F'!C8<5,'Tabel 2 F'!C10<0.5),"-",IFERROR('Tabel 2 F'!C10/'Tabel 1 F'!C8*100,"-")) -> 2.141011443 | D10: =IF(OR('Tabel 1 F'!C8<5,'Tabel 2 F'!D10<0.5),"-",IFERROR('Tabel 2 F'!D10/'Tabel 1 F'!C8*100,"-")) -> 1.937541289 | F10: =IF(OR('Tabel 1 F'!E8<5,'Tabel 2 F'!F10<0.5),"-",IFERROR('Tabel 2 F'!F10/'Tabel 1 F'!E8*100,"-")) -> 3.40356564 | G10: =IF(OR('Tabel 1 F'!E8<5,'Tabel 2 F'!G10<0.5),"-",IFERROR('Tabel 2 F'!G10/'Tabel 1 F'!E8*100,"-")) -> 2.879090239 | I10: =IF(OR('Tabel 1 F'!G8<5,'Tabel 2 F'!I10<0.5),"-",IFERROR('Tabel 2 F'!I10/'Tabel 1 F'!G8*100,"-")) -> 2.375225496 | J10: =IF(OR('Tabel 1 F'!G8<5,'Tabel 2 F'!J10<0.5),"-",IFERROR('Tabel 2 F'!J10/'Tabel 1 F'!G8*100,"-")) -> 2.112206262
A11: Cand. Scient. Tek. | C11: =IF(OR('Tabel 1 F'!C9<5,'Tabel 2 F'!C11<0.5),"-",IFERROR('Tabel 2 F'!C11/'Tabel 1 F'!C9*100,"-")) -> 4.985754986 | D11: =IF(OR('Tabel 1 F'!C9<5,'Tabel 2 F'!D11<0.5),"-",IFERROR('Tabel 2 F'!D11/'Tabel 1 F'!C9*100,"-")) -> 4.44578072 | F11: =IF(OR('Tabel 1 F'!E9<5,'Tabel 2 F'!F11<0.5),"-",IFERROR('Tabel 2 F'!F11/'Tabel 1 F'!E9*100,"-")) -> 4.411764706 | G11: =IF(OR('Tabel 1 F'!E9<5,'Tabel 2 F'!G11<0.5),"-",IFERROR('Tabel 2 F'!G11/'Tabel 1 F'!E9*100,"-")) -> 3.59781847 | I11: =IF(OR('Tabel 1 F'!G9<5,'Tabel 2 F'!I11<0.5),"-",IFERROR('Tabel 2 F'!I11/'Tabel 1 F'!G9*100,"-")) -> 4.703328509 | J11: =IF(OR('Tabel 1 F'!G9<5,'Tabel 2 F'!J11<0.5),"-",IFERROR('Tabel 2 F'!J11/'Tabel 1 F'!G9*100,"-")) -> 4.028548933
A12: MA. Hum. | C12: =IF(OR('Tabel 1 F'!C10<5,'Tabel 2 F'!C12<0.5),"-",IFERROR('Tabel 2 F'!C12/'Tabel 1 F'!C10*100,"-")) -> 7.109448082 | D12: =IF(OR('Tabel 1 F'!C10<5,'Tabel 2 F'!D12<0.5),"-",IFERROR('Tabel 2 F'!D12/'Tabel 1 F'!C10*100,"-")) -> 6.071901399 | F12: =IF(OR('Tabel 1 F'!E10<5,'Tabel 2 F'!F12<0.5),"-",IFERROR('Tabel 2 F'!F12/'Tabel 1 F'!E10*100,"-")) -> 8.443708609 | G12: =IF(OR('Tabel 1 F'!E10<5,'Tabel 2 F'!G12<0.5),"-",IFERROR('Tabel 2 F'!G12/'Tabel 1 F'!E10*100,"-")) -> 6.866658089 | I12: =IF(OR('Tabel 1 F'!G10<5,'Tabel 2 F'!I12<0.5),"-",IFERROR('Tabel 2 F'!I12/'Tabel 1 F'!G10*100,"-")) -> 8.034433286 | J12: =IF(OR('Tabel 1 F'!G10<5,'Tabel 2 F'!J12<0.5),"-",IFERROR('Tabel 2 F'!J12/'Tabel 1 F'!G10*100,"-")) -> 6.622871891
A13: MA. Nat. | C13: =IF(OR('Tabel 1 F'!C11<5,'Tabel 2 F'!C13<0.5),"-",IFERROR('Tabel 2 F'!C13/'Tabel 1 F'!C11*100,"-")) -> 2.955665025 | D13: =IF(OR('Tabel 1 F'!C11<5,'Tabel 2 F'!D13<0.5),"-",IFERROR('Tabel 2 F'!D13/'Tabel 1 F'!C11*100,"-")) -> 2.716687472 | F13: =IF(OR('Tabel 1 F'!E11<5,'Tabel 2 F'!F13<0.5),"-",IFERROR('Tabel 2 F'!F13/'Tabel 1 F'!E11*100,"-")) -> 2.576489533 | G13: =IF(OR('Tabel 1 F'!E11<5,'Tabel 2 F'!G13<0.5),"-",IFERROR('Tabel 2 F'!G13/'Tabel 1 F'!E11*100,"-")) -> 2.175665669 | I13: =IF(OR('Tabel 1 F'!G11<5,'Tabel 2 F'!I13<0.5),"-",IFERROR('Tabel 2 F'!I13/'Tabel 1 F'!G11*100,"-")) -> 2.764227642 | J13: =IF(OR('Tabel 1 F'!G11<5,'Tabel 2 F'!J13<0.5),"-",IFERROR('Tabel 2 F'!J13/'Tabel 1 F'!G11*100,"-")) -> 2.44353744
A14: MA. Ph.d. | C14: =IF(OR('Tabel 1 F'!C12<5,'Tabel 2 F'!C14<0.5),"-",IFERROR('Tabel 2 F'!C14/'Tabel 1 F'!C12*100,"-")) -> 5.681818182 | D14: =IF(OR('Tabel 1 F'!C12<5,'Tabel 2 F'!D14<0.5),"-",IFERROR('Tabel 2 F'!D14/'Tabel 1 F'!C12*100,"-")) -> 4.261097849 | F14: =IF(OR('Tabel 1 F'!E12<5,'Tabel 2 F'!F14<0.5),"-",IFERROR('Tabel 2 F'!F14/'Tabel 1 F'!E12*100,"-")) -> 4.166666667 | G14: =IF(OR('Tabel 1 F'!E12<5,'Tabel 2 F'!G14<0.5),"-",IFERROR('Tabel 2 F'!G14/'Tabel 1 F'!E12*100,"-")) -> 3.717159747 | I14: =IF(OR('Tabel 1 F'!G12<5,'Tabel 2 F'!I14<0.5),"-",IFERROR('Tabel 2 F'!I14/'Tabel 1 F'!G12*100,"-")) -> 5 | J14: =IF(OR('Tabel 1 F'!G12<5,'Tabel 2 F'!J14<0.5),"-",IFERROR('Tabel 2 F'!J14/'Tabel 1 F'!G12*100,"-")) -> 4.016325703
A15: MA. Samf. | C15: =IF(OR('Tabel 1 F'!C13<5,'Tabel 2 F'!C15<0.5),"-",IFERROR('Tabel 2 F'!C15/'Tabel 1 F'!C13*100,"-")) -> 19.71830986 | D15: =IF(OR('Tabel 1 F'!C13<5,'Tabel 2 F'!D15<0.5),"-",IFERROR('Tabel 2 F'!D15/'Tabel 1 F'!C13*100,"-")) -> 18.54449845 | F15: =IF(OR('Tabel 1 F'!E13<5,'Tabel 2 F'!F15<0.5),"-",IFERROR('Tabel 2 F'!F15/'Tabel 1 F'!E13*100,"-")) -> 8.522727273 | G15: =IF(OR('Tabel 1 F'!E13<5,'Tabel 2 F'!G15<0.5),"-",IFERROR('Tabel 2 F'!G15/'Tabel 1 F'!E13*100,"-")) -> 6.798832522 | I15: =IF(OR('Tabel 1 F'!G13<5,'Tabel 2 F'!I15<0.5),"-",IFERROR('Tabel 2 F'!I15/'Tabel 1 F'!G13*100,"-")) -> 11.74089069 | J15: =IF(OR('Tabel 1 F'!G13<5,'Tabel 2 F'!J15<0.5),"-",IFERROR('Tabel 2 F'!J15/'Tabel 1 F'!G13*100,"-")) -> 10.17511706
A16: Øvrige Mag. | C16: =IF(OR('Tabel 1 F'!C14<5,'Tabel 2 F'!C16<0.5),"-",IFERROR('Tabel 2 F'!C16/'Tabel 1 F'!C14*100,"-")) -> 8.235294118 | D16: =IF(OR('Tabel 1 F'!C14<5,'Tabel 2 F'!D16<0.5),"-",IFERROR('Tabel 2 F'!D16/'Tabel 1 F'!C14*100,"-")) -> 7.927766628 | F16: =IF(OR('Tabel 1 F'!E14<5,'Tabel 2 F'!F16<0.5),"-",IFERROR('Tabel 2 F'!F16/'Tabel 1 F'!E14*100,"-")) -> 10.34482759 | G16: =IF(OR('Tabel 1 F'!E14<5,'Tabel 2 F'!G16<0.5),"-",IFERROR('Tabel 2 F'!G16/'Tabel 1 F'!E14*100,"-")) -> 8.213662769 | I16: =IF(OR('Tabel 1 F'!G14<5,'Tabel 2 F'!I16<0.5),"-",IFERROR('Tabel 2 F'!I16/'Tabel 1 F'!G14*100,"-")) -> 9.652509653 | J16: =IF(OR('Tabel 1 F'!G14<5,'Tabel 2 F'!J16<0.5),"-",IFERROR('Tabel 2 F'!J16/'Tabel 1 F'!G14*100,"-")) -> 8.11983585
A17: Agronom | C17: =IF(OR('Tabel 1 F'!C15<5,'Tabel 2 F'!C17<0.5),"-",IFERROR('Tabel 2 F'!C17/'Tabel 1 F'!C15*100,"-")) -> 1.333333333 | D17: =IF(OR('Tabel 1 F'!C15<5,'Tabel 2 F'!D17<0.5),"-",IFERROR('Tabel 2 F'!D17/'Tabel 1 F'!C15*100,"-")) -> 1.333083848 | F17: =IF(OR('Tabel 1 F'!E15<5,'Tabel 2 F'!F17<0.5),"-",IFERROR('Tabel 2 F'!F17/'Tabel 1 F'!E15*100,"-")) -> 4.411764706 | G17: =IF(OR('Tabel 1 F'!E15<5,'Tabel 2 F'!G17<0.5),"-",IFERROR('Tabel 2 F'!G17/'Tabel 1 F'!E15*100,"-")) -> 3.121319631 | I17: =IF(OR('Tabel 1 F'!G15<5,'Tabel 2 F'!I17<0.5),"-",IFERROR('Tabel 2 F'!I17/'Tabel 1 F'!G15*100,"-")) -> 2.797202797 | J17: =IF(OR('Tabel 1 F'!G15<5,'Tabel 2 F'!J17<0.5),"-",IFERROR('Tabel 2 F'!J17/'Tabel 1 F'!G15*100,"-")) -> 2.183433731
A18: Landsk. Arkt. | C18: =IF(OR('Tabel 1 F'!C16<5,'Tabel 2 F'!C18<0.5),"-",IFERROR('Tabel 2 F'!C18/'Tabel 1 F'!C16*100,"-")) -> - | D18: =IF(OR('Tabel 1 F'!C16<5,'Tabel 2 F'!D18<0.5),"-",IFERROR('Tabel 2 F'!D18/'Tabel 1 F'!C16*100,"-")) -> - | F18: =IF(OR('Tabel 1 F'!E16<5,'Tabel 2 F'!F18<0.5),"-",IFERROR('Tabel 2 F'!F18/'Tabel 1 F'!E16*100,"-")) -> - | G18: =IF(OR('Tabel 1 F'!E16<5,'Tabel 2 F'!G18<0.5),"-",IFERROR('Tabel 2 F'!G18/'Tabel 1 F'!E16*100,"-")) -> - | I18: =IF(OR('Tabel 1 F'!G16<5,'Tabel 2 F'!I18<0.5),"-",IFERROR('Tabel 2 F'!I18/'Tabel 1 F'!G16*100,"-")) -> - | J18: =IF(OR('Tabel 1 F'!G16<5,'Tabel 2 F'!J18<0.5),"-",IFERROR('Tabel 2 F'!J18/'Tabel 1 F'!G16*100,"-")) -> -
A19: Hortonom | C19: =IF(OR('Tabel 1 F'!C17<5,'Tabel 2 F'!C19<0.5),"-",IFERROR('Tabel 2 F'!C19/'Tabel 1 F'!C17*100,"-")) -> - | D19: =IF(OR('Tabel 1 F'!C17<5,'Tabel 2 F'!D19<0.5),"-",IFERROR('Tabel 2 F'!D19/'Tabel 1 F'!C17*100,"-")) -> - | F19: =IF(OR('Tabel 1 F'!E17<5,'Tabel 2 F'!F19<0.5),"-",IFERROR('Tabel 2 F'!F19/'Tabel 1 F'!E17*100,"-")) -> 5.555555556 | G19: =IF(OR('Tabel 1 F'!E17<5,'Tabel 2 F'!G19<0.5),"-",IFERROR('Tabel 2 F'!G19/'Tabel 1 F'!E17*100,"-")) -> - | I19: =IF(OR('Tabel 1 F'!G17<5,'Tabel 2 F'!I19<0.5),"-",IFERROR('Tabel 2 F'!I19/'Tabel 1 F'!G17*100,"-")) -> 3.03030303 | J19: =IF(OR('Tabel 1 F'!G17<5,'Tabel 2 F'!J19<0.5),"-",IFERROR('Tabel 2 F'!J19/'Tabel 1 F'!G17*100,"-")) -> -
A20: Forstkand. | C20: =IF(OR('Tabel 1 F'!C18<5,'Tabel 2 F'!C20<0.5),"-",IFERROR('Tabel 2 F'!C20/'Tabel 1 F'!C18*100,"-")) -> - | D20: =IF(OR('Tabel 1 F'!C18<5,'Tabel 2 F'!D20<0.5),"-",IFERROR('Tabel 2 F'!D20/'Tabel 1 F'!C18*100,"-")) -> - | F20: =IF(OR('Tabel 1 F'!E18<5,'Tabel 2 F'!F20<0.5),"-",IFERROR('Tabel 2 F'!F20/'Tabel 1 F'!E18*100,"-")) -> - | G20: =IF(OR('Tabel 1 F'!E18<5,'Tabel 2 F'!G20<0.5),"-",IFERROR('Tabel 2 F'!G20/'Tabel 1 F'!E18*100,"-")) -> - | I20: =IF(OR('Tabel 1 F'!G18<5,'Tabel 2 F'!I20<0.5),"-",IFERROR('Tabel 2 F'!I20/'Tabel 1 F'!G18*100,"-")) -> - | J20: =IF(OR('Tabel 1 F'!G18<5,'Tabel 2 F'!J20<0.5),"-",IFERROR('Tabel 2 F'!J20/'Tabel 1 F'!G18*100,"-")) -> -
A21: Jordbrugsakad. | C21: =IF(OR('Tabel 1 F'!C19<5,'Tabel 2 F'!C21<0.5),"-",IFERROR('Tabel 2 F'!C21/'Tabel 1 F'!C19*100,"-")) -> 0.8695652174 | D21: =IF(OR('Tabel 1 F'!C19<5,'Tabel 2 F'!D21<0.5),"-",IFERROR('Tabel 2 F'!D21/'Tabel 1 F'!C19*100,"-")) -> 0.8694025095 | F21: =IF(OR('Tabel 1 F'!E19<5,'Tabel 2 F'!F21<0.5),"-",IFERROR('Tabel 2 F'!F21/'Tabel 1 F'!E19*100,"-")) -> 3.389830508 | G21: =IF(OR('Tabel 1 F'!E19<5,'Tabel 2 F'!G21<0.5),"-",IFERROR('Tabel 2 F'!G21/'Tabel 1 F'!E19*100,"-")) -> 2.125383346 | I21: =IF(OR('Tabel 1 F'!G19<5,'Tabel 2 F'!I21<0.5),"-",IFERROR('Tabel 2 F'!I21/'Tabel 1 F'!G19*100,"-")) -> 2.145922747 | J21: =IF(OR('Tabel 1 F'!G19<5,'Tabel 2 F'!J21<0.5),"-",IFERROR('Tabel 2 F'!J21/'Tabel 1 F'!G19*100,"-")) -> 1.505478641
A22: Mejeriing. | C22: =IF(OR('Tabel 1 F'!C20<5,'Tabel 2 F'!C22<0.5),"-",IFERROR('Tabel 2 F'!C22/'Tabel 1 F'!C20*100,"-")) -> - | D22: =IF(OR('Tabel 1 F'!C20<5,'Tabel 2 F'!D22<0.5),"-",IFERROR('Tabel 2 F'!D22/'Tabel 1 F'!C20*100,"-")) -> - | F22: =IF(OR('Tabel 1 F'!E20<5,'Tabel 2 F'!F22<0.5),"-",IFERROR('Tabel 2 F'!F22/'Tabel 1 F'!E20*100,"-")) -> - | G22: =IF(OR('Tabel 1 F'!E20<5,'Tabel 2 F'!G22<0.5),"-",IFERROR('Tabel 2 F'!G22/'Tabel 1 F'!E20*100,"-")) -> - | I22: =IF(OR('Tabel 1 F'!G20<5,'Tabel 2 F'!I22<0.5),"-",IFERROR('Tabel 2 F'!I22/'Tabel 1 F'!G20*100,"-")) -> - | J22: =IF(OR('Tabel 1 F'!G20<5,'Tabel 2 F'!J22<0.5),"-",IFERROR('Tabel 2 F'!J22/'Tabel 1 F'!G20*100,"-")) -> -
A23: Levn.m.kand. | C23: =IF(OR('Tabel 1 F'!C21<5,'Tabel 2 F'!C23<0.5),"-",IFERROR('Tabel 2 F'!C23/'Tabel 1 F'!C21*100,"-")) -> - | D23: =IF(OR('Tabel 1 F'!C21<5,'Tabel 2 F'!D23<0.5),"-",IFERROR('Tabel 2 F'!D23/'Tabel 1 F'!C21*100,"-")) -> - | F23: =IF(OR('Tabel 1 F'!E21<5,'Tabel 2 F'!F23<0.5),"-",IFERROR('Tabel 2 F'!F23/'Tabel 1 F'!E21*100,"-")) -> 8.333333333 | G23: =IF(OR('Tabel 1 F'!E21<5,'Tabel 2 F'!G23<0.5),"-",IFERROR('Tabel 2 F'!G23/'Tabel 1 F'!E21*100,"-")) -> - | I23: =IF(OR('Tabel 1 F'!G21<5,'Tabel 2 F'!I23<0.5),"-",IFERROR('Tabel 2 F'!I23/'Tabel 1 F'!G21*100,"-")) -> 5.555555556 | J23: =IF(OR('Tabel 1 F'!G21<5,'Tabel 2 F'!J23<0.5),"-",IFERROR('Tabel 2 F'!J23/'Tabel 1 F'!G21*100,"-")) -> -
A24: Dyrlæge | C24: =IF(OR('Tabel 1 F'!C22<5,'Tabel 2 F'!C24<0.5),"-",IFERROR('Tabel 2 F'!C24/'Tabel 1 F'!C22*100,"-")) -> - | D24: =IF(OR('Tabel 1 F'!C22<5,'Tabel 2 F'!D24<0.5),"-",IFERROR('Tabel 2 F'!D24/'Tabel 1 F'!C22*100,"-")) -> - | F24: =IF(OR('Tabel 1 F'!E22<5,'Tabel 2 F'!F24<0.5),"-",IFERROR('Tabel 2 F'!F24/'Tabel 1 F'!E22*100,"-")) -> - | G24: =IF(OR('Tabel 1 F'!E22<5,'Tabel 2 F'!G24<0.5),"-",IFERROR('Tabel 2 F'!G24/'Tabel 1 F'!E22*100,"-")) -> - | I24: =IF(OR('Tabel 1 F'!G22<5,'Tabel 2 F'!I24<0.5),"-",IFERROR('Tabel 2 F'!I24/'Tabel 1 F'!G22*100,"-")) -> - | J24: =IF(OR('Tabel 1 F'!G22<5,'Tabel 2 F'!J24<0.5),"-",IFERROR('Tabel 2 F'!J24/'Tabel 1 F'!G22*100,"-")) -> -
A25: Farmaceut | C25: =IF(OR('Tabel 1 F'!C23<5,'Tabel 2 F'!C25<0.5),"-",IFERROR('Tabel 2 F'!C25/'Tabel 1 F'!C23*100,"-")) -> 7.462686567 | D25: =IF(OR('Tabel 1 F'!C23<5,'Tabel 2 F'!D25<0.5),"-",IFERROR('Tabel 2 F'!D25/'Tabel 1 F'!C23*100,"-")) -> 7.185739115 | F25: =IF(OR('Tabel 1 F'!E23<5,'Tabel 2 F'!F25<0.5),"-",IFERROR('Tabel 2 F'!F25/'Tabel 1 F'!E23*100,"-")) -> 3.50877193 | G25: =IF(OR('Tabel 1 F'!E23<5,'Tabel 2 F'!G25<0.5),"-",IFERROR('Tabel 2 F'!G25/'Tabel 1 F'!E23*100,"-")) -> 2.945131806 | I25: =IF(OR('Tabel 1 F'!G23<5,'Tabel 2 F'!I25<0.5),"-",IFERROR('Tabel 2 F'!I25/'Tabel 1 F'!G23*100,"-")) -> 4.406779661 | J25: =IF(OR('Tabel 1 F'!G23<5,'Tabel 2 F'!J25<0.5),"-",IFERROR('Tabel 2 F'!J25/'Tabel 1 F'!G23*100,"-")) -> 3.908252788
A26: Læge | C26: =IF(OR('Tabel 1 F'!C24<5,'Tabel 2 F'!C26<0.5),"-",IFERROR('Tabel 2 F'!C26/'Tabel 1 F'!C24*100,"-")) -> 0.8908685969 | D26: =IF(OR('Tabel 1 F'!C24<5,'Tabel 2 F'!D26<0.5),"-",IFERROR('Tabel 2 F'!D26/'Tabel 1 F'!C24*100,"-")) -> 0.8393045691 | F26: =IF(OR('Tabel 1 F'!E24<5,'Tabel 2 F'!F26<0.5),"-",IFERROR('Tabel 2 F'!F26/'Tabel 1 F'!E24*100,"-")) -> 0.8839779006 | G26: =IF(OR('Tabel 1 F'!E24<5,'Tabel 2 F'!G26<0.5),"-",IFERROR('Tabel 2 F'!G26/'Tabel 1 F'!E24*100,"-")) -> 0.6888416949 | I26: =IF(OR('Tabel 1 F'!G24<5,'Tabel 2 F'!I26<0.5),"-",IFERROR('Tabel 2 F'!I26/'Tabel 1 F'!G24*100,"-")) -> 0.8862629247 | J26: =IF(OR('Tabel 1 F'!G24<5,'Tabel 2 F'!J26<0.5),"-",IFERROR('Tabel 2 F'!J26/'Tabel 1 F'!G24*100,"-")) -> 0.7387366953
A27: Tandlæge | C27: =IF(OR('Tabel 1 F'!C25<5,'Tabel 2 F'!C27<0.5),"-",IFERROR('Tabel 2 F'!C27/'Tabel 1 F'!C25*100,"-")) -> - | D27: =IF(OR('Tabel 1 F'!C25<5,'Tabel 2 F'!D27<0.5),"-",IFERROR('Tabel 2 F'!D27/'Tabel 1 F'!C25*100,"-")) -> - | F27: =IF(OR('Tabel 1 F'!E25<5,'Tabel 2 F'!F27<0.5),"-",IFERROR('Tabel 2 F'!F27/'Tabel 1 F'!E25*100,"-")) -> - | G27: =IF(OR('Tabel 1 F'!E25<5,'Tabel 2 F'!G27<0.5),"-",IFERROR('Tabel 2 F'!G27/'Tabel 1 F'!E25*100,"-")) -> - | I27: =IF(OR('Tabel 1 F'!G25<5,'Tabel 2 F'!I27<0.5),"-",IFERROR('Tabel 2 F'!I27/'Tabel 1 F'!G25*100,"-")) -> - | J27: =IF(OR('Tabel 1 F'!G25<5,'Tabel 2 F'!J27<0.5),"-",IFERROR('Tabel 2 F'!J27/'Tabel 1 F'!G25*100,"-")) -> -
A28: Arkitekt | C28: =IF(OR('Tabel 1 F'!C26<5,'Tabel 2 F'!C28<0.5),"-",IFERROR('Tabel 2 F'!C28/'Tabel 1 F'!C26*100,"-")) -> 2.631578947 | D28: =IF(OR('Tabel 1 F'!C26<5,'Tabel 2 F'!D28<0.5),"-",IFERROR('Tabel 2 F'!D28/'Tabel 1 F'!C26*100,"-")) -> 2.115702154 | F28: =IF(OR('Tabel 1 F'!E26<5,'Tabel 2 F'!F28<0.5),"-",IFERROR('Tabel 2 F'!F28/'Tabel 1 F'!E26*100,"-")) -> 3.797468354 | G28: =IF(OR('Tabel 1 F'!E26<5,'Tabel 2 F'!G28<0.5),"-",IFERROR('Tabel 2 F'!G28/'Tabel 1 F'!E26*100,"-")) -> 3.679910185 | I28: =IF(OR('Tabel 1 F'!G26<5,'Tabel 2 F'!I28<0.5),"-",IFERROR('Tabel 2 F'!I28/'Tabel 1 F'!G26*100,"-")) -> 3.225806452 | J28: =IF(OR('Tabel 1 F'!G26<5,'Tabel 2 F'!J28<0.5),"-",IFERROR('Tabel 2 F'!J28/'Tabel 1 F'!G26*100,"-")) -> 2.912943667
A29: Landinspek. | C29: =IF(OR('Tabel 1 F'!C27<5,'Tabel 2 F'!C29<0.5),"-",IFERROR('Tabel 2 F'!C29/'Tabel 1 F'!C27*100,"-")) -> - | D29: =IF(OR('Tabel 1 F'!C27<5,'Tabel 2 F'!D29<0.5),"-",IFERROR('Tabel 2 F'!D29/'Tabel 1 F'!C27*100,"-")) -> - | F29: =IF(OR('Tabel 1 F'!E27<5,'Tabel 2 F'!F29<0.5),"-",IFERROR('Tabel 2 F'!F29/'Tabel 1 F'!E27*100,"-")) -> - | G29: =IF(OR('Tabel 1 F'!E27<5,'Tabel 2 F'!G29<0.5),"-",IFERROR('Tabel 2 F'!G29/'Tabel 1 F'!E27*100,"-")) -> - | I29: =IF(OR('Tabel 1 F'!G27<5,'Tabel 2 F'!I29<0.5),"-",IFERROR('Tabel 2 F'!I29/'Tabel 1 F'!G27*100,"-")) -> - | J29: =IF(OR('Tabel 1 F'!G27<5,'Tabel 2 F'!J29<0.5),"-",IFERROR('Tabel 2 F'!J29/'Tabel 1 F'!G27*100,"-")) -> -
A30: Bibliotekar | C30: =IF(OR('Tabel 1 F'!C28<5,'Tabel 2 F'!C30<0.5),"-",IFERROR('Tabel 2 F'!C30/'Tabel 1 F'!C28*100,"-")) -> - | D30: =IF(OR('Tabel 1 F'!C28<5,'Tabel 2 F'!D30<0.5),"-",IFERROR('Tabel 2 F'!D30/'Tabel 1 F'!C28*100,"-")) -> - | F30: =IF(OR('Tabel 1 F'!E28<5,'Tabel 2 F'!F30<0.5),"-",IFERROR('Tabel 2 F'!F30/'Tabel 1 F'!E28*100,"-")) -> 1.503759398 | G30: =IF(OR('Tabel 1 F'!E28<5,'Tabel 2 F'!G30<0.5),"-",IFERROR('Tabel 2 F'!G30/'Tabel 1 F'!E28*100,"-")) -> 1.361383875 | I30: =IF(OR('Tabel 1 F'!G28<5,'Tabel 2 F'!I30<0.5),"-",IFERROR('Tabel 2 F'!I30/'Tabel 1 F'!G28*100,"-")) -> 1.047120419 | J30: =IF(OR('Tabel 1 F'!G28<5,'Tabel 2 F'!J30<0.5),"-",IFERROR('Tabel 2 F'!J30/'Tabel 1 F'!G28*100,"-")) -> 0.9479793476
A31: Musikudd. | C31: =IF(OR('Tabel 1 F'!C29<5,'Tabel 2 F'!C31<0.5),"-",IFERROR('Tabel 2 F'!C31/'Tabel 1 F'!C29*100,"-")) -> - | D31: =IF(OR('Tabel 1 F'!C29<5,'Tabel 2 F'!D31<0.5),"-",IFERROR('Tabel 2 F'!D31/'Tabel 1 F'!C29*100,"-")) -> - | F31: =IF(OR('Tabel 1 F'!E29<5,'Tabel 2 F'!F31<0.5),"-",IFERROR('Tabel 2 F'!F31/'Tabel 1 F'!E29*100,"-")) -> 4 | G31: =IF(OR('Tabel 1 F'!E29<5,'Tabel 2 F'!G31<0.5),"-",IFERROR('Tabel 2 F'!G31/'Tabel 1 F'!E29*100,"-")) -> 2.668246741 | I31: =IF(OR('Tabel 1 F'!G29<5,'Tabel 2 F'!I31<0.5),"-",IFERROR('Tabel 2 F'!I31/'Tabel 1 F'!G29*100,"-")) -> 2.105263158 | J31: =IF(OR('Tabel 1 F'!G29<5,'Tabel 2 F'!J31<0.5),"-",IFERROR('Tabel 2 F'!J31/'Tabel 1 F'!G29*100,"-")) -> 1.40434039
A32: Teolog | C32: =IF(OR('Tabel 1 F'!C30<5,'Tabel 2 F'!C32<0.5),"-",IFERROR('Tabel 2 F'!C32/'Tabel 1 F'!C30*100,"-")) -> 2.325581395 | D32: =IF(OR('Tabel 1 F'!C30<5,'Tabel 2 F'!D32<0.5),"-",IFERROR('Tabel 2 F'!D32/'Tabel 1 F'!C30*100,"-")) -> 1.573788944 | F32: =IF(OR('Tabel 1 F'!E30<5,'Tabel 2 F'!F32<0.5),"-",IFERROR('Tabel 2 F'!F32/'Tabel 1 F'!E30*100,"-")) -> 4.166666667 | G32: =IF(OR('Tabel 1 F'!E30<5,'Tabel 2 F'!G32<0.5),"-",IFERROR('Tabel 2 F'!G32/'Tabel 1 F'!E30*100,"-")) -> 3.030208528 | I32: =IF(OR('Tabel 1 F'!G30<5,'Tabel 2 F'!I32<0.5),"-",IFERROR('Tabel 2 F'!I32/'Tabel 1 F'!G30*100,"-")) -> 3.47826087 | J32: =IF(OR('Tabel 1 F'!G30<5,'Tabel 2 F'!J32<0.5),"-",IFERROR('Tabel 2 F'!J32/'Tabel 1 F'!G30*100,"-")) -> 2.485634249
A33: Psykolog | C33: =IF(OR('Tabel 1 F'!C31<5,'Tabel 2 F'!C33<0.5),"-",IFERROR('Tabel 2 F'!C33/'Tabel 1 F'!C31*100,"-")) -> 2.255639098 | D33: =IF(OR('Tabel 1 F'!C31<5,'Tabel 2 F'!D33<0.5),"-",IFERROR('Tabel 2 F'!D33/'Tabel 1 F'!C31*100,"-")) -> 1.895995524 | F33: =IF(OR('Tabel 1 F'!E31<5,'Tabel 2 F'!F33<0.5),"-",IFERROR('Tabel 2 F'!F33/'Tabel 1 F'!E31*100,"-")) -> 3.909465021 | G33: =IF(OR('Tabel 1 F'!E31<5,'Tabel 2 F'!G33<0.5),"-",IFERROR('Tabel 2 F'!G33/'Tabel 1 F'!E31*100,"-")) -> 3.021417503 | I33: =IF(OR('Tabel 1 F'!G31<5,'Tabel 2 F'!I33<0.5),"-",IFERROR('Tabel 2 F'!I33/'Tabel 1 F'!G31*100,"-")) -> 3.554119548 | J33: =IF(OR('Tabel 1 F'!G31<5,'Tabel 2 F'!J33<0.5),"-",IFERROR('Tabel 2 F'!J33/'Tabel 1 F'!G31*100,"-")) -> 2.779606319
A34: Jurist | C34: =IF(OR('Tabel 1 F'!C32<5,'Tabel 2 F'!C34<0.5),"-",IFERROR('Tabel 2 F'!C34/'Tabel 1 F'!C32*100,"-")) -> 0.8888888889 | D34: =IF(OR('Tabel 1 F'!C32<5,'Tabel 2 F'!D34<0.5),"-",IFERROR('Tabel 2 F'!D34/'Tabel 1 F'!C32*100,"-")) -> 0.8546262223 | F34: =IF(OR('Tabel 1 F'!E32<5,'Tabel 2 F'!F34<0.5),"-",IFERROR('Tabel 2 F'!F34/'Tabel 1 F'!E32*100,"-")) -> 0.9174311927 | G34: =IF(OR('Tabel 1 F'!E32<5,'Tabel 2 F'!G34<0.5),"-",IFERROR('Tabel 2 F'!G34/'Tabel 1 F'!E32*100,"-")) -> 0.8537437407 | I34: =IF(OR('Tabel 1 F'!G32<5,'Tabel 2 F'!I34<0.5),"-",IFERROR('Tabel 2 F'!I34/'Tabel 1 F'!G32*100,"-")) -> 0.9077155825 | J34: =IF(OR('Tabel 1 F'!G32<5,'Tabel 2 F'!J34<0.5),"-",IFERROR('Tabel 2 F'!J34/'Tabel 1 F'!G32*100,"-")) -> 0.8540441316
A35: Økonom | C35: =IF(OR('Tabel 1 F'!C33<5,'Tabel 2 F'!C35<0.5),"-",IFERROR('Tabel 2 F'!C35/'Tabel 1 F'!C33*100,"-")) -> 0.9118541033 | D35: =IF(OR('Tabel 1 F'!C33<5,'Tabel 2 F'!D35<0.5),"-",IFERROR('Tabel 2 F'!D35/'Tabel 1 F'!C33*100,"-")) -> 0.7713953193 | F35: =IF(OR('Tabel 1 F'!E33<5,'Tabel 2 F'!F35<0.5),"-",IFERROR('Tabel 2 F'!F35/'Tabel 1 F'!E33*100,"-")) -> 0.3649635036 | G35: =IF(OR('Tabel 1 F'!E33<5,'Tabel 2 F'!G35<0.5),"-",IFERROR('Tabel 2 F'!G35/'Tabel 1 F'!E33*100,"-")) -> - | I35: =IF(OR('Tabel 1 F'!G33<5,'Tabel 2 F'!I35<0.5),"-",IFERROR('Tabel 2 F'!I35/'Tabel 1 F'!G33*100,"-")) -> 0.6633499171 | J35: =IF(OR('Tabel 1 F'!G33<5,'Tabel 2 F'!J35<0.5),"-",IFERROR('Tabel 2 F'!J35/'Tabel 1 F'!G33*100,"-")) -> 0.494833469
A36: Samf. Adm. | C36: =IF(OR('Tabel 1 F'!C34<5,'Tabel 2 F'!C36<0.5),"-",IFERROR('Tabel 2 F'!C36/'Tabel 1 F'!C34*100,"-")) -> 4.173622705 | D36: =IF(OR('Tabel 1 F'!C34<5,'Tabel 2 F'!D36<0.5),"-",IFERROR('Tabel 2 F'!D36/'Tabel 1 F'!C34*100,"-")) -> 4.00197131 | F36: =IF(OR('Tabel 1 F'!E34<5,'Tabel 2 F'!F36<0.5),"-",IFERROR('Tabel 2 F'!F36/'Tabel 1 F'!E34*100,"-")) -> 5.220061412 | G36: =IF(OR('Tabel 1 F'!E34<5,'Tabel 2 F'!G36<0.5),"-",IFERROR('Tabel 2 F'!G36/'Tabel 1 F'!E34*100,"-")) -> 4.464435909 | I36: =IF(OR('Tabel 1 F'!G34<5,'Tabel 2 F'!I36<0.5),"-",IFERROR('Tabel 2 F'!I36/'Tabel 1 F'!G34*100,"-")) -> 4.822335025 | J36: =IF(OR('Tabel 1 F'!G34<5,'Tabel 2 F'!J36<0.5),"-",IFERROR('Tabel 2 F'!J36/'Tabel 1 F'!G34*100,"-")) -> 4.288664148
A37: Cand. Merc. | C37: =IF(OR('Tabel 1 F'!C35<5,'Tabel 2 F'!C37<0.5),"-",IFERROR('Tabel 2 F'!C37/'Tabel 1 F'!C35*100,"-")) -> 3.578528827 | D37: =IF(OR('Tabel 1 F'!C35<5,'Tabel 2 F'!D37<0.5),"-",IFERROR('Tabel 2 F'!D37/'Tabel 1 F'!C35*100,"-")) -> 3.333457745 | F37: =IF(OR('Tabel 1 F'!E35<5,'Tabel 2 F'!F37<0.5),"-",IFERROR('Tabel 2 F'!F37/'Tabel 1 F'!E35*100,"-")) -> 4.302203568 | G37: =IF(OR('Tabel 1 F'!E35<5,'Tabel 2 F'!G37<0.5),"-",IFERROR('Tabel 2 F'!G37/'Tabel 1 F'!E35*100,"-")) -> 3.616164431 | I37: =IF(OR('Tabel 1 F'!G35<5,'Tabel 2 F'!I37<0.5),"-",IFERROR('Tabel 2 F'!I37/'Tabel 1 F'!G35*100,"-")) -> 3.930576825 | J37: =IF(OR('Tabel 1 F'!G35<5,'Tabel 2 F'!J37<0.5),"-",IFERROR('Tabel 2 F'!J37/'Tabel 1 F'!G35*100,"-")) -> 3.470986827
A38: HA | C38: =IF(OR('Tabel 1 F'!C36<5,'Tabel 2 F'!C38<0.5),"-",IFERROR('Tabel 2 F'!C38/'Tabel 1 F'!C36*100,"-")) -> 7.949790795 | D38: =IF(OR('Tabel 1 F'!C36<5,'Tabel 2 F'!D38<0.5),"-",IFERROR('Tabel 2 F'!D38/'Tabel 1 F'!C36*100,"-")) -> 6.814136221 | F38: =IF(OR('Tabel 1 F'!E36<5,'Tabel 2 F'!F38<0.5),"-",IFERROR('Tabel 2 F'!F38/'Tabel 1 F'!E36*100,"-")) -> 8.947368421 | G38: =IF(OR('Tabel 1 F'!E36<5,'Tabel 2 F'!G38<0.5),"-",IFERROR('Tabel 2 F'!G38/'Tabel 1 F'!E36*100,"-")) -> 8.474298076 | I38: =IF(OR('Tabel 1 F'!G36<5,'Tabel 2 F'!I38<0.5),"-",IFERROR('Tabel 2 F'!I38/'Tabel 1 F'!G36*100,"-")) -> 8.391608392 | J38: =IF(OR('Tabel 1 F'!G36<5,'Tabel 2 F'!J38<0.5),"-",IFERROR('Tabel 2 F'!J38/'Tabel 1 F'!G36*100,"-")) -> 7.54940604
A39: HD | C39: =IF(OR('Tabel 1 F'!C37<5,'Tabel 2 F'!C39<0.5),"-",IFERROR('Tabel 2 F'!C39/'Tabel 1 F'!C37*100,"-")) -> 2.721088435 | D39: =IF(OR('Tabel 1 F'!C37<5,'Tabel 2 F'!D39<0.5),"-",IFERROR('Tabel 2 F'!D39/'Tabel 1 F'!C37*100,"-")) -> 2.657783627 | F39: =IF(OR('Tabel 1 F'!E37<5,'Tabel 2 F'!F39<0.5),"-",IFERROR('Tabel 2 F'!F39/'Tabel 1 F'!E37*100,"-")) -> 1.526717557 | G39: =IF(OR('Tabel 1 F'!E37<5,'Tabel 2 F'!G39<0.5),"-",IFERROR('Tabel 2 F'!G39/'Tabel 1 F'!E37*100,"-")) -> 1.526431887 | I39: =IF(OR('Tabel 1 F'!G37<5,'Tabel 2 F'!I39<0.5),"-",IFERROR('Tabel 2 F'!I39/'Tabel 1 F'!G37*100,"-")) -> 2.158273381 | J39: =IF(OR('Tabel 1 F'!G37<5,'Tabel 2 F'!J39<0.5),"-",IFERROR('Tabel 2 F'!J39/'Tabel 1 F'!G37*100,"-")) -> 2.124664642
A40: Komm. og Sprog | C40: =IF(OR('Tabel 1 F'!C38<5,'Tabel 2 F'!C40<0.5),"-",IFERROR('Tabel 2 F'!C40/'Tabel 1 F'!C38*100,"-")) -> 5.128205128 | D40: =IF(OR('Tabel 1 F'!C38<5,'Tabel 2 F'!D40<0.5),"-",IFERROR('Tabel 2 F'!D40/'Tabel 1 F'!C38*100,"-")) -> 4.463550338 | F40: =IF(OR('Tabel 1 F'!E38<5,'Tabel 2 F'!F40<0.5),"-",IFERROR('Tabel 2 F'!F40/'Tabel 1 F'!E38*100,"-")) -> 5.128205128 | G40: =IF(OR('Tabel 1 F'!E38<5,'Tabel 2 F'!G40<0.5),"-",IFERROR('Tabel 2 F'!G40/'Tabel 1 F'!E38*100,"-")) -> 4.442582188 | I40: =IF(OR('Tabel 1 F'!G38<5,'Tabel 2 F'!I40<0.5),"-",IFERROR('Tabel 2 F'!I40/'Tabel 1 F'!G38*100,"-")) -> 5.128205128 | J40: =IF(OR('Tabel 1 F'!G38<5,'Tabel 2 F'!J40<0.5),"-",IFERROR('Tabel 2 F'!J40/'Tabel 1 F'!G38*100,"-")) -> 4.446394579
A41: Bygningskonst. | C41: =IF(OR('Tabel 1 F'!C39<5,'Tabel 2 F'!C41<0.5),"-",IFERROR('Tabel 2 F'!C41/'Tabel 1 F'!C39*100,"-")) -> 1.953601954 | D41: =IF(OR('Tabel 1 F'!C39<5,'Tabel 2 F'!D41<0.5),"-",IFERROR('Tabel 2 F'!D41/'Tabel 1 F'!C39*100,"-")) -> 1.725691372 | F41: =IF(OR('Tabel 1 F'!E39<5,'Tabel 2 F'!F41<0.5),"-",IFERROR('Tabel 2 F'!F41/'Tabel 1 F'!E39*100,"-")) -> 3.25203252 | G41: =IF(OR('Tabel 1 F'!E39<5,'Tabel 2 F'!G41<0.5),"-",IFERROR('Tabel 2 F'!G41/'Tabel 1 F'!E39*100,"-")) -> 2.562397981 | I41: =IF(OR('Tabel 1 F'!G39<5,'Tabel 2 F'!I41<0.5),"-",IFERROR('Tabel 2 F'!I41/'Tabel 1 F'!G39*100,"-")) -> 2.123142251 | J41: =IF(OR('Tabel 1 F'!G39<5,'Tabel 2 F'!J41<0.5),"-",IFERROR('Tabel 2 F'!J41/'Tabel 1 F'!G39*100,"-")) -> 1.834942872
A42: Cand. IT. | C42: =IF(OR('Tabel 1 F'!C40<5,'Tabel 2 F'!C42<0.5),"-",IFERROR('Tabel 2 F'!C42/'Tabel 1 F'!C40*100,"-")) -> 6.611570248 | D42: =IF(OR('Tabel 1 F'!C40<5,'Tabel 2 F'!D42<0.5),"-",IFERROR('Tabel 2 F'!D42/'Tabel 1 F'!C40*100,"-")) -> 6.61033313 | F42: =IF(OR('Tabel 1 F'!E40<5,'Tabel 2 F'!F42<0.5),"-",IFERROR('Tabel 2 F'!F42/'Tabel 1 F'!E40*100,"-")) -> 11.88118812 | G42: =IF(OR('Tabel 1 F'!E40<5,'Tabel 2 F'!G42<0.5),"-",IFERROR('Tabel 2 F'!G42/'Tabel 1 F'!E40*100,"-")) -> 10.2727481 | I42: =IF(OR('Tabel 1 F'!G40<5,'Tabel 2 F'!I42<0.5),"-",IFERROR('Tabel 2 F'!I42/'Tabel 1 F'!G40*100,"-")) -> 9.009009009 | J42: =IF(OR('Tabel 1 F'!G40<5,'Tabel 2 F'!J42<0.5),"-",IFERROR('Tabel 2 F'!J42/'Tabel 1 F'!G40*100,"-")) -> 8.276566968
A43: Bac. Samf. | C43: =IF(OR('Tabel 1 F'!C41<5,'Tabel 2 F'!C43<0.5),"-",IFERROR('Tabel 2 F'!C43/'Tabel 1 F'!C41*100,"-")) -> 10 | D43: =IF(OR('Tabel 1 F'!C41<5,'Tabel 2 F'!D43<0.5),"-",IFERROR('Tabel 2 F'!D43/'Tabel 1 F'!C41*100,"-")) -> 9.228882097 | F43: =IF(OR('Tabel 1 F'!E41<5,'Tabel 2 F'!F43<0.5),"-",IFERROR('Tabel 2 F'!F43/'Tabel 1 F'!E41*100,"-")) -> 13.33333333 | G43: =IF(OR('Tabel 1 F'!E41<5,'Tabel 2 F'!G43<0.5),"-",IFERROR('Tabel 2 F'!G43/'Tabel 1 F'!E41*100,"-")) -> 11.94758034 | I43: =IF(OR('Tabel 1 F'!G41<5,'Tabel 2 F'!I43<0.5),"-",IFERROR('Tabel 2 F'!I43/'Tabel 1 F'!G41*100,"-")) -> 12 | J43: =IF(OR('Tabel 1 F'!G41<5,'Tabel 2 F'!J43<0.5),"-",IFERROR('Tabel 2 F'!J43/'Tabel 1 F'!G41*100,"-")) -> 10.86010104
A44: Bac. Hum. | C44: =IF(OR('Tabel 1 F'!C42<5,'Tabel 2 F'!C44<0.5),"-",IFERROR('Tabel 2 F'!C44/'Tabel 1 F'!C42*100,"-")) -> 9.444444444 | D44: =IF(OR('Tabel 1 F'!C42<5,'Tabel 2 F'!D44<0.5),"-",IFERROR('Tabel 2 F'!D44/'Tabel 1 F'!C42*100,"-")) -> 8.132532208 | F44: =IF(OR('Tabel 1 F'!E42<5,'Tabel 2 F'!F44<0.5),"-",IFERROR('Tabel 2 F'!F44/'Tabel 1 F'!E42*100,"-")) -> 6.461538462 | G44: =IF(OR('Tabel 1 F'!E42<5,'Tabel 2 F'!G44<0.5),"-",IFERROR('Tabel 2 F'!G44/'Tabel 1 F'!E42*100,"-")) -> 5.362593497 | I44: =IF(OR('Tabel 1 F'!G42<5,'Tabel 2 F'!I44<0.5),"-",IFERROR('Tabel 2 F'!I44/'Tabel 1 F'!G42*100,"-")) -> 7.524752475 | J44: =IF(OR('Tabel 1 F'!G42<5,'Tabel 2 F'!J44<0.5),"-",IFERROR('Tabel 2 F'!J44/'Tabel 1 F'!G42*100,"-")) -> 6.349898384
A45: Bac. Nat. | C45: =IF(OR('Tabel 1 F'!C43<5,'Tabel 2 F'!C45<0.5),"-",IFERROR('Tabel 2 F'!C45/'Tabel 1 F'!C43*100,"-")) -> 9.045226131 | D45: =IF(OR('Tabel 1 F'!C43<5,'Tabel 2 F'!D45<0.5),"-",IFERROR('Tabel 2 F'!D45/'Tabel 1 F'!C43*100,"-")) -> 8.549577552 | F45: =IF(OR('Tabel 1 F'!E43<5,'Tabel 2 F'!F45<0.5),"-",IFERROR('Tabel 2 F'!F45/'Tabel 1 F'!E43*100,"-")) -> 5.405405405 | G45: =IF(OR('Tabel 1 F'!E43<5,'Tabel 2 F'!G45<0.5),"-",IFERROR('Tabel 2 F'!G45/'Tabel 1 F'!E43*100,"-")) -> 4.853166021 | I45: =IF(OR('Tabel 1 F'!G43<5,'Tabel 2 F'!I45<0.5),"-",IFERROR('Tabel 2 F'!I45/'Tabel 1 F'!G43*100,"-")) -> 8.058608059 | J45: =IF(OR('Tabel 1 F'!G43<5,'Tabel 2 F'!J45<0.5),"-",IFERROR('Tabel 2 F'!J45/'Tabel 1 F'!G43*100,"-")) -> 7.547619847
A46: Andre | C46: =IF(OR('Tabel 1 F'!C44<5,'Tabel 2 F'!C46<0.5),"-",IFERROR('Tabel 2 F'!C46/'Tabel 1 F'!C44*100,"-")) -> 4.380475594 | D46: =IF(OR('Tabel 1 F'!C44<5,'Tabel 2 F'!D46<0.5),"-",IFERROR('Tabel 2 F'!D46/'Tabel 1 F'!C44*100,"-")) -> 3.838219467 | F46: =IF(OR('Tabel 1 F'!E44<5,'Tabel 2 F'!F46<0.5),"-",IFERROR('Tabel 2 F'!F46/'Tabel 1 F'!E44*100,"-")) -> 5.319148936 | G46: =IF(OR('Tabel 1 F'!E44<5,'Tabel 2 F'!G46<0.5),"-",IFERROR('Tabel 2 F'!G46/'Tabel 1 F'!E44*100,"-")) -> 4.354620419 | I46: =IF(OR('Tabel 1 F'!G44<5,'Tabel 2 F'!I46<0.5),"-",IFERROR('Tabel 2 F'!I46/'Tabel 1 F'!G44*100,"-")) -> 4.804392588 | J46: =IF(OR('Tabel 1 F'!G44<5,'Tabel 2 F'!J46<0.5),"-",IFERROR('Tabel 2 F'!J46/'Tabel 1 F'!G44*100,"-")) -> 4.0714328
A48: Total | C48: =IF(OR('Tabel 1 F'!C46<5,'Tabel 2 F'!C48<0.5),"-",IFERROR('Tabel 2 F'!C48/'Tabel 1 F'!C46*100,"-")) -> 3.614554178 | D48: =IF(OR('Tabel 1 F'!C46<5,'Tabel 2 F'!D48<0.5),"-",IFERROR('Tabel 2 F'!D48/'Tabel 1 F'!C46*100,"-")) -> 3.245440924 | F48: =IF(OR('Tabel 1 F'!E46<5,'Tabel 2 F'!F48<0.5),"-",IFERROR('Tabel 2 F'!F48/'Tabel 1 F'!E46*100,"-")) -> 4.8556539 | G48: =IF(OR('Tabel 1 F'!E46<5,'Tabel 2 F'!G48<0.5),"-",IFERROR('Tabel 2 F'!G48/'Tabel 1 F'!E46*100,"-")) -> 4.022388743 | I48: =IF(OR('Tabel 1 F'!G46<5,'Tabel 2 F'!I48<0.5),"-",IFERROR('Tabel 2 F'!I48/'Tabel 1 F'!G46*100,"-")) -> 4.224607628 | J48: =IF(OR('Tabel 1 F'!G46<5,'Tabel 2 F'!J48<0.5),"-",IFERROR('Tabel 2 F'!J48/'Tabel 1 F'!G46*100,"-")) -> 3.627343916
A50: Ingeniører i alt | C50: =IF(OR('Tabel 1 F'!C48<5,'Tabel 2 F'!C50<0.5),"-",IFERROR('Tabel 2 F'!C50/'Tabel 1 F'!C48*100,"-")) -> 2.25974671 | D50: =IF(OR('Tabel 1 F'!C48<5,'Tabel 2 F'!D50<0.5),"-",IFERROR('Tabel 2 F'!D50/'Tabel 1 F'!C48*100,"-")) -> 2.043060833 | F50: =IF(OR('Tabel 1 F'!E48<5,'Tabel 2 F'!F50<0.5),"-",IFERROR('Tabel 2 F'!F50/'Tabel 1 F'!E48*100,"-")) -> 3.593429158 | G50: =IF(OR('Tabel 1 F'!E48<5,'Tabel 2 F'!G50<0.5),"-",IFERROR('Tabel 2 F'!G50/'Tabel 1 F'!E48*100,"-")) -> 3.116326683 | I50: =IF(OR('Tabel 1 F'!G48<5,'Tabel 2 F'!I50<0.5),"-",IFERROR('Tabel 2 F'!I50/'Tabel 1 F'!G48*100,"-")) -> 2.519496101 | J50: =IF(OR('Tabel 1 F'!G48<5,'Tabel 2 F'!J50<0.5),"-",IFERROR('Tabel 2 F'!J50/'Tabel 1 F'!G48*100,"-")) -> 2.252091215
A51: Magistre i alt | C51: =IF(OR('Tabel 1 F'!C49<5,'Tabel 2 F'!C51<0.5),"-",IFERROR('Tabel 2 F'!C51/'Tabel 1 F'!C49*100,"-")) -> 6.243496358 | D51: =IF(OR('Tabel 1 F'!C49<5,'Tabel 2 F'!D51<0.5),"-",IFERROR('Tabel 2 F'!D51/'Tabel 1 F'!C49*100,"-")) -> 5.46868961 | F51: =IF(OR('Tabel 1 F'!E49<5,'Tabel 2 F'!F51<0.5),"-",IFERROR('Tabel 2 F'!F51/'Tabel 1 F'!E49*100,"-")) -> 7.400982943 | G51: =IF(OR('Tabel 1 F'!E49<5,'Tabel 2 F'!G51<0.5),"-",IFERROR('Tabel 2 F'!G51/'Tabel 1 F'!E49*100,"-")) -> 6.023226849 | I51: =IF(OR('Tabel 1 F'!G49<5,'Tabel 2 F'!I51<0.5),"-",IFERROR('Tabel 2 F'!I51/'Tabel 1 F'!G49*100,"-")) -> 6.987548783 | J51: =IF(OR('Tabel 1 F'!G49<5,'Tabel 2 F'!J51<0.5),"-",IFERROR('Tabel 2 F'!J51/'Tabel 1 F'!G49*100,"-")) -> 5.825155752
A52: DJØF'ere i alt | C52: =IF(OR('Tabel 1 F'!C50<5,'Tabel 2 F'!C52<0.5),"-",IFERROR('Tabel 2 F'!C52/'Tabel 1 F'!C50*100,"-")) -> 3.544620517 | D52: =IF(OR('Tabel 1 F'!C50<5,'Tabel 2 F'!D52<0.5),"-",IFERROR('Tabel 2 F'!D52/'Tabel 1 F'!C50*100,"-")) -> 3.263260143 | F52: =IF(OR('Tabel 1 F'!E50<5,'Tabel 2 F'!F52<0.5),"-",IFERROR('Tabel 2 F'!F52/'Tabel 1 F'!E50*100,"-")) -> 4.028268551 | G52: =IF(OR('Tabel 1 F'!E50<5,'Tabel 2 F'!G52<0.5),"-",IFERROR('Tabel 2 F'!G52/'Tabel 1 F'!E50*100,"-")) -> 3.475230746 | I52: =IF(OR('Tabel 1 F'!G50<5,'Tabel 2 F'!I52<0.5),"-",IFERROR('Tabel 2 F'!I52/'Tabel 1 F'!G50*100,"-")) -> 3.806426932 | J52: =IF(OR('Tabel 1 F'!G50<5,'Tabel 2 F'!J52<0.5),"-",IFERROR('Tabel 2 F'!J52/'Tabel 1 F'!G50*100,"-")) -> 3.37800322
A57: Middelfart
C59: Mænd | F59: Kvinder | I59: I alt
C60: Ledigheds- berørte | D60: Gns. brutto- ledighed | F60: Ledigheds- berørte | G60: Gns. brutto- ledighed | I60: Ledigheds- berørte | J60: Gns. brutto- ledighed
A63: Civ. ing. | C63: =IF(OR('Tabel 1 F'!C61<5,'Tabel 2 F'!C63<0.5),"-",IFERROR('Tabel 2 F'!C63/'Tabel 1 F'!C61*100,"-")) -> - | D63: =IF(OR('Tabel 1 F'!C61<5,'Tabel 2 F'!D63<0.5),"-",IFERROR('Tabel 2 F'!D63/'Tabel 1 F'!C61*100,"-")) -> - | F63: =IF(OR('Tabel 1 F'!E61<5,'Tabel 2 F'!F63<0.5),"-",IFERROR('Tabel 2 F'!F63/'Tabel 1 F'!E61*100,"-")) -> - | G63: =IF(OR('Tabel 1 F'!E61<5,'Tabel 2 F'!G63<0.5),"-",IFERROR('Tabel 2 F'!G63/'Tabel 1 F'!E61*100,"-")) -> - | I63: =IF(OR('Tabel 1 F'!G61<5,'Tabel 2 F'!I63<0.5),"-",IFERROR('Tabel 2 F'!I63/'Tabel 1 F'!G61*100,"-")) -> - | J63: =IF(OR('Tabel 1 F'!G61<5,'Tabel 2 F'!J63<0.5),"-",IFERROR('Tabel 2 F'!J63/'Tabel 1 F'!G61*100,"-")) -> -
A64: Diplom ing. | C64: =IF(OR('Tabel 1 F'!C62<5,'Tabel 2 F'!C64<0.5),"-",IFERROR('Tabel 2 F'!C64/'Tabel 1 F'!C62*100,"-")) -> 1.62601626 | D64: =IF(OR('Tabel 1 F'!C62<5,'Tabel 2 F'!D64<0.5),"-",IFERROR('Tabel 2 F'!D64/'Tabel 1 F'!C62*100,"-")) -> 1.62571201 | F64: =IF(OR('Tabel 1 F'!E62<5,'Tabel 2 F'!F64<0.5),"-",IFERROR('Tabel 2 F'!F64/'Tabel 1 F'!E62*100,"-")) -> - | G64: =IF(OR('Tabel 1 F'!E62<5,'Tabel 2 F'!G64<0.5),"-",IFERROR('Tabel 2 F'!G64/'Tabel 1 F'!E62*100,"-")) -> - | I64: =IF(OR('Tabel 1 F'!G62<5,'Tabel 2 F'!I64<0.5),"-",IFERROR('Tabel 2 F'!I64/'Tabel 1 F'!G62*100,"-")) -> 1.307189542 | J64: =IF(OR('Tabel 1 F'!G62<5,'Tabel 2 F'!J64<0.5),"-",IFERROR('Tabel 2 F'!J64/'Tabel 1 F'!G62*100,"-")) -> 1.306944949
A65: Cand. Scient. Tek. | C65: =IF(OR('Tabel 1 F'!C63<5,'Tabel 2 F'!C65<0.5),"-",IFERROR('Tabel 2 F'!C65/'Tabel 1 F'!C63*100,"-")) -> 2.702702703 | D65: =IF(OR('Tabel 1 F'!C63<5,'Tabel 2 F'!D65<0.5),"-",IFERROR('Tabel 2 F'!D65/'Tabel 1 F'!C63*100,"-")) -> 2.452711553 | F65: =IF(OR('Tabel 1 F'!E63<5,'Tabel 2 F'!F65<0.5),"-",IFERROR('Tabel 2 F'!F65/'Tabel 1 F'!E63*100,"-")) -> 2.777777778 | G65: =IF(OR('Tabel 1 F'!E63<5,'Tabel 2 F'!G65<0.5),"-",IFERROR('Tabel 2 F'!G65/'Tabel 1 F'!E63*100,"-")) -> 2.117161133 | I65: =IF(OR('Tabel 1 F'!G63<5,'Tabel 2 F'!I65<0.5),"-",IFERROR('Tabel 2 F'!I65/'Tabel 1 F'!G63*100,"-")) -> 2.739726027 | J65: =IF(OR('Tabel 1 F'!G63<5,'Tabel 2 F'!J65<0.5),"-",IFERROR('Tabel 2 F'!J65/'Tabel 1 F'!G63*100,"-")) -> 2.287234633
A66: MA. Hum. | C66: =IF(OR('Tabel 1 F'!C64<5,'Tabel 2 F'!C66<0.5),"-",IFERROR('Tabel 2 F'!C66/'Tabel 1 F'!C64*100,"-")) -> 1.639344262 | D66: =IF(OR('Tabel 1 F'!C64<5,'Tabel 2 F'!D66<0.5),"-",IFERROR('Tabel 2 F'!D66/'Tabel 1 F'!C64*100,"-")) -> 1.639037518 | F66: =IF(OR('Tabel 1 F'!E64<5,'Tabel 2 F'!F66<0.5),"-",IFERROR('Tabel 2 F'!F66/'Tabel 1 F'!E64*100,"-")) -> 4.580152672 | G66: =IF(OR('Tabel 1 F'!E64<5,'Tabel 2 F'!G66<0.5),"-",IFERROR('Tabel 2 F'!G66/'Tabel 1 F'!E64*100,"-")) -> 3.662293847 | I66: =IF(OR('Tabel 1 F'!G64<5,'Tabel 2 F'!I66<0.5),"-",IFERROR('Tabel 2 F'!I66/'Tabel 1 F'!G64*100,"-")) -> 3.645833333 | J66: =IF(OR('Tabel 1 F'!G64<5,'Tabel 2 F'!J66<0.5),"-",IFERROR('Tabel 2 F'!J66/'Tabel 1 F'!G64*100,"-")) -> 3.019488451
A67: MA. Nat. | C67: =IF(OR('Tabel 1 F'!C65<5,'Tabel 2 F'!C67<0.5),"-",IFERROR('Tabel 2 F'!C67/'Tabel 1 F'!C65*100,"-")) -> 5.714285714 | D67: =IF(OR('Tabel 1 F'!C65<5,'Tabel 2 F'!D67<0.5),"-",IFERROR('Tabel 2 F'!D67/'Tabel 1 F'!C65*100,"-")) -> 5.713216491 | F67: =IF(OR('Tabel 1 F'!E65<5,'Tabel 2 F'!F67<0.5),"-",IFERROR('Tabel 2 F'!F67/'Tabel 1 F'!E65*100,"-")) -> - | G67: =IF(OR('Tabel 1 F'!E65<5,'Tabel 2 F'!G67<0.5),"-",IFERROR('Tabel 2 F'!G67/'Tabel 1 F'!E65*100,"-")) -> - | I67: =IF(OR('Tabel 1 F'!G65<5,'Tabel 2 F'!I67<0.5),"-",IFERROR('Tabel 2 F'!I67/'Tabel 1 F'!G65*100,"-")) -> 2.53164557 | J67: =IF(OR('Tabel 1 F'!G65<5,'Tabel 2 F'!J67<0.5),"-",IFERROR('Tabel 2 F'!J67/'Tabel 1 F'!G65*100,"-")) -> 2.531171863
A68: MA. Ph.d. | C68: =IF(OR('Tabel 1 F'!C66<5,'Tabel 2 F'!C68<0.5),"-",IFERROR('Tabel 2 F'!C68/'Tabel 1 F'!C66*100,"-")) -> - | D68: =IF(OR('Tabel 1 F'!C66<5,'Tabel 2 F'!D68<0.5),"-",IFERROR('Tabel 2 F'!D68/'Tabel 1 F'!C66*100,"-")) -> - | F68: =IF(OR('Tabel 1 F'!E66<5,'Tabel 2 F'!F68<0.5),"-",IFERROR('Tabel 2 F'!F68/'Tabel 1 F'!E66*100,"-")) -> - | G68: =IF(OR('Tabel 1 F'!E66<5,'Tabel 2 F'!G68<0.5),"-",IFERROR('Tabel 2 F'!G68/'Tabel 1 F'!E66*100,"-")) -> - | I68: =IF(OR('Tabel 1 F'!G66<5,'Tabel 2 F'!I68<0.5),"-",IFERROR('Tabel 2 F'!I68/'Tabel 1 F'!G66*100,"-")) -> - | J68: =IF(OR('Tabel 1 F'!G66<5,'Tabel 2 F'!J68<0.5),"-",IFERROR('Tabel 2 F'!J68/'Tabel 1 F'!G66*100,"-")) -> -
A69: MA. Samf. | C69: =IF(OR('Tabel 1 F'!C67<5,'Tabel 2 F'!C69<0.5),"-",IFERROR('Tabel 2 F'!C69/'Tabel 1 F'!C67*100,"-")) -> - | D69: =IF(OR('Tabel 1 F'!C67<5,'Tabel 2 F'!D69<0.5),"-",IFERROR('Tabel 2 F'!D69/'Tabel 1 F'!C67*100,"-")) -> - | F69: =IF(OR('Tabel 1 F'!E67<5,'Tabel 2 F'!F69<0.5),"-",IFERROR('Tabel 2 F'!F69/'Tabel 1 F'!E67*100,"-")) -> 5.263157895 | G69: =IF(OR('Tabel 1 F'!E67<5,'Tabel 2 F'!G69<0.5),"-",IFERROR('Tabel 2 F'!G69/'Tabel 1 F'!E67*100,"-")) -> 4.776333024 | I69: =IF(OR('Tabel 1 F'!G67<5,'Tabel 2 F'!I69<0.5),"-",IFERROR('Tabel 2 F'!I69/'Tabel 1 F'!G67*100,"-")) -> 4.761904762 | J69: =IF(OR('Tabel 1 F'!G67<5,'Tabel 2 F'!J69<0.5),"-",IFERROR('Tabel 2 F'!J69/'Tabel 1 F'!G67*100,"-")) -> 4.321444164
A70: Øvrige Mag. | C70: =IF(OR('Tabel 1 F'!C68<5,'Tabel 2 F'!C70<0.5),"-",IFERROR('Tabel 2 F'!C70/'Tabel 1 F'!C68*100,"-")) -> - | D70: =IF(OR('Tabel 1 F'!C68<5,'Tabel 2 F'!D70<0.5),"-",IFERROR('Tabel 2 F'!D70/'Tabel 1 F'!C68*100,"-")) -> - | F70: =IF(OR('Tabel 1 F'!E68<5,'Tabel 2 F'!F70<0.5),"-",IFERROR('Tabel 2 F'!F70/'Tabel 1 F'!E68*100,"-")) -> 14.28571429 | G70: =IF(OR('Tabel 1 F'!E68<5,'Tabel 2 F'!G70<0.5),"-",IFERROR('Tabel 2 F'!G70/'Tabel 1 F'!E68*100,"-")) -> - | I70: =IF(OR('Tabel 1 F'!G68<5,'Tabel 2 F'!I70<0.5),"-",IFERROR('Tabel 2 F'!I70/'Tabel 1 F'!G68*100,"-")) -> 10 | J70: =IF(OR('Tabel 1 F'!G68<5,'Tabel 2 F'!J70<0.5),"-",IFERROR('Tabel 2 F'!J70/'Tabel 1 F'!G68*100,"-")) -> -
A71: Agronom | C71: =IF(OR('Tabel 1 F'!C69<5,'Tabel 2 F'!C71<0.5),"-",IFERROR('Tabel 2 F'!C71/'Tabel 1 F'!C69*100,"-")) -> - | D71: =IF(OR('Tabel 1 F'!C69<5,'Tabel 2 F'!D71<0.5),"-",IFERROR('Tabel 2 F'!D71/'Tabel 1 F'!C69*100,"-")) -> - | F71: =IF(OR('Tabel 1 F'!E69<5,'Tabel 2 F'!F71<0.5),"-",IFERROR('Tabel 2 F'!F71/'Tabel 1 F'!E69*100,"-")) -> - | G71: =IF(OR('Tabel 1 F'!E69<5,'Tabel 2 F'!G71<0.5),"-",IFERROR('Tabel 2 F'!G71/'Tabel 1 F'!E69*100,"-")) -> - | I71: =IF(OR('Tabel 1 F'!G69<5,'Tabel 2 F'!I71<0.5),"-",IFERROR('Tabel 2 F'!I71/'Tabel 1 F'!G69*100,"-")) -> - | J71: =IF(OR('Tabel 1 F'!G69<5,'Tabel 2 F'!J71<0.5),"-",IFERROR('Tabel 2 F'!J71/'Tabel 1 F'!G69*100,"-")) -> -
A72: Landsk. Arkt. | C72: =IF(OR('Tabel 1 F'!C70<5,'Tabel 2 F'!C72<0.5),"-",IFERROR('Tabel 2 F'!C72/'Tabel 1 F'!C70*100,"-")) -> - | D72: =IF(OR('Tabel 1 F'!C70<5,'Tabel 2 F'!D72<0.5),"-",IFERROR('Tabel 2 F'!D72/'Tabel 1 F'!C70*100,"-")) -> - | F72: =IF(OR('Tabel 1 F'!E70<5,'Tabel 2 F'!F72<0.5),"-",IFERROR('Tabel 2 F'!F72/'Tabel 1 F'!E70*100,"-")) -> - | G72: =IF(OR('Tabel 1 F'!E70<5,'Tabel 2 F'!G72<0.5),"-",IFERROR('Tabel 2 F'!G72/'Tabel 1 F'!E70*100,"-")) -> - | I72: =IF(OR('Tabel 1 F'!G70<5,'Tabel 2 F'!I72<0.5),"-",IFERROR('Tabel 2 F'!I72/'Tabel 1 F'!G70*100,"-")) -> - | J72: =IF(OR('Tabel 1 F'!G70<5,'Tabel 2 F'!J72<0.5),"-",IFERROR('Tabel 2 F'!J72/'Tabel 1 F'!G70*100,"-")) -> -
A73: Hortonom | C73: =IF(OR('Tabel 1 F'!C71<5,'Tabel 2 F'!C73<0.5),"-",IFERROR('Tabel 2 F'!C73/'Tabel 1 F'!C71*100,"-")) -> - | D73: =IF(OR('Tabel 1 F'!C71<5,'Tabel 2 F'!D73<0.5),"-",IFERROR('Tabel 2 F'!D73/'Tabel 1 F'!C71*100,"-")) -> - | F73: =IF(OR('Tabel 1 F'!E71<5,'Tabel 2 F'!F73<0.5),"-",IFERROR('Tabel 2 F'!F73/'Tabel 1 F'!E71*100,"-")) -> - | G73: =IF(OR('Tabel 1 F'!E71<5,'Tabel 2 F'!G73<0.5),"-",IFERROR('Tabel 2 F'!G73/'Tabel 1 F'!E71*100,"-")) -> - | I73: =IF(OR('Tabel 1 F'!G71<5,'Tabel 2 F'!I73<0.5),"-",IFERROR('Tabel 2 F'!I73/'Tabel 1 F'!G71*100,"-")) -> - | J73: =IF(OR('Tabel 1 F'!G71<5,'Tabel 2 F'!J73<0.5),"-",IFERROR('Tabel 2 F'!J73/'Tabel 1 F'!G71*100,"-")) -> -
A74: Forstkand. | C74: =IF(OR('Tabel 1 F'!C72<5,'Tabel 2 F'!C74<0.5),"-",IFERROR('Tabel 2 F'!C74/'Tabel 1 F'!C72*100,"-")) -> - | D74: =IF(OR('Tabel 1 F'!C72<5,'Tabel 2 F'!D74<0.5),"-",IFERROR('Tabel 2 F'!D74/'Tabel 1 F'!C72*100,"-")) -> - | F74: =IF(OR('Tabel 1 F'!E72<5,'Tabel 2 F'!F74<0.5),"-",IFERROR('Tabel 2 F'!F74/'Tabel 1 F'!E72*100,"-")) -> - | G74: =IF(OR('Tabel 1 F'!E72<5,'Tabel 2 F'!G74<0.5),"-",IFERROR('Tabel 2 F'!G74/'Tabel 1 F'!E72*100,"-")) -> - | I74: =IF(OR('Tabel 1 F'!G72<5,'Tabel 2 F'!I74<0.5),"-",IFERROR('Tabel 2 F'!I74/'Tabel 1 F'!G72*100,"-")) -> - | J74: =IF(OR('Tabel 1 F'!G72<5,'Tabel 2 F'!J74<0.5),"-",IFERROR('Tabel 2 F'!J74/'Tabel 1 F'!G72*100,"-")) -> -
A75: Jordbrugsakad. | C75: =IF(OR('Tabel 1 F'!C73<5,'Tabel 2 F'!C75<0.5),"-",IFERROR('Tabel 2 F'!C75/'Tabel 1 F'!C73*100,"-")) -> - | D75: =IF(OR('Tabel 1 F'!C73<5,'Tabel 2 F'!D75<0.5),"-",IFERROR('Tabel 2 F'!D75/'Tabel 1 F'!C73*100,"-")) -> - | F75: =IF(OR('Tabel 1 F'!E73<5,'Tabel 2 F'!F75<0.5),"-",IFERROR('Tabel 2 F'!F75/'Tabel 1 F'!E73*100,"-")) -> - | G75: =IF(OR('Tabel 1 F'!E73<5,'Tabel 2 F'!G75<0.5),"-",IFERROR('Tabel 2 F'!G75/'Tabel 1 F'!E73*100,"-")) -> - | I75: =IF(OR('Tabel 1 F'!G73<5,'Tabel 2 F'!I75<0.5),"-",IFERROR('Tabel 2 F'!I75/'Tabel 1 F'!G73*100,"-")) -> - | J75: =IF(OR('Tabel 1 F'!G73<5,'Tabel 2 F'!J75<0.5),"-",IFERROR('Tabel 2 F'!J75/'Tabel 1 F'!G73*100,"-")) -> -
A76: Mejeriing. | C76: =IF(OR('Tabel 1 F'!C74<5,'Tabel 2 F'!C76<0.5),"-",IFERROR('Tabel 2 F'!C76/'Tabel 1 F'!C74*100,"-")) -> - | D76: =IF(OR('Tabel 1 F'!C74<5,'Tabel 2 F'!D76<0.5),"-",IFERROR('Tabel 2 F'!D76/'Tabel 1 F'!C74*100,"-")) -> - | F76: =IF(OR('Tabel 1 F'!E74<5,'Tabel 2 F'!F76<0.5),"-",IFERROR('Tabel 2 F'!F76/'Tabel 1 F'!E74*100,"-")) -> - | G76: =IF(OR('Tabel 1 F'!E74<5,'Tabel 2 F'!G76<0.5),"-",IFERROR('Tabel 2 F'!G76/'Tabel 1 F'!E74*100,"-")) -> - | I76: =IF(OR('Tabel 1 F'!G74<5,'Tabel 2 F'!I76<0.5),"-",IFERROR('Tabel 2 F'!I76/'Tabel 1 F'!G74*100,"-")) -> - | J76: =IF(OR('Tabel 1 F'!G74<5,'Tabel 2 F'!J76<0.5),"-",IFERROR('Tabel 2 F'!J76/'Tabel 1 F'!G74*100,"-")) -> -
A77: Levn.m.kand. | C77: =IF(OR('Tabel 1 F'!C75<5,'Tabel 2 F'!C77<0.5),"-",IFERROR('Tabel 2 F'!C77/'Tabel 1 F'!C75*100,"-")) -> - | D77: =IF(OR('Tabel 1 F'!C75<5,'Tabel 2 F'!D77<0.5),"-",IFERROR('Tabel 2 F'!D77/'Tabel 1 F'!C75*100,"-")) -> - | F77: =IF(OR('Tabel 1 F'!E75<5,'Tabel 2 F'!F77<0.5),"-",IFERROR('Tabel 2 F'!F77/'Tabel 1 F'!E75*100,"-")) -> - | G77: =IF(OR('Tabel 1 F'!E75<5,'Tabel 2 F'!G77<0.5),"-",IFERROR('Tabel 2 F'!G77/'Tabel 1 F'!E75*100,"-")) -> - | I77: =IF(OR('Tabel 1 F'!G75<5,'Tabel 2 F'!I77<0.5),"-",IFERROR('Tabel 2 F'!I77/'Tabel 1 F'!G75*100,"-")) -> - | J77: =IF(OR('Tabel 1 F'!G75<5,'Tabel 2 F'!J77<0.5),"-",IFERROR('Tabel 2 F'!J77/'Tabel 1 F'!G75*100,"-")) -> -
A78: Dyrlæge | C78: =IF(OR('Tabel 1 F'!C76<5,'Tabel 2 F'!C78<0.5),"-",IFERROR('Tabel 2 F'!C78/'Tabel 1 F'!C76*100,"-")) -> - | D78: =IF(OR('Tabel 1 F'!C76<5,'Tabel 2 F'!D78<0.5),"-",IFERROR('Tabel 2 F'!D78/'Tabel 1 F'!C76*100,"-")) -> - | F78: =IF(OR('Tabel 1 F'!E76<5,'Tabel 2 F'!F78<0.5),"-",IFERROR('Tabel 2 F'!F78/'Tabel 1 F'!E76*100,"-")) -> - | G78: =IF(OR('Tabel 1 F'!E76<5,'Tabel 2 F'!G78<0.5),"-",IFERROR('Tabel 2 F'!G78/'Tabel 1 F'!E76*100,"-")) -> - | I78: =IF(OR('Tabel 1 F'!G76<5,'Tabel 2 F'!I78<0.5),"-",IFERROR('Tabel 2 F'!I78/'Tabel 1 F'!G76*100,"-")) -> - | J78: =IF(OR('Tabel 1 F'!G76<5,'Tabel 2 F'!J78<0.5),"-",IFERROR('Tabel 2 F'!J78/'Tabel 1 F'!G76*100,"-")) -> -
A79: Farmaceut | C79: =IF(OR('Tabel 1 F'!C77<5,'Tabel 2 F'!C79<0.5),"-",IFERROR('Tabel 2 F'!C79/'Tabel 1 F'!C77*100,"-")) -> - | D79: =IF(OR('Tabel 1 F'!C77<5,'Tabel 2 F'!D79<0.5),"-",IFERROR('Tabel 2 F'!D79/'Tabel 1 F'!C77*100,"-")) -> - | F79: =IF(OR('Tabel 1 F'!E77<5,'Tabel 2 F'!F79<0.5),"-",IFERROR('Tabel 2 F'!F79/'Tabel 1 F'!E77*100,"-")) -> - | G79: =IF(OR('Tabel 1 F'!E77<5,'Tabel 2 F'!G79<0.5),"-",IFERROR('Tabel 2 F'!G79/'Tabel 1 F'!E77*100,"-")) -> - | I79: =IF(OR('Tabel 1 F'!G77<5,'Tabel 2 F'!I79<0.5),"-",IFERROR('Tabel 2 F'!I79/'Tabel 1 F'!G77*100,"-")) -> - | J79: =IF(OR('Tabel 1 F'!G77<5,'Tabel 2 F'!J79<0.5),"-",IFERROR('Tabel 2 F'!J79/'Tabel 1 F'!G77*100,"-")) -> -
A80: Læge | C80: =IF(OR('Tabel 1 F'!C78<5,'Tabel 2 F'!C80<0.5),"-",IFERROR('Tabel 2 F'!C80/'Tabel 1 F'!C78*100,"-")) -> - | D80: =IF(OR('Tabel 1 F'!C78<5,'Tabel 2 F'!D80<0.5),"-",IFERROR('Tabel 2 F'!D80/'Tabel 1 F'!C78*100,"-")) -> - | F80: =IF(OR('Tabel 1 F'!E78<5,'Tabel 2 F'!F80<0.5),"-",IFERROR('Tabel 2 F'!F80/'Tabel 1 F'!E78*100,"-")) -> 1.149425287 | G80: =IF(OR('Tabel 1 F'!E78<5,'Tabel 2 F'!G80<0.5),"-",IFERROR('Tabel 2 F'!G80/'Tabel 1 F'!E78*100,"-")) -> 1.149210214 | I80: =IF(OR('Tabel 1 F'!G78<5,'Tabel 2 F'!I80<0.5),"-",IFERROR('Tabel 2 F'!I80/'Tabel 1 F'!G78*100,"-")) -> 0.9090909091 | J80: =IF(OR('Tabel 1 F'!G78<5,'Tabel 2 F'!J80<0.5),"-",IFERROR('Tabel 2 F'!J80/'Tabel 1 F'!G78*100,"-")) -> 0.9089208054
A81: Tandlæge | C81: =IF(OR('Tabel 1 F'!C79<5,'Tabel 2 F'!C81<0.5),"-",IFERROR('Tabel 2 F'!C81/'Tabel 1 F'!C79*100,"-")) -> - | D81: =IF(OR('Tabel 1 F'!C79<5,'Tabel 2 F'!D81<0.5),"-",IFERROR('Tabel 2 F'!D81/'Tabel 1 F'!C79*100,"-")) -> - | F81: =IF(OR('Tabel 1 F'!E79<5,'Tabel 2 F'!F81<0.5),"-",IFERROR('Tabel 2 F'!F81/'Tabel 1 F'!E79*100,"-")) -> - | G81: =IF(OR('Tabel 1 F'!E79<5,'Tabel 2 F'!G81<0.5),"-",IFERROR('Tabel 2 F'!G81/'Tabel 1 F'!E79*100,"-")) -> - | I81: =IF(OR('Tabel 1 F'!G79<5,'Tabel 2 F'!I81<0.5),"-",IFERROR('Tabel 2 F'!I81/'Tabel 1 F'!G79*100,"-")) -> - | J81: =IF(OR('Tabel 1 F'!G79<5,'Tabel 2 F'!J81<0.5),"-",IFERROR('Tabel 2 F'!J81/'Tabel 1 F'!G79*100,"-")) -> -
A82: Arkitekt | C82: =IF(OR('Tabel 1 F'!C80<5,'Tabel 2 F'!C82<0.5),"-",IFERROR('Tabel 2 F'!C82/'Tabel 1 F'!C80*100,"-")) -> - | D82: =IF(OR('Tabel 1 F'!C80<5,'Tabel 2 F'!D82<0.5),"-",IFERROR('Tabel 2 F'!D82/'Tabel 1 F'!C80*100,"-")) -> - | F82: =IF(OR('Tabel 1 F'!E80<5,'Tabel 2 F'!F82<0.5),"-",IFERROR('Tabel 2 F'!F82/'Tabel 1 F'!E80*100,"-")) -> 12.5 | G82: =IF(OR('Tabel 1 F'!E80<5,'Tabel 2 F'!G82<0.5),"-",IFERROR('Tabel 2 F'!G82/'Tabel 1 F'!E80*100,"-")) -> 12.49766107 | I82: =IF(OR('Tabel 1 F'!G80<5,'Tabel 2 F'!I82<0.5),"-",IFERROR('Tabel 2 F'!I82/'Tabel 1 F'!G80*100,"-")) -> 8.333333333 | J82: =IF(OR('Tabel 1 F'!G80<5,'Tabel 2 F'!J82<0.5),"-",IFERROR('Tabel 2 F'!J82/'Tabel 1 F'!G80*100,"-")) -> 8.331774049
A83: Landinspek. | C83: =IF(OR('Tabel 1 F'!C81<5,'Tabel 2 F'!C83<0.5),"-",IFERROR('Tabel 2 F'!C83/'Tabel 1 F'!C81*100,"-")) -> - | D83: =IF(OR('Tabel 1 F'!C81<5,'Tabel 2 F'!D83<0.5),"-",IFERROR('Tabel 2 F'!D83/'Tabel 1 F'!C81*100,"-")) -> - | F83: =IF(OR('Tabel 1 F'!E81<5,'Tabel 2 F'!F83<0.5),"-",IFERROR('Tabel 2 F'!F83/'Tabel 1 F'!E81*100,"-")) -> - | G83: =IF(OR('Tabel 1 F'!E81<5,'Tabel 2 F'!G83<0.5),"-",IFERROR('Tabel 2 F'!G83/'Tabel 1 F'!E81*100,"-")) -> - | I83: =IF(OR('Tabel 1 F'!G81<5,'Tabel 2 F'!I83<0.5),"-",IFERROR('Tabel 2 F'!I83/'Tabel 1 F'!G81*100,"-")) -> - | J83: =IF(OR('Tabel 1 F'!G81<5,'Tabel 2 F'!J83<0.5),"-",IFERROR('Tabel 2 F'!J83/'Tabel 1 F'!G81*100,"-")) -> -
A84: Bibliotekar | C84: =IF(OR('Tabel 1 F'!C82<5,'Tabel 2 F'!C84<0.5),"-",IFERROR('Tabel 2 F'!C84/'Tabel 1 F'!C82*100,"-")) -> - | D84: =IF(OR('Tabel 1 F'!C82<5,'Tabel 2 F'!D84<0.5),"-",IFERROR('Tabel 2 F'!D84/'Tabel 1 F'!C82*100,"-")) -> - | F84: =IF(OR('Tabel 1 F'!E82<5,'Tabel 2 F'!F84<0.5),"-",IFERROR('Tabel 2 F'!F84/'Tabel 1 F'!E82*100,"-")) -> - | G84: =IF(OR('Tabel 1 F'!E82<5,'Tabel 2 F'!G84<0.5),"-",IFERROR('Tabel 2 F'!G84/'Tabel 1 F'!E82*100,"-")) -> - | I84: =IF(OR('Tabel 1 F'!G82<5,'Tabel 2 F'!I84<0.5),"-",IFERROR('Tabel 2 F'!I84/'Tabel 1 F'!G82*100,"-")) -> - | J84: =IF(OR('Tabel 1 F'!G82<5,'Tabel 2 F'!J84<0.5),"-",IFERROR('Tabel 2 F'!J84/'Tabel 1 F'!G82*100,"-")) -> -
A85: Musikudd. | C85: =IF(OR('Tabel 1 F'!C83<5,'Tabel 2 F'!C85<0.5),"-",IFERROR('Tabel 2 F'!C85/'Tabel 1 F'!C83*100,"-")) -> - | D85: =IF(OR('Tabel 1 F'!C83<5,'Tabel 2 F'!D85<0.5),"-",IFERROR('Tabel 2 F'!D85/'Tabel 1 F'!C83*100,"-")) -> - | F85: =IF(OR('Tabel 1 F'!E83<5,'Tabel 2 F'!F85<0.5),"-",IFERROR('Tabel 2 F'!F85/'Tabel 1 F'!E83*100,"-")) -> - | G85: =IF(OR('Tabel 1 F'!E83<5,'Tabel 2 F'!G85<0.5),"-",IFERROR('Tabel 2 F'!G85/'Tabel 1 F'!E83*100,"-")) -> - | I85: =IF(OR('Tabel 1 F'!G83<5,'Tabel 2 F'!I85<0.5),"-",IFERROR('Tabel 2 F'!I85/'Tabel 1 F'!G83*100,"-")) -> - | J85: =IF(OR('Tabel 1 F'!G83<5,'Tabel 2 F'!J85<0.5),"-",IFERROR('Tabel 2 F'!J85/'Tabel 1 F'!G83*100,"-")) -> -
A86: Teolog | C86: =IF(OR('Tabel 1 F'!C84<5,'Tabel 2 F'!C86<0.5),"-",IFERROR('Tabel 2 F'!C86/'Tabel 1 F'!C84*100,"-")) -> - | D86: =IF(OR('Tabel 1 F'!C84<5,'Tabel 2 F'!D86<0.5),"-",IFERROR('Tabel 2 F'!D86/'Tabel 1 F'!C84*100,"-")) -> - | F86: =IF(OR('Tabel 1 F'!E84<5,'Tabel 2 F'!F86<0.5),"-",IFERROR('Tabel 2 F'!F86/'Tabel 1 F'!E84*100,"-")) -> 28.57142857 | G86: =IF(OR('Tabel 1 F'!E84<5,'Tabel 2 F'!G86<0.5),"-",IFERROR('Tabel 2 F'!G86/'Tabel 1 F'!E84*100,"-")) -> 16.88481792 | I86: =IF(OR('Tabel 1 F'!G84<5,'Tabel 2 F'!I86<0.5),"-",IFERROR('Tabel 2 F'!I86/'Tabel 1 F'!G84*100,"-")) -> 14.28571429 | J86: =IF(OR('Tabel 1 F'!G84<5,'Tabel 2 F'!J86<0.5),"-",IFERROR('Tabel 2 F'!J86/'Tabel 1 F'!G84*100,"-")) -> 8.44240896
A87: Psykolog | C87: =IF(OR('Tabel 1 F'!C85<5,'Tabel 2 F'!C87<0.5),"-",IFERROR('Tabel 2 F'!C87/'Tabel 1 F'!C85*100,"-")) -> - | D87: =IF(OR('Tabel 1 F'!C85<5,'Tabel 2 F'!D87<0.5),"-",IFERROR('Tabel 2 F'!D87/'Tabel 1 F'!C85*100,"-")) -> - | F87: =IF(OR('Tabel 1 F'!E85<5,'Tabel 2 F'!F87<0.5),"-",IFERROR('Tabel 2 F'!F87/'Tabel 1 F'!E85*100,"-")) -> - | G87: =IF(OR('Tabel 1 F'!E85<5,'Tabel 2 F'!G87<0.5),"-",IFERROR('Tabel 2 F'!G87/'Tabel 1 F'!E85*100,"-")) -> - | I87: =IF(OR('Tabel 1 F'!G85<5,'Tabel 2 F'!I87<0.5),"-",IFERROR('Tabel 2 F'!I87/'Tabel 1 F'!G85*100,"-")) -> - | J87: =IF(OR('Tabel 1 F'!G85<5,'Tabel 2 F'!J87<0.5),"-",IFERROR('Tabel 2 F'!J87/'Tabel 1 F'!G85*100,"-")) -> -
A88: Jurist | C88: =IF(OR('Tabel 1 F'!C86<5,'Tabel 2 F'!C88<0.5),"-",IFERROR('Tabel 2 F'!C88/'Tabel 1 F'!C86*100,"-")) -> - | D88: =IF(OR('Tabel 1 F'!C86<5,'Tabel 2 F'!D88<0.5),"-",IFERROR('Tabel 2 F'!D88/'Tabel 1 F'!C86*100,"-")) -> - | F88: =IF(OR('Tabel 1 F'!E86<5,'Tabel 2 F'!F88<0.5),"-",IFERROR('Tabel 2 F'!F88/'Tabel 1 F'!E86*100,"-")) -> - | G88: =IF(OR('Tabel 1 F'!E86<5,'Tabel 2 F'!G88<0.5),"-",IFERROR('Tabel 2 F'!G88/'Tabel 1 F'!E86*100,"-")) -> - | I88: =IF(OR('Tabel 1 F'!G86<5,'Tabel 2 F'!I88<0.5),"-",IFERROR('Tabel 2 F'!I88/'Tabel 1 F'!G86*100,"-")) -> - | J88: =IF(OR('Tabel 1 F'!G86<5,'Tabel 2 F'!J88<0.5),"-",IFERROR('Tabel 2 F'!J88/'Tabel 1 F'!G86*100,"-")) -> -
A89: Økonom | C89: =IF(OR('Tabel 1 F'!C87<5,'Tabel 2 F'!C89<0.5),"-",IFERROR('Tabel 2 F'!C89/'Tabel 1 F'!C87*100,"-")) -> - | D89: =IF(OR('Tabel 1 F'!C87<5,'Tabel 2 F'!D89<0.5),"-",IFERROR('Tabel 2 F'!D89/'Tabel 1 F'!C87*100,"-")) -> - | F89: =IF(OR('Tabel 1 F'!E87<5,'Tabel 2 F'!F89<0.5),"-",IFERROR('Tabel 2 F'!F89/'Tabel 1 F'!E87*100,"-")) -> - | G89: =IF(OR('Tabel 1 F'!E87<5,'Tabel 2 F'!G89<0.5),"-",IFERROR('Tabel 2 F'!G89/'Tabel 1 F'!E87*100,"-")) -> - | I89: =IF(OR('Tabel 1 F'!G87<5,'Tabel 2 F'!I89<0.5),"-",IFERROR('Tabel 2 F'!I89/'Tabel 1 F'!G87*100,"-")) -> - | J89: =IF(OR('Tabel 1 F'!G87<5,'Tabel 2 F'!J89<0.5),"-",IFERROR('Tabel 2 F'!J89/'Tabel 1 F'!G87*100,"-")) -> -
A90: Samf. Adm. | C90: =IF(OR('Tabel 1 F'!C88<5,'Tabel 2 F'!C90<0.5),"-",IFERROR('Tabel 2 F'!C90/'Tabel 1 F'!C88*100,"-")) -> 2.941176471 | D90: =IF(OR('Tabel 1 F'!C88<5,'Tabel 2 F'!D90<0.5),"-",IFERROR('Tabel 2 F'!D90/'Tabel 1 F'!C88*100,"-")) -> 2.940626135 | F90: =IF(OR('Tabel 1 F'!E88<5,'Tabel 2 F'!F90<0.5),"-",IFERROR('Tabel 2 F'!F90/'Tabel 1 F'!E88*100,"-")) -> - | G90: =IF(OR('Tabel 1 F'!E88<5,'Tabel 2 F'!G90<0.5),"-",IFERROR('Tabel 2 F'!G90/'Tabel 1 F'!E88*100,"-")) -> - | I90: =IF(OR('Tabel 1 F'!G88<5,'Tabel 2 F'!I90<0.5),"-",IFERROR('Tabel 2 F'!I90/'Tabel 1 F'!G88*100,"-")) -> 1.063829787 | J90: =IF(OR('Tabel 1 F'!G88<5,'Tabel 2 F'!J90<0.5),"-",IFERROR('Tabel 2 F'!J90/'Tabel 1 F'!G88*100,"-")) -> 1.06363073
A91: Cand. Merc. | C91: =IF(OR('Tabel 1 F'!C89<5,'Tabel 2 F'!C91<0.5),"-",IFERROR('Tabel 2 F'!C91/'Tabel 1 F'!C89*100,"-")) -> 1.149425287 | D91: =IF(OR('Tabel 1 F'!C89<5,'Tabel 2 F'!D91<0.5),"-",IFERROR('Tabel 2 F'!D91/'Tabel 1 F'!C89*100,"-")) -> 1.149210214 | F91: =IF(OR('Tabel 1 F'!E89<5,'Tabel 2 F'!F91<0.5),"-",IFERROR('Tabel 2 F'!F91/'Tabel 1 F'!E89*100,"-")) -> 2.631578947 | G91: =IF(OR('Tabel 1 F'!E89<5,'Tabel 2 F'!G91<0.5),"-",IFERROR('Tabel 2 F'!G91/'Tabel 1 F'!E89*100,"-")) -> 2.205976489 | I91: =IF(OR('Tabel 1 F'!G89<5,'Tabel 2 F'!I91<0.5),"-",IFERROR('Tabel 2 F'!I91/'Tabel 1 F'!G89*100,"-")) -> 1.840490798 | J91: =IF(OR('Tabel 1 F'!G89<5,'Tabel 2 F'!J91<0.5),"-",IFERROR('Tabel 2 F'!J91/'Tabel 1 F'!G89*100,"-")) -> 1.641935594
A92: HA | C92: =IF(OR('Tabel 1 F'!C90<5,'Tabel 2 F'!C92<0.5),"-",IFERROR('Tabel 2 F'!C92/'Tabel 1 F'!C90*100,"-")) -> 4.166666667 | D92: =IF(OR('Tabel 1 F'!C90<5,'Tabel 2 F'!D92<0.5),"-",IFERROR('Tabel 2 F'!D92/'Tabel 1 F'!C90*100,"-")) -> - | F92: =IF(OR('Tabel 1 F'!E90<5,'Tabel 2 F'!F92<0.5),"-",IFERROR('Tabel 2 F'!F92/'Tabel 1 F'!E90*100,"-")) -> - | G92: =IF(OR('Tabel 1 F'!E90<5,'Tabel 2 F'!G92<0.5),"-",IFERROR('Tabel 2 F'!G92/'Tabel 1 F'!E90*100,"-")) -> - | I92: =IF(OR('Tabel 1 F'!G90<5,'Tabel 2 F'!I92<0.5),"-",IFERROR('Tabel 2 F'!I92/'Tabel 1 F'!G90*100,"-")) -> 2.702702703 | J92: =IF(OR('Tabel 1 F'!G90<5,'Tabel 2 F'!J92<0.5),"-",IFERROR('Tabel 2 F'!J92/'Tabel 1 F'!G90*100,"-")) -> -
A93: HD | C93: =IF(OR('Tabel 1 F'!C91<5,'Tabel 2 F'!C93<0.5),"-",IFERROR('Tabel 2 F'!C93/'Tabel 1 F'!C91*100,"-")) -> - | D93: =IF(OR('Tabel 1 F'!C91<5,'Tabel 2 F'!D93<0.5),"-",IFERROR('Tabel 2 F'!D93/'Tabel 1 F'!C91*100,"-")) -> - | F93: =IF(OR('Tabel 1 F'!E91<5,'Tabel 2 F'!F93<0.5),"-",IFERROR('Tabel 2 F'!F93/'Tabel 1 F'!E91*100,"-")) -> - | G93: =IF(OR('Tabel 1 F'!E91<5,'Tabel 2 F'!G93<0.5),"-",IFERROR('Tabel 2 F'!G93/'Tabel 1 F'!E91*100,"-")) -> - | I93: =IF(OR('Tabel 1 F'!G91<5,'Tabel 2 F'!I93<0.5),"-",IFERROR('Tabel 2 F'!I93/'Tabel 1 F'!G91*100,"-")) -> - | J93: =IF(OR('Tabel 1 F'!G91<5,'Tabel 2 F'!J93<0.5),"-",IFERROR('Tabel 2 F'!J93/'Tabel 1 F'!G91*100,"-")) -> -
A94: Komm. og Sprog | C94: =IF(OR('Tabel 1 F'!C92<5,'Tabel 2 F'!C94<0.5),"-",IFERROR('Tabel 2 F'!C94/'Tabel 1 F'!C92*100,"-")) -> - | D94: =IF(OR('Tabel 1 F'!C92<5,'Tabel 2 F'!D94<0.5),"-",IFERROR('Tabel 2 F'!D94/'Tabel 1 F'!C92*100,"-")) -> - | F94: =IF(OR('Tabel 1 F'!E92<5,'Tabel 2 F'!F94<0.5),"-",IFERROR('Tabel 2 F'!F94/'Tabel 1 F'!E92*100,"-")) -> - | G94: =IF(OR('Tabel 1 F'!E92<5,'Tabel 2 F'!G94<0.5),"-",IFERROR('Tabel 2 F'!G94/'Tabel 1 F'!E92*100,"-")) -> - | I94: =IF(OR('Tabel 1 F'!G92<5,'Tabel 2 F'!I94<0.5),"-",IFERROR('Tabel 2 F'!I94/'Tabel 1 F'!G92*100,"-")) -> - | J94: =IF(OR('Tabel 1 F'!G92<5,'Tabel 2 F'!J94<0.5),"-",IFERROR('Tabel 2 F'!J94/'Tabel 1 F'!G92*100,"-")) -> -
A95: Bygningskonst. | C95: =IF(OR('Tabel 1 F'!C93<5,'Tabel 2 F'!C95<0.5),"-",IFERROR('Tabel 2 F'!C95/'Tabel 1 F'!C93*100,"-")) -> - | D95: =IF(OR('Tabel 1 F'!C93<5,'Tabel 2 F'!D95<0.5),"-",IFERROR('Tabel 2 F'!D95/'Tabel 1 F'!C93*100,"-")) -> - | F95: =IF(OR('Tabel 1 F'!E93<5,'Tabel 2 F'!F95<0.5),"-",IFERROR('Tabel 2 F'!F95/'Tabel 1 F'!E93*100,"-")) -> - | G95: =IF(OR('Tabel 1 F'!E93<5,'Tabel 2 F'!G95<0.5),"-",IFERROR('Tabel 2 F'!G95/'Tabel 1 F'!E93*100,"-")) -> - | I95: =IF(OR('Tabel 1 F'!G93<5,'Tabel 2 F'!I95<0.5),"-",IFERROR('Tabel 2 F'!I95/'Tabel 1 F'!G93*100,"-")) -> - | J95: =IF(OR('Tabel 1 F'!G93<5,'Tabel 2 F'!J95<0.5),"-",IFERROR('Tabel 2 F'!J95/'Tabel 1 F'!G93*100,"-")) -> -
A96: Cand. IT. | C96: =IF(OR('Tabel 1 F'!C94<5,'Tabel 2 F'!C96<0.5),"-",IFERROR('Tabel 2 F'!C96/'Tabel 1 F'!C94*100,"-")) -> 16.66666667 | D96: =IF(OR('Tabel 1 F'!C94<5,'Tabel 2 F'!D96<0.5),"-",IFERROR('Tabel 2 F'!D96/'Tabel 1 F'!C94*100,"-")) -> 16.6635481 | F96: =IF(OR('Tabel 1 F'!E94<5,'Tabel 2 F'!F96<0.5),"-",IFERROR('Tabel 2 F'!F96/'Tabel 1 F'!E94*100,"-")) -> - | G96: =IF(OR('Tabel 1 F'!E94<5,'Tabel 2 F'!G96<0.5),"-",IFERROR('Tabel 2 F'!G96/'Tabel 1 F'!E94*100,"-")) -> - | I96: =IF(OR('Tabel 1 F'!G94<5,'Tabel 2 F'!I96<0.5),"-",IFERROR('Tabel 2 F'!I96/'Tabel 1 F'!G94*100,"-")) -> 7.692307692 | J96: =IF(OR('Tabel 1 F'!G94<5,'Tabel 2 F'!J96<0.5),"-",IFERROR('Tabel 2 F'!J96/'Tabel 1 F'!G94*100,"-")) -> 7.690868353
A97: Bac. Samf. | C97: =IF(OR('Tabel 1 F'!C95<5,'Tabel 2 F'!C97<0.5),"-",IFERROR('Tabel 2 F'!C97/'Tabel 1 F'!C95*100,"-")) -> - | D97: =IF(OR('Tabel 1 F'!C95<5,'Tabel 2 F'!D97<0.5),"-",IFERROR('Tabel 2 F'!D97/'Tabel 1 F'!C95*100,"-")) -> - | F97: =IF(OR('Tabel 1 F'!E95<5,'Tabel 2 F'!F97<0.5),"-",IFERROR('Tabel 2 F'!F97/'Tabel 1 F'!E95*100,"-")) -> 20 | G97: =IF(OR('Tabel 1 F'!E95<5,'Tabel 2 F'!G97<0.5),"-",IFERROR('Tabel 2 F'!G97/'Tabel 1 F'!E95*100,"-")) -> 19.99625772 | I97: =IF(OR('Tabel 1 F'!G95<5,'Tabel 2 F'!I97<0.5),"-",IFERROR('Tabel 2 F'!I97/'Tabel 1 F'!G95*100,"-")) -> 16.66666667 | J97: =IF(OR('Tabel 1 F'!G95<5,'Tabel 2 F'!J97<0.5),"-",IFERROR('Tabel 2 F'!J97/'Tabel 1 F'!G95*100,"-")) -> 16.6635481
A98: Bac. Hum. | C98: =IF(OR('Tabel 1 F'!C96<5,'Tabel 2 F'!C98<0.5),"-",IFERROR('Tabel 2 F'!C98/'Tabel 1 F'!C96*100,"-")) -> - | D98: =IF(OR('Tabel 1 F'!C96<5,'Tabel 2 F'!D98<0.5),"-",IFERROR('Tabel 2 F'!D98/'Tabel 1 F'!C96*100,"-")) -> - | F98: =IF(OR('Tabel 1 F'!E96<5,'Tabel 2 F'!F98<0.5),"-",IFERROR('Tabel 2 F'!F98/'Tabel 1 F'!E96*100,"-")) -> - | G98: =IF(OR('Tabel 1 F'!E96<5,'Tabel 2 F'!G98<0.5),"-",IFERROR('Tabel 2 F'!G98/'Tabel 1 F'!E96*100,"-")) -> - | I98: =IF(OR('Tabel 1 F'!G96<5,'Tabel 2 F'!I98<0.5),"-",IFERROR('Tabel 2 F'!I98/'Tabel 1 F'!G96*100,"-")) -> - | J98: =IF(OR('Tabel 1 F'!G96<5,'Tabel 2 F'!J98<0.5),"-",IFERROR('Tabel 2 F'!J98/'Tabel 1 F'!G96*100,"-")) -> -
A99: Bac. Nat. | C99: =IF(OR('Tabel 1 F'!C97<5,'Tabel 2 F'!C99<0.5),"-",IFERROR('Tabel 2 F'!C99/'Tabel 1 F'!C97*100,"-")) -> - | D99: =IF(OR('Tabel 1 F'!C97<5,'Tabel 2 F'!D99<0.5),"-",IFERROR('Tabel 2 F'!D99/'Tabel 1 F'!C97*100,"-")) -> - | F99: =IF(OR('Tabel 1 F'!E97<5,'Tabel 2 F'!F99<0.5),"-",IFERROR('Tabel 2 F'!F99/'Tabel 1 F'!E97*100,"-")) -> - | G99: =IF(OR('Tabel 1 F'!E97<5,'Tabel 2 F'!G99<0.5),"-",IFERROR('Tabel 2 F'!G99/'Tabel 1 F'!E97*100,"-")) -> - | I99: =IF(OR('Tabel 1 F'!G97<5,'Tabel 2 F'!I99<0.5),"-",IFERROR('Tabel 2 F'!I99/'Tabel 1 F'!G97*100,"-")) -> - | J99: =IF(OR('Tabel 1 F'!G97<5,'Tabel 2 F'!J99<0.5),"-",IFERROR('Tabel 2 F'!J99/'Tabel 1 F'!G97*100,"-")) -> -
A100: Andre | C100: =IF(OR('Tabel 1 F'!C98<5,'Tabel 2 F'!C100<0.5),"-",IFERROR('Tabel 2 F'!C100/'Tabel 1 F'!C98*100,"-")) -> - | D100: =IF(OR('Tabel 1 F'!C98<5,'Tabel 2 F'!D100<0.5),"-",IFERROR('Tabel 2 F'!D100/'Tabel 1 F'!C98*100,"-")) -> - | F100: =IF(OR('Tabel 1 F'!E98<5,'Tabel 2 F'!F100<0.5),"-",IFERROR('Tabel 2 F'!F100/'Tabel 1 F'!E98*100,"-")) -> - | G100: =IF(OR('Tabel 1 F'!E98<5,'Tabel 2 F'!G100<0.5),"-",IFERROR('Tabel 2 F'!G100/'Tabel 1 F'!E98*100,"-")) -> - | I100: =IF(OR('Tabel 1 F'!G98<5,'Tabel 2 F'!I100<0.5),"-",IFERROR('Tabel 2 F'!I100/'Tabel 1 F'!G98*100,"-")) -> - | J100: =IF(OR('Tabel 1 F'!G98<5,'Tabel 2 F'!J100<0.5),"-",IFERROR('Tabel 2 F'!J100/'Tabel 1 F'!G98*100,"-")) -> -
A102: Total | C102: =IF(OR('Tabel 1 F'!C100<5,'Tabel 2 F'!C102<0.5),"-",IFERROR('Tabel 2 F'!C102/'Tabel 1 F'!C100*100,"-")) -> 1.420765027 | D102: =IF(OR('Tabel 1 F'!C100<5,'Tabel 2 F'!D102<0.5),"-",IFERROR('Tabel 2 F'!D102/'Tabel 1 F'!C100*100,"-")) -> 1.315865263 | F102: =IF(OR('Tabel 1 F'!E100<5,'Tabel 2 F'!F102<0.5),"-",IFERROR('Tabel 2 F'!F102/'Tabel 1 F'!E100*100,"-")) -> 1.931818182 | G102: =IF(OR('Tabel 1 F'!E100<5,'Tabel 2 F'!G102<0.5),"-",IFERROR('Tabel 2 F'!G102/'Tabel 1 F'!E100*100,"-")) -> 1.450488481 | I102: =IF(OR('Tabel 1 F'!G100<5,'Tabel 2 F'!I102<0.5),"-",IFERROR('Tabel 2 F'!I102/'Tabel 1 F'!G100*100,"-")) -> 1.671309192 | J102: =IF(OR('Tabel 1 F'!G100<5,'Tabel 2 F'!J102<0.5),"-",IFERROR('Tabel 2 F'!J102/'Tabel 1 F'!G100*100,"-")) -> 1.381864389
A104: Ingeniører i alt | C104: =IF(OR('Tabel 1 F'!C102<5,'Tabel 2 F'!C104<0.5),"-",IFERROR('Tabel 2 F'!C104/'Tabel 1 F'!C102*100,"-")) -> 1.18694362 | D104: =IF(OR('Tabel 1 F'!C102<5,'Tabel 2 F'!D104<0.5),"-",IFERROR('Tabel 2 F'!D104/'Tabel 1 F'!C102*100,"-")) -> 1.186721526 | F104: =IF(OR('Tabel 1 F'!E102<5,'Tabel 2 F'!F104<0.5),"-",IFERROR('Tabel 2 F'!F104/'Tabel 1 F'!E102*100,"-")) -> - | G104: =IF(OR('Tabel 1 F'!E102<5,'Tabel 2 F'!G104<0.5),"-",IFERROR('Tabel 2 F'!G104/'Tabel 1 F'!E102*100,"-")) -> - | I104: =IF(OR('Tabel 1 F'!G102<5,'Tabel 2 F'!I104<0.5),"-",IFERROR('Tabel 2 F'!I104/'Tabel 1 F'!G102*100,"-")) -> 0.9345794393 | J104: =IF(OR('Tabel 1 F'!G102<5,'Tabel 2 F'!J104<0.5),"-",IFERROR('Tabel 2 F'!J104/'Tabel 1 F'!G102*100,"-")) -> 0.9344045663
A105: Magistre i alt | C105: =IF(OR('Tabel 1 F'!C103<5,'Tabel 2 F'!C105<0.5),"-",IFERROR('Tabel 2 F'!C105/'Tabel 1 F'!C103*100,"-")) -> 2.912621359 | D105: =IF(OR('Tabel 1 F'!C103<5,'Tabel 2 F'!D105<0.5),"-",IFERROR('Tabel 2 F'!D105/'Tabel 1 F'!C103*100,"-")) -> 2.912076367 | F105: =IF(OR('Tabel 1 F'!E103<5,'Tabel 2 F'!F105<0.5),"-",IFERROR('Tabel 2 F'!F105/'Tabel 1 F'!E103*100,"-")) -> 3.9408867 | G105: =IF(OR('Tabel 1 F'!E103<5,'Tabel 2 F'!G105<0.5),"-",IFERROR('Tabel 2 F'!G105/'Tabel 1 F'!E103*100,"-")) -> 2.922543682 | I105: =IF(OR('Tabel 1 F'!G103<5,'Tabel 2 F'!I105<0.5),"-",IFERROR('Tabel 2 F'!I105/'Tabel 1 F'!G103*100,"-")) -> 3.594771242 | J105: =IF(OR('Tabel 1 F'!G103<5,'Tabel 2 F'!J105<0.5),"-",IFERROR('Tabel 2 F'!J105/'Tabel 1 F'!G103*100,"-")) -> 2.91902037
A106: DJØF'ere i alt | C106: =IF(OR('Tabel 1 F'!C104<5,'Tabel 2 F'!C106<0.5),"-",IFERROR('Tabel 2 F'!C106/'Tabel 1 F'!C104*100,"-")) -> 1.612903226 | D106: =IF(OR('Tabel 1 F'!C104<5,'Tabel 2 F'!D106<0.5),"-",IFERROR('Tabel 2 F'!D106/'Tabel 1 F'!C104*100,"-")) -> 1.314828489 | F106: =IF(OR('Tabel 1 F'!E104<5,'Tabel 2 F'!F106<0.5),"-",IFERROR('Tabel 2 F'!F106/'Tabel 1 F'!E104*100,"-")) -> 0.9523809524 | G106: =IF(OR('Tabel 1 F'!E104<5,'Tabel 2 F'!G106<0.5),"-",IFERROR('Tabel 2 F'!G106/'Tabel 1 F'!E104*100,"-")) -> 0.7983533961 | I106: =IF(OR('Tabel 1 F'!G104<5,'Tabel 2 F'!I106<0.5),"-",IFERROR('Tabel 2 F'!I106/'Tabel 1 F'!G104*100,"-")) -> 1.262626263 | J106: =IF(OR('Tabel 1 F'!G104<5,'Tabel 2 F'!J106<0.5),"-",IFERROR('Tabel 2 F'!J106/'Tabel 1 F'!G104*100,"-")) -> 1.040940182
A111: Assens
C113: Mænd | F113: Kvinder | I113: I alt
C114: Ledigheds- berørte | D114: Gns. brutto- ledighed | F114: Ledigheds- berørte | G114: Gns. brutto- ledighed | I114: Ledigheds- berørte | J114: Gns. brutto- ledighed
A117: Civ. ing. | C117: =IF(OR('Tabel 1 F'!C115<5,'Tabel 2 F'!C117<0.5),"-",IFERROR('Tabel 2 F'!C117/'Tabel 1 F'!C115*100,"-")) -> - | D117: =IF(OR('Tabel 1 F'!C115<5,'Tabel 2 F'!D117<0.5),"-",IFERROR('Tabel 2 F'!D117/'Tabel 1 F'!C115*100,"-")) -> - | F117: =IF(OR('Tabel 1 F'!E115<5,'Tabel 2 F'!F117<0.5),"-",IFERROR('Tabel 2 F'!F117/'Tabel 1 F'!E115*100,"-")) -> 5.555555556 | G117: =IF(OR('Tabel 1 F'!E115<5,'Tabel 2 F'!G117<0.5),"-",IFERROR('Tabel 2 F'!G117/'Tabel 1 F'!E115*100,"-")) -> 5.554516033 | I117: =IF(OR('Tabel 1 F'!G115<5,'Tabel 2 F'!I117<0.5),"-",IFERROR('Tabel 2 F'!I117/'Tabel 1 F'!G115*100,"-")) -> 1.265822785 | J117: =IF(OR('Tabel 1 F'!G115<5,'Tabel 2 F'!J117<0.5),"-",IFERROR('Tabel 2 F'!J117/'Tabel 1 F'!G115*100,"-")) -> 1.265585932
A118: Diplom ing. | C118: =IF(OR('Tabel 1 F'!C116<5,'Tabel 2 F'!C118<0.5),"-",IFERROR('Tabel 2 F'!C118/'Tabel 1 F'!C116*100,"-")) -> 0.9708737864 | D118: =IF(OR('Tabel 1 F'!C116<5,'Tabel 2 F'!D118<0.5),"-",IFERROR('Tabel 2 F'!D118/'Tabel 1 F'!C116*100,"-")) -> 0.9706921223 | F118: =IF(OR('Tabel 1 F'!E116<5,'Tabel 2 F'!F118<0.5),"-",IFERROR('Tabel 2 F'!F118/'Tabel 1 F'!E116*100,"-")) -> 4.545454545 | G118: =IF(OR('Tabel 1 F'!E116<5,'Tabel 2 F'!G118<0.5),"-",IFERROR('Tabel 2 F'!G118/'Tabel 1 F'!E116*100,"-")) -> 4.487902791 | I118: =IF(OR('Tabel 1 F'!G116<5,'Tabel 2 F'!I118<0.5),"-",IFERROR('Tabel 2 F'!I118/'Tabel 1 F'!G116*100,"-")) -> 1.6 | J118: =IF(OR('Tabel 1 F'!G116<5,'Tabel 2 F'!J118<0.5),"-",IFERROR('Tabel 2 F'!J118/'Tabel 1 F'!G116*100,"-")) -> 1.5897212
A119: Cand. Scient. Tek. | C119: =IF(OR('Tabel 1 F'!C117<5,'Tabel 2 F'!C119<0.5),"-",IFERROR('Tabel 2 F'!C119/'Tabel 1 F'!C117*100,"-")) -> - | D119: =IF(OR('Tabel 1 F'!C117<5,'Tabel 2 F'!D119<0.5),"-",IFERROR('Tabel 2 F'!D119/'Tabel 1 F'!C117*100,"-")) -> - | F119: =IF(OR('Tabel 1 F'!E117<5,'Tabel 2 F'!F119<0.5),"-",IFERROR('Tabel 2 F'!F119/'Tabel 1 F'!E117*100,"-")) -> - | G119: =IF(OR('Tabel 1 F'!E117<5,'Tabel 2 F'!G119<0.5),"-",IFERROR('Tabel 2 F'!G119/'Tabel 1 F'!E117*100,"-")) -> - | I119: =IF(OR('Tabel 1 F'!G117<5,'Tabel 2 F'!I119<0.5),"-",IFERROR('Tabel 2 F'!I119/'Tabel 1 F'!G117*100,"-")) -> - | J119: =IF(OR('Tabel 1 F'!G117<5,'Tabel 2 F'!J119<0.5),"-",IFERROR('Tabel 2 F'!J119/'Tabel 1 F'!G117*100,"-")) -> -
A120: MA. Hum. | C120: =IF(OR('Tabel 1 F'!C118<5,'Tabel 2 F'!C120<0.5),"-",IFERROR('Tabel 2 F'!C120/'Tabel 1 F'!C118*100,"-")) -> 2.43902439 | D120: =IF(OR('Tabel 1 F'!C118<5,'Tabel 2 F'!D120<0.5),"-",IFERROR('Tabel 2 F'!D120/'Tabel 1 F'!C118*100,"-")) -> 2.438568014 | F120: =IF(OR('Tabel 1 F'!E118<5,'Tabel 2 F'!F120<0.5),"-",IFERROR('Tabel 2 F'!F120/'Tabel 1 F'!E118*100,"-")) -> 4.273504274 | G120: =IF(OR('Tabel 1 F'!E118<5,'Tabel 2 F'!G120<0.5),"-",IFERROR('Tabel 2 F'!G120/'Tabel 1 F'!E118*100,"-")) -> 3.92619709 | I120: =IF(OR('Tabel 1 F'!G118<5,'Tabel 2 F'!I120<0.5),"-",IFERROR('Tabel 2 F'!I120/'Tabel 1 F'!G118*100,"-")) -> 3.797468354 | J120: =IF(OR('Tabel 1 F'!G118<5,'Tabel 2 F'!J120<0.5),"-",IFERROR('Tabel 2 F'!J120/'Tabel 1 F'!G118*100,"-")) -> 3.54016676
A121: MA. Nat. | C121: =IF(OR('Tabel 1 F'!C119<5,'Tabel 2 F'!C121<0.5),"-",IFERROR('Tabel 2 F'!C121/'Tabel 1 F'!C119*100,"-")) -> 3.571428571 | D121: =IF(OR('Tabel 1 F'!C119<5,'Tabel 2 F'!D121<0.5),"-",IFERROR('Tabel 2 F'!D121/'Tabel 1 F'!C119*100,"-")) -> 2.835669289 | F121: =IF(OR('Tabel 1 F'!E119<5,'Tabel 2 F'!F121<0.5),"-",IFERROR('Tabel 2 F'!F121/'Tabel 1 F'!E119*100,"-")) -> 9.677419355 | G121: =IF(OR('Tabel 1 F'!E119<5,'Tabel 2 F'!G121<0.5),"-",IFERROR('Tabel 2 F'!G121/'Tabel 1 F'!E119*100,"-")) -> 8.287342839 | I121: =IF(OR('Tabel 1 F'!G119<5,'Tabel 2 F'!I121<0.5),"-",IFERROR('Tabel 2 F'!I121/'Tabel 1 F'!G119*100,"-")) -> 6.779661017 | J121: =IF(OR('Tabel 1 F'!G119<5,'Tabel 2 F'!J121<0.5),"-",IFERROR('Tabel 2 F'!J121/'Tabel 1 F'!G119*100,"-")) -> 5.700107934
A122: MA. Ph.d. | C122: =IF(OR('Tabel 1 F'!C120<5,'Tabel 2 F'!C122<0.5),"-",IFERROR('Tabel 2 F'!C122/'Tabel 1 F'!C120*100,"-")) -> - | D122: =IF(OR('Tabel 1 F'!C120<5,'Tabel 2 F'!D122<0.5),"-",IFERROR('Tabel 2 F'!D122/'Tabel 1 F'!C120*100,"-")) -> - | F122: =IF(OR('Tabel 1 F'!E120<5,'Tabel 2 F'!F122<0.5),"-",IFERROR('Tabel 2 F'!F122/'Tabel 1 F'!E120*100,"-")) -> - | G122: =IF(OR('Tabel 1 F'!E120<5,'Tabel 2 F'!G122<0.5),"-",IFERROR('Tabel 2 F'!G122/'Tabel 1 F'!E120*100,"-")) -> - | I122: =IF(OR('Tabel 1 F'!G120<5,'Tabel 2 F'!I122<0.5),"-",IFERROR('Tabel 2 F'!I122/'Tabel 1 F'!G120*100,"-")) -> - | J122: =IF(OR('Tabel 1 F'!G120<5,'Tabel 2 F'!J122<0.5),"-",IFERROR('Tabel 2 F'!J122/'Tabel 1 F'!G120*100,"-")) -> -
A123: MA. Samf. | C123: =IF(OR('Tabel 1 F'!C121<5,'Tabel 2 F'!C123<0.5),"-",IFERROR('Tabel 2 F'!C123/'Tabel 1 F'!C121*100,"-")) -> - | D123: =IF(OR('Tabel 1 F'!C121<5,'Tabel 2 F'!D123<0.5),"-",IFERROR('Tabel 2 F'!D123/'Tabel 1 F'!C121*100,"-")) -> - | F123: =IF(OR('Tabel 1 F'!E121<5,'Tabel 2 F'!F123<0.5),"-",IFERROR('Tabel 2 F'!F123/'Tabel 1 F'!E121*100,"-")) -> - | G123: =IF(OR('Tabel 1 F'!E121<5,'Tabel 2 F'!G123<0.5),"-",IFERROR('Tabel 2 F'!G123/'Tabel 1 F'!E121*100,"-")) -> - | I123: =IF(OR('Tabel 1 F'!G121<5,'Tabel 2 F'!I123<0.5),"-",IFERROR('Tabel 2 F'!I123/'Tabel 1 F'!G121*100,"-")) -> - | J123: =IF(OR('Tabel 1 F'!G121<5,'Tabel 2 F'!J123<0.5),"-",IFERROR('Tabel 2 F'!J123/'Tabel 1 F'!G121*100,"-")) -> -
A124: Øvrige Mag. | C124: =IF(OR('Tabel 1 F'!C122<5,'Tabel 2 F'!C124<0.5),"-",IFERROR('Tabel 2 F'!C124/'Tabel 1 F'!C122*100,"-")) -> - | D124: =IF(OR('Tabel 1 F'!C122<5,'Tabel 2 F'!D124<0.5),"-",IFERROR('Tabel 2 F'!D124/'Tabel 1 F'!C122*100,"-")) -> - | F124: =IF(OR('Tabel 1 F'!E122<5,'Tabel 2 F'!F124<0.5),"-",IFERROR('Tabel 2 F'!F124/'Tabel 1 F'!E122*100,"-")) -> - | G124: =IF(OR('Tabel 1 F'!E122<5,'Tabel 2 F'!G124<0.5),"-",IFERROR('Tabel 2 F'!G124/'Tabel 1 F'!E122*100,"-")) -> - | I124: =IF(OR('Tabel 1 F'!G122<5,'Tabel 2 F'!I124<0.5),"-",IFERROR('Tabel 2 F'!I124/'Tabel 1 F'!G122*100,"-")) -> - | J124: =IF(OR('Tabel 1 F'!G122<5,'Tabel 2 F'!J124<0.5),"-",IFERROR('Tabel 2 F'!J124/'Tabel 1 F'!G122*100,"-")) -> -
A125: Agronom | C125: =IF(OR('Tabel 1 F'!C123<5,'Tabel 2 F'!C125<0.5),"-",IFERROR('Tabel 2 F'!C125/'Tabel 1 F'!C123*100,"-")) -> - | D125: =IF(OR('Tabel 1 F'!C123<5,'Tabel 2 F'!D125<0.5),"-",IFERROR('Tabel 2 F'!D125/'Tabel 1 F'!C123*100,"-")) -> - | F125: =IF(OR('Tabel 1 F'!E123<5,'Tabel 2 F'!F125<0.5),"-",IFERROR('Tabel 2 F'!F125/'Tabel 1 F'!E123*100,"-")) -> - | G125: =IF(OR('Tabel 1 F'!E123<5,'Tabel 2 F'!G125<0.5),"-",IFERROR('Tabel 2 F'!G125/'Tabel 1 F'!E123*100,"-")) -> - | I125: =IF(OR('Tabel 1 F'!G123<5,'Tabel 2 F'!I125<0.5),"-",IFERROR('Tabel 2 F'!I125/'Tabel 1 F'!G123*100,"-")) -> - | J125: =IF(OR('Tabel 1 F'!G123<5,'Tabel 2 F'!J125<0.5),"-",IFERROR('Tabel 2 F'!J125/'Tabel 1 F'!G123*100,"-")) -> -
A126: Landsk. Arkt. | C126: =IF(OR('Tabel 1 F'!C124<5,'Tabel 2 F'!C126<0.5),"-",IFERROR('Tabel 2 F'!C126/'Tabel 1 F'!C124*100,"-")) -> - | D126: =IF(OR('Tabel 1 F'!C124<5,'Tabel 2 F'!D126<0.5),"-",IFERROR('Tabel 2 F'!D126/'Tabel 1 F'!C124*100,"-")) -> - | F126: =IF(OR('Tabel 1 F'!E124<5,'Tabel 2 F'!F126<0.5),"-",IFERROR('Tabel 2 F'!F126/'Tabel 1 F'!E124*100,"-")) -> - | G126: =IF(OR('Tabel 1 F'!E124<5,'Tabel 2 F'!G126<0.5),"-",IFERROR('Tabel 2 F'!G126/'Tabel 1 F'!E124*100,"-")) -> - | I126: =IF(OR('Tabel 1 F'!G124<5,'Tabel 2 F'!I126<0.5),"-",IFERROR('Tabel 2 F'!I126/'Tabel 1 F'!G124*100,"-")) -> - | J126: =IF(OR('Tabel 1 F'!G124<5,'Tabel 2 F'!J126<0.5),"-",IFERROR('Tabel 2 F'!J126/'Tabel 1 F'!G124*100,"-")) -> -
A127: Hortonom | C127: =IF(OR('Tabel 1 F'!C125<5,'Tabel 2 F'!C127<0.5),"-",IFERROR('Tabel 2 F'!C127/'Tabel 1 F'!C125*100,"-")) -> - | D127: =IF(OR('Tabel 1 F'!C125<5,'Tabel 2 F'!D127<0.5),"-",IFERROR('Tabel 2 F'!D127/'Tabel 1 F'!C125*100,"-")) -> - | F127: =IF(OR('Tabel 1 F'!E125<5,'Tabel 2 F'!F127<0.5),"-",IFERROR('Tabel 2 F'!F127/'Tabel 1 F'!E125*100,"-")) -> - | G127: =IF(OR('Tabel 1 F'!E125<5,'Tabel 2 F'!G127<0.5),"-",IFERROR('Tabel 2 F'!G127/'Tabel 1 F'!E125*100,"-")) -> - | I127: =IF(OR('Tabel 1 F'!G125<5,'Tabel 2 F'!I127<0.5),"-",IFERROR('Tabel 2 F'!I127/'Tabel 1 F'!G125*100,"-")) -> - | J127: =IF(OR('Tabel 1 F'!G125<5,'Tabel 2 F'!J127<0.5),"-",IFERROR('Tabel 2 F'!J127/'Tabel 1 F'!G125*100,"-")) -> -
A128: Forstkand. | C128: =IF(OR('Tabel 1 F'!C126<5,'Tabel 2 F'!C128<0.5),"-",IFERROR('Tabel 2 F'!C128/'Tabel 1 F'!C126*100,"-")) -> - | D128: =IF(OR('Tabel 1 F'!C126<5,'Tabel 2 F'!D128<0.5),"-",IFERROR('Tabel 2 F'!D128/'Tabel 1 F'!C126*100,"-")) -> - | F128: =IF(OR('Tabel 1 F'!E126<5,'Tabel 2 F'!F128<0.5),"-",IFERROR('Tabel 2 F'!F128/'Tabel 1 F'!E126*100,"-")) -> - | G128: =IF(OR('Tabel 1 F'!E126<5,'Tabel 2 F'!G128<0.5),"-",IFERROR('Tabel 2 F'!G128/'Tabel 1 F'!E126*100,"-")) -> - | I128: =IF(OR('Tabel 1 F'!G126<5,'Tabel 2 F'!I128<0.5),"-",IFERROR('Tabel 2 F'!I128/'Tabel 1 F'!G126*100,"-")) -> - | J128: =IF(OR('Tabel 1 F'!G126<5,'Tabel 2 F'!J128<0.5),"-",IFERROR('Tabel 2 F'!J128/'Tabel 1 F'!G126*100,"-")) -> -
A129: Jordbrugsakad. | C129: =IF(OR('Tabel 1 F'!C127<5,'Tabel 2 F'!C129<0.5),"-",IFERROR('Tabel 2 F'!C129/'Tabel 1 F'!C127*100,"-")) -> - | D129: =IF(OR('Tabel 1 F'!C127<5,'Tabel 2 F'!D129<0.5),"-",IFERROR('Tabel 2 F'!D129/'Tabel 1 F'!C127*100,"-")) -> - | F129: =IF(OR('Tabel 1 F'!E127<5,'Tabel 2 F'!F129<0.5),"-",IFERROR('Tabel 2 F'!F129/'Tabel 1 F'!E127*100,"-")) -> - | G129: =IF(OR('Tabel 1 F'!E127<5,'Tabel 2 F'!G129<0.5),"-",IFERROR('Tabel 2 F'!G129/'Tabel 1 F'!E127*100,"-")) -> - | I129: =IF(OR('Tabel 1 F'!G127<5,'Tabel 2 F'!I129<0.5),"-",IFERROR('Tabel 2 F'!I129/'Tabel 1 F'!G127*100,"-")) -> - | J129: =IF(OR('Tabel 1 F'!G127<5,'Tabel 2 F'!J129<0.5),"-",IFERROR('Tabel 2 F'!J129/'Tabel 1 F'!G127*100,"-")) -> -
A130: Mejeriing. | C130: =IF(OR('Tabel 1 F'!C128<5,'Tabel 2 F'!C130<0.5),"-",IFERROR('Tabel 2 F'!C130/'Tabel 1 F'!C128*100,"-")) -> - | D130: =IF(OR('Tabel 1 F'!C128<5,'Tabel 2 F'!D130<0.5),"-",IFERROR('Tabel 2 F'!D130/'Tabel 1 F'!C128*100,"-")) -> - | F130: =IF(OR('Tabel 1 F'!E128<5,'Tabel 2 F'!F130<0.5),"-",IFERROR('Tabel 2 F'!F130/'Tabel 1 F'!E128*100,"-")) -> - | G130: =IF(OR('Tabel 1 F'!E128<5,'Tabel 2 F'!G130<0.5),"-",IFERROR('Tabel 2 F'!G130/'Tabel 1 F'!E128*100,"-")) -> - | I130: =IF(OR('Tabel 1 F'!G128<5,'Tabel 2 F'!I130<0.5),"-",IFERROR('Tabel 2 F'!I130/'Tabel 1 F'!G128*100,"-")) -> - | J130: =IF(OR('Tabel 1 F'!G128<5,'Tabel 2 F'!J130<0.5),"-",IFERROR('Tabel 2 F'!J130/'Tabel 1 F'!G128*100,"-")) -> -
A131: Levn.m.kand. | C131: =IF(OR('Tabel 1 F'!C129<5,'Tabel 2 F'!C131<0.5),"-",IFERROR('Tabel 2 F'!C131/'Tabel 1 F'!C129*100,"-")) -> - | D131: =IF(OR('Tabel 1 F'!C129<5,'Tabel 2 F'!D131<0.5),"-",IFERROR('Tabel 2 F'!D131/'Tabel 1 F'!C129*100,"-")) -> - | F131: =IF(OR('Tabel 1 F'!E129<5,'Tabel 2 F'!F131<0.5),"-",IFERROR('Tabel 2 F'!F131/'Tabel 1 F'!E129*100,"-")) -> - | G131: =IF(OR('Tabel 1 F'!E129<5,'Tabel 2 F'!G131<0.5),"-",IFERROR('Tabel 2 F'!G131/'Tabel 1 F'!E129*100,"-")) -> - | I131: =IF(OR('Tabel 1 F'!G129<5,'Tabel 2 F'!I131<0.5),"-",IFERROR('Tabel 2 F'!I131/'Tabel 1 F'!G129*100,"-")) -> - | J131: =IF(OR('Tabel 1 F'!G129<5,'Tabel 2 F'!J131<0.5),"-",IFERROR('Tabel 2 F'!J131/'Tabel 1 F'!G129*100,"-")) -> -
A132: Dyrlæge | C132: =IF(OR('Tabel 1 F'!C130<5,'Tabel 2 F'!C132<0.5),"-",IFERROR('Tabel 2 F'!C132/'Tabel 1 F'!C130*100,"-")) -> - | D132: =IF(OR('Tabel 1 F'!C130<5,'Tabel 2 F'!D132<0.5),"-",IFERROR('Tabel 2 F'!D132/'Tabel 1 F'!C130*100,"-")) -> - | F132: =IF(OR('Tabel 1 F'!E130<5,'Tabel 2 F'!F132<0.5),"-",IFERROR('Tabel 2 F'!F132/'Tabel 1 F'!E130*100,"-")) -> - | G132: =IF(OR('Tabel 1 F'!E130<5,'Tabel 2 F'!G132<0.5),"-",IFERROR('Tabel 2 F'!G132/'Tabel 1 F'!E130*100,"-")) -> - | I132: =IF(OR('Tabel 1 F'!G130<5,'Tabel 2 F'!I132<0.5),"-",IFERROR('Tabel 2 F'!I132/'Tabel 1 F'!G130*100,"-")) -> - | J132: =IF(OR('Tabel 1 F'!G130<5,'Tabel 2 F'!J132<0.5),"-",IFERROR('Tabel 2 F'!J132/'Tabel 1 F'!G130*100,"-")) -> -
A133: Farmaceut | C133: =IF(OR('Tabel 1 F'!C131<5,'Tabel 2 F'!C133<0.5),"-",IFERROR('Tabel 2 F'!C133/'Tabel 1 F'!C131*100,"-")) -> - | D133: =IF(OR('Tabel 1 F'!C131<5,'Tabel 2 F'!D133<0.5),"-",IFERROR('Tabel 2 F'!D133/'Tabel 1 F'!C131*100,"-")) -> - | F133: =IF(OR('Tabel 1 F'!E131<5,'Tabel 2 F'!F133<0.5),"-",IFERROR('Tabel 2 F'!F133/'Tabel 1 F'!E131*100,"-")) -> - | G133: =IF(OR('Tabel 1 F'!E131<5,'Tabel 2 F'!G133<0.5),"-",IFERROR('Tabel 2 F'!G133/'Tabel 1 F'!E131*100,"-")) -> - | I133: =IF(OR('Tabel 1 F'!G131<5,'Tabel 2 F'!I133<0.5),"-",IFERROR('Tabel 2 F'!I133/'Tabel 1 F'!G131*100,"-")) -> - | J133: =IF(OR('Tabel 1 F'!G131<5,'Tabel 2 F'!J133<0.5),"-",IFERROR('Tabel 2 F'!J133/'Tabel 1 F'!G131*100,"-")) -> -
A134: Læge | C134: =IF(OR('Tabel 1 F'!C132<5,'Tabel 2 F'!C134<0.5),"-",IFERROR('Tabel 2 F'!C134/'Tabel 1 F'!C132*100,"-")) -> - | D134: =IF(OR('Tabel 1 F'!C132<5,'Tabel 2 F'!D134<0.5),"-",IFERROR('Tabel 2 F'!D134/'Tabel 1 F'!C132*100,"-")) -> - | F134: =IF(OR('Tabel 1 F'!E132<5,'Tabel 2 F'!F134<0.5),"-",IFERROR('Tabel 2 F'!F134/'Tabel 1 F'!E132*100,"-")) -> - | G134: =IF(OR('Tabel 1 F'!E132<5,'Tabel 2 F'!G134<0.5),"-",IFERROR('Tabel 2 F'!G134/'Tabel 1 F'!E132*100,"-")) -> - | I134: =IF(OR('Tabel 1 F'!G132<5,'Tabel 2 F'!I134<0.5),"-",IFERROR('Tabel 2 F'!I134/'Tabel 1 F'!G132*100,"-")) -> - | J134: =IF(OR('Tabel 1 F'!G132<5,'Tabel 2 F'!J134<0.5),"-",IFERROR('Tabel 2 F'!J134/'Tabel 1 F'!G132*100,"-")) -> -
A135: Tandlæge | C135: =IF(OR('Tabel 1 F'!C133<5,'Tabel 2 F'!C135<0.5),"-",IFERROR('Tabel 2 F'!C135/'Tabel 1 F'!C133*100,"-")) -> - | D135: =IF(OR('Tabel 1 F'!C133<5,'Tabel 2 F'!D135<0.5),"-",IFERROR('Tabel 2 F'!D135/'Tabel 1 F'!C133*100,"-")) -> - | F135: =IF(OR('Tabel 1 F'!E133<5,'Tabel 2 F'!F135<0.5),"-",IFERROR('Tabel 2 F'!F135/'Tabel 1 F'!E133*100,"-")) -> - | G135: =IF(OR('Tabel 1 F'!E133<5,'Tabel 2 F'!G135<0.5),"-",IFERROR('Tabel 2 F'!G135/'Tabel 1 F'!E133*100,"-")) -> - | I135: =IF(OR('Tabel 1 F'!G133<5,'Tabel 2 F'!I135<0.5),"-",IFERROR('Tabel 2 F'!I135/'Tabel 1 F'!G133*100,"-")) -> - | J135: =IF(OR('Tabel 1 F'!G133<5,'Tabel 2 F'!J135<0.5),"-",IFERROR('Tabel 2 F'!J135/'Tabel 1 F'!G133*100,"-")) -> -
A136: Arkitekt | C136: =IF(OR('Tabel 1 F'!C134<5,'Tabel 2 F'!C136<0.5),"-",IFERROR('Tabel 2 F'!C136/'Tabel 1 F'!C134*100,"-")) -> - | D136: =IF(OR('Tabel 1 F'!C134<5,'Tabel 2 F'!D136<0.5),"-",IFERROR('Tabel 2 F'!D136/'Tabel 1 F'!C134*100,"-")) -> - | F136: =IF(OR('Tabel 1 F'!E134<5,'Tabel 2 F'!F136<0.5),"-",IFERROR('Tabel 2 F'!F136/'Tabel 1 F'!E134*100,"-")) -> - | G136: =IF(OR('Tabel 1 F'!E134<5,'Tabel 2 F'!G136<0.5),"-",IFERROR('Tabel 2 F'!G136/'Tabel 1 F'!E134*100,"-")) -> - | I136: =IF(OR('Tabel 1 F'!G134<5,'Tabel 2 F'!I136<0.5),"-",IFERROR('Tabel 2 F'!I136/'Tabel 1 F'!G134*100,"-")) -> - | J136: =IF(OR('Tabel 1 F'!G134<5,'Tabel 2 F'!J136<0.5),"-",IFERROR('Tabel 2 F'!J136/'Tabel 1 F'!G134*100,"-")) -> -
A137: Landinspek. | C137: =IF(OR('Tabel 1 F'!C135<5,'Tabel 2 F'!C137<0.5),"-",IFERROR('Tabel 2 F'!C137/'Tabel 1 F'!C135*100,"-")) -> - | D137: =IF(OR('Tabel 1 F'!C135<5,'Tabel 2 F'!D137<0.5),"-",IFERROR('Tabel 2 F'!D137/'Tabel 1 F'!C135*100,"-")) -> - | F137: =IF(OR('Tabel 1 F'!E135<5,'Tabel 2 F'!F137<0.5),"-",IFERROR('Tabel 2 F'!F137/'Tabel 1 F'!E135*100,"-")) -> - | G137: =IF(OR('Tabel 1 F'!E135<5,'Tabel 2 F'!G137<0.5),"-",IFERROR('Tabel 2 F'!G137/'Tabel 1 F'!E135*100,"-")) -> - | I137: =IF(OR('Tabel 1 F'!G135<5,'Tabel 2 F'!I137<0.5),"-",IFERROR('Tabel 2 F'!I137/'Tabel 1 F'!G135*100,"-")) -> - | J137: =IF(OR('Tabel 1 F'!G135<5,'Tabel 2 F'!J137<0.5),"-",IFERROR('Tabel 2 F'!J137/'Tabel 1 F'!G135*100,"-")) -> -
A138: Bibliotekar | C138: =IF(OR('Tabel 1 F'!C136<5,'Tabel 2 F'!C138<0.5),"-",IFERROR('Tabel 2 F'!C138/'Tabel 1 F'!C136*100,"-")) -> - | D138: =IF(OR('Tabel 1 F'!C136<5,'Tabel 2 F'!D138<0.5),"-",IFERROR('Tabel 2 F'!D138/'Tabel 1 F'!C136*100,"-")) -> - | F138: =IF(OR('Tabel 1 F'!E136<5,'Tabel 2 F'!F138<0.5),"-",IFERROR('Tabel 2 F'!F138/'Tabel 1 F'!E136*100,"-")) -> - | G138: =IF(OR('Tabel 1 F'!E136<5,'Tabel 2 F'!G138<0.5),"-",IFERROR('Tabel 2 F'!G138/'Tabel 1 F'!E136*100,"-")) -> - | I138: =IF(OR('Tabel 1 F'!G136<5,'Tabel 2 F'!I138<0.5),"-",IFERROR('Tabel 2 F'!I138/'Tabel 1 F'!G136*100,"-")) -> - | J138: =IF(OR('Tabel 1 F'!G136<5,'Tabel 2 F'!J138<0.5),"-",IFERROR('Tabel 2 F'!J138/'Tabel 1 F'!G136*100,"-")) -> -
A139: Musikudd. | C139: =IF(OR('Tabel 1 F'!C137<5,'Tabel 2 F'!C139<0.5),"-",IFERROR('Tabel 2 F'!C139/'Tabel 1 F'!C137*100,"-")) -> - | D139: =IF(OR('Tabel 1 F'!C137<5,'Tabel 2 F'!D139<0.5),"-",IFERROR('Tabel 2 F'!D139/'Tabel 1 F'!C137*100,"-")) -> - | F139: =IF(OR('Tabel 1 F'!E137<5,'Tabel 2 F'!F139<0.5),"-",IFERROR('Tabel 2 F'!F139/'Tabel 1 F'!E137*100,"-")) -> 12.5 | G139: =IF(OR('Tabel 1 F'!E137<5,'Tabel 2 F'!G139<0.5),"-",IFERROR('Tabel 2 F'!G139/'Tabel 1 F'!E137*100,"-")) -> - | I139: =IF(OR('Tabel 1 F'!G137<5,'Tabel 2 F'!I139<0.5),"-",IFERROR('Tabel 2 F'!I139/'Tabel 1 F'!G137*100,"-")) -> 8.333333333 | J139: =IF(OR('Tabel 1 F'!G137<5,'Tabel 2 F'!J139<0.5),"-",IFERROR('Tabel 2 F'!J139/'Tabel 1 F'!G137*100,"-")) -> -
A140: Teolog | C140: =IF(OR('Tabel 1 F'!C138<5,'Tabel 2 F'!C140<0.5),"-",IFERROR('Tabel 2 F'!C140/'Tabel 1 F'!C138*100,"-")) -> - | D140: =IF(OR('Tabel 1 F'!C138<5,'Tabel 2 F'!D140<0.5),"-",IFERROR('Tabel 2 F'!D140/'Tabel 1 F'!C138*100,"-")) -> - | F140: =IF(OR('Tabel 1 F'!E138<5,'Tabel 2 F'!F140<0.5),"-",IFERROR('Tabel 2 F'!F140/'Tabel 1 F'!E138*100,"-")) -> - | G140: =IF(OR('Tabel 1 F'!E138<5,'Tabel 2 F'!G140<0.5),"-",IFERROR('Tabel 2 F'!G140/'Tabel 1 F'!E138*100,"-")) -> - | I140: =IF(OR('Tabel 1 F'!G138<5,'Tabel 2 F'!I140<0.5),"-",IFERROR('Tabel 2 F'!I140/'Tabel 1 F'!G138*100,"-")) -> - | J140: =IF(OR('Tabel 1 F'!G138<5,'Tabel 2 F'!J140<0.5),"-",IFERROR('Tabel 2 F'!J140/'Tabel 1 F'!G138*100,"-")) -> -
A141: Psykolog | C141: =IF(OR('Tabel 1 F'!C139<5,'Tabel 2 F'!C141<0.5),"-",IFERROR('Tabel 2 F'!C141/'Tabel 1 F'!C139*100,"-")) -> - | D141: =IF(OR('Tabel 1 F'!C139<5,'Tabel 2 F'!D141<0.5),"-",IFERROR('Tabel 2 F'!D141/'Tabel 1 F'!C139*100,"-")) -> - | F141: =IF(OR('Tabel 1 F'!E139<5,'Tabel 2 F'!F141<0.5),"-",IFERROR('Tabel 2 F'!F141/'Tabel 1 F'!E139*100,"-")) -> - | G141: =IF(OR('Tabel 1 F'!E139<5,'Tabel 2 F'!G141<0.5),"-",IFERROR('Tabel 2 F'!G141/'Tabel 1 F'!E139*100,"-")) -> - | I141: =IF(OR('Tabel 1 F'!G139<5,'Tabel 2 F'!I141<0.5),"-",IFERROR('Tabel 2 F'!I141/'Tabel 1 F'!G139*100,"-")) -> - | J141: =IF(OR('Tabel 1 F'!G139<5,'Tabel 2 F'!J141<0.5),"-",IFERROR('Tabel 2 F'!J141/'Tabel 1 F'!G139*100,"-")) -> -
A142: Jurist | C142: =IF(OR('Tabel 1 F'!C140<5,'Tabel 2 F'!C142<0.5),"-",IFERROR('Tabel 2 F'!C142/'Tabel 1 F'!C140*100,"-")) -> - | D142: =IF(OR('Tabel 1 F'!C140<5,'Tabel 2 F'!D142<0.5),"-",IFERROR('Tabel 2 F'!D142/'Tabel 1 F'!C140*100,"-")) -> - | F142: =IF(OR('Tabel 1 F'!E140<5,'Tabel 2 F'!F142<0.5),"-",IFERROR('Tabel 2 F'!F142/'Tabel 1 F'!E140*100,"-")) -> 5.263157895 | G142: =IF(OR('Tabel 1 F'!E140<5,'Tabel 2 F'!G142<0.5),"-",IFERROR('Tabel 2 F'!G142/'Tabel 1 F'!E140*100,"-")) -> 4.776333024 | I142: =IF(OR('Tabel 1 F'!G140<5,'Tabel 2 F'!I142<0.5),"-",IFERROR('Tabel 2 F'!I142/'Tabel 1 F'!G140*100,"-")) -> 3.225806452 | J142: =IF(OR('Tabel 1 F'!G140<5,'Tabel 2 F'!J142<0.5),"-",IFERROR('Tabel 2 F'!J142/'Tabel 1 F'!G140*100,"-")) -> 2.927429918
A143: Økonom | C143: =IF(OR('Tabel 1 F'!C141<5,'Tabel 2 F'!C143<0.5),"-",IFERROR('Tabel 2 F'!C143/'Tabel 1 F'!C141*100,"-")) -> - | D143: =IF(OR('Tabel 1 F'!C141<5,'Tabel 2 F'!D143<0.5),"-",IFERROR('Tabel 2 F'!D143/'Tabel 1 F'!C141*100,"-")) -> - | F143: =IF(OR('Tabel 1 F'!E141<5,'Tabel 2 F'!F143<0.5),"-",IFERROR('Tabel 2 F'!F143/'Tabel 1 F'!E141*100,"-")) -> - | G143: =IF(OR('Tabel 1 F'!E141<5,'Tabel 2 F'!G143<0.5),"-",IFERROR('Tabel 2 F'!G143/'Tabel 1 F'!E141*100,"-")) -> - | I143: =IF(OR('Tabel 1 F'!G141<5,'Tabel 2 F'!I143<0.5),"-",IFERROR('Tabel 2 F'!I143/'Tabel 1 F'!G141*100,"-")) -> - | J143: =IF(OR('Tabel 1 F'!G141<5,'Tabel 2 F'!J143<0.5),"-",IFERROR('Tabel 2 F'!J143/'Tabel 1 F'!G141*100,"-")) -> -
A144: Samf. Adm. | C144: =IF(OR('Tabel 1 F'!C142<5,'Tabel 2 F'!C144<0.5),"-",IFERROR('Tabel 2 F'!C144/'Tabel 1 F'!C142*100,"-")) -> 4.545454545 | D144: =IF(OR('Tabel 1 F'!C142<5,'Tabel 2 F'!D144<0.5),"-",IFERROR('Tabel 2 F'!D144/'Tabel 1 F'!C142*100,"-")) -> 4.544604027 | F144: =IF(OR('Tabel 1 F'!E142<5,'Tabel 2 F'!F144<0.5),"-",IFERROR('Tabel 2 F'!F144/'Tabel 1 F'!E142*100,"-")) -> 4.545454545 | G144: =IF(OR('Tabel 1 F'!E142<5,'Tabel 2 F'!G144<0.5),"-",IFERROR('Tabel 2 F'!G144/'Tabel 1 F'!E142*100,"-")) -> 4.544604027 | I144: =IF(OR('Tabel 1 F'!G142<5,'Tabel 2 F'!I144<0.5),"-",IFERROR('Tabel 2 F'!I144/'Tabel 1 F'!G142*100,"-")) -> 4.545454545 | J144: =IF(OR('Tabel 1 F'!G142<5,'Tabel 2 F'!J144<0.5),"-",IFERROR('Tabel 2 F'!J144/'Tabel 1 F'!G142*100,"-")) -> 4.544604027
A145: Cand. Merc. | C145: =IF(OR('Tabel 1 F'!C143<5,'Tabel 2 F'!C145<0.5),"-",IFERROR('Tabel 2 F'!C145/'Tabel 1 F'!C143*100,"-")) -> - | D145: =IF(OR('Tabel 1 F'!C143<5,'Tabel 2 F'!D145<0.5),"-",IFERROR('Tabel 2 F'!D145/'Tabel 1 F'!C143*100,"-")) -> - | F145: =IF(OR('Tabel 1 F'!E143<5,'Tabel 2 F'!F145<0.5),"-",IFERROR('Tabel 2 F'!F145/'Tabel 1 F'!E143*100,"-")) -> 3.03030303 | G145: =IF(OR('Tabel 1 F'!E143<5,'Tabel 2 F'!G145<0.5),"-",IFERROR('Tabel 2 F'!G145/'Tabel 1 F'!E143*100,"-")) -> 3.029736018 | I145: =IF(OR('Tabel 1 F'!G143<5,'Tabel 2 F'!I145<0.5),"-",IFERROR('Tabel 2 F'!I145/'Tabel 1 F'!G143*100,"-")) -> 1.492537313 | J145: =IF(OR('Tabel 1 F'!G143<5,'Tabel 2 F'!J145<0.5),"-",IFERROR('Tabel 2 F'!J145/'Tabel 1 F'!G143*100,"-")) -> 1.492258039
A146: HA | C146: =IF(OR('Tabel 1 F'!C144<5,'Tabel 2 F'!C146<0.5),"-",IFERROR('Tabel 2 F'!C146/'Tabel 1 F'!C144*100,"-")) -> - | D146: =IF(OR('Tabel 1 F'!C144<5,'Tabel 2 F'!D146<0.5),"-",IFERROR('Tabel 2 F'!D146/'Tabel 1 F'!C144*100,"-")) -> - | F146: =IF(OR('Tabel 1 F'!E144<5,'Tabel 2 F'!F146<0.5),"-",IFERROR('Tabel 2 F'!F146/'Tabel 1 F'!E144*100,"-")) -> - | G146: =IF(OR('Tabel 1 F'!E144<5,'Tabel 2 F'!G146<0.5),"-",IFERROR('Tabel 2 F'!G146/'Tabel 1 F'!E144*100,"-")) -> - | I146: =IF(OR('Tabel 1 F'!G144<5,'Tabel 2 F'!I146<0.5),"-",IFERROR('Tabel 2 F'!I146/'Tabel 1 F'!G144*100,"-")) -> - | J146: =IF(OR('Tabel 1 F'!G144<5,'Tabel 2 F'!J146<0.5),"-",IFERROR('Tabel 2 F'!J146/'Tabel 1 F'!G144*100,"-")) -> -
A147: HD | C147: =IF(OR('Tabel 1 F'!C145<5,'Tabel 2 F'!C147<0.5),"-",IFERROR('Tabel 2 F'!C147/'Tabel 1 F'!C145*100,"-")) -> - | D147: =IF(OR('Tabel 1 F'!C145<5,'Tabel 2 F'!D147<0.5),"-",IFERROR('Tabel 2 F'!D147/'Tabel 1 F'!C145*100,"-")) -> - | F147: =IF(OR('Tabel 1 F'!E145<5,'Tabel 2 F'!F147<0.5),"-",IFERROR('Tabel 2 F'!F147/'Tabel 1 F'!E145*100,"-")) -> 12.5 | G147: =IF(OR('Tabel 1 F'!E145<5,'Tabel 2 F'!G147<0.5),"-",IFERROR('Tabel 2 F'!G147/'Tabel 1 F'!E145*100,"-")) -> 12.49766107 | I147: =IF(OR('Tabel 1 F'!G145<5,'Tabel 2 F'!I147<0.5),"-",IFERROR('Tabel 2 F'!I147/'Tabel 1 F'!G145*100,"-")) -> 5.882352941 | J147: =IF(OR('Tabel 1 F'!G145<5,'Tabel 2 F'!J147<0.5),"-",IFERROR('Tabel 2 F'!J147/'Tabel 1 F'!G145*100,"-")) -> 5.88125227
A148: Komm. og Sprog | C148: =IF(OR('Tabel 1 F'!C146<5,'Tabel 2 F'!C148<0.5),"-",IFERROR('Tabel 2 F'!C148/'Tabel 1 F'!C146*100,"-")) -> - | D148: =IF(OR('Tabel 1 F'!C146<5,'Tabel 2 F'!D148<0.5),"-",IFERROR('Tabel 2 F'!D148/'Tabel 1 F'!C146*100,"-")) -> - | F148: =IF(OR('Tabel 1 F'!E146<5,'Tabel 2 F'!F148<0.5),"-",IFERROR('Tabel 2 F'!F148/'Tabel 1 F'!E146*100,"-")) -> - | G148: =IF(OR('Tabel 1 F'!E146<5,'Tabel 2 F'!G148<0.5),"-",IFERROR('Tabel 2 F'!G148/'Tabel 1 F'!E146*100,"-")) -> - | I148: =IF(OR('Tabel 1 F'!G146<5,'Tabel 2 F'!I148<0.5),"-",IFERROR('Tabel 2 F'!I148/'Tabel 1 F'!G146*100,"-")) -> - | J148: =IF(OR('Tabel 1 F'!G146<5,'Tabel 2 F'!J148<0.5),"-",IFERROR('Tabel 2 F'!J148/'Tabel 1 F'!G146*100,"-")) -> -
A149: Bygningskonst. | C149: =IF(OR('Tabel 1 F'!C147<5,'Tabel 2 F'!C149<0.5),"-",IFERROR('Tabel 2 F'!C149/'Tabel 1 F'!C147*100,"-")) -> 1.851851852 | D149: =IF(OR('Tabel 1 F'!C147<5,'Tabel 2 F'!D149<0.5),"-",IFERROR('Tabel 2 F'!D149/'Tabel 1 F'!C147*100,"-")) -> 1.505344301 | F149: =IF(OR('Tabel 1 F'!E147<5,'Tabel 2 F'!F149<0.5),"-",IFERROR('Tabel 2 F'!F149/'Tabel 1 F'!E147*100,"-")) -> - | G149: =IF(OR('Tabel 1 F'!E147<5,'Tabel 2 F'!G149<0.5),"-",IFERROR('Tabel 2 F'!G149/'Tabel 1 F'!E147*100,"-")) -> - | I149: =IF(OR('Tabel 1 F'!G147<5,'Tabel 2 F'!I149<0.5),"-",IFERROR('Tabel 2 F'!I149/'Tabel 1 F'!G147*100,"-")) -> 1.639344262 | J149: =IF(OR('Tabel 1 F'!G147<5,'Tabel 2 F'!J149<0.5),"-",IFERROR('Tabel 2 F'!J149/'Tabel 1 F'!G147*100,"-")) -> 1.332599873
A150: Cand. IT. | C150: =IF(OR('Tabel 1 F'!C148<5,'Tabel 2 F'!C150<0.5),"-",IFERROR('Tabel 2 F'!C150/'Tabel 1 F'!C148*100,"-")) -> - | D150: =IF(OR('Tabel 1 F'!C148<5,'Tabel 2 F'!D150<0.5),"-",IFERROR('Tabel 2 F'!D150/'Tabel 1 F'!C148*100,"-")) -> - | F150: =IF(OR('Tabel 1 F'!E148<5,'Tabel 2 F'!F150<0.5),"-",IFERROR('Tabel 2 F'!F150/'Tabel 1 F'!E148*100,"-")) -> - | G150: =IF(OR('Tabel 1 F'!E148<5,'Tabel 2 F'!G150<0.5),"-",IFERROR('Tabel 2 F'!G150/'Tabel 1 F'!E148*100,"-")) -> - | I150: =IF(OR('Tabel 1 F'!G148<5,'Tabel 2 F'!I150<0.5),"-",IFERROR('Tabel 2 F'!I150/'Tabel 1 F'!G148*100,"-")) -> - | J150: =IF(OR('Tabel 1 F'!G148<5,'Tabel 2 F'!J150<0.5),"-",IFERROR('Tabel 2 F'!J150/'Tabel 1 F'!G148*100,"-")) -> -
A151: Bac. Samf. | C151: =IF(OR('Tabel 1 F'!C149<5,'Tabel 2 F'!C151<0.5),"-",IFERROR('Tabel 2 F'!C151/'Tabel 1 F'!C149*100,"-")) -> - | D151: =IF(OR('Tabel 1 F'!C149<5,'Tabel 2 F'!D151<0.5),"-",IFERROR('Tabel 2 F'!D151/'Tabel 1 F'!C149*100,"-")) -> - | F151: =IF(OR('Tabel 1 F'!E149<5,'Tabel 2 F'!F151<0.5),"-",IFERROR('Tabel 2 F'!F151/'Tabel 1 F'!E149*100,"-")) -> - | G151: =IF(OR('Tabel 1 F'!E149<5,'Tabel 2 F'!G151<0.5),"-",IFERROR('Tabel 2 F'!G151/'Tabel 1 F'!E149*100,"-")) -> - | I151: =IF(OR('Tabel 1 F'!G149<5,'Tabel 2 F'!I151<0.5),"-",IFERROR('Tabel 2 F'!I151/'Tabel 1 F'!G149*100,"-")) -> - | J151: =IF(OR('Tabel 1 F'!G149<5,'Tabel 2 F'!J151<0.5),"-",IFERROR('Tabel 2 F'!J151/'Tabel 1 F'!G149*100,"-")) -> -
A152: Bac. Hum. | C152: =IF(OR('Tabel 1 F'!C150<5,'Tabel 2 F'!C152<0.5),"-",IFERROR('Tabel 2 F'!C152/'Tabel 1 F'!C150*100,"-")) -> - | D152: =IF(OR('Tabel 1 F'!C150<5,'Tabel 2 F'!D152<0.5),"-",IFERROR('Tabel 2 F'!D152/'Tabel 1 F'!C150*100,"-")) -> - | F152: =IF(OR('Tabel 1 F'!E150<5,'Tabel 2 F'!F152<0.5),"-",IFERROR('Tabel 2 F'!F152/'Tabel 1 F'!E150*100,"-")) -> 9.090909091 | G152: =IF(OR('Tabel 1 F'!E150<5,'Tabel 2 F'!G152<0.5),"-",IFERROR('Tabel 2 F'!G152/'Tabel 1 F'!E150*100,"-")) -> 9.089208054 | I152: =IF(OR('Tabel 1 F'!G150<5,'Tabel 2 F'!I152<0.5),"-",IFERROR('Tabel 2 F'!I152/'Tabel 1 F'!G150*100,"-")) -> 6.666666667 | J152: =IF(OR('Tabel 1 F'!G150<5,'Tabel 2 F'!J152<0.5),"-",IFERROR('Tabel 2 F'!J152/'Tabel 1 F'!G150*100,"-")) -> 6.665419239
A153: Bac. Nat. | C153: =IF(OR('Tabel 1 F'!C151<5,'Tabel 2 F'!C153<0.5),"-",IFERROR('Tabel 2 F'!C153/'Tabel 1 F'!C151*100,"-")) -> 20 | D153: =IF(OR('Tabel 1 F'!C151<5,'Tabel 2 F'!D153<0.5),"-",IFERROR('Tabel 2 F'!D153/'Tabel 1 F'!C151*100,"-")) -> 19.99625772 | F153: =IF(OR('Tabel 1 F'!E151<5,'Tabel 2 F'!F153<0.5),"-",IFERROR('Tabel 2 F'!F153/'Tabel 1 F'!E151*100,"-")) -> - | G153: =IF(OR('Tabel 1 F'!E151<5,'Tabel 2 F'!G153<0.5),"-",IFERROR('Tabel 2 F'!G153/'Tabel 1 F'!E151*100,"-")) -> - | I153: =IF(OR('Tabel 1 F'!G151<5,'Tabel 2 F'!I153<0.5),"-",IFERROR('Tabel 2 F'!I153/'Tabel 1 F'!G151*100,"-")) -> 14.28571429 | J153: =IF(OR('Tabel 1 F'!G151<5,'Tabel 2 F'!J153<0.5),"-",IFERROR('Tabel 2 F'!J153/'Tabel 1 F'!G151*100,"-")) -> 14.28304123
A154: Andre | C154: =IF(OR('Tabel 1 F'!C152<5,'Tabel 2 F'!C154<0.5),"-",IFERROR('Tabel 2 F'!C154/'Tabel 1 F'!C152*100,"-")) -> 1.724137931 | D154: =IF(OR('Tabel 1 F'!C152<5,'Tabel 2 F'!D154<0.5),"-",IFERROR('Tabel 2 F'!D154/'Tabel 1 F'!C152*100,"-")) -> 1.723815321 | F154: =IF(OR('Tabel 1 F'!E152<5,'Tabel 2 F'!F154<0.5),"-",IFERROR('Tabel 2 F'!F154/'Tabel 1 F'!E152*100,"-")) -> - | G154: =IF(OR('Tabel 1 F'!E152<5,'Tabel 2 F'!G154<0.5),"-",IFERROR('Tabel 2 F'!G154/'Tabel 1 F'!E152*100,"-")) -> - | I154: =IF(OR('Tabel 1 F'!G152<5,'Tabel 2 F'!I154<0.5),"-",IFERROR('Tabel 2 F'!I154/'Tabel 1 F'!G152*100,"-")) -> 1.19047619 | J154: =IF(OR('Tabel 1 F'!G152<5,'Tabel 2 F'!J154<0.5),"-",IFERROR('Tabel 2 F'!J154/'Tabel 1 F'!G152*100,"-")) -> 1.190253436
A156: Total | C156: =IF(OR('Tabel 1 F'!C154<5,'Tabel 2 F'!C156<0.5),"-",IFERROR('Tabel 2 F'!C156/'Tabel 1 F'!C154*100,"-")) -> 1.248049922 | D156: =IF(OR('Tabel 1 F'!C154<5,'Tabel 2 F'!D156<0.5),"-",IFERROR('Tabel 2 F'!D156/'Tabel 1 F'!C154*100,"-")) -> 1.186544562 | F156: =IF(OR('Tabel 1 F'!E154<5,'Tabel 2 F'!F156<0.5),"-",IFERROR('Tabel 2 F'!F156/'Tabel 1 F'!E154*100,"-")) -> 3.141361257 | G156: =IF(OR('Tabel 1 F'!E154<5,'Tabel 2 F'!G156<0.5),"-",IFERROR('Tabel 2 F'!G156/'Tabel 1 F'!E154*100,"-")) -> 2.858306314 | I156: =IF(OR('Tabel 1 F'!G154<5,'Tabel 2 F'!I156<0.5),"-",IFERROR('Tabel 2 F'!I156/'Tabel 1 F'!G154*100,"-")) -> 2.141680395 | J156: =IF(OR('Tabel 1 F'!G154<5,'Tabel 2 F'!J156<0.5),"-",IFERROR('Tabel 2 F'!J156/'Tabel 1 F'!G154*100,"-")) -> 1.975605092
A158: Ingeniører i alt | C158: =IF(OR('Tabel 1 F'!C156<5,'Tabel 2 F'!C158<0.5),"-",IFERROR('Tabel 2 F'!C158/'Tabel 1 F'!C156*100,"-")) -> 0.7490636704 | D158: =IF(OR('Tabel 1 F'!C156<5,'Tabel 2 F'!D158<0.5),"-",IFERROR('Tabel 2 F'!D158/'Tabel 1 F'!C156*100,"-")) -> 0.7489235101 | F158: =IF(OR('Tabel 1 F'!E156<5,'Tabel 2 F'!F158<0.5),"-",IFERROR('Tabel 2 F'!F158/'Tabel 1 F'!E156*100,"-")) -> 4.838709677 | G158: =IF(OR('Tabel 1 F'!E156<5,'Tabel 2 F'!G158<0.5),"-",IFERROR('Tabel 2 F'!G158/'Tabel 1 F'!E156*100,"-")) -> 4.7975647 | I158: =IF(OR('Tabel 1 F'!G156<5,'Tabel 2 F'!I158<0.5),"-",IFERROR('Tabel 2 F'!I158/'Tabel 1 F'!G156*100,"-")) -> 1.519756839 | J158: =IF(OR('Tabel 1 F'!G156<5,'Tabel 2 F'!J158<0.5),"-",IFERROR('Tabel 2 F'!J158/'Tabel 1 F'!G156*100,"-")) -> 1.511889327
A159: Magistre i alt | C159: =IF(OR('Tabel 1 F'!C157<5,'Tabel 2 F'!C159<0.5),"-",IFERROR('Tabel 2 F'!C159/'Tabel 1 F'!C157*100,"-")) -> 2.666666667 | D159: =IF(OR('Tabel 1 F'!C157<5,'Tabel 2 F'!D159<0.5),"-",IFERROR('Tabel 2 F'!D159/'Tabel 1 F'!C157*100,"-")) -> 2.391733716 | F159: =IF(OR('Tabel 1 F'!E157<5,'Tabel 2 F'!F159<0.5),"-",IFERROR('Tabel 2 F'!F159/'Tabel 1 F'!E157*100,"-")) -> 5.063291139 | G159: =IF(OR('Tabel 1 F'!E157<5,'Tabel 2 F'!G159<0.5),"-",IFERROR('Tabel 2 F'!G159/'Tabel 1 F'!E157*100,"-")) -> 4.53337144 | I159: =IF(OR('Tabel 1 F'!G157<5,'Tabel 2 F'!I159<0.5),"-",IFERROR('Tabel 2 F'!I159/'Tabel 1 F'!G157*100,"-")) -> 4.291845494 | J159: =IF(OR('Tabel 1 F'!G157<5,'Tabel 2 F'!J159<0.5),"-",IFERROR('Tabel 2 F'!J159/'Tabel 1 F'!G157*100,"-")) -> 3.844003074
A160: DJØF'ere i alt | C160: =IF(OR('Tabel 1 F'!C158<5,'Tabel 2 F'!C160<0.5),"-",IFERROR('Tabel 2 F'!C160/'Tabel 1 F'!C158*100,"-")) -> 1.149425287 | D160: =IF(OR('Tabel 1 F'!C158<5,'Tabel 2 F'!D160<0.5),"-",IFERROR('Tabel 2 F'!D160/'Tabel 1 F'!C158*100,"-")) -> 1.149210214 | F160: =IF(OR('Tabel 1 F'!E158<5,'Tabel 2 F'!F160<0.5),"-",IFERROR('Tabel 2 F'!F160/'Tabel 1 F'!E158*100,"-")) -> 3.278688525 | G160: =IF(OR('Tabel 1 F'!E158<5,'Tabel 2 F'!G160<0.5),"-",IFERROR('Tabel 2 F'!G160/'Tabel 1 F'!E158*100,"-")) -> 3.20241142 | I160: =IF(OR('Tabel 1 F'!G158<5,'Tabel 2 F'!I160<0.5),"-",IFERROR('Tabel 2 F'!I160/'Tabel 1 F'!G158*100,"-")) -> 2.392344498 | J160: =IF(OR('Tabel 1 F'!G158<5,'Tabel 2 F'!J160<0.5),"-",IFERROR('Tabel 2 F'!J160/'Tabel 1 F'!G158*100,"-")) -> 2.347729578
A165: Faaborg-Midtfyn
C167: Mænd | F167: Kvinder | I167: I alt
C168: Ledigheds- berørte | D168: Gns. brutto- ledighed | F168: Ledigheds- berørte | G168: Gns. brutto- ledighed | I168: Ledigheds- berørte | J168: Gns. brutto- ledighed
A171: Civ. ing. | C171: =IF(OR('Tabel 1 F'!C169<5,'Tabel 2 F'!C171<0.5),"-",IFERROR('Tabel 2 F'!C171/'Tabel 1 F'!C169*100,"-")) -> 2.325581395 | D171: =IF(OR('Tabel 1 F'!C169<5,'Tabel 2 F'!D171<0.5),"-",IFERROR('Tabel 2 F'!D171/'Tabel 1 F'!C169*100,"-")) -> 1.435991755 | F171: =IF(OR('Tabel 1 F'!E169<5,'Tabel 2 F'!F171<0.5),"-",IFERROR('Tabel 2 F'!F171/'Tabel 1 F'!E169*100,"-")) -> 5.555555556 | G171: =IF(OR('Tabel 1 F'!E169<5,'Tabel 2 F'!G171<0.5),"-",IFERROR('Tabel 2 F'!G171/'Tabel 1 F'!E169*100,"-")) -> 5.554516033 | I171: =IF(OR('Tabel 1 F'!G169<5,'Tabel 2 F'!I171<0.5),"-",IFERROR('Tabel 2 F'!I171/'Tabel 1 F'!G169*100,"-")) -> 2.884615385 | J171: =IF(OR('Tabel 1 F'!G169<5,'Tabel 2 F'!J171<0.5),"-",IFERROR('Tabel 2 F'!J171/'Tabel 1 F'!G169*100,"-")) -> 2.148813265
A172: Diplom ing. | C172: =IF(OR('Tabel 1 F'!C170<5,'Tabel 2 F'!C172<0.5),"-",IFERROR('Tabel 2 F'!C172/'Tabel 1 F'!C170*100,"-")) -> 2.092050209 | D172: =IF(OR('Tabel 1 F'!C170<5,'Tabel 2 F'!D172<0.5),"-",IFERROR('Tabel 2 F'!D172/'Tabel 1 F'!C170*100,"-")) -> 1.409488328 | F172: =IF(OR('Tabel 1 F'!E170<5,'Tabel 2 F'!F172<0.5),"-",IFERROR('Tabel 2 F'!F172/'Tabel 1 F'!E170*100,"-")) -> 4.545454545 | G172: =IF(OR('Tabel 1 F'!E170<5,'Tabel 2 F'!G172<0.5),"-",IFERROR('Tabel 2 F'!G172/'Tabel 1 F'!E170*100,"-")) -> 4.544604027 | I172: =IF(OR('Tabel 1 F'!G170<5,'Tabel 2 F'!I172<0.5),"-",IFERROR('Tabel 2 F'!I172/'Tabel 1 F'!G170*100,"-")) -> 2.473498233 | J172: =IF(OR('Tabel 1 F'!G170<5,'Tabel 2 F'!J172<0.5),"-",IFERROR('Tabel 2 F'!J172/'Tabel 1 F'!G170*100,"-")) -> 1.896926811
A173: Cand. Scient. Tek. | C173: =IF(OR('Tabel 1 F'!C171<5,'Tabel 2 F'!C173<0.5),"-",IFERROR('Tabel 2 F'!C173/'Tabel 1 F'!C171*100,"-")) -> - | D173: =IF(OR('Tabel 1 F'!C171<5,'Tabel 2 F'!D173<0.5),"-",IFERROR('Tabel 2 F'!D173/'Tabel 1 F'!C171*100,"-")) -> - | F173: =IF(OR('Tabel 1 F'!E171<5,'Tabel 2 F'!F173<0.5),"-",IFERROR('Tabel 2 F'!F173/'Tabel 1 F'!E171*100,"-")) -> 8.888888889 | G173: =IF(OR('Tabel 1 F'!E171<5,'Tabel 2 F'!G173<0.5),"-",IFERROR('Tabel 2 F'!G173/'Tabel 1 F'!E171*100,"-")) -> 6.957871612 | I173: =IF(OR('Tabel 1 F'!G171<5,'Tabel 2 F'!I173<0.5),"-",IFERROR('Tabel 2 F'!I173/'Tabel 1 F'!G171*100,"-")) -> 5 | J173: =IF(OR('Tabel 1 F'!G171<5,'Tabel 2 F'!J173<0.5),"-",IFERROR('Tabel 2 F'!J173/'Tabel 1 F'!G171*100,"-")) -> 3.913802782
A174: MA. Hum. | C174: =IF(OR('Tabel 1 F'!C172<5,'Tabel 2 F'!C174<0.5),"-",IFERROR('Tabel 2 F'!C174/'Tabel 1 F'!C172*100,"-")) -> 1.449275362 | D174: =IF(OR('Tabel 1 F'!C172<5,'Tabel 2 F'!D174<0.5),"-",IFERROR('Tabel 2 F'!D174/'Tabel 1 F'!C172*100,"-")) -> 1.315222137 | F174: =IF(OR('Tabel 1 F'!E172<5,'Tabel 2 F'!F174<0.5),"-",IFERROR('Tabel 2 F'!F174/'Tabel 1 F'!E172*100,"-")) -> 7.142857143 | G174: =IF(OR('Tabel 1 F'!E172<5,'Tabel 2 F'!G174<0.5),"-",IFERROR('Tabel 2 F'!G174/'Tabel 1 F'!E172*100,"-")) -> 5.545704841 | I174: =IF(OR('Tabel 1 F'!G172<5,'Tabel 2 F'!I174<0.5),"-",IFERROR('Tabel 2 F'!I174/'Tabel 1 F'!G172*100,"-")) -> 5.263157895 | J174: =IF(OR('Tabel 1 F'!G172<5,'Tabel 2 F'!J174<0.5),"-",IFERROR('Tabel 2 F'!J174/'Tabel 1 F'!G172*100,"-")) -> 4.149038302
A175: MA. Nat. | C175: =IF(OR('Tabel 1 F'!C173<5,'Tabel 2 F'!C175<0.5),"-",IFERROR('Tabel 2 F'!C175/'Tabel 1 F'!C173*100,"-")) -> 6.060606061 | D175: =IF(OR('Tabel 1 F'!C173<5,'Tabel 2 F'!D175<0.5),"-",IFERROR('Tabel 2 F'!D175/'Tabel 1 F'!C173*100,"-")) -> 4.381115465 | F175: =IF(OR('Tabel 1 F'!E173<5,'Tabel 2 F'!F175<0.5),"-",IFERROR('Tabel 2 F'!F175/'Tabel 1 F'!E173*100,"-")) -> - | G175: =IF(OR('Tabel 1 F'!E173<5,'Tabel 2 F'!G175<0.5),"-",IFERROR('Tabel 2 F'!G175/'Tabel 1 F'!E173*100,"-")) -> - | I175: =IF(OR('Tabel 1 F'!G173<5,'Tabel 2 F'!I175<0.5),"-",IFERROR('Tabel 2 F'!I175/'Tabel 1 F'!G173*100,"-")) -> 2.564102564 | J175: =IF(OR('Tabel 1 F'!G173<5,'Tabel 2 F'!J175<0.5),"-",IFERROR('Tabel 2 F'!J175/'Tabel 1 F'!G173*100,"-")) -> 1.85354885
A176: MA. Ph.d. | C176: =IF(OR('Tabel 1 F'!C174<5,'Tabel 2 F'!C176<0.5),"-",IFERROR('Tabel 2 F'!C176/'Tabel 1 F'!C174*100,"-")) -> 16.66666667 | D176: =IF(OR('Tabel 1 F'!C174<5,'Tabel 2 F'!D176<0.5),"-",IFERROR('Tabel 2 F'!D176/'Tabel 1 F'!C174*100,"-")) -> 16.6635481 | F176: =IF(OR('Tabel 1 F'!E174<5,'Tabel 2 F'!F176<0.5),"-",IFERROR('Tabel 2 F'!F176/'Tabel 1 F'!E174*100,"-")) -> - | G176: =IF(OR('Tabel 1 F'!E174<5,'Tabel 2 F'!G176<0.5),"-",IFERROR('Tabel 2 F'!G176/'Tabel 1 F'!E174*100,"-")) -> - | I176: =IF(OR('Tabel 1 F'!G174<5,'Tabel 2 F'!I176<0.5),"-",IFERROR('Tabel 2 F'!I176/'Tabel 1 F'!G174*100,"-")) -> 10 | J176: =IF(OR('Tabel 1 F'!G174<5,'Tabel 2 F'!J176<0.5),"-",IFERROR('Tabel 2 F'!J176/'Tabel 1 F'!G174*100,"-")) -> 9.998128859
A177: MA. Samf. | C177: =IF(OR('Tabel 1 F'!C175<5,'Tabel 2 F'!C177<0.5),"-",IFERROR('Tabel 2 F'!C177/'Tabel 1 F'!C175*100,"-")) -> - | D177: =IF(OR('Tabel 1 F'!C175<5,'Tabel 2 F'!D177<0.5),"-",IFERROR('Tabel 2 F'!D177/'Tabel 1 F'!C175*100,"-")) -> - | F177: =IF(OR('Tabel 1 F'!E175<5,'Tabel 2 F'!F177<0.5),"-",IFERROR('Tabel 2 F'!F177/'Tabel 1 F'!E175*100,"-")) -> - | G177: =IF(OR('Tabel 1 F'!E175<5,'Tabel 2 F'!G177<0.5),"-",IFERROR('Tabel 2 F'!G177/'Tabel 1 F'!E175*100,"-")) -> - | I177: =IF(OR('Tabel 1 F'!G175<5,'Tabel 2 F'!I177<0.5),"-",IFERROR('Tabel 2 F'!I177/'Tabel 1 F'!G175*100,"-")) -> 14.28571429 | J177: =IF(OR('Tabel 1 F'!G175<5,'Tabel 2 F'!J177<0.5),"-",IFERROR('Tabel 2 F'!J177/'Tabel 1 F'!G175*100,"-")) -> 14.28304123
A178: Øvrige Mag. | C178: =IF(OR('Tabel 1 F'!C176<5,'Tabel 2 F'!C178<0.5),"-",IFERROR('Tabel 2 F'!C178/'Tabel 1 F'!C176*100,"-")) -> - | D178: =IF(OR('Tabel 1 F'!C176<5,'Tabel 2 F'!D178<0.5),"-",IFERROR('Tabel 2 F'!D178/'Tabel 1 F'!C176*100,"-")) -> - | F178: =IF(OR('Tabel 1 F'!E176<5,'Tabel 2 F'!F178<0.5),"-",IFERROR('Tabel 2 F'!F178/'Tabel 1 F'!E176*100,"-")) -> - | G178: =IF(OR('Tabel 1 F'!E176<5,'Tabel 2 F'!G178<0.5),"-",IFERROR('Tabel 2 F'!G178/'Tabel 1 F'!E176*100,"-")) -> - | I178: =IF(OR('Tabel 1 F'!G176<5,'Tabel 2 F'!I178<0.5),"-",IFERROR('Tabel 2 F'!I178/'Tabel 1 F'!G176*100,"-")) -> - | J178: =IF(OR('Tabel 1 F'!G176<5,'Tabel 2 F'!J178<0.5),"-",IFERROR('Tabel 2 F'!J178/'Tabel 1 F'!G176*100,"-")) -> -
A179: Agronom | C179: =IF(OR('Tabel 1 F'!C177<5,'Tabel 2 F'!C179<0.5),"-",IFERROR('Tabel 2 F'!C179/'Tabel 1 F'!C177*100,"-")) -> - | D179: =IF(OR('Tabel 1 F'!C177<5,'Tabel 2 F'!D179<0.5),"-",IFERROR('Tabel 2 F'!D179/'Tabel 1 F'!C177*100,"-")) -> - | F179: =IF(OR('Tabel 1 F'!E177<5,'Tabel 2 F'!F179<0.5),"-",IFERROR('Tabel 2 F'!F179/'Tabel 1 F'!E177*100,"-")) -> 13.33333333 | G179: =IF(OR('Tabel 1 F'!E177<5,'Tabel 2 F'!G179<0.5),"-",IFERROR('Tabel 2 F'!G179/'Tabel 1 F'!E177*100,"-")) -> 7.484563089 | I179: =IF(OR('Tabel 1 F'!G177<5,'Tabel 2 F'!I179<0.5),"-",IFERROR('Tabel 2 F'!I179/'Tabel 1 F'!G177*100,"-")) -> 8 | J179: =IF(OR('Tabel 1 F'!G177<5,'Tabel 2 F'!J179<0.5),"-",IFERROR('Tabel 2 F'!J179/'Tabel 1 F'!G177*100,"-")) -> 4.490737853
A180: Landsk. Arkt. | C180: =IF(OR('Tabel 1 F'!C178<5,'Tabel 2 F'!C180<0.5),"-",IFERROR('Tabel 2 F'!C180/'Tabel 1 F'!C178*100,"-")) -> - | D180: =IF(OR('Tabel 1 F'!C178<5,'Tabel 2 F'!D180<0.5),"-",IFERROR('Tabel 2 F'!D180/'Tabel 1 F'!C178*100,"-")) -> - | F180: =IF(OR('Tabel 1 F'!E178<5,'Tabel 2 F'!F180<0.5),"-",IFERROR('Tabel 2 F'!F180/'Tabel 1 F'!E178*100,"-")) -> - | G180: =IF(OR('Tabel 1 F'!E178<5,'Tabel 2 F'!G180<0.5),"-",IFERROR('Tabel 2 F'!G180/'Tabel 1 F'!E178*100,"-")) -> - | I180: =IF(OR('Tabel 1 F'!G178<5,'Tabel 2 F'!I180<0.5),"-",IFERROR('Tabel 2 F'!I180/'Tabel 1 F'!G178*100,"-")) -> - | J180: =IF(OR('Tabel 1 F'!G178<5,'Tabel 2 F'!J180<0.5),"-",IFERROR('Tabel 2 F'!J180/'Tabel 1 F'!G178*100,"-")) -> -
A181: Hortonom | C181: =IF(OR('Tabel 1 F'!C179<5,'Tabel 2 F'!C181<0.5),"-",IFERROR('Tabel 2 F'!C181/'Tabel 1 F'!C179*100,"-")) -> - | D181: =IF(OR('Tabel 1 F'!C179<5,'Tabel 2 F'!D181<0.5),"-",IFERROR('Tabel 2 F'!D181/'Tabel 1 F'!C179*100,"-")) -> - | F181: =IF(OR('Tabel 1 F'!E179<5,'Tabel 2 F'!F181<0.5),"-",IFERROR('Tabel 2 F'!F181/'Tabel 1 F'!E179*100,"-")) -> - | G181: =IF(OR('Tabel 1 F'!E179<5,'Tabel 2 F'!G181<0.5),"-",IFERROR('Tabel 2 F'!G181/'Tabel 1 F'!E179*100,"-")) -> - | I181: =IF(OR('Tabel 1 F'!G179<5,'Tabel 2 F'!I181<0.5),"-",IFERROR('Tabel 2 F'!I181/'Tabel 1 F'!G179*100,"-")) -> - | J181: =IF(OR('Tabel 1 F'!G179<5,'Tabel 2 F'!J181<0.5),"-",IFERROR('Tabel 2 F'!J181/'Tabel 1 F'!G179*100,"-")) -> -
A182: Forstkand. | C182: =IF(OR('Tabel 1 F'!C180<5,'Tabel 2 F'!C182<0.5),"-",IFERROR('Tabel 2 F'!C182/'Tabel 1 F'!C180*100,"-")) -> - | D182: =IF(OR('Tabel 1 F'!C180<5,'Tabel 2 F'!D182<0.5),"-",IFERROR('Tabel 2 F'!D182/'Tabel 1 F'!C180*100,"-")) -> - | F182: =IF(OR('Tabel 1 F'!E180<5,'Tabel 2 F'!F182<0.5),"-",IFERROR('Tabel 2 F'!F182/'Tabel 1 F'!E180*100,"-")) -> - | G182: =IF(OR('Tabel 1 F'!E180<5,'Tabel 2 F'!G182<0.5),"-",IFERROR('Tabel 2 F'!G182/'Tabel 1 F'!E180*100,"-")) -> - | I182: =IF(OR('Tabel 1 F'!G180<5,'Tabel 2 F'!I182<0.5),"-",IFERROR('Tabel 2 F'!I182/'Tabel 1 F'!G180*100,"-")) -> - | J182: =IF(OR('Tabel 1 F'!G180<5,'Tabel 2 F'!J182<0.5),"-",IFERROR('Tabel 2 F'!J182/'Tabel 1 F'!G180*100,"-")) -> -
A183: Jordbrugsakad. | C183: =IF(OR('Tabel 1 F'!C181<5,'Tabel 2 F'!C183<0.5),"-",IFERROR('Tabel 2 F'!C183/'Tabel 1 F'!C181*100,"-")) -> - | D183: =IF(OR('Tabel 1 F'!C181<5,'Tabel 2 F'!D183<0.5),"-",IFERROR('Tabel 2 F'!D183/'Tabel 1 F'!C181*100,"-")) -> - | F183: =IF(OR('Tabel 1 F'!E181<5,'Tabel 2 F'!F183<0.5),"-",IFERROR('Tabel 2 F'!F183/'Tabel 1 F'!E181*100,"-")) -> 8.333333333 | G183: =IF(OR('Tabel 1 F'!E181<5,'Tabel 2 F'!G183<0.5),"-",IFERROR('Tabel 2 F'!G183/'Tabel 1 F'!E181*100,"-")) -> 4.67785193 | I183: =IF(OR('Tabel 1 F'!G181<5,'Tabel 2 F'!I183<0.5),"-",IFERROR('Tabel 2 F'!I183/'Tabel 1 F'!G181*100,"-")) -> 4.761904762 | J183: =IF(OR('Tabel 1 F'!G181<5,'Tabel 2 F'!J183<0.5),"-",IFERROR('Tabel 2 F'!J183/'Tabel 1 F'!G181*100,"-")) -> 2.673058246
A184: Mejeriing. | C184: =IF(OR('Tabel 1 F'!C182<5,'Tabel 2 F'!C184<0.5),"-",IFERROR('Tabel 2 F'!C184/'Tabel 1 F'!C182*100,"-")) -> - | D184: =IF(OR('Tabel 1 F'!C182<5,'Tabel 2 F'!D184<0.5),"-",IFERROR('Tabel 2 F'!D184/'Tabel 1 F'!C182*100,"-")) -> - | F184: =IF(OR('Tabel 1 F'!E182<5,'Tabel 2 F'!F184<0.5),"-",IFERROR('Tabel 2 F'!F184/'Tabel 1 F'!E182*100,"-")) -> - | G184: =IF(OR('Tabel 1 F'!E182<5,'Tabel 2 F'!G184<0.5),"-",IFERROR('Tabel 2 F'!G184/'Tabel 1 F'!E182*100,"-")) -> - | I184: =IF(OR('Tabel 1 F'!G182<5,'Tabel 2 F'!I184<0.5),"-",IFERROR('Tabel 2 F'!I184/'Tabel 1 F'!G182*100,"-")) -> - | J184: =IF(OR('Tabel 1 F'!G182<5,'Tabel 2 F'!J184<0.5),"-",IFERROR('Tabel 2 F'!J184/'Tabel 1 F'!G182*100,"-")) -> -
A185: Levn.m.kand. | C185: =IF(OR('Tabel 1 F'!C183<5,'Tabel 2 F'!C185<0.5),"-",IFERROR('Tabel 2 F'!C185/'Tabel 1 F'!C183*100,"-")) -> - | D185: =IF(OR('Tabel 1 F'!C183<5,'Tabel 2 F'!D185<0.5),"-",IFERROR('Tabel 2 F'!D185/'Tabel 1 F'!C183*100,"-")) -> - | F185: =IF(OR('Tabel 1 F'!E183<5,'Tabel 2 F'!F185<0.5),"-",IFERROR('Tabel 2 F'!F185/'Tabel 1 F'!E183*100,"-")) -> - | G185: =IF(OR('Tabel 1 F'!E183<5,'Tabel 2 F'!G185<0.5),"-",IFERROR('Tabel 2 F'!G185/'Tabel 1 F'!E183*100,"-")) -> - | I185: =IF(OR('Tabel 1 F'!G183<5,'Tabel 2 F'!I185<0.5),"-",IFERROR('Tabel 2 F'!I185/'Tabel 1 F'!G183*100,"-")) -> - | J185: =IF(OR('Tabel 1 F'!G183<5,'Tabel 2 F'!J185<0.5),"-",IFERROR('Tabel 2 F'!J185/'Tabel 1 F'!G183*100,"-")) -> -
A186: Dyrlæge | C186: =IF(OR('Tabel 1 F'!C184<5,'Tabel 2 F'!C186<0.5),"-",IFERROR('Tabel 2 F'!C186/'Tabel 1 F'!C184*100,"-")) -> - | D186: =IF(OR('Tabel 1 F'!C184<5,'Tabel 2 F'!D186<0.5),"-",IFERROR('Tabel 2 F'!D186/'Tabel 1 F'!C184*100,"-")) -> - | F186: =IF(OR('Tabel 1 F'!E184<5,'Tabel 2 F'!F186<0.5),"-",IFERROR('Tabel 2 F'!F186/'Tabel 1 F'!E184*100,"-")) -> - | G186: =IF(OR('Tabel 1 F'!E184<5,'Tabel 2 F'!G186<0.5),"-",IFERROR('Tabel 2 F'!G186/'Tabel 1 F'!E184*100,"-")) -> - | I186: =IF(OR('Tabel 1 F'!G184<5,'Tabel 2 F'!I186<0.5),"-",IFERROR('Tabel 2 F'!I186/'Tabel 1 F'!G184*100,"-")) -> - | J186: =IF(OR('Tabel 1 F'!G184<5,'Tabel 2 F'!J186<0.5),"-",IFERROR('Tabel 2 F'!J186/'Tabel 1 F'!G184*100,"-")) -> -
A187: Farmaceut | C187: =IF(OR('Tabel 1 F'!C185<5,'Tabel 2 F'!C187<0.5),"-",IFERROR('Tabel 2 F'!C187/'Tabel 1 F'!C185*100,"-")) -> - | D187: =IF(OR('Tabel 1 F'!C185<5,'Tabel 2 F'!D187<0.5),"-",IFERROR('Tabel 2 F'!D187/'Tabel 1 F'!C185*100,"-")) -> - | F187: =IF(OR('Tabel 1 F'!E185<5,'Tabel 2 F'!F187<0.5),"-",IFERROR('Tabel 2 F'!F187/'Tabel 1 F'!E185*100,"-")) -> - | G187: =IF(OR('Tabel 1 F'!E185<5,'Tabel 2 F'!G187<0.5),"-",IFERROR('Tabel 2 F'!G187/'Tabel 1 F'!E185*100,"-")) -> - | I187: =IF(OR('Tabel 1 F'!G185<5,'Tabel 2 F'!I187<0.5),"-",IFERROR('Tabel 2 F'!I187/'Tabel 1 F'!G185*100,"-")) -> - | J187: =IF(OR('Tabel 1 F'!G185<5,'Tabel 2 F'!J187<0.5),"-",IFERROR('Tabel 2 F'!J187/'Tabel 1 F'!G185*100,"-")) -> -
A188: Læge | C188: =IF(OR('Tabel 1 F'!C186<5,'Tabel 2 F'!C188<0.5),"-",IFERROR('Tabel 2 F'!C188/'Tabel 1 F'!C186*100,"-")) -> - | D188: =IF(OR('Tabel 1 F'!C186<5,'Tabel 2 F'!D188<0.5),"-",IFERROR('Tabel 2 F'!D188/'Tabel 1 F'!C186*100,"-")) -> - | F188: =IF(OR('Tabel 1 F'!E186<5,'Tabel 2 F'!F188<0.5),"-",IFERROR('Tabel 2 F'!F188/'Tabel 1 F'!E186*100,"-")) -> - | G188: =IF(OR('Tabel 1 F'!E186<5,'Tabel 2 F'!G188<0.5),"-",IFERROR('Tabel 2 F'!G188/'Tabel 1 F'!E186*100,"-")) -> - | I188: =IF(OR('Tabel 1 F'!G186<5,'Tabel 2 F'!I188<0.5),"-",IFERROR('Tabel 2 F'!I188/'Tabel 1 F'!G186*100,"-")) -> - | J188: =IF(OR('Tabel 1 F'!G186<5,'Tabel 2 F'!J188<0.5),"-",IFERROR('Tabel 2 F'!J188/'Tabel 1 F'!G186*100,"-")) -> -
A189: Tandlæge | C189: =IF(OR('Tabel 1 F'!C187<5,'Tabel 2 F'!C189<0.5),"-",IFERROR('Tabel 2 F'!C189/'Tabel 1 F'!C187*100,"-")) -> - | D189: =IF(OR('Tabel 1 F'!C187<5,'Tabel 2 F'!D189<0.5),"-",IFERROR('Tabel 2 F'!D189/'Tabel 1 F'!C187*100,"-")) -> - | F189: =IF(OR('Tabel 1 F'!E187<5,'Tabel 2 F'!F189<0.5),"-",IFERROR('Tabel 2 F'!F189/'Tabel 1 F'!E187*100,"-")) -> - | G189: =IF(OR('Tabel 1 F'!E187<5,'Tabel 2 F'!G189<0.5),"-",IFERROR('Tabel 2 F'!G189/'Tabel 1 F'!E187*100,"-")) -> - | I189: =IF(OR('Tabel 1 F'!G187<5,'Tabel 2 F'!I189<0.5),"-",IFERROR('Tabel 2 F'!I189/'Tabel 1 F'!G187*100,"-")) -> - | J189: =IF(OR('Tabel 1 F'!G187<5,'Tabel 2 F'!J189<0.5),"-",IFERROR('Tabel 2 F'!J189/'Tabel 1 F'!G187*100,"-")) -> -
A190: Arkitekt | C190: =IF(OR('Tabel 1 F'!C188<5,'Tabel 2 F'!C190<0.5),"-",IFERROR('Tabel 2 F'!C190/'Tabel 1 F'!C188*100,"-")) -> 14.28571429 | D190: =IF(OR('Tabel 1 F'!C188<5,'Tabel 2 F'!D190<0.5),"-",IFERROR('Tabel 2 F'!D190/'Tabel 1 F'!C188*100,"-")) -> 8.687439299 | F190: =IF(OR('Tabel 1 F'!E188<5,'Tabel 2 F'!F190<0.5),"-",IFERROR('Tabel 2 F'!F190/'Tabel 1 F'!E188*100,"-")) -> - | G190: =IF(OR('Tabel 1 F'!E188<5,'Tabel 2 F'!G190<0.5),"-",IFERROR('Tabel 2 F'!G190/'Tabel 1 F'!E188*100,"-")) -> - | I190: =IF(OR('Tabel 1 F'!G188<5,'Tabel 2 F'!I190<0.5),"-",IFERROR('Tabel 2 F'!I190/'Tabel 1 F'!G188*100,"-")) -> 8.333333333 | J190: =IF(OR('Tabel 1 F'!G188<5,'Tabel 2 F'!J190<0.5),"-",IFERROR('Tabel 2 F'!J190/'Tabel 1 F'!G188*100,"-")) -> 5.067672925
A191: Landinspek. | C191: =IF(OR('Tabel 1 F'!C189<5,'Tabel 2 F'!C191<0.5),"-",IFERROR('Tabel 2 F'!C191/'Tabel 1 F'!C189*100,"-")) -> - | D191: =IF(OR('Tabel 1 F'!C189<5,'Tabel 2 F'!D191<0.5),"-",IFERROR('Tabel 2 F'!D191/'Tabel 1 F'!C189*100,"-")) -> - | F191: =IF(OR('Tabel 1 F'!E189<5,'Tabel 2 F'!F191<0.5),"-",IFERROR('Tabel 2 F'!F191/'Tabel 1 F'!E189*100,"-")) -> - | G191: =IF(OR('Tabel 1 F'!E189<5,'Tabel 2 F'!G191<0.5),"-",IFERROR('Tabel 2 F'!G191/'Tabel 1 F'!E189*100,"-")) -> - | I191: =IF(OR('Tabel 1 F'!G189<5,'Tabel 2 F'!I191<0.5),"-",IFERROR('Tabel 2 F'!I191/'Tabel 1 F'!G189*100,"-")) -> - | J191: =IF(OR('Tabel 1 F'!G189<5,'Tabel 2 F'!J191<0.5),"-",IFERROR('Tabel 2 F'!J191/'Tabel 1 F'!G189*100,"-")) -> -
A192: Bibliotekar | C192: =IF(OR('Tabel 1 F'!C190<5,'Tabel 2 F'!C192<0.5),"-",IFERROR('Tabel 2 F'!C192/'Tabel 1 F'!C190*100,"-")) -> - | D192: =IF(OR('Tabel 1 F'!C190<5,'Tabel 2 F'!D192<0.5),"-",IFERROR('Tabel 2 F'!D192/'Tabel 1 F'!C190*100,"-")) -> - | F192: =IF(OR('Tabel 1 F'!E190<5,'Tabel 2 F'!F192<0.5),"-",IFERROR('Tabel 2 F'!F192/'Tabel 1 F'!E190*100,"-")) -> - | G192: =IF(OR('Tabel 1 F'!E190<5,'Tabel 2 F'!G192<0.5),"-",IFERROR('Tabel 2 F'!G192/'Tabel 1 F'!E190*100,"-")) -> - | I192: =IF(OR('Tabel 1 F'!G190<5,'Tabel 2 F'!I192<0.5),"-",IFERROR('Tabel 2 F'!I192/'Tabel 1 F'!G190*100,"-")) -> - | J192: =IF(OR('Tabel 1 F'!G190<5,'Tabel 2 F'!J192<0.5),"-",IFERROR('Tabel 2 F'!J192/'Tabel 1 F'!G190*100,"-")) -> -
A193: Musikudd. | C193: =IF(OR('Tabel 1 F'!C191<5,'Tabel 2 F'!C193<0.5),"-",IFERROR('Tabel 2 F'!C193/'Tabel 1 F'!C191*100,"-")) -> - | D193: =IF(OR('Tabel 1 F'!C191<5,'Tabel 2 F'!D193<0.5),"-",IFERROR('Tabel 2 F'!D193/'Tabel 1 F'!C191*100,"-")) -> - | F193: =IF(OR('Tabel 1 F'!E191<5,'Tabel 2 F'!F193<0.5),"-",IFERROR('Tabel 2 F'!F193/'Tabel 1 F'!E191*100,"-")) -> - | G193: =IF(OR('Tabel 1 F'!E191<5,'Tabel 2 F'!G193<0.5),"-",IFERROR('Tabel 2 F'!G193/'Tabel 1 F'!E191*100,"-")) -> - | I193: =IF(OR('Tabel 1 F'!G191<5,'Tabel 2 F'!I193<0.5),"-",IFERROR('Tabel 2 F'!I193/'Tabel 1 F'!G191*100,"-")) -> - | J193: =IF(OR('Tabel 1 F'!G191<5,'Tabel 2 F'!J193<0.5),"-",IFERROR('Tabel 2 F'!J193/'Tabel 1 F'!G191*100,"-")) -> -
A194: Teolog | C194: =IF(OR('Tabel 1 F'!C192<5,'Tabel 2 F'!C194<0.5),"-",IFERROR('Tabel 2 F'!C194/'Tabel 1 F'!C192*100,"-")) -> - | D194: =IF(OR('Tabel 1 F'!C192<5,'Tabel 2 F'!D194<0.5),"-",IFERROR('Tabel 2 F'!D194/'Tabel 1 F'!C192*100,"-")) -> - | F194: =IF(OR('Tabel 1 F'!E192<5,'Tabel 2 F'!F194<0.5),"-",IFERROR('Tabel 2 F'!F194/'Tabel 1 F'!E192*100,"-")) -> - | G194: =IF(OR('Tabel 1 F'!E192<5,'Tabel 2 F'!G194<0.5),"-",IFERROR('Tabel 2 F'!G194/'Tabel 1 F'!E192*100,"-")) -> - | I194: =IF(OR('Tabel 1 F'!G192<5,'Tabel 2 F'!I194<0.5),"-",IFERROR('Tabel 2 F'!I194/'Tabel 1 F'!G192*100,"-")) -> - | J194: =IF(OR('Tabel 1 F'!G192<5,'Tabel 2 F'!J194<0.5),"-",IFERROR('Tabel 2 F'!J194/'Tabel 1 F'!G192*100,"-")) -> -
A195: Psykolog | C195: =IF(OR('Tabel 1 F'!C193<5,'Tabel 2 F'!C195<0.5),"-",IFERROR('Tabel 2 F'!C195/'Tabel 1 F'!C193*100,"-")) -> - | D195: =IF(OR('Tabel 1 F'!C193<5,'Tabel 2 F'!D195<0.5),"-",IFERROR('Tabel 2 F'!D195/'Tabel 1 F'!C193*100,"-")) -> - | F195: =IF(OR('Tabel 1 F'!E193<5,'Tabel 2 F'!F195<0.5),"-",IFERROR('Tabel 2 F'!F195/'Tabel 1 F'!E193*100,"-")) -> 5.263157895 | G195: =IF(OR('Tabel 1 F'!E193<5,'Tabel 2 F'!G195<0.5),"-",IFERROR('Tabel 2 F'!G195/'Tabel 1 F'!E193*100,"-")) -> - | I195: =IF(OR('Tabel 1 F'!G193<5,'Tabel 2 F'!I195<0.5),"-",IFERROR('Tabel 2 F'!I195/'Tabel 1 F'!G193*100,"-")) -> 4.347826087 | J195: =IF(OR('Tabel 1 F'!G193<5,'Tabel 2 F'!J195<0.5),"-",IFERROR('Tabel 2 F'!J195/'Tabel 1 F'!G193*100,"-")) -> -
A196: Jurist | C196: =IF(OR('Tabel 1 F'!C194<5,'Tabel 2 F'!C196<0.5),"-",IFERROR('Tabel 2 F'!C196/'Tabel 1 F'!C194*100,"-")) -> - | D196: =IF(OR('Tabel 1 F'!C194<5,'Tabel 2 F'!D196<0.5),"-",IFERROR('Tabel 2 F'!D196/'Tabel 1 F'!C194*100,"-")) -> - | F196: =IF(OR('Tabel 1 F'!E194<5,'Tabel 2 F'!F196<0.5),"-",IFERROR('Tabel 2 F'!F196/'Tabel 1 F'!E194*100,"-")) -> - | G196: =IF(OR('Tabel 1 F'!E194<5,'Tabel 2 F'!G196<0.5),"-",IFERROR('Tabel 2 F'!G196/'Tabel 1 F'!E194*100,"-")) -> - | I196: =IF(OR('Tabel 1 F'!G194<5,'Tabel 2 F'!I196<0.5),"-",IFERROR('Tabel 2 F'!I196/'Tabel 1 F'!G194*100,"-")) -> - | J196: =IF(OR('Tabel 1 F'!G194<5,'Tabel 2 F'!J196<0.5),"-",IFERROR('Tabel 2 F'!J196/'Tabel 1 F'!G194*100,"-")) -> -
A197: Økonom | C197: =IF(OR('Tabel 1 F'!C195<5,'Tabel 2 F'!C197<0.5),"-",IFERROR('Tabel 2 F'!C197/'Tabel 1 F'!C195*100,"-")) -> - | D197: =IF(OR('Tabel 1 F'!C195<5,'Tabel 2 F'!D197<0.5),"-",IFERROR('Tabel 2 F'!D197/'Tabel 1 F'!C195*100,"-")) -> - | F197: =IF(OR('Tabel 1 F'!E195<5,'Tabel 2 F'!F197<0.5),"-",IFERROR('Tabel 2 F'!F197/'Tabel 1 F'!E195*100,"-")) -> - | G197: =IF(OR('Tabel 1 F'!E195<5,'Tabel 2 F'!G197<0.5),"-",IFERROR('Tabel 2 F'!G197/'Tabel 1 F'!E195*100,"-")) -> - | I197: =IF(OR('Tabel 1 F'!G195<5,'Tabel 2 F'!I197<0.5),"-",IFERROR('Tabel 2 F'!I197/'Tabel 1 F'!G195*100,"-")) -> - | J197: =IF(OR('Tabel 1 F'!G195<5,'Tabel 2 F'!J197<0.5),"-",IFERROR('Tabel 2 F'!J197/'Tabel 1 F'!G195*100,"-")) -> -
A198: Samf. Adm. | C198: =IF(OR('Tabel 1 F'!C196<5,'Tabel 2 F'!C198<0.5),"-",IFERROR('Tabel 2 F'!C198/'Tabel 1 F'!C196*100,"-")) -> 3.703703704 | D198: =IF(OR('Tabel 1 F'!C196<5,'Tabel 2 F'!D198<0.5),"-",IFERROR('Tabel 2 F'!D198/'Tabel 1 F'!C196*100,"-")) -> 3.703010689 | F198: =IF(OR('Tabel 1 F'!E196<5,'Tabel 2 F'!F198<0.5),"-",IFERROR('Tabel 2 F'!F198/'Tabel 1 F'!E196*100,"-")) -> 6.349206349 | G198: =IF(OR('Tabel 1 F'!E196<5,'Tabel 2 F'!G198<0.5),"-",IFERROR('Tabel 2 F'!G198/'Tabel 1 F'!E196*100,"-")) -> 5.322355974 | I198: =IF(OR('Tabel 1 F'!G196<5,'Tabel 2 F'!I198<0.5),"-",IFERROR('Tabel 2 F'!I198/'Tabel 1 F'!G196*100,"-")) -> 5.555555556 | J198: =IF(OR('Tabel 1 F'!G196<5,'Tabel 2 F'!J198<0.5),"-",IFERROR('Tabel 2 F'!J198/'Tabel 1 F'!G196*100,"-")) -> 4.836552388
A199: Cand. Merc. | C199: =IF(OR('Tabel 1 F'!C197<5,'Tabel 2 F'!C199<0.5),"-",IFERROR('Tabel 2 F'!C199/'Tabel 1 F'!C197*100,"-")) -> - | D199: =IF(OR('Tabel 1 F'!C197<5,'Tabel 2 F'!D199<0.5),"-",IFERROR('Tabel 2 F'!D199/'Tabel 1 F'!C197*100,"-")) -> - | F199: =IF(OR('Tabel 1 F'!E197<5,'Tabel 2 F'!F199<0.5),"-",IFERROR('Tabel 2 F'!F199/'Tabel 1 F'!E197*100,"-")) -> 4.255319149 | G199: =IF(OR('Tabel 1 F'!E197<5,'Tabel 2 F'!G199<0.5),"-",IFERROR('Tabel 2 F'!G199/'Tabel 1 F'!E197*100,"-")) -> 3.50606661 | I199: =IF(OR('Tabel 1 F'!G197<5,'Tabel 2 F'!I199<0.5),"-",IFERROR('Tabel 2 F'!I199/'Tabel 1 F'!G197*100,"-")) -> 2.5 | J199: =IF(OR('Tabel 1 F'!G197<5,'Tabel 2 F'!J199<0.5),"-",IFERROR('Tabel 2 F'!J199/'Tabel 1 F'!G197*100,"-")) -> 2.059814133
A200: HA | C200: =IF(OR('Tabel 1 F'!C198<5,'Tabel 2 F'!C200<0.5),"-",IFERROR('Tabel 2 F'!C200/'Tabel 1 F'!C198*100,"-")) -> 7.142857143 | D200: =IF(OR('Tabel 1 F'!C198<5,'Tabel 2 F'!D200<0.5),"-",IFERROR('Tabel 2 F'!D200/'Tabel 1 F'!C198*100,"-")) -> 6.161399257 | F200: =IF(OR('Tabel 1 F'!E198<5,'Tabel 2 F'!F200<0.5),"-",IFERROR('Tabel 2 F'!F200/'Tabel 1 F'!E198*100,"-")) -> - | G200: =IF(OR('Tabel 1 F'!E198<5,'Tabel 2 F'!G200<0.5),"-",IFERROR('Tabel 2 F'!G200/'Tabel 1 F'!E198*100,"-")) -> - | I200: =IF(OR('Tabel 1 F'!G198<5,'Tabel 2 F'!I200<0.5),"-",IFERROR('Tabel 2 F'!I200/'Tabel 1 F'!G198*100,"-")) -> 3.703703704 | J200: =IF(OR('Tabel 1 F'!G198<5,'Tabel 2 F'!J200<0.5),"-",IFERROR('Tabel 2 F'!J200/'Tabel 1 F'!G198*100,"-")) -> 3.194799615
A201: HD | C201: =IF(OR('Tabel 1 F'!C199<5,'Tabel 2 F'!C201<0.5),"-",IFERROR('Tabel 2 F'!C201/'Tabel 1 F'!C199*100,"-")) -> - | D201: =IF(OR('Tabel 1 F'!C199<5,'Tabel 2 F'!D201<0.5),"-",IFERROR('Tabel 2 F'!D201/'Tabel 1 F'!C199*100,"-")) -> - | F201: =IF(OR('Tabel 1 F'!E199<5,'Tabel 2 F'!F201<0.5),"-",IFERROR('Tabel 2 F'!F201/'Tabel 1 F'!E199*100,"-")) -> - | G201: =IF(OR('Tabel 1 F'!E199<5,'Tabel 2 F'!G201<0.5),"-",IFERROR('Tabel 2 F'!G201/'Tabel 1 F'!E199*100,"-")) -> - | I201: =IF(OR('Tabel 1 F'!G199<5,'Tabel 2 F'!I201<0.5),"-",IFERROR('Tabel 2 F'!I201/'Tabel 1 F'!G199*100,"-")) -> - | J201: =IF(OR('Tabel 1 F'!G199<5,'Tabel 2 F'!J201<0.5),"-",IFERROR('Tabel 2 F'!J201/'Tabel 1 F'!G199*100,"-")) -> -
A202: Komm. og Sprog | C202: =IF(OR('Tabel 1 F'!C200<5,'Tabel 2 F'!C202<0.5),"-",IFERROR('Tabel 2 F'!C202/'Tabel 1 F'!C200*100,"-")) -> - | D202: =IF(OR('Tabel 1 F'!C200<5,'Tabel 2 F'!D202<0.5),"-",IFERROR('Tabel 2 F'!D202/'Tabel 1 F'!C200*100,"-")) -> - | F202: =IF(OR('Tabel 1 F'!E200<5,'Tabel 2 F'!F202<0.5),"-",IFERROR('Tabel 2 F'!F202/'Tabel 1 F'!E200*100,"-")) -> 9.090909091 | G202: =IF(OR('Tabel 1 F'!E200<5,'Tabel 2 F'!G202<0.5),"-",IFERROR('Tabel 2 F'!G202/'Tabel 1 F'!E200*100,"-")) -> 8.669618911 | I202: =IF(OR('Tabel 1 F'!G200<5,'Tabel 2 F'!I202<0.5),"-",IFERROR('Tabel 2 F'!I202/'Tabel 1 F'!G200*100,"-")) -> 5.882352941 | J202: =IF(OR('Tabel 1 F'!G200<5,'Tabel 2 F'!J202<0.5),"-",IFERROR('Tabel 2 F'!J202/'Tabel 1 F'!G200*100,"-")) -> 5.609753413
A203: Bygningskonst. | C203: =IF(OR('Tabel 1 F'!C201<5,'Tabel 2 F'!C203<0.5),"-",IFERROR('Tabel 2 F'!C203/'Tabel 1 F'!C201*100,"-")) -> 2.941176471 | D203: =IF(OR('Tabel 1 F'!C201<5,'Tabel 2 F'!D203<0.5),"-",IFERROR('Tabel 2 F'!D203/'Tabel 1 F'!C201*100,"-")) -> 2.126679899 | F203: =IF(OR('Tabel 1 F'!E201<5,'Tabel 2 F'!F203<0.5),"-",IFERROR('Tabel 2 F'!F203/'Tabel 1 F'!E201*100,"-")) -> - | G203: =IF(OR('Tabel 1 F'!E201<5,'Tabel 2 F'!G203<0.5),"-",IFERROR('Tabel 2 F'!G203/'Tabel 1 F'!E201*100,"-")) -> - | I203: =IF(OR('Tabel 1 F'!G201<5,'Tabel 2 F'!I203<0.5),"-",IFERROR('Tabel 2 F'!I203/'Tabel 1 F'!G201*100,"-")) -> 2.564102564 | J203: =IF(OR('Tabel 1 F'!G201<5,'Tabel 2 F'!J203<0.5),"-",IFERROR('Tabel 2 F'!J203/'Tabel 1 F'!G201*100,"-")) -> 1.85402863
A204: Cand. IT. | C204: =IF(OR('Tabel 1 F'!C202<5,'Tabel 2 F'!C204<0.5),"-",IFERROR('Tabel 2 F'!C204/'Tabel 1 F'!C202*100,"-")) -> 16.66666667 | D204: =IF(OR('Tabel 1 F'!C202<5,'Tabel 2 F'!D204<0.5),"-",IFERROR('Tabel 2 F'!D204/'Tabel 1 F'!C202*100,"-")) -> 16.6635481 | F204: =IF(OR('Tabel 1 F'!E202<5,'Tabel 2 F'!F204<0.5),"-",IFERROR('Tabel 2 F'!F204/'Tabel 1 F'!E202*100,"-")) -> 33.33333333 | G204: =IF(OR('Tabel 1 F'!E202<5,'Tabel 2 F'!G204<0.5),"-",IFERROR('Tabel 2 F'!G204/'Tabel 1 F'!E202*100,"-")) -> 21.60128069 | I204: =IF(OR('Tabel 1 F'!G202<5,'Tabel 2 F'!I204<0.5),"-",IFERROR('Tabel 2 F'!I204/'Tabel 1 F'!G202*100,"-")) -> 25 | J204: =IF(OR('Tabel 1 F'!G202<5,'Tabel 2 F'!J204<0.5),"-",IFERROR('Tabel 2 F'!J204/'Tabel 1 F'!G202*100,"-")) -> 19.1324144
A205: Bac. Samf. | C205: =IF(OR('Tabel 1 F'!C203<5,'Tabel 2 F'!C205<0.5),"-",IFERROR('Tabel 2 F'!C205/'Tabel 1 F'!C203*100,"-")) -> - | D205: =IF(OR('Tabel 1 F'!C203<5,'Tabel 2 F'!D205<0.5),"-",IFERROR('Tabel 2 F'!D205/'Tabel 1 F'!C203*100,"-")) -> - | F205: =IF(OR('Tabel 1 F'!E203<5,'Tabel 2 F'!F205<0.5),"-",IFERROR('Tabel 2 F'!F205/'Tabel 1 F'!E203*100,"-")) -> - | G205: =IF(OR('Tabel 1 F'!E203<5,'Tabel 2 F'!G205<0.5),"-",IFERROR('Tabel 2 F'!G205/'Tabel 1 F'!E203*100,"-")) -> - | I205: =IF(OR('Tabel 1 F'!G203<5,'Tabel 2 F'!I205<0.5),"-",IFERROR('Tabel 2 F'!I205/'Tabel 1 F'!G203*100,"-")) -> - | J205: =IF(OR('Tabel 1 F'!G203<5,'Tabel 2 F'!J205<0.5),"-",IFERROR('Tabel 2 F'!J205/'Tabel 1 F'!G203*100,"-")) -> -
A206: Bac. Hum. | C206: =IF(OR('Tabel 1 F'!C204<5,'Tabel 2 F'!C206<0.5),"-",IFERROR('Tabel 2 F'!C206/'Tabel 1 F'!C204*100,"-")) -> - | D206: =IF(OR('Tabel 1 F'!C204<5,'Tabel 2 F'!D206<0.5),"-",IFERROR('Tabel 2 F'!D206/'Tabel 1 F'!C204*100,"-")) -> - | F206: =IF(OR('Tabel 1 F'!E204<5,'Tabel 2 F'!F206<0.5),"-",IFERROR('Tabel 2 F'!F206/'Tabel 1 F'!E204*100,"-")) -> 6.666666667 | G206: =IF(OR('Tabel 1 F'!E204<5,'Tabel 2 F'!G206<0.5),"-",IFERROR('Tabel 2 F'!G206/'Tabel 1 F'!E204*100,"-")) -> 5.126925716 | I206: =IF(OR('Tabel 1 F'!G204<5,'Tabel 2 F'!I206<0.5),"-",IFERROR('Tabel 2 F'!I206/'Tabel 1 F'!G204*100,"-")) -> 4.545454545 | J206: =IF(OR('Tabel 1 F'!G204<5,'Tabel 2 F'!J206<0.5),"-",IFERROR('Tabel 2 F'!J206/'Tabel 1 F'!G204*100,"-")) -> 3.49563117
A207: Bac. Nat. | C207: =IF(OR('Tabel 1 F'!C205<5,'Tabel 2 F'!C207<0.5),"-",IFERROR('Tabel 2 F'!C207/'Tabel 1 F'!C205*100,"-")) -> 11.11111111 | D207: =IF(OR('Tabel 1 F'!C205<5,'Tabel 2 F'!D207<0.5),"-",IFERROR('Tabel 2 F'!D207/'Tabel 1 F'!C205*100,"-")) -> 11.10903207 | F207: =IF(OR('Tabel 1 F'!E205<5,'Tabel 2 F'!F207<0.5),"-",IFERROR('Tabel 2 F'!F207/'Tabel 1 F'!E205*100,"-")) -> - | G207: =IF(OR('Tabel 1 F'!E205<5,'Tabel 2 F'!G207<0.5),"-",IFERROR('Tabel 2 F'!G207/'Tabel 1 F'!E205*100,"-")) -> - | I207: =IF(OR('Tabel 1 F'!G205<5,'Tabel 2 F'!I207<0.5),"-",IFERROR('Tabel 2 F'!I207/'Tabel 1 F'!G205*100,"-")) -> 8.333333333 | J207: =IF(OR('Tabel 1 F'!G205<5,'Tabel 2 F'!J207<0.5),"-",IFERROR('Tabel 2 F'!J207/'Tabel 1 F'!G205*100,"-")) -> 8.331774049
A208: Andre | C208: =IF(OR('Tabel 1 F'!C206<5,'Tabel 2 F'!C208<0.5),"-",IFERROR('Tabel 2 F'!C208/'Tabel 1 F'!C206*100,"-")) -> 4.6875 | D208: =IF(OR('Tabel 1 F'!C206<5,'Tabel 2 F'!D208<0.5),"-",IFERROR('Tabel 2 F'!D208/'Tabel 1 F'!C206*100,"-")) -> 3.774441776 | F208: =IF(OR('Tabel 1 F'!E206<5,'Tabel 2 F'!F208<0.5),"-",IFERROR('Tabel 2 F'!F208/'Tabel 1 F'!E206*100,"-")) -> 2.222222222 | G208: =IF(OR('Tabel 1 F'!E206<5,'Tabel 2 F'!G208<0.5),"-",IFERROR('Tabel 2 F'!G208/'Tabel 1 F'!E206*100,"-")) -> 2.221806413 | I208: =IF(OR('Tabel 1 F'!G206<5,'Tabel 2 F'!I208<0.5),"-",IFERROR('Tabel 2 F'!I208/'Tabel 1 F'!G206*100,"-")) -> 3.669724771 | J208: =IF(OR('Tabel 1 F'!G206<5,'Tabel 2 F'!J208<0.5),"-",IFERROR('Tabel 2 F'!J208/'Tabel 1 F'!G206*100,"-")) -> 3.133445525
A210: Total | C210: =IF(OR('Tabel 1 F'!C208<5,'Tabel 2 F'!C210<0.5),"-",IFERROR('Tabel 2 F'!C210/'Tabel 1 F'!C208*100,"-")) -> 2.589395808 | D210: =IF(OR('Tabel 1 F'!C208<5,'Tabel 2 F'!D210<0.5),"-",IFERROR('Tabel 2 F'!D210/'Tabel 1 F'!C208*100,"-")) -> 2.008465432 | F210: =IF(OR('Tabel 1 F'!E208<5,'Tabel 2 F'!F210<0.5),"-",IFERROR('Tabel 2 F'!F210/'Tabel 1 F'!E208*100,"-")) -> 4.38957476 | G210: =IF(OR('Tabel 1 F'!E208<5,'Tabel 2 F'!G210<0.5),"-",IFERROR('Tabel 2 F'!G210/'Tabel 1 F'!E208*100,"-")) -> 3.490229385 | I210: =IF(OR('Tabel 1 F'!G208<5,'Tabel 2 F'!I210<0.5),"-",IFERROR('Tabel 2 F'!I210/'Tabel 1 F'!G208*100,"-")) -> 3.441558442 | J210: =IF(OR('Tabel 1 F'!G208<5,'Tabel 2 F'!J210<0.5),"-",IFERROR('Tabel 2 F'!J210/'Tabel 1 F'!G208*100,"-")) -> 2.709897849
A212: Ingeniører i alt | C212: =IF(OR('Tabel 1 F'!C210<5,'Tabel 2 F'!C212<0.5),"-",IFERROR('Tabel 2 F'!C212/'Tabel 1 F'!C210*100,"-")) -> 2.153846154 | D212: =IF(OR('Tabel 1 F'!C210<5,'Tabel 2 F'!D212<0.5),"-",IFERROR('Tabel 2 F'!D212/'Tabel 1 F'!C210*100,"-")) -> 1.416501542 | F212: =IF(OR('Tabel 1 F'!E210<5,'Tabel 2 F'!F212<0.5),"-",IFERROR('Tabel 2 F'!F212/'Tabel 1 F'!E210*100,"-")) -> 4.838709677 | G212: =IF(OR('Tabel 1 F'!E210<5,'Tabel 2 F'!G212<0.5),"-",IFERROR('Tabel 2 F'!G212/'Tabel 1 F'!E210*100,"-")) -> 4.837804287 | I212: =IF(OR('Tabel 1 F'!G210<5,'Tabel 2 F'!I212<0.5),"-",IFERROR('Tabel 2 F'!I212/'Tabel 1 F'!G210*100,"-")) -> 2.583979328 | J212: =IF(OR('Tabel 1 F'!G210<5,'Tabel 2 F'!J212<0.5),"-",IFERROR('Tabel 2 F'!J212/'Tabel 1 F'!G210*100,"-")) -> 1.964617228
A213: Magistre i alt | C213: =IF(OR('Tabel 1 F'!C211<5,'Tabel 2 F'!C213<0.5),"-",IFERROR('Tabel 2 F'!C213/'Tabel 1 F'!C211*100,"-")) -> 3.448275862 | D213: =IF(OR('Tabel 1 F'!C211<5,'Tabel 2 F'!D213<0.5),"-",IFERROR('Tabel 2 F'!D213/'Tabel 1 F'!C211*100,"-")) -> 2.890589883 | F213: =IF(OR('Tabel 1 F'!E211<5,'Tabel 2 F'!F213<0.5),"-",IFERROR('Tabel 2 F'!F213/'Tabel 1 F'!E211*100,"-")) -> 5.445544554 | G213: =IF(OR('Tabel 1 F'!E211<5,'Tabel 2 F'!G213<0.5),"-",IFERROR('Tabel 2 F'!G213/'Tabel 1 F'!E211*100,"-")) -> 4.338514685 | I213: =IF(OR('Tabel 1 F'!G211<5,'Tabel 2 F'!I213<0.5),"-",IFERROR('Tabel 2 F'!I213/'Tabel 1 F'!G211*100,"-")) -> 4.716981132 | J213: =IF(OR('Tabel 1 F'!G211<5,'Tabel 2 F'!J213<0.5),"-",IFERROR('Tabel 2 F'!J213/'Tabel 1 F'!G211*100,"-")) -> 3.810340858
A214: DJØF'ere i alt | C214: =IF(OR('Tabel 1 F'!C212<5,'Tabel 2 F'!C214<0.5),"-",IFERROR('Tabel 2 F'!C214/'Tabel 1 F'!C212*100,"-")) -> 1.98019802 | D214: =IF(OR('Tabel 1 F'!C212<5,'Tabel 2 F'!D214<0.5),"-",IFERROR('Tabel 2 F'!D214/'Tabel 1 F'!C212*100,"-")) -> 1.843969091 | F214: =IF(OR('Tabel 1 F'!E212<5,'Tabel 2 F'!F214<0.5),"-",IFERROR('Tabel 2 F'!F214/'Tabel 1 F'!E212*100,"-")) -> 3.658536585 | G214: =IF(OR('Tabel 1 F'!E212<5,'Tabel 2 F'!G214<0.5),"-",IFERROR('Tabel 2 F'!G214/'Tabel 1 F'!E212*100,"-")) -> 3.049350958 | I214: =IF(OR('Tabel 1 F'!G212<5,'Tabel 2 F'!I214<0.5),"-",IFERROR('Tabel 2 F'!I214/'Tabel 1 F'!G212*100,"-")) -> 3.018867925 | J214: =IF(OR('Tabel 1 F'!G212<5,'Tabel 2 F'!J214<0.5),"-",IFERROR('Tabel 2 F'!J214/'Tabel 1 F'!G212*100,"-")) -> 2.589941265
A219: Kerteminde
C221: Mænd | F221: Kvinder | I221: I alt
C222: Ledigheds- berørte | D222: Gns. brutto- ledighed | F222: Ledigheds- berørte | G222: Gns. brutto- ledighed | I222: Ledigheds- berørte | J222: Gns. brutto- ledighed
A225: Civ. ing. | C225: =IF(OR('Tabel 1 F'!C223<5,'Tabel 2 F'!C225<0.5),"-",IFERROR('Tabel 2 F'!C225/'Tabel 1 F'!C223*100,"-")) -> - | D225: =IF(OR('Tabel 1 F'!C223<5,'Tabel 2 F'!D225<0.5),"-",IFERROR('Tabel 2 F'!D225/'Tabel 1 F'!C223*100,"-")) -> - | F225: =IF(OR('Tabel 1 F'!E223<5,'Tabel 2 F'!F225<0.5),"-",IFERROR('Tabel 2 F'!F225/'Tabel 1 F'!E223*100,"-")) -> - | G225: =IF(OR('Tabel 1 F'!E223<5,'Tabel 2 F'!G225<0.5),"-",IFERROR('Tabel 2 F'!G225/'Tabel 1 F'!E223*100,"-")) -> - | I225: =IF(OR('Tabel 1 F'!G223<5,'Tabel 2 F'!I225<0.5),"-",IFERROR('Tabel 2 F'!I225/'Tabel 1 F'!G223*100,"-")) -> - | J225: =IF(OR('Tabel 1 F'!G223<5,'Tabel 2 F'!J225<0.5),"-",IFERROR('Tabel 2 F'!J225/'Tabel 1 F'!G223*100,"-")) -> -
A226: Diplom ing. | C226: =IF(OR('Tabel 1 F'!C224<5,'Tabel 2 F'!C226<0.5),"-",IFERROR('Tabel 2 F'!C226/'Tabel 1 F'!C224*100,"-")) -> 0.7692307692 | D226: =IF(OR('Tabel 1 F'!C224<5,'Tabel 2 F'!D226<0.5),"-",IFERROR('Tabel 2 F'!D226/'Tabel 1 F'!C224*100,"-")) -> 0.7690868353 | F226: =IF(OR('Tabel 1 F'!E224<5,'Tabel 2 F'!F226<0.5),"-",IFERROR('Tabel 2 F'!F226/'Tabel 1 F'!E224*100,"-")) -> 3.571428571 | G226: =IF(OR('Tabel 1 F'!E224<5,'Tabel 2 F'!G226<0.5),"-",IFERROR('Tabel 2 F'!G226/'Tabel 1 F'!E224*100,"-")) -> 3.570760307 | I226: =IF(OR('Tabel 1 F'!G224<5,'Tabel 2 F'!I226<0.5),"-",IFERROR('Tabel 2 F'!I226/'Tabel 1 F'!G224*100,"-")) -> 1.265822785 | J226: =IF(OR('Tabel 1 F'!G224<5,'Tabel 2 F'!J226<0.5),"-",IFERROR('Tabel 2 F'!J226/'Tabel 1 F'!G224*100,"-")) -> 1.265585932
A227: Cand. Scient. Tek. | C227: =IF(OR('Tabel 1 F'!C225<5,'Tabel 2 F'!C227<0.5),"-",IFERROR('Tabel 2 F'!C227/'Tabel 1 F'!C225*100,"-")) -> - | D227: =IF(OR('Tabel 1 F'!C225<5,'Tabel 2 F'!D227<0.5),"-",IFERROR('Tabel 2 F'!D227/'Tabel 1 F'!C225*100,"-")) -> - | F227: =IF(OR('Tabel 1 F'!E225<5,'Tabel 2 F'!F227<0.5),"-",IFERROR('Tabel 2 F'!F227/'Tabel 1 F'!E225*100,"-")) -> 5 | G227: =IF(OR('Tabel 1 F'!E225<5,'Tabel 2 F'!G227<0.5),"-",IFERROR('Tabel 2 F'!G227/'Tabel 1 F'!E225*100,"-")) -> 4.99906443 | I227: =IF(OR('Tabel 1 F'!G225<5,'Tabel 2 F'!I227<0.5),"-",IFERROR('Tabel 2 F'!I227/'Tabel 1 F'!G225*100,"-")) -> 2.380952381 | J227: =IF(OR('Tabel 1 F'!G225<5,'Tabel 2 F'!J227<0.5),"-",IFERROR('Tabel 2 F'!J227/'Tabel 1 F'!G225*100,"-")) -> 2.380506871
A228: MA. Hum. | C228: =IF(OR('Tabel 1 F'!C226<5,'Tabel 2 F'!C228<0.5),"-",IFERROR('Tabel 2 F'!C228/'Tabel 1 F'!C226*100,"-")) -> 5.882352941 | D228: =IF(OR('Tabel 1 F'!C226<5,'Tabel 2 F'!D228<0.5),"-",IFERROR('Tabel 2 F'!D228/'Tabel 1 F'!C226*100,"-")) -> 4.897986139 | F228: =IF(OR('Tabel 1 F'!E226<5,'Tabel 2 F'!F228<0.5),"-",IFERROR('Tabel 2 F'!F228/'Tabel 1 F'!E226*100,"-")) -> 10.12658228 | G228: =IF(OR('Tabel 1 F'!E226<5,'Tabel 2 F'!G228<0.5),"-",IFERROR('Tabel 2 F'!G228/'Tabel 1 F'!E226*100,"-")) -> 7.013225097 | I228: =IF(OR('Tabel 1 F'!G226<5,'Tabel 2 F'!I228<0.5),"-",IFERROR('Tabel 2 F'!I228/'Tabel 1 F'!G226*100,"-")) -> 8.849557522 | J228: =IF(OR('Tabel 1 F'!G226<5,'Tabel 2 F'!J228<0.5),"-",IFERROR('Tabel 2 F'!J228/'Tabel 1 F'!G226*100,"-")) -> 6.376781516
A229: MA. Nat. | C229: =IF(OR('Tabel 1 F'!C227<5,'Tabel 2 F'!C229<0.5),"-",IFERROR('Tabel 2 F'!C229/'Tabel 1 F'!C227*100,"-")) -> 7.142857143 | D229: =IF(OR('Tabel 1 F'!C227<5,'Tabel 2 F'!D229<0.5),"-",IFERROR('Tabel 2 F'!D229/'Tabel 1 F'!C227*100,"-")) -> 7.141520614 | F229: =IF(OR('Tabel 1 F'!E227<5,'Tabel 2 F'!F229<0.5),"-",IFERROR('Tabel 2 F'!F229/'Tabel 1 F'!E227*100,"-")) -> 5.882352941 | G229: =IF(OR('Tabel 1 F'!E227<5,'Tabel 2 F'!G229<0.5),"-",IFERROR('Tabel 2 F'!G229/'Tabel 1 F'!E227*100,"-")) -> 5.88125227 | I229: =IF(OR('Tabel 1 F'!G227<5,'Tabel 2 F'!I229<0.5),"-",IFERROR('Tabel 2 F'!I229/'Tabel 1 F'!G227*100,"-")) -> 6.451612903 | J229: =IF(OR('Tabel 1 F'!G227<5,'Tabel 2 F'!J229<0.5),"-",IFERROR('Tabel 2 F'!J229/'Tabel 1 F'!G227*100,"-")) -> 6.450405716
A230: MA. Ph.d. | C230: =IF(OR('Tabel 1 F'!C228<5,'Tabel 2 F'!C230<0.5),"-",IFERROR('Tabel 2 F'!C230/'Tabel 1 F'!C228*100,"-")) -> - | D230: =IF(OR('Tabel 1 F'!C228<5,'Tabel 2 F'!D230<0.5),"-",IFERROR('Tabel 2 F'!D230/'Tabel 1 F'!C228*100,"-")) -> - | F230: =IF(OR('Tabel 1 F'!E228<5,'Tabel 2 F'!F230<0.5),"-",IFERROR('Tabel 2 F'!F230/'Tabel 1 F'!E228*100,"-")) -> - | G230: =IF(OR('Tabel 1 F'!E228<5,'Tabel 2 F'!G230<0.5),"-",IFERROR('Tabel 2 F'!G230/'Tabel 1 F'!E228*100,"-")) -> - | I230: =IF(OR('Tabel 1 F'!G228<5,'Tabel 2 F'!I230<0.5),"-",IFERROR('Tabel 2 F'!I230/'Tabel 1 F'!G228*100,"-")) -> - | J230: =IF(OR('Tabel 1 F'!G228<5,'Tabel 2 F'!J230<0.5),"-",IFERROR('Tabel 2 F'!J230/'Tabel 1 F'!G228*100,"-")) -> -
A231: MA. Samf. | C231: =IF(OR('Tabel 1 F'!C229<5,'Tabel 2 F'!C231<0.5),"-",IFERROR('Tabel 2 F'!C231/'Tabel 1 F'!C229*100,"-")) -> - | D231: =IF(OR('Tabel 1 F'!C229<5,'Tabel 2 F'!D231<0.5),"-",IFERROR('Tabel 2 F'!D231/'Tabel 1 F'!C229*100,"-")) -> - | F231: =IF(OR('Tabel 1 F'!E229<5,'Tabel 2 F'!F231<0.5),"-",IFERROR('Tabel 2 F'!F231/'Tabel 1 F'!E229*100,"-")) -> - | G231: =IF(OR('Tabel 1 F'!E229<5,'Tabel 2 F'!G231<0.5),"-",IFERROR('Tabel 2 F'!G231/'Tabel 1 F'!E229*100,"-")) -> - | I231: =IF(OR('Tabel 1 F'!G229<5,'Tabel 2 F'!I231<0.5),"-",IFERROR('Tabel 2 F'!I231/'Tabel 1 F'!G229*100,"-")) -> - | J231: =IF(OR('Tabel 1 F'!G229<5,'Tabel 2 F'!J231<0.5),"-",IFERROR('Tabel 2 F'!J231/'Tabel 1 F'!G229*100,"-")) -> -
A232: Øvrige Mag. | C232: =IF(OR('Tabel 1 F'!C230<5,'Tabel 2 F'!C232<0.5),"-",IFERROR('Tabel 2 F'!C232/'Tabel 1 F'!C230*100,"-")) -> - | D232: =IF(OR('Tabel 1 F'!C230<5,'Tabel 2 F'!D232<0.5),"-",IFERROR('Tabel 2 F'!D232/'Tabel 1 F'!C230*100,"-")) -> - | F232: =IF(OR('Tabel 1 F'!E230<5,'Tabel 2 F'!F232<0.5),"-",IFERROR('Tabel 2 F'!F232/'Tabel 1 F'!E230*100,"-")) -> - | G232: =IF(OR('Tabel 1 F'!E230<5,'Tabel 2 F'!G232<0.5),"-",IFERROR('Tabel 2 F'!G232/'Tabel 1 F'!E230*100,"-")) -> - | I232: =IF(OR('Tabel 1 F'!G230<5,'Tabel 2 F'!I232<0.5),"-",IFERROR('Tabel 2 F'!I232/'Tabel 1 F'!G230*100,"-")) -> - | J232: =IF(OR('Tabel 1 F'!G230<5,'Tabel 2 F'!J232<0.5),"-",IFERROR('Tabel 2 F'!J232/'Tabel 1 F'!G230*100,"-")) -> -
A233: Agronom | C233: =IF(OR('Tabel 1 F'!C231<5,'Tabel 2 F'!C233<0.5),"-",IFERROR('Tabel 2 F'!C233/'Tabel 1 F'!C231*100,"-")) -> - | D233: =IF(OR('Tabel 1 F'!C231<5,'Tabel 2 F'!D233<0.5),"-",IFERROR('Tabel 2 F'!D233/'Tabel 1 F'!C231*100,"-")) -> - | F233: =IF(OR('Tabel 1 F'!E231<5,'Tabel 2 F'!F233<0.5),"-",IFERROR('Tabel 2 F'!F233/'Tabel 1 F'!E231*100,"-")) -> - | G233: =IF(OR('Tabel 1 F'!E231<5,'Tabel 2 F'!G233<0.5),"-",IFERROR('Tabel 2 F'!G233/'Tabel 1 F'!E231*100,"-")) -> - | I233: =IF(OR('Tabel 1 F'!G231<5,'Tabel 2 F'!I233<0.5),"-",IFERROR('Tabel 2 F'!I233/'Tabel 1 F'!G231*100,"-")) -> - | J233: =IF(OR('Tabel 1 F'!G231<5,'Tabel 2 F'!J233<0.5),"-",IFERROR('Tabel 2 F'!J233/'Tabel 1 F'!G231*100,"-")) -> -
A234: Landsk. Arkt. | C234: =IF(OR('Tabel 1 F'!C232<5,'Tabel 2 F'!C234<0.5),"-",IFERROR('Tabel 2 F'!C234/'Tabel 1 F'!C232*100,"-")) -> - | D234: =IF(OR('Tabel 1 F'!C232<5,'Tabel 2 F'!D234<0.5),"-",IFERROR('Tabel 2 F'!D234/'Tabel 1 F'!C232*100,"-")) -> - | F234: =IF(OR('Tabel 1 F'!E232<5,'Tabel 2 F'!F234<0.5),"-",IFERROR('Tabel 2 F'!F234/'Tabel 1 F'!E232*100,"-")) -> - | G234: =IF(OR('Tabel 1 F'!E232<5,'Tabel 2 F'!G234<0.5),"-",IFERROR('Tabel 2 F'!G234/'Tabel 1 F'!E232*100,"-")) -> - | I234: =IF(OR('Tabel 1 F'!G232<5,'Tabel 2 F'!I234<0.5),"-",IFERROR('Tabel 2 F'!I234/'Tabel 1 F'!G232*100,"-")) -> - | J234: =IF(OR('Tabel 1 F'!G232<5,'Tabel 2 F'!J234<0.5),"-",IFERROR('Tabel 2 F'!J234/'Tabel 1 F'!G232*100,"-")) -> -
A235: Hortonom | C235: =IF(OR('Tabel 1 F'!C233<5,'Tabel 2 F'!C235<0.5),"-",IFERROR('Tabel 2 F'!C235/'Tabel 1 F'!C233*100,"-")) -> - | D235: =IF(OR('Tabel 1 F'!C233<5,'Tabel 2 F'!D235<0.5),"-",IFERROR('Tabel 2 F'!D235/'Tabel 1 F'!C233*100,"-")) -> - | F235: =IF(OR('Tabel 1 F'!E233<5,'Tabel 2 F'!F235<0.5),"-",IFERROR('Tabel 2 F'!F235/'Tabel 1 F'!E233*100,"-")) -> - | G235: =IF(OR('Tabel 1 F'!E233<5,'Tabel 2 F'!G235<0.5),"-",IFERROR('Tabel 2 F'!G235/'Tabel 1 F'!E233*100,"-")) -> - | I235: =IF(OR('Tabel 1 F'!G233<5,'Tabel 2 F'!I235<0.5),"-",IFERROR('Tabel 2 F'!I235/'Tabel 1 F'!G233*100,"-")) -> - | J235: =IF(OR('Tabel 1 F'!G233<5,'Tabel 2 F'!J235<0.5),"-",IFERROR('Tabel 2 F'!J235/'Tabel 1 F'!G233*100,"-")) -> -
A236: Forstkand. | C236: =IF(OR('Tabel 1 F'!C234<5,'Tabel 2 F'!C236<0.5),"-",IFERROR('Tabel 2 F'!C236/'Tabel 1 F'!C234*100,"-")) -> - | D236: =IF(OR('Tabel 1 F'!C234<5,'Tabel 2 F'!D236<0.5),"-",IFERROR('Tabel 2 F'!D236/'Tabel 1 F'!C234*100,"-")) -> - | F236: =IF(OR('Tabel 1 F'!E234<5,'Tabel 2 F'!F236<0.5),"-",IFERROR('Tabel 2 F'!F236/'Tabel 1 F'!E234*100,"-")) -> - | G236: =IF(OR('Tabel 1 F'!E234<5,'Tabel 2 F'!G236<0.5),"-",IFERROR('Tabel 2 F'!G236/'Tabel 1 F'!E234*100,"-")) -> - | I236: =IF(OR('Tabel 1 F'!G234<5,'Tabel 2 F'!I236<0.5),"-",IFERROR('Tabel 2 F'!I236/'Tabel 1 F'!G234*100,"-")) -> - | J236: =IF(OR('Tabel 1 F'!G234<5,'Tabel 2 F'!J236<0.5),"-",IFERROR('Tabel 2 F'!J236/'Tabel 1 F'!G234*100,"-")) -> -
A237: Jordbrugsakad. | C237: =IF(OR('Tabel 1 F'!C235<5,'Tabel 2 F'!C237<0.5),"-",IFERROR('Tabel 2 F'!C237/'Tabel 1 F'!C235*100,"-")) -> - | D237: =IF(OR('Tabel 1 F'!C235<5,'Tabel 2 F'!D237<0.5),"-",IFERROR('Tabel 2 F'!D237/'Tabel 1 F'!C235*100,"-")) -> - | F237: =IF(OR('Tabel 1 F'!E235<5,'Tabel 2 F'!F237<0.5),"-",IFERROR('Tabel 2 F'!F237/'Tabel 1 F'!E235*100,"-")) -> - | G237: =IF(OR('Tabel 1 F'!E235<5,'Tabel 2 F'!G237<0.5),"-",IFERROR('Tabel 2 F'!G237/'Tabel 1 F'!E235*100,"-")) -> - | I237: =IF(OR('Tabel 1 F'!G235<5,'Tabel 2 F'!I237<0.5),"-",IFERROR('Tabel 2 F'!I237/'Tabel 1 F'!G235*100,"-")) -> - | J237: =IF(OR('Tabel 1 F'!G235<5,'Tabel 2 F'!J237<0.5),"-",IFERROR('Tabel 2 F'!J237/'Tabel 1 F'!G235*100,"-")) -> -
A238: Mejeriing. | C238: =IF(OR('Tabel 1 F'!C236<5,'Tabel 2 F'!C238<0.5),"-",IFERROR('Tabel 2 F'!C238/'Tabel 1 F'!C236*100,"-")) -> - | D238: =IF(OR('Tabel 1 F'!C236<5,'Tabel 2 F'!D238<0.5),"-",IFERROR('Tabel 2 F'!D238/'Tabel 1 F'!C236*100,"-")) -> - | F238: =IF(OR('Tabel 1 F'!E236<5,'Tabel 2 F'!F238<0.5),"-",IFERROR('Tabel 2 F'!F238/'Tabel 1 F'!E236*100,"-")) -> - | G238: =IF(OR('Tabel 1 F'!E236<5,'Tabel 2 F'!G238<0.5),"-",IFERROR('Tabel 2 F'!G238/'Tabel 1 F'!E236*100,"-")) -> - | I238: =IF(OR('Tabel 1 F'!G236<5,'Tabel 2 F'!I238<0.5),"-",IFERROR('Tabel 2 F'!I238/'Tabel 1 F'!G236*100,"-")) -> - | J238: =IF(OR('Tabel 1 F'!G236<5,'Tabel 2 F'!J238<0.5),"-",IFERROR('Tabel 2 F'!J238/'Tabel 1 F'!G236*100,"-")) -> -
A239: Levn.m.kand. | C239: =IF(OR('Tabel 1 F'!C237<5,'Tabel 2 F'!C239<0.5),"-",IFERROR('Tabel 2 F'!C239/'Tabel 1 F'!C237*100,"-")) -> - | D239: =IF(OR('Tabel 1 F'!C237<5,'Tabel 2 F'!D239<0.5),"-",IFERROR('Tabel 2 F'!D239/'Tabel 1 F'!C237*100,"-")) -> - | F239: =IF(OR('Tabel 1 F'!E237<5,'Tabel 2 F'!F239<0.5),"-",IFERROR('Tabel 2 F'!F239/'Tabel 1 F'!E237*100,"-")) -> - | G239: =IF(OR('Tabel 1 F'!E237<5,'Tabel 2 F'!G239<0.5),"-",IFERROR('Tabel 2 F'!G239/'Tabel 1 F'!E237*100,"-")) -> - | I239: =IF(OR('Tabel 1 F'!G237<5,'Tabel 2 F'!I239<0.5),"-",IFERROR('Tabel 2 F'!I239/'Tabel 1 F'!G237*100,"-")) -> - | J239: =IF(OR('Tabel 1 F'!G237<5,'Tabel 2 F'!J239<0.5),"-",IFERROR('Tabel 2 F'!J239/'Tabel 1 F'!G237*100,"-")) -> -
A240: Dyrlæge | C240: =IF(OR('Tabel 1 F'!C238<5,'Tabel 2 F'!C240<0.5),"-",IFERROR('Tabel 2 F'!C240/'Tabel 1 F'!C238*100,"-")) -> - | D240: =IF(OR('Tabel 1 F'!C238<5,'Tabel 2 F'!D240<0.5),"-",IFERROR('Tabel 2 F'!D240/'Tabel 1 F'!C238*100,"-")) -> - | F240: =IF(OR('Tabel 1 F'!E238<5,'Tabel 2 F'!F240<0.5),"-",IFERROR('Tabel 2 F'!F240/'Tabel 1 F'!E238*100,"-")) -> - | G240: =IF(OR('Tabel 1 F'!E238<5,'Tabel 2 F'!G240<0.5),"-",IFERROR('Tabel 2 F'!G240/'Tabel 1 F'!E238*100,"-")) -> - | I240: =IF(OR('Tabel 1 F'!G238<5,'Tabel 2 F'!I240<0.5),"-",IFERROR('Tabel 2 F'!I240/'Tabel 1 F'!G238*100,"-")) -> - | J240: =IF(OR('Tabel 1 F'!G238<5,'Tabel 2 F'!J240<0.5),"-",IFERROR('Tabel 2 F'!J240/'Tabel 1 F'!G238*100,"-")) -> -
... 296 more rows

Sheet Tabel 4F F
A1: Tabel 4. Antal forsikrede - aldersfordelt
A3: Fyn
C5: Under 30 år | D5: 30 - 39 år | E5: 40 - 49 år | F5: 50 - 59 år | G5: Over 60 år | I5: I alt
A7: Civ. ing. | C7: 524 | D7: 601 | E7: 314 | F7: 171 | G7: 65 | I7: 1675
A8: Diplom ing. | C8: 468 | D8: 681 | E8: 765 | F8: 983 | G8: 429 | I8: 3326
A9: Cand. Scient. Tek. | C9: 445 | D9: 693 | E9: 180 | F9: 57 | G9: 7 | I9: 1382
A10: MA. Hum. | C10: 458 | D10: 1185 | E10: 1100 | F10: 557 | G10: 185 | I10: 3485
A11: MA. Nat. | C11: 144 | D11: 297 | E11: 366 | F11: 294 | G11: 129 | I11: 1230
A12: MA. Ph.d. | C12: 3 | D12: 32 | E12: 65 | F12: 51 | G12: 9 | I12: 160
A13: MA. Samf. | C13: 66 | D13: 131 | E13: 36 | F13: 13 | G13: 1 | I13: 247
A14: Øvrige Mag. | C14: 57 | D14: 48 | E14: 52 | F14: 67 | G14: 35 | I14: 259
A15: Agronom | C15: 5 | D15: 19 | E15: 33 | F15: 50 | G15: 36 | I15: 143
A16: Landsk. Arkt. | C16: 1 | D16: 9 | E16: 12 | F16: 10 | G16: 1 | I16: 33
A17: Hortonom | C17: 0 | D17: 1 | E17: 4 | F17: 16 | G17: 12 | I17: 33
A18: Forstkand. | C18: 3 | D18: 1 | E18: 9 | F18: 6 | G18: 5 | I18: 24
A19: Jordbrugsakad. | C19: 9 | D19: 30 | E19: 58 | F19: 82 | G19: 54 | I19: 233
A20: Mejeriing. | C20: 0 | D20: 1 | E20: 4 | F20: 9 | G20: 1 | I20: 15
A21: Levn.m.kand. | C21: 6 | D21: 10 | E21: 2 | F21: 0 | G21: 0 | I21: 18
A22: Dyrlæge | C22: 28 | D22: 52 | E22: 37 | F22: 30 | G22: 8 | I22: 155
A23: Farmaceut | C23: 95 | D23: 109 | E23: 58 | F23: 24 | G23: 9 | I23: 295
A24: Læge | C24: 212 | D24: 615 | E24: 289 | F24: 166 | G24: 72 | I24: 1354
A25: Tandlæge | C25: 19 | D25: 35 | E25: 28 | F25: 17 | G25: 14 | I25: 113
A26: Arkitekt | C26: 12 | D26: 38 | E26: 42 | F26: 37 | G26: 26 | I26: 155
A27: Landinspek. | C27: 3 | D27: 16 | E27: 8 | F27: 27 | G27: 9 | I27: 63
A28: Bibliotekar | C28: 3 | D28: 35 | E28: 62 | F28: 56 | G28: 35 | I28: 191
A29: Musikudd. | C29: 1 | D29: 18 | E29: 18 | F29: 31 | G29: 27 | I29: 95
A30: Teolog | C30: 3 | D30: 18 | E30: 37 | F30: 36 | G30: 21 | I30: 115
A31: Psykolog | C31: 152 | D31: 242 | E31: 120 | F31: 66 | G31: 39 | I31: 619
A32: Jurist | C32: 78 | D32: 286 | E32: 181 | F32: 80 | G32: 36 | I32: 661
A33: Økonom | C33: 111 | D33: 207 | E33: 130 | F33: 130 | G33: 25 | I33: 603
A34: Samf. Adm. | C34: 255 | D34: 640 | E34: 388 | F34: 223 | G34: 70 | I34: 1576
A35: Cand. Merc. | C35: 415 | D35: 821 | E35: 367 | F35: 294 | G35: 62 | I35: 1959
A36: HA | C36: 117 | D36: 109 | E36: 45 | F36: 112 | G36: 46 | I36: 429
A37: HD | C37: 20 | D37: 58 | E37: 45 | F37: 97 | G37: 58 | I37: 278
A38: Komm. og Sprog | C38: 69 | D38: 119 | E38: 113 | F38: 73 | G38: 55 | I38: 429
A39: Bygninskonst. | C39: 142 | D39: 391 | E39: 245 | F39: 129 | G39: 35 | I39: 942
A40: Cand. IT. | C40: 43 | D40: 106 | E40: 65 | F40: 8 | G40: 0 | I40: 222
A41: Bac. Samf. | C41: 23 | D41: 22 | E41: 14 | F41: 13 | G41: 3 | I41: 75
A42: Bac. Hum. | C42: 262 | D42: 95 | E42: 70 | F42: 63 | G42: 15 | I42: 505
A43: Bac. Nat. | C43: 135 | D43: 89 | E43: 32 | F43: 15 | G43: 2 | I43: 273
A44: Andre | C44: 286 | D44: 454 | E44: 324 | F44: 239 | G44: 154 | I44: 1457
A46: Total | C46: 4664 | D46: 8284 | E46: 5660 | F46: 4250 | G46: 1736 | I46: 24594
A48: Ingeniører i alt | C48: 992 | D48: 1282 | E48: 1079 | F48: 1154 | G48: 494 | I48: 5001
A49: Magistre i alt | C49: 728 | D49: 1693 | E49: 1619 | F49: 982 | G49: 359 | I49: 5381
A50: DJØF'ere i alt | C50: 976 | D50: 2063 | E50: 1111 | F50: 839 | G50: 239 | I50: 5228
A57: Middelfart
C59: Under 30 år | D59: 30 - 39 år | E59: 40 - 49 år | F59: 50 - 59 år | G59: Over 60 år | I59: I alt
A61: Civ. ing. | C61: 16 | D61: 38 | E61: 39 | F61: 23 | G61: 6 | I61: 122
A62: Diplom ing. | C62: 21 | D62: 64 | E62: 64 | F62: 107 | G62: 50 | I62: 306
A63: Cand. Scient. Tek. | C63: 13 | D63: 32 | E63: 21 | F63: 7 | G63: 0 | I63: 73
A64: MA. Hum. | C64: 16 | D64: 59 | E64: 76 | F64: 34 | G64: 7 | I64: 192
A65: MA. Nat. | C65: 5 | D65: 20 | E65: 25 | F65: 20 | G65: 9 | I65: 79
A66: MA. Ph.d. | C66: 0 | D66: 1 | E66: 1 | F66: 2 | G66: 0 | I66: 4
A67: MA. Samf. | C67: 3 | D67: 13 | E67: 4 | F67: 1 | G67: 0 | I67: 21
A68: Øvrige Mag. | C68: 0 | D68: 2 | E68: 3 | F68: 2 | G68: 3 | I68: 10
A69: Agronom | C69: 1 | D69: 2 | E69: 6 | F69: 11 | G69: 8 | I69: 28
A70: Landsk. Arkt. | C70: 0 | D70: 0 | E70: 0 | F70: 1 | G70: 1 | I70: 2
A71: Hortonom | C71: 0 | D71: 0 | E71: 0 | F71: 2 | G71: 1 | I71: 3
A72: Forstkand. | C72: 1 | D72: 0 | E72: 1 | F72: 0 | G72: 0 | I72: 2
A73: Jordbrugsakad. | C73: 2 | D73: 2 | E73: 7 | F73: 14 | G73: 10 | I73: 35
A74: Mejeriing. | C74: 0 | D74: 0 | E74: 1 | F74: 3 | G74: 0 | I74: 4
A75: Levn.m.kand. | C75: 0 | D75: 2 | E75: 0 | F75: 0 | G75: 0 | I75: 2
A76: Dyrlæge | C76: 2 | D76: 6 | E76: 7 | F76: 2 | G76: 1 | I76: 18
A77: Farmaceut | C77: 1 | D77: 7 | E77: 2 | F77: 2 | G77: 1 | I77: 13
A78: Læge | C78: 9 | D78: 49 | E78: 33 | F78: 14 | G78: 5 | I78: 110
A79: Tandlæge | C79: 0 | D79: 1 | E79: 3 | F79: 4 | G79: 2 | I79: 10
A80: Arkitekt | C80: 0 | D80: 1 | E80: 5 | F80: 5 | G80: 1 | I80: 12
A81: Landinspek. | C81: 0 | D81: 3 | E81: 1 | F81: 9 | G81: 1 | I81: 14
A82: Bibliotekar | C82: 0 | D82: 3 | E82: 8 | F82: 2 | G82: 3 | I82: 16
A83: Musikudd. | C83: 0 | D83: 1 | E83: 0 | F83: 2 | G83: 2 | I83: 5
A84: Teolog | C84: 1 | D84: 3 | E84: 5 | F84: 4 | G84: 1 | I84: 14
A85: Psykolog | C85: 4 | D85: 19 | E85: 15 | F85: 9 | G85: 5 | I85: 52
A86: Jurist | C86: 9 | D86: 22 | E86: 15 | F86: 5 | G86: 4 | I86: 55
A87: Økonom | C87: 3 | D87: 13 | E87: 12 | F87: 16 | G87: 3 | I87: 47
A88: Samf. Adm. | C88: 3 | D88: 38 | E88: 34 | F88: 16 | G88: 3 | I88: 94
A89: Cand. Merc. | C89: 21 | D89: 60 | E89: 48 | F89: 28 | G89: 6 | I89: 163
A90: HA | C90: 2 | D90: 10 | E90: 5 | F90: 16 | G90: 4 | I90: 37
A91: HD | C91: 1 | D91: 7 | E91: 5 | F91: 7 | G91: 3 | I91: 23
A92: Komm. og Sprog | C92: 2 | D92: 6 | E92: 8 | F92: 8 | G92: 7 | I92: 31
A93: Bygningskonst. | C93: 11 | D93: 45 | E93: 22 | F93: 15 | G93: 2 | I93: 95
A94: Cand. IT. | C94: 2 | D94: 8 | E94: 3 | F94: 0 | G94: 0 | I94: 13
A95: Bac. Samf. | C95: 1 | D95: 2 | E95: 1 | F95: 1 | G95: 1 | I95: 6
A96: Bac. Hum. | C96: 5 | D96: 5 | E96: 2 | F96: 4 | G96: 0 | I96: 16
A97: Bac. Nat. | C97: 4 | D97: 8 | E97: 1 | F97: 1 | G97: 0 | I97: 14
A98: Andre | C98: 10 | D98: 25 | E98: 22 | F98: 20 | G98: 12 | I98: 89
A100: Total | C100: 167 | D100: 575 | E100: 498 | F100: 403 | G100: 152 | I100: 1795
A102: Ingeniører i alt | C102: 37 | D102: 102 | E102: 103 | F102: 130 | G102: 56 | I102: 428
A103: Magistre i alt | C103: 24 | D103: 95 | E103: 109 | F103: 59 | G103: 19 | I103: 306
A104: DJØF'ere i alt | C104: 38 | D104: 143 | E104: 114 | F104: 81 | G104: 20 | I104: 396
A111: Assens
C113: Under 30 år | D113: 30 - 39 år | E113: 40 - 49 år | F113: 50 - 59 år | G113: Over 60 år | I113: I alt
A115: Civ. ing. | C115: 5 | D115: 31 | E115: 18 | F115: 19 | G115: 6 | I115: 79
A116: Diplom ing. | C116: 13 | D116: 45 | E116: 61 | F116: 91 | G116: 40 | I116: 250
A117: Cand. Scient. Tek. | C117: 7 | D117: 26 | E117: 9 | F117: 2 | G117: 1 | I117: 45
A118: MA. Hum. | C118: 12 | D118: 45 | E118: 66 | F118: 25 | G118: 10 | I118: 158
A119: MA. Nat. | C119: 2 | D119: 15 | E119: 23 | F119: 13 | G119: 6 | I119: 59
A120: MA. Ph.d. | C120: 0 | D120: 0 | E120: 3 | F120: 1 | G120: 0 | I120: 4
A121: MA. Samf. | C121: 2 | D121: 3 | E121: 1 | F121: 1 | G121: 0 | I121: 7
A122: Øvrige Mag. | C122: 0 | D122: 0 | E122: 3 | F122: 2 | G122: 0 | I122: 5
A123: Agronom | C123: 2 | D123: 1 | E123: 5 | F123: 8 | G123: 2 | I123: 18
A124: Landsk. Arkt. | C124: 0 | D124: 2 | E124: 2 | F124: 3 | G124: 0 | I124: 7
A125: Hortonom | C125: 0 | D125: 0 | E125: 0 | F125: 2 | G125: 1 | I125: 3
A126: Forstkand. | C126: 2 | D126: 0 | E126: 2 | F126: 0 | G126: 1 | I126: 5
A127: Jordbrugsakad. | C127: 4 | D127: 3 | E127: 9 | F127: 13 | G127: 4 | I127: 33
A128: Mejeriing. | C128: 0 | D128: 0 | E128: 0 | F128: 1 | G128: 0 | I128: 1
A129: Levn.m.kand. | C129: 0 | D129: 1 | E129: 0 | F129: 0 | G129: 0 | I129: 1
A130: Dyrlæge | C130: 2 | D130: 5 | E130: 6 | F130: 4 | G130: 1 | I130: 18
A131: Farmaceut | C131: 0 | D131: 6 | E131: 6 | F131: 1 | G131: 0 | I131: 13
A132: Læge | C132: 3 | D132: 21 | E132: 12 | F132: 7 | G132: 0 | I132: 43
A133: Tandlæge | C133: 0 | D133: 2 | E133: 1 | F133: 2 | G133: 0 | I133: 5
A134: Arkitekt | C134: 0 | D134: 1 | E134: 2 | F134: 1 | G134: 1 | I134: 5
A135: Landinspek. | C135: 0 | D135: 1 | E135: 0 | F135: 2 | G135: 0 | I135: 3
A136: Bibliotekar | C136: 1 | D136: 2 | E136: 3 | F136: 5 | G136: 4 | I136: 15
A137: Musikudd. | C137: 0 | D137: 2 | E137: 1 | F137: 3 | G137: 6 | I137: 12
A138: Teolog | C138: 0 | D138: 2 | E138: 3 | F138: 2 | G138: 3 | I138: 10
A139: Psykolog | C139: 4 | D139: 8 | E139: 7 | F139: 2 | G139: 4 | I139: 25
A140: Jurist | C140: 2 | D140: 12 | E140: 9 | F140: 6 | G140: 2 | I140: 31
A141: Økonom | C141: 2 | D141: 6 | E141: 4 | F141: 8 | G141: 0 | I141: 20
A142: Samf. Adm. | C142: 4 | D142: 22 | E142: 17 | F142: 16 | G142: 7 | I142: 66
A143: Cand. Merc. | C143: 8 | D143: 17 | E143: 20 | F143: 19 | G143: 3 | I143: 67
A144: HA | C144: 4 | D144: 4 | E144: 3 | F144: 12 | G144: 2 | I144: 25
A145: HD | C145: 1 | D145: 0 | E145: 4 | F145: 8 | G145: 4 | I145: 17
A146: Komm. og Sprog | C146: 2 | D146: 4 | E146: 7 | F146: 5 | G146: 2 | I146: 20
A147: Bygningskonst. | C147: 4 | D147: 25 | E147: 18 | F147: 10 | G147: 4 | I147: 61
A148: Cand. IT. | C148: 3 | D148: 3 | E148: 2 | F148: 0 | G148: 0 | I148: 8
A149: Bac. Samf. | C149: 0 | D149: 0 | E149: 1 | F149: 1 | G149: 0 | I149: 2
A150: Bac. Hum. | C150: 0 | D150: 8 | E150: 3 | F150: 3 | G150: 1 | I150: 15
A151: Bac. Nat. | C151: 1 | D151: 4 | E151: 2 | F151: 0 | G151: 0 | I151: 7
A152: Andre | C152: 12 | D152: 29 | E152: 19 | F152: 15 | G152: 9 | I152: 84
A154: Total | C154: 98 | D154: 353 | E154: 343 | F154: 300 | G154: 120 | I154: 1214
A156: Ingeniører i alt | C156: 18 | D156: 76 | E156: 79 | F156: 110 | G156: 46 | I156: 329
A157: Magistre i alt | C157: 16 | D157: 63 | E157: 96 | F157: 42 | G157: 16 | I157: 233
A158: DJØF'ere i alt | C158: 20 | D158: 61 | E158: 53 | F158: 61 | G158: 14 | I158: 209
A165: Faaborg-Midtfyn
C167: Under 30 år | D167: 30 - 39 år | E167: 40 - 49 år | F167: 50 - 59 år | G167: Over 60 år | I167: I alt
A169: Civ. ing. | C169: 14 | D169: 53 | E169: 22 | F169: 8 | G169: 7 | I169: 104
A170: Diplom ing. | C170: 23 | D170: 55 | E170: 67 | F170: 92 | G170: 46 | I170: 283
A171: Cand. Scient. Tek. | C171: 14 | D171: 55 | E171: 3 | F171: 7 | G171: 1 | I171: 80
A172: MA. Hum. | C172: 15 | D172: 73 | E172: 73 | F172: 32 | G172: 16 | I172: 209
A173: MA. Nat. | C173: 3 | D173: 19 | E173: 28 | F173: 23 | G173: 5 | I173: 78
A174: MA. Ph.d. | C174: 0 | D174: 3 | E174: 5 | F174: 2 | G174: 0 | I174: 10
A175: MA. Samf. | C175: 2 | D175: 4 | E175: 1 | F175: 0 | G175: 0 | I175: 7
A176: Øvrige Mag. | C176: 1 | D176: 3 | E176: 2 | F176: 6 | G176: 2 | I176: 14
A177: Agronom | C177: 1 | D177: 4 | E177: 3 | F177: 6 | G177: 11 | I177: 25
A178: Landsk. Arkt. | C178: 1 | D178: 1 | E178: 2 | F178: 3 | G178: 0 | I178: 7
A179: Hortonom | C179: 0 | D179: 0 | E179: 0 | F179: 0 | G179: 3 | I179: 3
A180: Forstkand. | C180: 0 | D180: 1 | E180: 2 | F180: 1 | G180: 3 | I180: 7
A181: Jordbrugsakad. | C181: 2 | D181: 6 | E181: 7 | F181: 10 | G181: 17 | I181: 42
A182: Mejeriing. | C182: 0 | D182: 0 | E182: 1 | F182: 2 | G182: 0 | I182: 3
A183: Levn.m.kand. | C183: 2 | D183: 2 | E183: 1 | F183: 0 | G183: 0 | I183: 5
A184: Dyrlæge | C184: 6 | D184: 5 | E184: 2 | F184: 3 | G184: 1 | I184: 17
A185: Farmaceut | C185: 5 | D185: 9 | E185: 6 | F185: 1 | G185: 1 | I185: 22
A186: Læge | C186: 1 | D186: 21 | E186: 16 | F186: 8 | G186: 3 | I186: 49
A187: Tandlæge | C187: 1 | D187: 1 | E187: 1 | F187: 0 | G187: 0 | I187: 3
A188: Arkitekt | C188: 0 | D188: 1 | E188: 4 | F188: 1 | G188: 6 | I188: 12
A189: Landinspek. | C189: 1 | D189: 1 | E189: 0 | F189: 1 | G189: 1 | I189: 4
A190: Bibliotekar | C190: 0 | D190: 2 | E190: 3 | F190: 5 | G190: 2 | I190: 12
A191: Musikudd. | C191: 0 | D191: 3 | E191: 2 | F191: 1 | G191: 4 | I191: 10
A192: Teolog | C192: 0 | D192: 0 | E192: 4 | F192: 0 | G192: 4 | I192: 8
A193: Psykolog | C193: 2 | D193: 11 | E193: 6 | F193: 2 | G193: 2 | I193: 23
A194: Jurist | C194: 2 | D194: 15 | E194: 10 | F194: 8 | G194: 4 | I194: 39
A195: Økonom | C195: 5 | D195: 9 | E195: 7 | F195: 6 | G195: 2 | I195: 29
A196: Samf. Adm. | C196: 9 | D196: 33 | E196: 26 | F196: 20 | G196: 2 | I196: 90
A197: Cand. Merc. | C197: 6 | D197: 39 | E197: 15 | F197: 18 | G197: 2 | I197: 80
A198: HA | C198: 3 | D198: 8 | E198: 2 | F198: 12 | G198: 2 | I198: 27
A199: HD | C199: 0 | D199: 2 | E199: 2 | F199: 9 | G199: 8 | I199: 21
A200: Komm. og Sprog | C200: 1 | D200: 4 | E200: 6 | F200: 3 | G200: 3 | I200: 17
A201: Bygningskonst. | C201: 7 | D201: 29 | E201: 22 | F201: 12 | G201: 8 | I201: 78
A202: Cand. IT. | C202: 0 | D202: 3 | E202: 7 | F202: 2 | G202: 0 | I202: 12
A203: Bac. Samf. | C203: 3 | D203: 3 | E203: 1 | F203: 2 | G203: 0 | I203: 9
A204: Bac. Hum. | C204: 6 | D204: 4 | E204: 7 | F204: 3 | G204: 2 | I204: 22
A205: Bac. Nat. | C205: 4 | D205: 5 | E205: 1 | F205: 2 | G205: 0 | I205: 12
A206: Andre | C206: 9 | D206: 28 | E206: 30 | F206: 24 | G206: 18 | I206: 109
A208: Total | C208: 147 | D208: 509 | E208: 390 | F208: 325 | G208: 169 | I208: 1540
A210: Ingeniører i alt | C210: 37 | D210: 108 | E210: 89 | F210: 100 | G210: 53 | I210: 387
A211: Magistre i alt | C211: 21 | D211: 102 | E211: 109 | F211: 63 | G211: 23 | I211: 318
A212: DJØF'ere i alt | C212: 25 | D212: 104 | E212: 60 | F212: 64 | G212: 12 | I212: 265
A219: Kerteminde
C221: Under 30 år | D221: 30 - 39 år | E221: 40 - 49 år | F221: 50 - 59 år | G221: Over 60 år | I221: I alt
A223: Civ. ing. | C223: 5 | D223: 4 | E223: 14 | F223: 8 | G223: 3 | I223: 34
A224: Diplom ing. | C224: 15 | D224: 23 | E224: 29 | F224: 61 | G224: 30 | I224: 158
A225: Cand. Scient. Tek. | C225: 10 | D225: 22 | E225: 5 | F225: 4 | G225: 1 | I225: 42
A226: MA. Hum. | C226: 9 | D226: 35 | E226: 38 | F226: 25 | G226: 6 | I226: 113
A227: MA. Nat. | C227: 2 | D227: 5 | E227: 7 | F227: 13 | G227: 4 | I227: 31
A228: MA. Ph.d. | C228: 0 | D228: 2 | E228: 2 | F228: 3 | G228: 0 | I228: 7
A229: MA. Samf. | C229: 1 | D229: 3 | E229: 0 | F229: 0 | G229: 0 | I229: 4
A230: Øvrige Mag. | C230: 1 | D230: 0 | E230: 0 | F230: 2 | G230: 3 | I230: 6
A231: Agronom | C231: 0 | D231: 0 | E231: 0 | F231: 3 | G231: 0 | I231: 3
A232: Landsk. Arkt. | C232: 0 | D232: 1 | E232: 0 | F232: 2 | G232: 0 | I232: 3
A233: Hortonom | C233: 0 | D233: 0 | E233: 0 | F233: 2 | G233: 1 | I233: 3
A234: Forstkand. | C234: 0 | D234: 0 | E234: 0 | F234: 1 | G234: 0 | I234: 1
A235: Jordbrugsakad. | C235: 0 | D235: 1 | E235: 0 | F235: 8 | G235: 1 | I235: 10
A236: Mejeriing. | C236: 0 | D236: 0 | E236: 0 | F236: 0 | G236: 0 | I236: 0
A237: Levn.m.kand. | C237: 0 | D237: 0 | E237: 0 | F237: 0 | G237: 0 | I237: 0
A238: Dyrlæge | C238: 0 | D238: 0 | E238: 2 | F238: 0 | G238: 0 | I238: 2
A239: Farmaceut | C239: 0 | D239: 1 | E239: 0 | F239: 1 | G239: 1 | I239: 3
A240: Læge | C240: 1 | D240: 6 | E240: 6 | F240: 3 | G240: 1 | I240: 17
A241: Tandlæge | C241: 0 | D241: 1 | E241: 1 | F241: 0 | G241: 1 | I241: 3
A242: Arkitekt | C242: 0 | D242: 1 | E242: 0 | F242: 2 | G242: 1 | I242: 4
A243: Landinspek. | C243: 0 | D243: 1 | E243: 0 | F243: 3 | G243: 1 | I243: 5
... 285 more rows

Sheet Tabel 4 F
A1: Tabel 4. Ledighedsberørte - aldersfordelt
A3: Fyn
C5: Under 30 år | D5: 30 - 39 år | E5: 40 - 49 år | F5: 50 - 59 år | G5: Over 60 år | I5: I alt
A7: Civ. ing. | C7: 32 | D7: 13 | E7: 0 | F7: 2 | G7: 0 | I7: 47
A8: Diplom ing. | C8: 38 | D8: 15 | E8: 3 | F8: 16 | G8: 7 | I8: 79
A9: Cand. Scient. Tek | C9: 30 | D9: 29 | E9: 4 | F9: 1 | G9: 1 | I9: 65
A10: MA. Hum. | C10: 90 | D10: 112 | E10: 43 | F10: 22 | G10: 13 | I10: 280
A11: MA. Nat. | C11: 14 | D11: 10 | E11: 2 | F11: 2 | G11: 6 | I11: 34
A12: MA. Ph.d. | C12: 2 | D12: 0 | E12: 3 | F12: 2 | G12: 1 | I12: 8
A13: MA. Samf. | C13: 15 | D13: 13 | E13: 1 | F13: 0 | G13: 0 | I13: 29
A14: Øvrige Mag. | C14: 14 | D14: 6 | E14: 2 | F14: 3 | G14: 0 | I14: 25
A15: Agronom | C15: 0 | D15: 1 | E15: 1 | F15: 1 | G15: 1 | I15: 4
A16: Landsk. Arkt. | C16: 0 | D16: 0 | E16: 0 | F16: 0 | G16: 0 | I16: 0
A17: Hortonom | C17: 0 | D17: 0 | E17: 0 | F17: 1 | G17: 0 | I17: 1
A18: Forstkand. | C18: 0 | D18: 0 | E18: 0 | F18: 0 | G18: 0 | I18: 0
A19: Jordbrugsakad. | C19: 0 | D19: 1 | E19: 1 | F19: 2 | G19: 1 | I19: 5
A20: Mejeriing. | C20: 0 | D20: 0 | E20: 0 | F20: 0 | G20: 0 | I20: 0
A21: Levn.m.kand. | C21: 0 | D21: 1 | E21: 0 | F21: 0 | G21: 0 | I21: 1
A22: Dyrlæge | C22: 0 | D22: 0 | E22: 0 | F22: 0 | G22: 0 | I22: 0
A23: Farmaceut | C23: 7 | D23: 5 | E23: 0 | F23: 0 | G23: 1 | I23: 13
A24: Læge | C24: 5 | D24: 6 | E24: 1 | F24: 0 | G24: 0 | I24: 12
A25: Tandlæge | C25: 0 | D25: 0 | E25: 0 | F25: 0 | G25: 0 | I25: 0
A26: Arkitekt | C26: 0 | D26: 2 | E26: 0 | F26: 2 | G26: 1 | I26: 5
A27: Landinspek. | C27: 0 | D27: 0 | E27: 0 | F27: 0 | G27: 0 | I27: 0
A28: Bibliotekar | C28: 0 | D28: 2 | E28: 0 | F28: 0 | G28: 0 | I28: 2
A29: Musikudd. | C29: 0 | D29: 1 | E29: 0 | F29: 0 | G29: 1 | I29: 2
A30: Teolog | C30: 0 | D30: 0 | E30: 4 | F30: 0 | G30: 0 | I30: 4
A31: Psykolog | C31: 13 | D31: 8 | E31: 1 | F31: 0 | G31: 0 | I31: 22
A32: Jurist | C32: 0 | D32: 4 | E32: 1 | F32: 0 | G32: 1 | I32: 6
A33: Økonom | C33: 1 | D33: 2 | E33: 0 | F33: 1 | G33: 0 | I33: 4
A34: Samf. Adm. | C34: 27 | D34: 24 | E34: 15 | F34: 7 | G34: 3 | I34: 76
A35: Cand. Merc. | C35: 31 | D35: 29 | E35: 7 | F35: 9 | G35: 1 | I35: 77
A36: HA | C36: 21 | D36: 8 | E36: 2 | F36: 2 | G36: 3 | I36: 36
A37: HD | C37: 1 | D37: 0 | E37: 0 | F37: 1 | G37: 4 | I37: 6
A38: Komm. og Sprog | C38: 10 | D38: 5 | E38: 4 | F38: 2 | G38: 1 | I38: 22
A39: Bygningskonst. | C39: 6 | D39: 7 | E39: 6 | F39: 1 | G39: 0 | I39: 20
A40: Cand. IT. | C40: 4 | D40: 13 | E40: 3 | F40: 0 | G40: 0 | I40: 20
A41: Bac. Samf. | C41: 3 | D41: 3 | E41: 1 | F41: 1 | G41: 1 | I41: 9
A42: Bac. Hum. | C42: 24 | D42: 9 | E42: 2 | F42: 2 | G42: 1 | I42: 38
A43: Bac. Nat. | C43: 17 | D43: 3 | E43: 0 | F43: 1 | G43: 1 | I43: 22
A44: Andre | C44: 23 | D44: 18 | E44: 9 | F44: 6 | G44: 14 | I44: 70
A46: Total | C46: 428 | D46: 349 | E46: 115 | F46: 85 | G46: 62 | I46: 1039
A48: Ingeniører i alt | C48: 70 | D48: 28 | E48: 3 | F48: 18 | G48: 7 | I48: 126
A49: Magistre i alt | C49: 135 | D49: 141 | E49: 51 | F49: 29 | G49: 20 | I49: 376
A50: DJØF'ere i alt | C50: 80 | D50: 67 | E50: 25 | F50: 19 | G50: 8 | I50: 199
A57: Middelfart
C59: Under 30 år | D59: 30 - 39 år | E59: 40 - 49 år | F59: 50 - 59 år | G59: Over 60 år | I59: I alt
A61: Civ. ing. | C61: 0 | D61: 0 | E61: 0 | F61: 0 | G61: 0 | I61: 0
A62: Diplom ing. | C62: 2 | D62: 0 | E62: 0 | F62: 0 | G62: 2 | I62: 4
A63: Cand. Scient. Tek | C63: 0 | D63: 2 | E63: 0 | F63: 0 | G63: 0 | I63: 2
A64: MA. Hum. | C64: 3 | D64: 3 | E64: 0 | F64: 1 | G64: 0 | I64: 7
A65: MA. Nat. | C65: 0 | D65: 1 | E65: 0 | F65: 0 | G65: 1 | I65: 2
A66: MA. Ph.d. | C66: 0 | D66: 0 | E66: 0 | F66: 0 | G66: 0 | I66: 0
A67: MA. Samf. | C67: 0 | D67: 1 | E67: 0 | F67: 0 | G67: 0 | I67: 1
A68: Øvrige Mag. | C68: 0 | D68: 0 | E68: 0 | F68: 1 | G68: 0 | I68: 1
A69: Agronom | C69: 0 | D69: 0 | E69: 0 | F69: 0 | G69: 0 | I69: 0
A70: Landsk. Arkt. | C70: 0 | D70: 0 | E70: 0 | F70: 0 | G70: 0 | I70: 0
A71: Hortonom | C71: 0 | D71: 0 | E71: 0 | F71: 0 | G71: 0 | I71: 0
A72: Forstkand. | C72: 0 | D72: 0 | E72: 0 | F72: 0 | G72: 0 | I72: 0
A73: Jordbrugsakad. | C73: 0 | D73: 0 | E73: 0 | F73: 0 | G73: 0 | I73: 0
A74: Mejeriing. | C74: 0 | D74: 0 | E74: 0 | F74: 0 | G74: 0 | I74: 0
A75: Levn.m.kand. | C75: 0 | D75: 1 | E75: 0 | F75: 0 | G75: 0 | I75: 1
A76: Dyrlæge | C76: 0 | D76: 0 | E76: 0 | F76: 0 | G76: 0 | I76: 0
A77: Farmaceut | C77: 0 | D77: 0 | E77: 0 | F77: 0 | G77: 0 | I77: 0
A78: Læge | C78: 0 | D78: 1 | E78: 0 | F78: 0 | G78: 0 | I78: 1
A79: Tandlæge | C79: 0 | D79: 0 | E79: 0 | F79: 0 | G79: 0 | I79: 0
A80: Arkitekt | C80: 0 | D80: 0 | E80: 0 | F80: 1 | G80: 0 | I80: 1
A81: Landinspek. | C81: 0 | D81: 0 | E81: 0 | F81: 0 | G81: 0 | I81: 0
A82: Bibliotekar | C82: 0 | D82: 0 | E82: 0 | F82: 0 | G82: 0 | I82: 0
A83: Musikudd. | C83: 0 | D83: 0 | E83: 0 | F83: 0 | G83: 0 | I83: 0
A84: Teolog | C84: 0 | D84: 0 | E84: 2 | F84: 0 | G84: 0 | I84: 2
A85: Psykolog | C85: 0 | D85: 0 | E85: 0 | F85: 0 | G85: 0 | I85: 0
A86: Jurist | C86: 0 | D86: 0 | E86: 0 | F86: 0 | G86: 0 | I86: 0
A87: Økonom | C87: 0 | D87: 0 | E87: 0 | F87: 0 | G87: 0 | I87: 0
A88: Samf. Adm. | C88: 0 | D88: 0 | E88: 0 | F88: 1 | G88: 0 | I88: 1
A89: Cand. Merc. | C89: 2 | D89: 1 | E89: 0 | F89: 0 | G89: 0 | I89: 3
A90: HA | C90: 0 | D90: 1 | E90: 0 | F90: 0 | G90: 0 | I90: 1
A91: HD | C91: 0 | D91: 0 | E91: 0 | F91: 0 | G91: 0 | I91: 0
A92: Komm. og Sprog | C92: 0 | D92: 0 | E92: 0 | F92: 0 | G92: 0 | I92: 0
A93: Bygningskonst. | C93: 0 | D93: 0 | E93: 0 | F93: 0 | G93: 0 | I93: 0
A94: Cand. IT. | C94: 0 | D94: 1 | E94: 0 | F94: 0 | G94: 0 | I94: 1
A95: Bac. Samf. | C95: 0 | D95: 0 | E95: 0 | F95: 0 | G95: 1 | I95: 1
A96: Bac. Hum. | C96: 0 | D96: 0 | E96: 0 | F96: 0 | G96: 0 | I96: 0
A97: Bac. Nat. | C97: 0 | D97: 0 | E97: 0 | F97: 0 | G97: 0 | I97: 0
A98: Andre | C98: 0 | D98: 1 | E98: 0 | F98: 0 | G98: 0 | I98: 1
A100: Total | C100: 7 | D100: 13 | E100: 2 | F100: 4 | G100: 4 | I100: 30
A102: Ingeniører i alt | C102: 2 | D102: 0 | E102: 0 | F102: 0 | G102: 2 | I102: 4
A103: Magistre i alt | C103: 3 | D103: 5 | E103: 0 | F103: 2 | G103: 1 | I103: 11
A104: DJØF'ere i alt | C104: 2 | D104: 2 | E104: 0 | F104: 1 | G104: 0 | I104: 5
A111: Assens
C113: Under 30 år | D113: 30 - 39 år | E113: 40 - 49 år | F113: 50 - 59 år | G113: Over 60 år | I113: I alt
A115: Civ. ing. | C115: 1 | D115: 0 | E115: 0 | F115: 0 | G115: 0 | I115: 1
A116: Diplom ing. | C116: 1 | D116: 0 | E116: 1 | F116: 1 | G116: 1 | I116: 4
A117: Cand. Scient. Tek | C117: 0 | D117: 0 | E117: 0 | F117: 0 | G117: 0 | I117: 0
A118: MA. Hum. | C118: 0 | D118: 3 | E118: 1 | F118: 2 | G118: 0 | I118: 6
A119: MA. Nat. | C119: 1 | D119: 1 | E119: 2 | F119: 0 | G119: 0 | I119: 4
A120: MA. Ph.d. | C120: 0 | D120: 0 | E120: 0 | F120: 0 | G120: 0 | I120: 0
A121: MA. Samf. | C121: 0 | D121: 0 | E121: 0 | F121: 0 | G121: 0 | I121: 0
A122: Øvrige Mag. | C122: 0 | D122: 0 | E122: 0 | F122: 0 | G122: 0 | I122: 0
A123: Agronom | C123: 0 | D123: 0 | E123: 0 | F123: 0 | G123: 0 | I123: 0
A124: Landsk. Arkt. | C124: 0 | D124: 0 | E124: 0 | F124: 0 | G124: 0 | I124: 0
A125: Hortonom | C125: 0 | D125: 0 | E125: 0 | F125: 0 | G125: 0 | I125: 0
A126: Forstkand. | C126: 0 | D126: 0 | E126: 0 | F126: 0 | G126: 0 | I126: 0
A127: Jordbrugsakad. | C127: 0 | D127: 0 | E127: 0 | F127: 0 | G127: 0 | I127: 0
A128: Mejeriing. | C128: 0 | D128: 0 | E128: 0 | F128: 0 | G128: 0 | I128: 0
A129: Levn.m.kand. | C129: 0 | D129: 0 | E129: 0 | F129: 0 | G129: 0 | I129: 0
A130: Dyrlæge | C130: 0 | D130: 0 | E130: 0 | F130: 0 | G130: 0 | I130: 0
A131: Farmaceut | C131: 0 | D131: 0 | E131: 0 | F131: 0 | G131: 0 | I131: 0
A132: Læge | C132: 0 | D132: 0 | E132: 0 | F132: 0 | G132: 0 | I132: 0
A133: Tandlæge | C133: 0 | D133: 0 | E133: 0 | F133: 0 | G133: 0 | I133: 0
A134: Arkitekt | C134: 0 | D134: 0 | E134: 0 | F134: 0 | G134: 0 | I134: 0
A135: Landinspek. | C135: 0 | D135: 0 | E135: 0 | F135: 0 | G135: 0 | I135: 0
A136: Bibliotekar | C136: 0 | D136: 0 | E136: 0 | F136: 0 | G136: 0 | I136: 0
A137: Musikudd. | C137: 0 | D137: 0 | E137: 0 | F137: 0 | G137: 1 | I137: 1
A138: Teolog | C138: 0 | D138: 0 | E138: 0 | F138: 0 | G138: 0 | I138: 0
A139: Psykolog | C139: 0 | D139: 0 | E139: 0 | F139: 0 | G139: 0 | I139: 0
A140: Jurist | C140: 0 | D140: 0 | E140: 1 | F140: 0 | G140: 0 | I140: 1
A141: Økonom | C141: 0 | D141: 0 | E141: 0 | F141: 0 | G141: 0 | I141: 0
A142: Samf. Adm. | C142: 2 | D142: 1 | E142: 0 | F142: 0 | G142: 0 | I142: 3
A143: Cand. Merc. | C143: 0 | D143: 1 | E143: 0 | F143: 0 | G143: 0 | I143: 1
A144: HA | C144: 0 | D144: 0 | E144: 0 | F144: 0 | G144: 0 | I144: 0
A145: HD | C145: 0 | D145: 0 | E145: 0 | F145: 0 | G145: 1 | I145: 1
A146: Komm. og Sprog | C146: 0 | D146: 0 | E146: 0 | F146: 0 | G146: 0 | I146: 0
A147: Bygningskonst. | C147: 0 | D147: 0 | E147: 1 | F147: 0 | G147: 0 | I147: 1
A148: Cand. IT. | C148: 0 | D148: 0 | E148: 0 | F148: 0 | G148: 0 | I148: 0
A149: Bac. Samf. | C149: 0 | D149: 0 | E149: 0 | F149: 0 | G149: 0 | I149: 0
A150: Bac. Hum. | C150: 0 | D150: 1 | E150: 0 | F150: 0 | G150: 0 | I150: 1
A151: Bac. Nat. | C151: 1 | D151: 0 | E151: 0 | F151: 0 | G151: 0 | I151: 1
A152: Andre | C152: 0 | D152: 0 | E152: 0 | F152: 0 | G152: 1 | I152: 1
A154: Total | C154: 6 | D154: 7 | E154: 6 | F154: 3 | G154: 4 | I154: 26
A156: Ingeniører i alt | C156: 2 | D156: 0 | E156: 1 | F156: 1 | G156: 1 | I156: 5
A157: Magistre i alt | C157: 1 | D157: 4 | E157: 3 | F157: 2 | G157: 0 | I157: 10
A158: DJØF'ere i alt | C158: 2 | D158: 2 | E158: 1 | F158: 0 | G158: 0 | I158: 5
A165: Faaborg-Midtfyn
C167: Under 30 år | D167: 30 - 39 år | E167: 40 - 49 år | F167: 50 - 59 år | G167: Over 60 år | I167: I alt
A169: Civ. ing. | C169: 1 | D169: 2 | E169: 0 | F169: 0 | G169: 0 | I169: 3
A170: Diplom ing. | C170: 2 | D170: 0 | E170: 1 | F170: 3 | G170: 1 | I170: 7
A171: Cand. Scient. Tek | C171: 0 | D171: 4 | E171: 0 | F171: 0 | G171: 0 | I171: 4
A172: MA. Hum. | C172: 5 | D172: 2 | E172: 3 | F172: 1 | G172: 0 | I172: 11
A173: MA. Nat. | C173: 0 | D173: 1 | E173: 0 | F173: 0 | G173: 1 | I173: 2
A174: MA. Ph.d. | C174: 0 | D174: 0 | E174: 1 | F174: 0 | G174: 0 | I174: 1
A175: MA. Samf. | C175: 0 | D175: 1 | E175: 0 | F175: 0 | G175: 0 | I175: 1
A176: Øvrige Mag. | C176: 0 | D176: 0 | E176: 0 | F176: 0 | G176: 0 | I176: 0
A177: Agronom | C177: 0 | D177: 0 | E177: 1 | F177: 0 | G177: 1 | I177: 2
A178: Landsk. Arkt. | C178: 0 | D178: 0 | E178: 0 | F178: 0 | G178: 0 | I178: 0
A179: Hortonom | C179: 0 | D179: 0 | E179: 0 | F179: 0 | G179: 0 | I179: 0
A180: Forstkand. | C180: 0 | D180: 0 | E180: 0 | F180: 0 | G180: 0 | I180: 0
A181: Jordbrugsakad. | C181: 0 | D181: 0 | E181: 1 | F181: 0 | G181: 1 | I181: 2
A182: Mejeriing. | C182: 0 | D182: 0 | E182: 0 | F182: 0 | G182: 0 | I182: 0
A183: Levn.m.kand. | C183: 0 | D183: 0 | E183: 0 | F183: 0 | G183: 0 | I183: 0
A184: Dyrlæge | C184: 0 | D184: 0 | E184: 0 | F184: 0 | G184: 0 | I184: 0
A185: Farmaceut | C185: 0 | D185: 0 | E185: 0 | F185: 0 | G185: 0 | I185: 0
A186: Læge | C186: 0 | D186: 0 | E186: 0 | F186: 0 | G186: 0 | I186: 0
A187: Tandlæge | C187: 0 | D187: 0 | E187: 0 | F187: 0 | G187: 0 | I187: 0
A188: Arkitekt | C188: 0 | D188: 0 | E188: 0 | F188: 0 | G188: 1 | I188: 1
A189: Landinspek. | C189: 0 | D189: 0 | E189: 0 | F189: 0 | G189: 0 | I189: 0
A190: Bibliotekar | C190: 0 | D190: 0 | E190: 0 | F190: 0 | G190: 0 | I190: 0
A191: Musikudd. | C191: 0 | D191: 0 | E191: 0 | F191: 0 | G191: 0 | I191: 0
A192: Teolog | C192: 0 | D192: 0 | E192: 0 | F192: 0 | G192: 0 | I192: 0
A193: Psykolog | C193: 0 | D193: 1 | E193: 0 | F193: 0 | G193: 0 | I193: 1
A194: Jurist | C194: 0 | D194: 0 | E194: 0 | F194: 0 | G194: 0 | I194: 0
A195: Økonom | C195: 0 | D195: 0 | E195: 0 | F195: 0 | G195: 0 | I195: 0
A196: Samf. Adm. | C196: 1 | D196: 2 | E196: 2 | F196: 0 | G196: 0 | I196: 5
A197: Cand. Merc. | C197: 1 | D197: 1 | E197: 0 | F197: 0 | G197: 0 | I197: 2
A198: HA | C198: 0 | D198: 0 | E198: 0 | F198: 0 | G198: 1 | I198: 1
A199: HD | C199: 0 | D199: 0 | E199: 0 | F199: 0 | G199: 0 | I199: 0
A200: Komm. og Sprog | C200: 0 | D200: 0 | E200: 1 | F200: 0 | G200: 0 | I200: 1
A201: Bygningskonst. | C201: 0 | D201: 1 | E201: 1 | F201: 0 | G201: 0 | I201: 2
A202: Cand. IT. | C202: 0 | D202: 3 | E202: 0 | F202: 0 | G202: 0 | I202: 3
A203: Bac. Samf. | C203: 0 | D203: 0 | E203: 0 | F203: 0 | G203: 0 | I203: 0
A204: Bac. Hum. | C204: 1 | D204: 0 | E204: 0 | F204: 0 | G204: 0 | I204: 1
A205: Bac. Nat. | C205: 1 | D205: 0 | E205: 0 | F205: 0 | G205: 0 | I205: 1
A206: Andre | C206: 0 | D206: 0 | E206: 0 | F206: 1 | G206: 3 | I206: 4
A208: Total | C208: 12 | D208: 18 | E208: 10 | F208: 5 | G208: 8 | I208: 53
A210: Ingeniører i alt | C210: 3 | D210: 2 | E210: 1 | F210: 3 | G210: 1 | I210: 10
A211: Magistre i alt | C211: 5 | D211: 4 | E211: 4 | F211: 1 | G211: 1 | I211: 15
A212: DJØF'ere i alt | C212: 2 | D212: 3 | E212: 2 | F212: 0 | G212: 1 | I212: 8
A219: Kerteminde
C221: Under 30 år | D221: 30 - 39 år | E221: 40 - 49 år | F221: 50 - 59 år | G221: Over 60 år | I221: I alt
A223: Civ. ing. | C223: 0 | D223: 0 | E223: 0 | F223: 0 | G223: 0 | I223: 0
A224: Diplom ing. | C224: 2 | D224: 0 | E224: 0 | F224: 0 | G224: 0 | I224: 2
A225: Cand. Scient. Tek | C225: 1 | D225: 0 | E225: 0 | F225: 0 | G225: 0 | I225: 1
A226: MA. Hum. | C226: 2 | D226: 3 | E226: 3 | F226: 1 | G226: 1 | I226: 10
A227: MA. Nat. | C227: 0 | D227: 0 | E227: 0 | F227: 1 | G227: 1 | I227: 2
A228: MA. Ph.d. | C228: 0 | D228: 0 | E228: 0 | F228: 0 | G228: 0 | I228: 0
A229: MA. Samf. | C229: 0 | D229: 0 | E229: 0 | F229: 0 | G229: 0 | I229: 0
A230: Øvrige Mag. | C230: 0 | D230: 0 | E230: 0 | F230: 0 | G230: 0 | I230: 0
A231: Agronom | C231: 0 | D231: 0 | E231: 0 | F231: 0 | G231: 0 | I231: 0
A232: Landsk. Arkt. | C232: 0 | D232: 0 | E232: 0 | F232: 0 | G232: 0 | I232: 0
A233: Hortonom | C233: 0 | D233: 0 | E233: 0 | F233: 0 | G233: 0 | I233: 0
A234: Forstkand. | C234: 0 | D234: 0 | E234: 0 | F234: 0 | G234: 0 | I234: 0
A235: Jordbrugsakad. | C235: 0 | D235: 0 | E235: 0 | F235: 0 | G235: 0 | I235: 0
A236: Mejeriing. | C236: 0 | D236: 0 | E236: 0 | F236: 0 | G236: 0 | I236: 0
A237: Levn.m.kand. | C237: 0 | D237: 0 | E237: 0 | F237: 0 | G237: 0 | I237: 0
A238: Dyrlæge | C238: 0 | D238: 0 | E238: 0 | F238: 0 | G238: 0 | I238: 0
A239: Farmaceut | C239: 0 | D239: 0 | E239: 0 | F239: 0 | G239: 0 | I239: 0
A240: Læge | C240: 0 | D240: 0 | E240: 0 | F240: 0 | G240: 0 | I240: 0
A241: Tandlæge | C241: 0 | D241: 0 | E241: 0 | F241: 0 | G241: 0 | I241: 0
A242: Arkitekt | C242: 0 | D242: 0 | E242: 0 | F242: 0 | G242: 0 | I242: 0
A243: Landinspek. | C243: 0 | D243: 0 | E243: 0 | F243: 0 | G243: 0 | I243: 0
... 285 more rows

Sheet Tabel 4(Br) F
A1: Tabel 4. Ledighedsberørte - aldersfordelt
A3: Fyn
C5: Under 30 år | D5: 30 - 39 år | E5: 40 - 49 år | F5: 50 - 59 år | G5: Over 60 år | I5: I alt
A7: Civ. ing. | C7: 29.65009668 | D7: 10.81768852 | E7: 0 | F7: 1.90731616 | G7: 0 | I7: 42.37510135
A8: Diplom ing. | C8: 34.8874197 | D8: 11.73392378 | E8: 2.408158174 | F8: 14.40154681 | G8: 6.820931828 | I8: 70.25198029
A9: Cand. Scient. Tek | C9: 25.67766482 | D9: 24.96725504 | E9: 3.030000624 | F9: 0.9998128859 | G9: 0.9998128859 | I9: 55.67454625
A10: MA. Hum. | C10: 72.9738664 | D10: 91.19254039 | E10: 38.96713029 | F10: 16.29825984 | G10: 11.37528847 | I10: 230.8070854
A11: MA. Nat. | C11: 13.30505832 | D11: 7.464604254 | E11: 1.793800287 | F11: 1.999625772 | G11: 5.49242188 | I11: 30.05551051
A12: MA. Ph.d. | C12: 1.861161355 | D12: 0 | E12: 2.814819435 | F12: 0.7503274496 | G12: 0.9998128859 | I12: 6.426121125
A13: MA. Samf. | C13: 12.82916485 | D13: 11.3035614 | E13: 0.9998128859 | F13: 0 | G13: 0 | I13: 25.13253914
A14: Øvrige Mag. | C14: 11.02975114 | D14: 5.923407971 | E14: 1.999625772 | F14: 2.077589971 | G14: 0 | I14: 21.03037485
A15: Agronom | C15: 0 | D15: 0.9998128859 | E15: 0.9998128859 | F15: 0.9998128859 | G15: 0.1228715774 | I15: 3.122310235
A16: Landsk. Arkt. | C16: 0 | D16: 0 | E16: 0 | F16: 0 | G16: 0 | I16: 0
A17: Hortonom | C17: 0 | D17: 0 | E17: 0 | F17: 0.3854549991 | G17: 0 | I17: 0.3854549991
A18: Forstkand. | C18: 0 | D18: 0 | E18: 0 | F18: 0 | G18: 0 | I18: 0
A19: Jordbrugsakad. | C19: 0 | D19: 0.9998128859 | E19: 0.9998128859 | F19: 1.385267885 | G19: 0.1228715774 | I19: 3.507765234
A20: Mejeriing. | C20: 0 | D20: 0 | E20: 0 | F20: 0 | G20: 0 | I20: 0
A21: Levn.m.kand. | C21: 0 | D21: 0.2114389073 | E21: 0 | F21: 0 | G21: 0 | I21: 0.2114389073
A22: Dyrlæge | C22: 0 | D22: 0 | E22: 0 | F22: 0 | G22: 0 | I22: 0
A23: Farmaceut | C23: 6.26021331 | D23: 4.269319528 | E23: 0 | F23: 0 | G23: 0.9998128859 | I23: 11.52934572
A24: Læge | C24: 4.11151999 | D24: 4.891161978 | E24: 0.9998128859 | F24: 0 | G24: 0 | I24: 10.00249485
A25: Tandlæge | C25: 0 | D25: 0 | E25: 0 | F25: 0 | G25: 0 | I25: 0
A26: Arkitekt | C26: 0 | D26: 1.90731616 | E26: 0 | F26: 1.999625772 | G26: 0.608120751 | I26: 4.515062683
A27: Landinspek. | C27: 0 | D27: 0 | E27: 0 | F27: 0 | G27: 0 | I27: 0
A28: Bibliotekar | C28: 0 | D28: 1.810640554 | E28: 0 | F28: 0 | G28: 0 | I28: 1.810640554
A29: Musikudd. | C29: 0 | D29: 0.9998128859 | E29: 0 | F29: 0 | G29: 0.3343104846 | I29: 1.334123371
A30: Teolog | C30: 0 | D30: 0 | E30: 2.858479386 | F30: 0 | G30: 0 | I30: 2.858479386
A31: Psykolog | C31: 10.67485811 | D31: 6.229651344 | E31: 0.3012536643 | F31: 0 | G31: 0 | I31: 17.20576311
A32: Jurist | C32: 0 | D32: 3.922534772 | E32: 0.9075032745 | F32: 0 | G32: 0.8151936631 | I32: 5.64523171
A33: Økonom | C33: 0.4459552174 | D33: 1.999625772 | E33: 0 | F33: 0.5382648288 | G33: 0 | I33: 2.983845818
A34: Samf. Adm. | C34: 23.32065116 | D34: 22.87531965 | E34: 12.30711657 | F34: 6.086820932 | G34: 2.999438658 | I34: 67.58934697
A35: Cand. Merc. | C35: 27.00180877 | D35: 26.0805838 | E35: 5.600948045 | F35: 8.471901703 | G35: 0.8413896339 | I35: 67.99663195
A36: HA | C36: 19.54593651 | D36: 6.807210129 | E36: 1.953470966 | F36: 1.305432545 | G36: 2.774901765 | I36: 32.38695191
A37: HD | C37: 0.9998128859 | D37: 0 | E37: 0 | F37: 0.9075032745 | G37: 3.999251544 | I37: 5.906567704
A38: Komm. og Sprog | C38: 7.888105782 | D38: 4.41901079 | E38: 3.860787127 | F38: 1.999625772 | G38: 0.9075032745 | I38: 19.07503274
A39: Bygningskonst. | C39: 4.270442213 | D39: 6.247988524 | E39: 5.766731117 | F39: 1 | G39: 0 | I39: 17.28516185
A40: Cand. IT. | C40: 3.999251544 | D40: 11.49691262 | E40: 2.877814508 | F40: 0 | G40: 0 | I40: 18.37397867
A41: Bac. Samf. | C41: 2.376972494 | D41: 2.768664629 | E41: 0.9998128859 | F41: 0.9998128859 | G41: 0.9998128859 | I41: 8.145075781
A42: Bac. Hum. | C42: 19.69874634 | D42: 8.395808645 | E42: 1.651593588 | F42: 1.90731616 | G42: 0.4135221106 | I42: 32.06698684
A43: Bac. Nat. | C43: 15.83671178 | D43: 2.768664629 | E43: 0 | F43: 0.9998128859 | G43: 0.9998128859 | I43: 20.60500218
A44: Andre | C44: 20.36549616 | D44: 14.02170523 | E44: 7.817002432 | F44: 5.333374914 | G44: 11.78319716 | I44: 59.3207759
A46: Total | C46: 369.0106655 | D46: 296.5261648 | E46: 100.9154868 | F46: 71.36923845 | G46: 54.28740722 | I46: 892.1089628
A48: Ingeniører i alt | C48: 64.53751637 | D48: 22.5516123 | E48: 2.408158174 | F48: 16.30886297 | G48: 6.820931828 | I48: 112.6270816
A49: Magistre i alt | C49: 111.9990021 | D49: 115.884114 | E49: 46.57518867 | F49: 21.12580303 | G49: 17.86752323 | I49: 313.451631
A50: DJØF'ere i alt | C50: 70.31435165 | D50: 61.68527412 | E50: 20.76903886 | F50: 16.40242001 | G50: 7.43092372 | I50: 176.6020084
A57: Middelfart
C59: Under 30 år | D59: 30 - 39 år | E59: 40 - 49 år | F59: 50 - 59 år | G59: Over 60 år | I59: I alt
A61: Civ. ing. | C61: 0 | D61: 0 | E61: 0 | F61: 0 | G61: 0 | I61: 0
A62: Diplom ing. | C62: 1.999625772 | D62: 0 | E62: 0 | F62: 0 | G62: 1.999625772 | I62: 3.999251544
A63: Cand. Scient. Tek | C63: 0 | D63: 1.669681282 | E63: 0 | F63: 0 | G63: 0 | I63: 1.669681282
A64: MA. Hum. | C64: 2.519179193 | D64: 2.962015842 | E64: 0 | F64: 0.3162227905 | G64: 0 | I64: 5.797417826
A65: MA. Nat. | C65: 0 | D65: 0.9998128859 | E65: 0 | F65: 0 | G65: 0.9998128859 | I65: 1.999625772
A66: MA. Ph.d. | C66: 0 | D66: 0 | E66: 0 | F66: 0 | G66: 0 | I66: 0
A67: MA. Samf. | C67: 0 | D67: 0.9075032745 | E67: 0 | F67: 0 | G67: 0 | I67: 0.9075032745
A68: Øvrige Mag. | C68: 0 | D68: 0 | E68: 0 | F68: 0.2276554606 | G68: 0 | I68: 0.2276554606
A69: Agronom | C69: 0 | D69: 0 | E69: 0 | F69: 0 | G69: 0 | I69: 0
A70: Landsk. Arkt. | C70: 0 | D70: 0 | E70: 0 | F70: 0 | G70: 0 | I70: 0
A71: Hortonom | C71: 0 | D71: 0 | E71: 0 | F71: 0 | G71: 0 | I71: 0
A72: Forstkand. | C72: 0 | D72: 0 | E72: 0 | F72: 0 | G72: 0 | I72: 0
A73: Jordbrugsakad. | C73: 0 | D73: 0 | E73: 0 | F73: 0 | G73: 0 | I73: 0
A74: Mejeriing. | C74: 0 | D74: 0 | E74: 0 | F74: 0 | G74: 0 | I74: 0
A75: Levn.m.kand. | C75: 0 | D75: 0.2114389073 | E75: 0 | F75: 0 | G75: 0 | I75: 0.2114389073
A76: Dyrlæge | C76: 0 | D76: 0 | E76: 0 | F76: 0 | G76: 0 | I76: 0
A77: Farmaceut | C77: 0 | D77: 0 | E77: 0 | F77: 0 | G77: 0 | I77: 0
A78: Læge | C78: 0 | D78: 0.9998128859 | E78: 0 | F78: 0 | G78: 0 | I78: 0.9998128859
A79: Tandlæge | C79: 0 | D79: 0 | E79: 0 | F79: 0 | G79: 0 | I79: 0
A80: Arkitekt | C80: 0 | D80: 0 | E80: 0 | F80: 0.9998128859 | G80: 0 | I80: 0.9998128859
A81: Landinspek. | C81: 0 | D81: 0 | E81: 0 | F81: 0 | G81: 0 | I81: 0
A82: Bibliotekar | C82: 0 | D82: 0 | E82: 0 | F82: 0 | G82: 0 | I82: 0
A83: Musikudd. | C83: 0 | D83: 0 | E83: 0 | F83: 0 | G83: 0 | I83: 0
A84: Teolog | C84: 0 | D84: 0 | E84: 1.181937254 | F84: 0 | G84: 0 | I84: 1.181937254
A85: Psykolog | C85: 0 | D85: 0 | E85: 0 | F85: 0 | G85: 0 | I85: 0
A86: Jurist | C86: 0 | D86: 0 | E86: 0 | F86: 0 | G86: 0 | I86: 0
A87: Økonom | C87: 0 | D87: 0 | E87: 0 | F87: 0 | G87: 0 | I87: 0
A88: Samf. Adm. | C88: 0 | D88: 0 | E88: 0 | F88: 0.9998128859 | G88: 0 | I88: 0.9998128859
A89: Cand. Merc. | C89: 1.676542132 | D89: 0.9998128859 | E89: 0 | F89: 0 | G89: 0 | I89: 2.676355018
A90: HA | C90: 0 | D90: 0.4459552174 | E90: 0 | F90: 0 | G90: 0 | I90: 0.4459552174
A91: HD | C91: 0 | D91: 0 | E91: 0 | F91: 0 | G91: 0 | I91: 0
A92: Komm. og Sprog | C92: 0 | D92: 0 | E92: 0 | F92: 0 | G92: 0 | I92: 0
A93: Bygningskonst. | C93: 0 | D93: 0 | E93: 0 | F93: 0 | G93: 0 | I93: 0
A94: Cand. IT. | C94: 0 | D94: 0.9998128859 | E94: 0 | F94: 0 | G94: 0 | I94: 0.9998128859
A95: Bac. Samf. | C95: 0 | D95: 0 | E95: 0 | F95: 0 | G95: 0.9998128859 | I95: 0.9998128859
A96: Bac. Hum. | C96: 0 | D96: 0 | E96: 0 | F96: 0 | G96: 0 | I96: 0
A97: Bac. Nat. | C97: 0 | D97: 0 | E97: 0 | F97: 0 | G97: 0 | I97: 0
A98: Andre | C98: 0 | D98: 0.6885798042 | E98: 0 | F98: 0 | G98: 0 | I98: 0.6885798042
A100: Total | C100: 6.195347097 | D100: 10.88442587 | E100: 1.181937254 | F100: 2.543504023 | G100: 3.999251544 | I100: 24.80446579
A102: Ingeniører i alt | C102: 1.999625772 | D102: 0 | E102: 0 | F102: 0 | G102: 1.999625772 | I102: 3.999251544
A103: Magistre i alt | C103: 2.519179193 | D103: 4.869332003 | E103: 0 | F103: 0.5438782511 | G103: 0.9998128859 | I103: 8.932202333
A104: DJØF'ere i alt | C104: 1.676542132 | D104: 1.445768103 | E104: 0 | F104: 0.9998128859 | G104: 0 | I104: 4.122123121
A111: Assens
C113: Under 30 år | D113: 30 - 39 år | E113: 40 - 49 år | F113: 50 - 59 år | G113: Over 60 år | I113: I alt
A115: Civ. ing. | C115: 0.9998128859 | D115: 0 | E115: 0 | F115: 0 | G115: 0 | I115: 0.9998128859
A116: Diplom ing. | C116: 0.9998128859 | D116: 0 | E116: 0.9748643423 | F116: 0.9998128859 | G116: 0.9998128859 | I116: 3.974303
A117: Cand. Scient. Tek | C117: 0 | D117: 0 | E117: 0 | F117: 0 | G117: 0 | I117: 0
A118: MA. Hum. | C118: 0 | D118: 2.999438658 | E118: 0.594399052 | F118: 1.999625772 | G118: 0 | I118: 5.593463482
A119: MA. Nat. | C119: 0.9998128859 | D119: 0.5694505083 | E119: 1.793800287 | F119: 0 | G119: 0 | I119: 3.363063681
A120: MA. Ph.d. | C120: 0 | D120: 0 | E120: 0 | F120: 0 | G120: 0 | I120: 0
A121: MA. Samf. | C121: 0 | D121: 0 | E121: 0 | F121: 0 | G121: 0 | I121: 0
A122: Øvrige Mag. | C122: 0 | D122: 0 | E122: 0 | F122: 0 | G122: 0 | I122: 0
A123: Agronom | C123: 0 | D123: 0 | E123: 0 | F123: 0 | G123: 0 | I123: 0
A124: Landsk. Arkt. | C124: 0 | D124: 0 | E124: 0 | F124: 0 | G124: 0 | I124: 0
A125: Hortonom | C125: 0 | D125: 0 | E125: 0 | F125: 0 | G125: 0 | I125: 0
A126: Forstkand. | C126: 0 | D126: 0 | E126: 0 | F126: 0 | G126: 0 | I126: 0
A127: Jordbrugsakad. | C127: 0 | D127: 0 | E127: 0 | F127: 0 | G127: 0 | I127: 0
A128: Mejeriing. | C128: 0 | D128: 0 | E128: 0 | F128: 0 | G128: 0 | I128: 0
A129: Levn.m.kand. | C129: 0 | D129: 0 | E129: 0 | F129: 0 | G129: 0 | I129: 0
A130: Dyrlæge | C130: 0 | D130: 0 | E130: 0 | F130: 0 | G130: 0 | I130: 0
A131: Farmaceut | C131: 0 | D131: 0 | E131: 0 | F131: 0 | G131: 0 | I131: 0
A132: Læge | C132: 0 | D132: 0 | E132: 0 | F132: 0 | G132: 0 | I132: 0
A133: Tandlæge | C133: 0 | D133: 0 | E133: 0 | F133: 0 | G133: 0 | I133: 0
A134: Arkitekt | C134: 0 | D134: 0 | E134: 0 | F134: 0 | G134: 0 | I134: 0
A135: Landinspek. | C135: 0 | D135: 0 | E135: 0 | F135: 0 | G135: 0 | I135: 0
A136: Bibliotekar | C136: 0 | D136: 0 | E136: 0 | F136: 0 | G136: 0 | I136: 0
A137: Musikudd. | C137: 0 | D137: 0 | E137: 0 | F137: 0 | G137: 0.3343104846 | I137: 0.3343104846
A138: Teolog | C138: 0 | D138: 0 | E138: 0 | F138: 0 | G138: 0 | I138: 0
A139: Psykolog | C139: 0 | D139: 0 | E139: 0 | F139: 0 | G139: 0 | I139: 0
A140: Jurist | C140: 0 | D140: 0 | E140: 0.9075032745 | F140: 0 | G140: 0 | I140: 0.9075032745
A141: Økonom | C141: 0 | D141: 0 | E141: 0 | F141: 0 | G141: 0 | I141: 0
A142: Samf. Adm. | C142: 1.999625772 | D142: 0.9998128859 | E142: 0 | F142: 0 | G142: 0 | I142: 2.999438658
A143: Cand. Merc. | C143: 0 | D143: 0.9998128859 | E143: 0 | F143: 0 | G143: 0 | I143: 0.9998128859
A144: HA | C144: 0 | D144: 0 | E144: 0 | F144: 0 | G144: 0 | I144: 0
A145: HD | C145: 0 | D145: 0 | E145: 0 | F145: 0 | G145: 0.9998128859 | I145: 0.9998128859
A146: Komm. og Sprog | C146: 0 | D146: 0 | E146: 0 | F146: 0 | G146: 0 | I146: 0
A147: Bygningskonst. | C147: 0 | D147: 0 | E147: 0.8128859228 | F147: 0 | G147: 0 | I147: 0.8128859228
A148: Cand. IT. | C148: 0 | D148: 0 | E148: 0 | F148: 0 | G148: 0 | I148: 0
A149: Bac. Samf. | C149: 0 | D149: 0 | E149: 0 | F149: 0 | G149: 0 | I149: 0
A150: Bac. Hum. | C150: 0 | D150: 0.9998128859 | E150: 0 | F150: 0 | G150: 0 | I150: 0.9998128859
A151: Bac. Nat. | C151: 0.9998128859 | D151: 0 | E151: 0 | F151: 0 | G151: 0 | I151: 0.9998128859
A152: Andre | C152: 0 | D152: 0 | E152: 0 | F152: 0 | G152: 0.9998128859 | I152: 0.9998128859
A154: Total | C154: 5.998877316 | D154: 6.568327824 | E154: 5.083452878 | F154: 2.999438658 | G154: 3.333749142 | I154: 23.98384582
A156: Ingeniører i alt | C156: 1.999625772 | D156: 0 | E156: 0.9748643423 | F156: 0.9998128859 | G156: 0.9998128859 | I156: 4.974115886
A157: Magistre i alt | C157: 0.9998128859 | D157: 3.568889166 | E157: 2.388199339 | F157: 1.999625772 | G157: 0 | I157: 8.956527163
A158: DJØF'ere i alt | C158: 1.999625772 | D158: 1.999625772 | E158: 0.9075032745 | F158: 0 | G158: 0 | I158: 4.906754818
A165: Faaborg-Midtfyn
C167: Under 30 år | D167: 30 - 39 år | E167: 40 - 49 år | F167: 50 - 59 år | G167: Over 60 år | I167: I alt
A169: Civ. ing. | C169: 0.9998128859 | D169: 1.23495291 | E169: 0 | F169: 0 | G169: 0 | I169: 2.234765796
A170: Diplom ing. | C170: 1.999625772 | D170: 0 | E170: 0.4459552174 | F170: 2.015218612 | G170: 0.9075032745 | I170: 5.368302875
A171: Cand. Scient. Tek | C171: 0 | D171: 3.131042225 | E171: 0 | F171: 0 | G171: 0 | I171: 3.131042225
A172: MA. Hum. | C172: 4.306742344 | D172: 0.6424249984 | E172: 2.814819435 | F172: 0.9075032745 | G172: 0 | I172: 8.671490052
A173: MA. Nat. | C173: 0 | D173: 0.4459552174 | E173: 0 | F173: 0 | G173: 0.9998128859 | I173: 1.445768103
A174: MA. Ph.d. | C174: 0 | D174: 0 | E174: 0.9998128859 | F174: 0 | G174: 0 | I174: 0.9998128859
A175: MA. Samf. | C175: 0 | D175: 0.9998128859 | E175: 0 | F175: 0 | G175: 0 | I175: 0.9998128859
A176: Øvrige Mag. | C176: 0 | D176: 0 | E176: 0 | F176: 0 | G176: 0 | I176: 0
A177: Agronom | C177: 0 | D177: 0 | E177: 0.9998128859 | F177: 0 | G177: 0.1228715774 | I177: 1.122684463
A178: Landsk. Arkt. | C178: 0 | D178: 0 | E178: 0 | F178: 0 | G178: 0 | I178: 0
A179: Hortonom | C179: 0 | D179: 0 | E179: 0 | F179: 0 | G179: 0 | I179: 0
A180: Forstkand. | C180: 0 | D180: 0 | E180: 0 | F180: 0 | G180: 0 | I180: 0
A181: Jordbrugsakad. | C181: 0 | D181: 0 | E181: 0.9998128859 | F181: 0 | G181: 0.1228715774 | I181: 1.122684463
A182: Mejeriing. | C182: 0 | D182: 0 | E182: 0 | F182: 0 | G182: 0 | I182: 0
A183: Levn.m.kand. | C183: 0 | D183: 0 | E183: 0 | F183: 0 | G183: 0 | I183: 0
A184: Dyrlæge | C184: 0 | D184: 0 | E184: 0 | F184: 0 | G184: 0 | I184: 0
A185: Farmaceut | C185: 0 | D185: 0 | E185: 0 | F185: 0 | G185: 0 | I185: 0
A186: Læge | C186: 0 | D186: 0 | E186: 0 | F186: 0 | G186: 0 | I186: 0
A187: Tandlæge | C187: 0 | D187: 0 | E187: 0 | F187: 0 | G187: 0 | I187: 0
A188: Arkitekt | C188: 0 | D188: 0 | E188: 0 | F188: 0 | G188: 0.608120751 | I188: 0.608120751
A189: Landinspek. | C189: 0 | D189: 0 | E189: 0 | F189: 0 | G189: 0 | I189: 0
A190: Bibliotekar | C190: 0 | D190: 0 | E190: 0 | F190: 0 | G190: 0 | I190: 0
A191: Musikudd. | C191: 0 | D191: 0 | E191: 0 | F191: 0 | G191: 0 | I191: 0
A192: Teolog | C192: 0 | D192: 0 | E192: 0 | F192: 0 | G192: 0 | I192: 0
A193: Psykolog | C193: 0 | D193: 0.4072849747 | E193: 0 | F193: 0 | G193: 0 | I193: 0.4072849747
A194: Jurist | C194: 0 | D194: 0 | E194: 0 | F194: 0 | G194: 0 | I194: 0
A195: Økonom | C195: 0 | D195: 0 | E195: 0 | F195: 0 | G195: 0 | I195: 0
A196: Samf. Adm. | C196: 0.5844196345 | D196: 1.768851743 | E196: 1.999625772 | F196: 0 | G196: 0 | I196: 4.35289715
A197: Cand. Merc. | C197: 0.9075032745 | D197: 0.7403480322 | E197: 0 | F197: 0 | G197: 0 | I197: 1.647851307
A198: HA | C198: 0 | D198: 0 | E198: 0 | F198: 0 | G198: 0.862595896 | I198: 0.862595896
A199: HD | C199: 0 | D199: 0 | E199: 0 | F199: 0 | G199: 0 | I199: 0
A200: Komm. og Sprog | C200: 0 | D200: 0 | E200: 0.9536580802 | F200: 0 | G200: 0 | I200: 0.9536580802
A201: Bygningskonst. | C201: 0 | D201: 0.4922971372 | E201: 0.9538451943 | F201: 0 | G201: 0 | I201: 1.446142331
A202: Cand. IT. | C202: 0 | D202: 2.295889727 | E202: 0 | F202: 0 | G202: 0 | I202: 2.295889727
A203: Bac. Samf. | C203: 0 | D203: 0 | E203: 0 | F203: 0 | G203: 0 | I203: 0
A204: Bac. Hum. | C204: 0.7690388574 | D204: 0 | E204: 0 | F204: 0 | G204: 0 | I204: 0.7690388574
A205: Bac. Nat. | C205: 0.9998128859 | D205: 0 | E205: 0 | F205: 0 | G205: 0 | I205: 0.9998128859
A206: Andre | C206: 0 | D206: 0 | E206: 0 | F206: 0.9998128859 | G206: 2.415642737 | I206: 3.415455623
A208: Total | C208: 10.56695565 | D208: 12.15885985 | E208: 9.16752947 | F208: 3.922534772 | G208: 5.916547122 | I208: 41.73242687
A210: Ingeniører i alt | C210: 2.999438658 | D210: 1.23495291 | E210: 0.4459552174 | F210: 2.015218612 | G210: 0.9075032745 | I210: 7.603068671
A211: Magistre i alt | C211: 4.306742344 | D211: 2.088193102 | E211: 3.814632321 | F211: 0.9075032745 | G211: 0.9998128859 | I211: 12.11688393
A212: DJØF'ere i alt | C212: 1.491922909 | D212: 2.509199775 | E212: 1.999625772 | F212: 0 | G212: 0.862595896 | I212: 6.863344352
A219: Kerteminde
C221: Under 30 år | D221: 30 - 39 år | E221: 40 - 49 år | F221: 50 - 59 år | G221: Over 60 år | I221: I alt
A223: Civ. ing. | C223: 0 | D223: 0 | E223: 0 | F223: 0 | G223: 0 | I223: 0
A224: Diplom ing. | C224: 1.999625772 | D224: 0 | E224: 0 | F224: 0 | G224: 0 | I224: 1.999625772
A225: Cand. Scient. Tek | C225: 0.9998128859 | D225: 0 | E225: 0 | F225: 0 | G225: 0 | I225: 0.9998128859
A226: MA. Hum. | C226: 1.521861161 | D226: 1.937878126 | E226: 2.49610179 | F226: 0.5844196345 | G226: 0.6655024013 | I226: 7.205763114
A227: MA. Nat. | C227: 0 | D227: 0 | E227: 0 | F227: 0.9998128859 | G227: 0.9998128859 | I227: 1.999625772
A228: MA. Ph.d. | C228: 0 | D228: 0 | E228: 0 | F228: 0 | G228: 0 | I228: 0
A229: MA. Samf. | C229: 0 | D229: 0 | E229: 0 | F229: 0 | G229: 0 | I229: 0
A230: Øvrige Mag. | C230: 0 | D230: 0 | E230: 0 | F230: 0 | G230: 0 | I230: 0
A231: Agronom | C231: 0 | D231: 0 | E231: 0 | F231: 0 | G231: 0 | I231: 0
A232: Landsk. Arkt. | C232: 0 | D232: 0 | E232: 0 | F232: 0 | G232: 0 | I232: 0
A233: Hortonom | C233: 0 | D233: 0 | E233: 0 | F233: 0 | G233: 0 | I233: 0
A234: Forstkand. | C234: 0 | D234: 0 | E234: 0 | F234: 0 | G234: 0 | I234: 0
A235: Jordbrugsakad. | C235: 0 | D235: 0 | E235: 0 | F235: 0 | G235: 0 | I235: 0
A236: Mejeriing. | C236: 0 | D236: 0 | E236: 0 | F236: 0 | G236: 0 | I236: 0
A237: Levn.m.kand. | C237: 0 | D237: 0 | E237: 0 | F237: 0 | G237: 0 | I237: 0
A238: Dyrlæge | C238: 0 | D238: 0 | E238: 0 | F238: 0 | G238: 0 | I238: 0
A239: Farmaceut | C239: 0 | D239: 0 | E239: 0 | F239: 0 | G239: 0 | I239: 0
A240: Læge | C240: 0 | D240: 0 | E240: 0 | F240: 0 | G240: 0 | I240: 0
A241: Tandlæge | C241: 0 | D241: 0 | E241: 0 | F241: 0 | G241: 0 | I241: 0
A242: Arkitekt | C242: 0 | D242: 0 | E242: 0 | F242: 0 | G242: 0 | I242: 0
A243: Landinspek. | C243: 0 | D243: 0 | E243: 0 | F243: 0 | G243: 0 | I243: 0
... 285 more rows

Sheet Tabel 4P F
A1: Tabel 4. Ledighedsberørte - aldersfordelt
A3: Fyn
C5: Under 30 år | D5: 30 - 39 år | E5: 40 - 49 år | F5: 50 - 59 år | G5: Over 60 år | I5: I alt
A7: Civ. ing. | C7: =IF(OR('Tabel 4F F'!C7<5,'Tabel 4 F'!C7<0.5),"-",IFERROR('Tabel 4 F'!C7/'Tabel 4F F'!C7*100,"-")) -> 6.106870229 | D7: =IF(OR('Tabel 4F F'!D7<5,'Tabel 4 F'!D7<0.5),"-",IFERROR('Tabel 4 F'!D7/'Tabel 4F F'!D7*100,"-")) -> 2.163061564 | E7: =IF(OR('Tabel 4F F'!E7<5,'Tabel 4 F'!E7<0.5),"-",IFERROR('Tabel 4 F'!E7/'Tabel 4F F'!E7*100,"-")) -> - | F7: =IF(OR('Tabel 4F F'!F7<5,'Tabel 4 F'!F7<0.5),"-",IFERROR('Tabel 4 F'!F7/'Tabel 4F F'!F7*100,"-")) -> 1.169590643 | G7: =IF(OR('Tabel 4F F'!G7<5,'Tabel 4 F'!G7<0.5),"-",IFERROR('Tabel 4 F'!G7/'Tabel 4F F'!G7*100,"-")) -> - | I7: =IF(OR('Tabel 4F F'!I7<5,'Tabel 4 F'!I7<0.5),"-",IFERROR('Tabel 4 F'!I7/'Tabel 4F F'!I7*100,"-")) -> 2.805970149
A8: Diplom ing. | C8: =IF(OR('Tabel 4F F'!C8<5,'Tabel 4 F'!C8<0.5),"-",IFERROR('Tabel 4 F'!C8/'Tabel 4F F'!C8*100,"-")) -> 8.11965812 | D8: =IF(OR('Tabel 4F F'!D8<5,'Tabel 4 F'!D8<0.5),"-",IFERROR('Tabel 4 F'!D8/'Tabel 4F F'!D8*100,"-")) -> 2.202643172 | E8: =IF(OR('Tabel 4F F'!E8<5,'Tabel 4 F'!E8<0.5),"-",IFERROR('Tabel 4 F'!E8/'Tabel 4F F'!E8*100,"-")) -> 0.3921568627 | F8: =IF(OR('Tabel 4F F'!F8<5,'Tabel 4 F'!F8<0.5),"-",IFERROR('Tabel 4 F'!F8/'Tabel 4F F'!F8*100,"-")) -> 1.627670397 | G8: =IF(OR('Tabel 4F F'!G8<5,'Tabel 4 F'!G8<0.5),"-",IFERROR('Tabel 4 F'!G8/'Tabel 4F F'!G8*100,"-")) -> 1.631701632 | I8: =IF(OR('Tabel 4F F'!I8<5,'Tabel 4 F'!I8<0.5),"-",IFERROR('Tabel 4 F'!I8/'Tabel 4F F'!I8*100,"-")) -> 2.375225496
A9: Cand. Scient. Tek | C9: =IF(OR('Tabel 4F F'!C9<5,'Tabel 4 F'!C9<0.5),"-",IFERROR('Tabel 4 F'!C9/'Tabel 4F F'!C9*100,"-")) -> 6.741573034 | D9: =IF(OR('Tabel 4F F'!D9<5,'Tabel 4 F'!D9<0.5),"-",IFERROR('Tabel 4 F'!D9/'Tabel 4F F'!D9*100,"-")) -> 4.184704185 | E9: =IF(OR('Tabel 4F F'!E9<5,'Tabel 4 F'!E9<0.5),"-",IFERROR('Tabel 4 F'!E9/'Tabel 4F F'!E9*100,"-")) -> 2.222222222 | F9: =IF(OR('Tabel 4F F'!F9<5,'Tabel 4 F'!F9<0.5),"-",IFERROR('Tabel 4 F'!F9/'Tabel 4F F'!F9*100,"-")) -> 1.754385965 | G9: =IF(OR('Tabel 4F F'!G9<5,'Tabel 4 F'!G9<0.5),"-",IFERROR('Tabel 4 F'!G9/'Tabel 4F F'!G9*100,"-")) -> 14.28571429 | I9: =IF(OR('Tabel 4F F'!I9<5,'Tabel 4 F'!I9<0.5),"-",IFERROR('Tabel 4 F'!I9/'Tabel 4F F'!I9*100,"-")) -> 4.703328509
A10: MA. Hum. | C10: =IF(OR('Tabel 4F F'!C10<5,'Tabel 4 F'!C10<0.5),"-",IFERROR('Tabel 4 F'!C10/'Tabel 4F F'!C10*100,"-")) -> 19.65065502 | D10: =IF(OR('Tabel 4F F'!D10<5,'Tabel 4 F'!D10<0.5),"-",IFERROR('Tabel 4 F'!D10/'Tabel 4F F'!D10*100,"-")) -> 9.451476793 | E10: =IF(OR('Tabel 4F F'!E10<5,'Tabel 4 F'!E10<0.5),"-",IFERROR('Tabel 4 F'!E10/'Tabel 4F F'!E10*100,"-")) -> 3.909090909 | F10: =IF(OR('Tabel 4F F'!F10<5,'Tabel 4 F'!F10<0.5),"-",IFERROR('Tabel 4 F'!F10/'Tabel 4F F'!F10*100,"-")) -> 3.9497307 | G10: =IF(OR('Tabel 4F F'!G10<5,'Tabel 4 F'!G10<0.5),"-",IFERROR('Tabel 4 F'!G10/'Tabel 4F F'!G10*100,"-")) -> 7.027027027 | I10: =IF(OR('Tabel 4F F'!I10<5,'Tabel 4 F'!I10<0.5),"-",IFERROR('Tabel 4 F'!I10/'Tabel 4F F'!I10*100,"-")) -> 8.034433286
A11: MA. Nat. | C11: =IF(OR('Tabel 4F F'!C11<5,'Tabel 4 F'!C11<0.5),"-",IFERROR('Tabel 4 F'!C11/'Tabel 4F F'!C11*100,"-")) -> 9.722222222 | D11: =IF(OR('Tabel 4F F'!D11<5,'Tabel 4 F'!D11<0.5),"-",IFERROR('Tabel 4 F'!D11/'Tabel 4F F'!D11*100,"-")) -> 3.367003367 | E11: =IF(OR('Tabel 4F F'!E11<5,'Tabel 4 F'!E11<0.5),"-",IFERROR('Tabel 4 F'!E11/'Tabel 4F F'!E11*100,"-")) -> 0.5464480874 | F11: =IF(OR('Tabel 4F F'!F11<5,'Tabel 4 F'!F11<0.5),"-",IFERROR('Tabel 4 F'!F11/'Tabel 4F F'!F11*100,"-")) -> 0.6802721088 | G11: =IF(OR('Tabel 4F F'!G11<5,'Tabel 4 F'!G11<0.5),"-",IFERROR('Tabel 4 F'!G11/'Tabel 4F F'!G11*100,"-")) -> 4.651162791 | I11: =IF(OR('Tabel 4F F'!I11<5,'Tabel 4 F'!I11<0.5),"-",IFERROR('Tabel 4 F'!I11/'Tabel 4F F'!I11*100,"-")) -> 2.764227642
A12: MA. Ph.d. | C12: =IF(OR('Tabel 4F F'!C12<5,'Tabel 4 F'!C12<0.5),"-",IFERROR('Tabel 4 F'!C12/'Tabel 4F F'!C12*100,"-")) -> - | D12: =IF(OR('Tabel 4F F'!D12<5,'Tabel 4 F'!D12<0.5),"-",IFERROR('Tabel 4 F'!D12/'Tabel 4F F'!D12*100,"-")) -> - | E12: =IF(OR('Tabel 4F F'!E12<5,'Tabel 4 F'!E12<0.5),"-",IFERROR('Tabel 4 F'!E12/'Tabel 4F F'!E12*100,"-")) -> 4.615384615 | F12: =IF(OR('Tabel 4F F'!F12<5,'Tabel 4 F'!F12<0.5),"-",IFERROR('Tabel 4 F'!F12/'Tabel 4F F'!F12*100,"-")) -> 3.921568627 | G12: =IF(OR('Tabel 4F F'!G12<5,'Tabel 4 F'!G12<0.5),"-",IFERROR('Tabel 4 F'!G12/'Tabel 4F F'!G12*100,"-")) -> 11.11111111 | I12: =IF(OR('Tabel 4F F'!I12<5,'Tabel 4 F'!I12<0.5),"-",IFERROR('Tabel 4 F'!I12/'Tabel 4F F'!I12*100,"-")) -> 5
A13: MA. Samf. | C13: =IF(OR('Tabel 4F F'!C13<5,'Tabel 4 F'!C13<0.5),"-",IFERROR('Tabel 4 F'!C13/'Tabel 4F F'!C13*100,"-")) -> 22.72727273 | D13: =IF(OR('Tabel 4F F'!D13<5,'Tabel 4 F'!D13<0.5),"-",IFERROR('Tabel 4 F'!D13/'Tabel 4F F'!D13*100,"-")) -> 9.923664122 | E13: =IF(OR('Tabel 4F F'!E13<5,'Tabel 4 F'!E13<0.5),"-",IFERROR('Tabel 4 F'!E13/'Tabel 4F F'!E13*100,"-")) -> 2.777777778 | F13: =IF(OR('Tabel 4F F'!F13<5,'Tabel 4 F'!F13<0.5),"-",IFERROR('Tabel 4 F'!F13/'Tabel 4F F'!F13*100,"-")) -> - | G13: =IF(OR('Tabel 4F F'!G13<5,'Tabel 4 F'!G13<0.5),"-",IFERROR('Tabel 4 F'!G13/'Tabel 4F F'!G13*100,"-")) -> - | I13: =IF(OR('Tabel 4F F'!I13<5,'Tabel 4 F'!I13<0.5),"-",IFERROR('Tabel 4 F'!I13/'Tabel 4F F'!I13*100,"-")) -> 11.74089069
A14: Øvrige Mag. | C14: =IF(OR('Tabel 4F F'!C14<5,'Tabel 4 F'!C14<0.5),"-",IFERROR('Tabel 4 F'!C14/'Tabel 4F F'!C14*100,"-")) -> 24.56140351 | D14: =IF(OR('Tabel 4F F'!D14<5,'Tabel 4 F'!D14<0.5),"-",IFERROR('Tabel 4 F'!D14/'Tabel 4F F'!D14*100,"-")) -> 12.5 | E14: =IF(OR('Tabel 4F F'!E14<5,'Tabel 4 F'!E14<0.5),"-",IFERROR('Tabel 4 F'!E14/'Tabel 4F F'!E14*100,"-")) -> 3.846153846 | F14: =IF(OR('Tabel 4F F'!F14<5,'Tabel 4 F'!F14<0.5),"-",IFERROR('Tabel 4 F'!F14/'Tabel 4F F'!F14*100,"-")) -> 4.47761194 | G14: =IF(OR('Tabel 4F F'!G14<5,'Tabel 4 F'!G14<0.5),"-",IFERROR('Tabel 4 F'!G14/'Tabel 4F F'!G14*100,"-")) -> - | I14: =IF(OR('Tabel 4F F'!I14<5,'Tabel 4 F'!I14<0.5),"-",IFERROR('Tabel 4 F'!I14/'Tabel 4F F'!I14*100,"-")) -> 9.652509653
A15: Agronom | C15: =IF(OR('Tabel 4F F'!C15<5,'Tabel 4 F'!C15<0.5),"-",IFERROR('Tabel 4 F'!C15/'Tabel 4F F'!C15*100,"-")) -> - | D15: =IF(OR('Tabel 4F F'!D15<5,'Tabel 4 F'!D15<0.5),"-",IFERROR('Tabel 4 F'!D15/'Tabel 4F F'!D15*100,"-")) -> 5.263157895 | E15: =IF(OR('Tabel 4F F'!E15<5,'Tabel 4 F'!E15<0.5),"-",IFERROR('Tabel 4 F'!E15/'Tabel 4F F'!E15*100,"-")) -> 3.03030303 | F15: =IF(OR('Tabel 4F F'!F15<5,'Tabel 4 F'!F15<0.5),"-",IFERROR('Tabel 4 F'!F15/'Tabel 4F F'!F15*100,"-")) -> 2 | G15: =IF(OR('Tabel 4F F'!G15<5,'Tabel 4 F'!G15<0.5),"-",IFERROR('Tabel 4 F'!G15/'Tabel 4F F'!G15*100,"-")) -> 2.777777778 | I15: =IF(OR('Tabel 4F F'!I15<5,'Tabel 4 F'!I15<0.5),"-",IFERROR('Tabel 4 F'!I15/'Tabel 4F F'!I15*100,"-")) -> 2.797202797
A16: Landsk. Arkt. | C16: =IF(OR('Tabel 4F F'!C16<5,'Tabel 4 F'!C16<0.5),"-",IFERROR('Tabel 4 F'!C16/'Tabel 4F F'!C16*100,"-")) -> - | D16: =IF(OR('Tabel 4F F'!D16<5,'Tabel 4 F'!D16<0.5),"-",IFERROR('Tabel 4 F'!D16/'Tabel 4F F'!D16*100,"-")) -> - | E16: =IF(OR('Tabel 4F F'!E16<5,'Tabel 4 F'!E16<0.5),"-",IFERROR('Tabel 4 F'!E16/'Tabel 4F F'!E16*100,"-")) -> - | F16: =IF(OR('Tabel 4F F'!F16<5,'Tabel 4 F'!F16<0.5),"-",IFERROR('Tabel 4 F'!F16/'Tabel 4F F'!F16*100,"-")) -> - | G16: =IF(OR('Tabel 4F F'!G16<5,'Tabel 4 F'!G16<0.5),"-",IFERROR('Tabel 4 F'!G16/'Tabel 4F F'!G16*100,"-")) -> - | I16: =IF(OR('Tabel 4F F'!I16<5,'Tabel 4 F'!I16<0.5),"-",IFERROR('Tabel 4 F'!I16/'Tabel 4F F'!I16*100,"-")) -> -
A17: Hortonom | C17: =IF(OR('Tabel 4F F'!C17<5,'Tabel 4 F'!C17<0.5),"-",IFERROR('Tabel 4 F'!C17/'Tabel 4F F'!C17*100,"-")) -> - | D17: =IF(OR('Tabel 4F F'!D17<5,'Tabel 4 F'!D17<0.5),"-",IFERROR('Tabel 4 F'!D17/'Tabel 4F F'!D17*100,"-")) -> - | E17: =IF(OR('Tabel 4F F'!E17<5,'Tabel 4 F'!E17<0.5),"-",IFERROR('Tabel 4 F'!E17/'Tabel 4F F'!E17*100,"-")) -> - | F17: =IF(OR('Tabel 4F F'!F17<5,'Tabel 4 F'!F17<0.5),"-",IFERROR('Tabel 4 F'!F17/'Tabel 4F F'!F17*100,"-")) -> 6.25 | G17: =IF(OR('Tabel 4F F'!G17<5,'Tabel 4 F'!G17<0.5),"-",IFERROR('Tabel 4 F'!G17/'Tabel 4F F'!G17*100,"-")) -> - | I17: =IF(OR('Tabel 4F F'!I17<5,'Tabel 4 F'!I17<0.5),"-",IFERROR('Tabel 4 F'!I17/'Tabel 4F F'!I17*100,"-")) -> 3.03030303
A18: Forstkand. | C18: =IF(OR('Tabel 4F F'!C18<5,'Tabel 4 F'!C18<0.5),"-",IFERROR('Tabel 4 F'!C18/'Tabel 4F F'!C18*100,"-")) -> - | D18: =IF(OR('Tabel 4F F'!D18<5,'Tabel 4 F'!D18<0.5),"-",IFERROR('Tabel 4 F'!D18/'Tabel 4F F'!D18*100,"-")) -> - | E18: =IF(OR('Tabel 4F F'!E18<5,'Tabel 4 F'!E18<0.5),"-",IFERROR('Tabel 4 F'!E18/'Tabel 4F F'!E18*100,"-")) -> - | F18: =IF(OR('Tabel 4F F'!F18<5,'Tabel 4 F'!F18<0.5),"-",IFERROR('Tabel 4 F'!F18/'Tabel 4F F'!F18*100,"-")) -> - | G18: =IF(OR('Tabel 4F F'!G18<5,'Tabel 4 F'!G18<0.5),"-",IFERROR('Tabel 4 F'!G18/'Tabel 4F F'!G18*100,"-")) -> - | I18: =IF(OR('Tabel 4F F'!I18<5,'Tabel 4 F'!I18<0.5),"-",IFERROR('Tabel 4 F'!I18/'Tabel 4F F'!I18*100,"-")) -> -
A19: Jordbrugsakad. | C19: =IF(OR('Tabel 4F F'!C19<5,'Tabel 4 F'!C19<0.5),"-",IFERROR('Tabel 4 F'!C19/'Tabel 4F F'!C19*100,"-")) -> - | D19: =IF(OR('Tabel 4F F'!D19<5,'Tabel 4 F'!D19<0.5),"-",IFERROR('Tabel 4 F'!D19/'Tabel 4F F'!D19*100,"-")) -> 3.333333333 | E19: =IF(OR('Tabel 4F F'!E19<5,'Tabel 4 F'!E19<0.5),"-",IFERROR('Tabel 4 F'!E19/'Tabel 4F F'!E19*100,"-")) -> 1.724137931 | F19: =IF(OR('Tabel 4F F'!F19<5,'Tabel 4 F'!F19<0.5),"-",IFERROR('Tabel 4 F'!F19/'Tabel 4F F'!F19*100,"-")) -> 2.43902439 | G19: =IF(OR('Tabel 4F F'!G19<5,'Tabel 4 F'!G19<0.5),"-",IFERROR('Tabel 4 F'!G19/'Tabel 4F F'!G19*100,"-")) -> 1.851851852 | I19: =IF(OR('Tabel 4F F'!I19<5,'Tabel 4 F'!I19<0.5),"-",IFERROR('Tabel 4 F'!I19/'Tabel 4F F'!I19*100,"-")) -> 2.145922747
A20: Mejeriing. | C20: =IF(OR('Tabel 4F F'!C20<5,'Tabel 4 F'!C20<0.5),"-",IFERROR('Tabel 4 F'!C20/'Tabel 4F F'!C20*100,"-")) -> - | D20: =IF(OR('Tabel 4F F'!D20<5,'Tabel 4 F'!D20<0.5),"-",IFERROR('Tabel 4 F'!D20/'Tabel 4F F'!D20*100,"-")) -> - | E20: =IF(OR('Tabel 4F F'!E20<5,'Tabel 4 F'!E20<0.5),"-",IFERROR('Tabel 4 F'!E20/'Tabel 4F F'!E20*100,"-")) -> - | F20: =IF(OR('Tabel 4F F'!F20<5,'Tabel 4 F'!F20<0.5),"-",IFERROR('Tabel 4 F'!F20/'Tabel 4F F'!F20*100,"-")) -> - | G20: =IF(OR('Tabel 4F F'!G20<5,'Tabel 4 F'!G20<0.5),"-",IFERROR('Tabel 4 F'!G20/'Tabel 4F F'!G20*100,"-")) -> - | I20: =IF(OR('Tabel 4F F'!I20<5,'Tabel 4 F'!I20<0.5),"-",IFERROR('Tabel 4 F'!I20/'Tabel 4F F'!I20*100,"-")) -> -
A21: Levn.m.kand. | C21: =IF(OR('Tabel 4F F'!C21<5,'Tabel 4 F'!C21<0.5),"-",IFERROR('Tabel 4 F'!C21/'Tabel 4F F'!C21*100,"-")) -> - | D21: =IF(OR('Tabel 4F F'!D21<5,'Tabel 4 F'!D21<0.5),"-",IFERROR('Tabel 4 F'!D21/'Tabel 4F F'!D21*100,"-")) -> 10 | E21: =IF(OR('Tabel 4F F'!E21<5,'Tabel 4 F'!E21<0.5),"-",IFERROR('Tabel 4 F'!E21/'Tabel 4F F'!E21*100,"-")) -> - | F21: =IF(OR('Tabel 4F F'!F21<5,'Tabel 4 F'!F21<0.5),"-",IFERROR('Tabel 4 F'!F21/'Tabel 4F F'!F21*100,"-")) -> - | G21: =IF(OR('Tabel 4F F'!G21<5,'Tabel 4 F'!G21<0.5),"-",IFERROR('Tabel 4 F'!G21/'Tabel 4F F'!G21*100,"-")) -> - | I21: =IF(OR('Tabel 4F F'!I21<5,'Tabel 4 F'!I21<0.5),"-",IFERROR('Tabel 4 F'!I21/'Tabel 4F F'!I21*100,"-")) -> 5.555555556
A22: Dyrlæge | C22: =IF(OR('Tabel 4F F'!C22<5,'Tabel 4 F'!C22<0.5),"-",IFERROR('Tabel 4 F'!C22/'Tabel 4F F'!C22*100,"-")) -> - | D22: =IF(OR('Tabel 4F F'!D22<5,'Tabel 4 F'!D22<0.5),"-",IFERROR('Tabel 4 F'!D22/'Tabel 4F F'!D22*100,"-")) -> - | E22: =IF(OR('Tabel 4F F'!E22<5,'Tabel 4 F'!E22<0.5),"-",IFERROR('Tabel 4 F'!E22/'Tabel 4F F'!E22*100,"-")) -> - | F22: =IF(OR('Tabel 4F F'!F22<5,'Tabel 4 F'!F22<0.5),"-",IFERROR('Tabel 4 F'!F22/'Tabel 4F F'!F22*100,"-")) -> - | G22: =IF(OR('Tabel 4F F'!G22<5,'Tabel 4 F'!G22<0.5),"-",IFERROR('Tabel 4 F'!G22/'Tabel 4F F'!G22*100,"-")) -> - | I22: =IF(OR('Tabel 4F F'!I22<5,'Tabel 4 F'!I22<0.5),"-",IFERROR('Tabel 4 F'!I22/'Tabel 4F F'!I22*100,"-")) -> -
A23: Farmaceut | C23: =IF(OR('Tabel 4F F'!C23<5,'Tabel 4 F'!C23<0.5),"-",IFERROR('Tabel 4 F'!C23/'Tabel 4F F'!C23*100,"-")) -> 7.368421053 | D23: =IF(OR('Tabel 4F F'!D23<5,'Tabel 4 F'!D23<0.5),"-",IFERROR('Tabel 4 F'!D23/'Tabel 4F F'!D23*100,"-")) -> 4.587155963 | E23: =IF(OR('Tabel 4F F'!E23<5,'Tabel 4 F'!E23<0.5),"-",IFERROR('Tabel 4 F'!E23/'Tabel 4F F'!E23*100,"-")) -> - | F23: =IF(OR('Tabel 4F F'!F23<5,'Tabel 4 F'!F23<0.5),"-",IFERROR('Tabel 4 F'!F23/'Tabel 4F F'!F23*100,"-")) -> - | G23: =IF(OR('Tabel 4F F'!G23<5,'Tabel 4 F'!G23<0.5),"-",IFERROR('Tabel 4 F'!G23/'Tabel 4F F'!G23*100,"-")) -> 11.11111111 | I23: =IF(OR('Tabel 4F F'!I23<5,'Tabel 4 F'!I23<0.5),"-",IFERROR('Tabel 4 F'!I23/'Tabel 4F F'!I23*100,"-")) -> 4.406779661
A24: Læge | C24: =IF(OR('Tabel 4F F'!C24<5,'Tabel 4 F'!C24<0.5),"-",IFERROR('Tabel 4 F'!C24/'Tabel 4F F'!C24*100,"-")) -> 2.358490566 | D24: =IF(OR('Tabel 4F F'!D24<5,'Tabel 4 F'!D24<0.5),"-",IFERROR('Tabel 4 F'!D24/'Tabel 4F F'!D24*100,"-")) -> 0.9756097561 | E24: =IF(OR('Tabel 4F F'!E24<5,'Tabel 4 F'!E24<0.5),"-",IFERROR('Tabel 4 F'!E24/'Tabel 4F F'!E24*100,"-")) -> 0.3460207612 | F24: =IF(OR('Tabel 4F F'!F24<5,'Tabel 4 F'!F24<0.5),"-",IFERROR('Tabel 4 F'!F24/'Tabel 4F F'!F24*100,"-")) -> - | G24: =IF(OR('Tabel 4F F'!G24<5,'Tabel 4 F'!G24<0.5),"-",IFERROR('Tabel 4 F'!G24/'Tabel 4F F'!G24*100,"-")) -> - | I24: =IF(OR('Tabel 4F F'!I24<5,'Tabel 4 F'!I24<0.5),"-",IFERROR('Tabel 4 F'!I24/'Tabel 4F F'!I24*100,"-")) -> 0.8862629247
A25: Tandlæge | C25: =IF(OR('Tabel 4F F'!C25<5,'Tabel 4 F'!C25<0.5),"-",IFERROR('Tabel 4 F'!C25/'Tabel 4F F'!C25*100,"-")) -> - | D25: =IF(OR('Tabel 4F F'!D25<5,'Tabel 4 F'!D25<0.5),"-",IFERROR('Tabel 4 F'!D25/'Tabel 4F F'!D25*100,"-")) -> - | E25: =IF(OR('Tabel 4F F'!E25<5,'Tabel 4 F'!E25<0.5),"-",IFERROR('Tabel 4 F'!E25/'Tabel 4F F'!E25*100,"-")) -> - | F25: =IF(OR('Tabel 4F F'!F25<5,'Tabel 4 F'!F25<0.5),"-",IFERROR('Tabel 4 F'!F25/'Tabel 4F F'!F25*100,"-")) -> - | G25: =IF(OR('Tabel 4F F'!G25<5,'Tabel 4 F'!G25<0.5),"-",IFERROR('Tabel 4 F'!G25/'Tabel 4F F'!G25*100,"-")) -> - | I25: =IF(OR('Tabel 4F F'!I25<5,'Tabel 4 F'!I25<0.5),"-",IFERROR('Tabel 4 F'!I25/'Tabel 4F F'!I25*100,"-")) -> -
A26: Arkitekt | C26: =IF(OR('Tabel 4F F'!C26<5,'Tabel 4 F'!C26<0.5),"-",IFERROR('Tabel 4 F'!C26/'Tabel 4F F'!C26*100,"-")) -> - | D26: =IF(OR('Tabel 4F F'!D26<5,'Tabel 4 F'!D26<0.5),"-",IFERROR('Tabel 4 F'!D26/'Tabel 4F F'!D26*100,"-")) -> 5.263157895 | E26: =IF(OR('Tabel 4F F'!E26<5,'Tabel 4 F'!E26<0.5),"-",IFERROR('Tabel 4 F'!E26/'Tabel 4F F'!E26*100,"-")) -> - | F26: =IF(OR('Tabel 4F F'!F26<5,'Tabel 4 F'!F26<0.5),"-",IFERROR('Tabel 4 F'!F26/'Tabel 4F F'!F26*100,"-")) -> 5.405405405 | G26: =IF(OR('Tabel 4F F'!G26<5,'Tabel 4 F'!G26<0.5),"-",IFERROR('Tabel 4 F'!G26/'Tabel 4F F'!G26*100,"-")) -> 3.846153846 | I26: =IF(OR('Tabel 4F F'!I26<5,'Tabel 4 F'!I26<0.5),"-",IFERROR('Tabel 4 F'!I26/'Tabel 4F F'!I26*100,"-")) -> 3.225806452
A27: Landinspek. | C27: =IF(OR('Tabel 4F F'!C27<5,'Tabel 4 F'!C27<0.5),"-",IFERROR('Tabel 4 F'!C27/'Tabel 4F F'!C27*100,"-")) -> - | D27: =IF(OR('Tabel 4F F'!D27<5,'Tabel 4 F'!D27<0.5),"-",IFERROR('Tabel 4 F'!D27/'Tabel 4F F'!D27*100,"-")) -> - | E27: =IF(OR('Tabel 4F F'!E27<5,'Tabel 4 F'!E27<0.5),"-",IFERROR('Tabel 4 F'!E27/'Tabel 4F F'!E27*100,"-")) -> - | F27: =IF(OR('Tabel 4F F'!F27<5,'Tabel 4 F'!F27<0.5),"-",IFERROR('Tabel 4 F'!F27/'Tabel 4F F'!F27*100,"-")) -> - | G27: =IF(OR('Tabel 4F F'!G27<5,'Tabel 4 F'!G27<0.5),"-",IFERROR('Tabel 4 F'!G27/'Tabel 4F F'!G27*100,"-")) -> - | I27: =IF(OR('Tabel 4F F'!I27<5,'Tabel 4 F'!I27<0.5),"-",IFERROR('Tabel 4 F'!I27/'Tabel 4F F'!I27*100,"-")) -> -
A28: Bibliotekar | C28: =IF(OR('Tabel 4F F'!C28<5,'Tabel 4 F'!C28<0.5),"-",IFERROR('Tabel 4 F'!C28/'Tabel 4F F'!C28*100,"-")) -> - | D28: =IF(OR('Tabel 4F F'!D28<5,'Tabel 4 F'!D28<0.5),"-",IFERROR('Tabel 4 F'!D28/'Tabel 4F F'!D28*100,"-")) -> 5.714285714 | E28: =IF(OR('Tabel 4F F'!E28<5,'Tabel 4 F'!E28<0.5),"-",IFERROR('Tabel 4 F'!E28/'Tabel 4F F'!E28*100,"-")) -> - | F28: =IF(OR('Tabel 4F F'!F28<5,'Tabel 4 F'!F28<0.5),"-",IFERROR('Tabel 4 F'!F28/'Tabel 4F F'!F28*100,"-")) -> - | G28: =IF(OR('Tabel 4F F'!G28<5,'Tabel 4 F'!G28<0.5),"-",IFERROR('Tabel 4 F'!G28/'Tabel 4F F'!G28*100,"-")) -> - | I28: =IF(OR('Tabel 4F F'!I28<5,'Tabel 4 F'!I28<0.5),"-",IFERROR('Tabel 4 F'!I28/'Tabel 4F F'!I28*100,"-")) -> 1.047120419
A29: Musikudd. | C29: =IF(OR('Tabel 4F F'!C29<5,'Tabel 4 F'!C29<0.5),"-",IFERROR('Tabel 4 F'!C29/'Tabel 4F F'!C29*100,"-")) -> - | D29: =IF(OR('Tabel 4F F'!D29<5,'Tabel 4 F'!D29<0.5),"-",IFERROR('Tabel 4 F'!D29/'Tabel 4F F'!D29*100,"-")) -> 5.555555556 | E29: =IF(OR('Tabel 4F F'!E29<5,'Tabel 4 F'!E29<0.5),"-",IFERROR('Tabel 4 F'!E29/'Tabel 4F F'!E29*100,"-")) -> - | F29: =IF(OR('Tabel 4F F'!F29<5,'Tabel 4 F'!F29<0.5),"-",IFERROR('Tabel 4 F'!F29/'Tabel 4F F'!F29*100,"-")) -> - | G29: =IF(OR('Tabel 4F F'!G29<5,'Tabel 4 F'!G29<0.5),"-",IFERROR('Tabel 4 F'!G29/'Tabel 4F F'!G29*100,"-")) -> 3.703703704 | I29: =IF(OR('Tabel 4F F'!I29<5,'Tabel 4 F'!I29<0.5),"-",IFERROR('Tabel 4 F'!I29/'Tabel 4F F'!I29*100,"-")) -> 2.105263158
A30: Teolog | C30: =IF(OR('Tabel 4F F'!C30<5,'Tabel 4 F'!C30<0.5),"-",IFERROR('Tabel 4 F'!C30/'Tabel 4F F'!C30*100,"-")) -> - | D30: =IF(OR('Tabel 4F F'!D30<5,'Tabel 4 F'!D30<0.5),"-",IFERROR('Tabel 4 F'!D30/'Tabel 4F F'!D30*100,"-")) -> - | E30: =IF(OR('Tabel 4F F'!E30<5,'Tabel 4 F'!E30<0.5),"-",IFERROR('Tabel 4 F'!E30/'Tabel 4F F'!E30*100,"-")) -> 10.81081081 | F30: =IF(OR('Tabel 4F F'!F30<5,'Tabel 4 F'!F30<0.5),"-",IFERROR('Tabel 4 F'!F30/'Tabel 4F F'!F30*100,"-")) -> - | G30: =IF(OR('Tabel 4F F'!G30<5,'Tabel 4 F'!G30<0.5),"-",IFERROR('Tabel 4 F'!G30/'Tabel 4F F'!G30*100,"-")) -> - | I30: =IF(OR('Tabel 4F F'!I30<5,'Tabel 4 F'!I30<0.5),"-",IFERROR('Tabel 4 F'!I30/'Tabel 4F F'!I30*100,"-")) -> 3.47826087
A31: Psykolog | C31: =IF(OR('Tabel 4F F'!C31<5,'Tabel 4 F'!C31<0.5),"-",IFERROR('Tabel 4 F'!C31/'Tabel 4F F'!C31*100,"-")) -> 8.552631579 | D31: =IF(OR('Tabel 4F F'!D31<5,'Tabel 4 F'!D31<0.5),"-",IFERROR('Tabel 4 F'!D31/'Tabel 4F F'!D31*100,"-")) -> 3.305785124 | E31: =IF(OR('Tabel 4F F'!E31<5,'Tabel 4 F'!E31<0.5),"-",IFERROR('Tabel 4 F'!E31/'Tabel 4F F'!E31*100,"-")) -> 0.8333333333 | F31: =IF(OR('Tabel 4F F'!F31<5,'Tabel 4 F'!F31<0.5),"-",IFERROR('Tabel 4 F'!F31/'Tabel 4F F'!F31*100,"-")) -> - | G31: =IF(OR('Tabel 4F F'!G31<5,'Tabel 4 F'!G31<0.5),"-",IFERROR('Tabel 4 F'!G31/'Tabel 4F F'!G31*100,"-")) -> - | I31: =IF(OR('Tabel 4F F'!I31<5,'Tabel 4 F'!I31<0.5),"-",IFERROR('Tabel 4 F'!I31/'Tabel 4F F'!I31*100,"-")) -> 3.554119548
A32: Jurist | C32: =IF(OR('Tabel 4F F'!C32<5,'Tabel 4 F'!C32<0.5),"-",IFERROR('Tabel 4 F'!C32/'Tabel 4F F'!C32*100,"-")) -> - | D32: =IF(OR('Tabel 4F F'!D32<5,'Tabel 4 F'!D32<0.5),"-",IFERROR('Tabel 4 F'!D32/'Tabel 4F F'!D32*100,"-")) -> 1.398601399 | E32: =IF(OR('Tabel 4F F'!E32<5,'Tabel 4 F'!E32<0.5),"-",IFERROR('Tabel 4 F'!E32/'Tabel 4F F'!E32*100,"-")) -> 0.5524861878 | F32: =IF(OR('Tabel 4F F'!F32<5,'Tabel 4 F'!F32<0.5),"-",IFERROR('Tabel 4 F'!F32/'Tabel 4F F'!F32*100,"-")) -> - | G32: =IF(OR('Tabel 4F F'!G32<5,'Tabel 4 F'!G32<0.5),"-",IFERROR('Tabel 4 F'!G32/'Tabel 4F F'!G32*100,"-")) -> 2.777777778 | I32: =IF(OR('Tabel 4F F'!I32<5,'Tabel 4 F'!I32<0.5),"-",IFERROR('Tabel 4 F'!I32/'Tabel 4F F'!I32*100,"-")) -> 0.9077155825
A33: Økonom | C33: =IF(OR('Tabel 4F F'!C33<5,'Tabel 4 F'!C33<0.5),"-",IFERROR('Tabel 4 F'!C33/'Tabel 4F F'!C33*100,"-")) -> 0.9009009009 | D33: =IF(OR('Tabel 4F F'!D33<5,'Tabel 4 F'!D33<0.5),"-",IFERROR('Tabel 4 F'!D33/'Tabel 4F F'!D33*100,"-")) -> 0.9661835749 | E33: =IF(OR('Tabel 4F F'!E33<5,'Tabel 4 F'!E33<0.5),"-",IFERROR('Tabel 4 F'!E33/'Tabel 4F F'!E33*100,"-")) -> - | F33: =IF(OR('Tabel 4F F'!F33<5,'Tabel 4 F'!F33<0.5),"-",IFERROR('Tabel 4 F'!F33/'Tabel 4F F'!F33*100,"-")) -> 0.7692307692 | G33: =IF(OR('Tabel 4F F'!G33<5,'Tabel 4 F'!G33<0.5),"-",IFERROR('Tabel 4 F'!G33/'Tabel 4F F'!G33*100,"-")) -> - | I33: =IF(OR('Tabel 4F F'!I33<5,'Tabel 4 F'!I33<0.5),"-",IFERROR('Tabel 4 F'!I33/'Tabel 4F F'!I33*100,"-")) -> 0.6633499171
A34: Samf. Adm. | C34: =IF(OR('Tabel 4F F'!C34<5,'Tabel 4 F'!C34<0.5),"-",IFERROR('Tabel 4 F'!C34/'Tabel 4F F'!C34*100,"-")) -> 10.58823529 | D34: =IF(OR('Tabel 4F F'!D34<5,'Tabel 4 F'!D34<0.5),"-",IFERROR('Tabel 4 F'!D34/'Tabel 4F F'!D34*100,"-")) -> 3.75 | E34: =IF(OR('Tabel 4F F'!E34<5,'Tabel 4 F'!E34<0.5),"-",IFERROR('Tabel 4 F'!E34/'Tabel 4F F'!E34*100,"-")) -> 3.865979381 | F34: =IF(OR('Tabel 4F F'!F34<5,'Tabel 4 F'!F34<0.5),"-",IFERROR('Tabel 4 F'!F34/'Tabel 4F F'!F34*100,"-")) -> 3.139013453 | G34: =IF(OR('Tabel 4F F'!G34<5,'Tabel 4 F'!G34<0.5),"-",IFERROR('Tabel 4 F'!G34/'Tabel 4F F'!G34*100,"-")) -> 4.285714286 | I34: =IF(OR('Tabel 4F F'!I34<5,'Tabel 4 F'!I34<0.5),"-",IFERROR('Tabel 4 F'!I34/'Tabel 4F F'!I34*100,"-")) -> 4.822335025
A35: Cand. Merc. | C35: =IF(OR('Tabel 4F F'!C35<5,'Tabel 4 F'!C35<0.5),"-",IFERROR('Tabel 4 F'!C35/'Tabel 4F F'!C35*100,"-")) -> 7.469879518 | D35: =IF(OR('Tabel 4F F'!D35<5,'Tabel 4 F'!D35<0.5),"-",IFERROR('Tabel 4 F'!D35/'Tabel 4F F'!D35*100,"-")) -> 3.53227771 | E35: =IF(OR('Tabel 4F F'!E35<5,'Tabel 4 F'!E35<0.5),"-",IFERROR('Tabel 4 F'!E35/'Tabel 4F F'!E35*100,"-")) -> 1.907356948 | F35: =IF(OR('Tabel 4F F'!F35<5,'Tabel 4 F'!F35<0.5),"-",IFERROR('Tabel 4 F'!F35/'Tabel 4F F'!F35*100,"-")) -> 3.06122449 | G35: =IF(OR('Tabel 4F F'!G35<5,'Tabel 4 F'!G35<0.5),"-",IFERROR('Tabel 4 F'!G35/'Tabel 4F F'!G35*100,"-")) -> 1.612903226 | I35: =IF(OR('Tabel 4F F'!I35<5,'Tabel 4 F'!I35<0.5),"-",IFERROR('Tabel 4 F'!I35/'Tabel 4F F'!I35*100,"-")) -> 3.930576825
A36: HA | C36: =IF(OR('Tabel 4F F'!C36<5,'Tabel 4 F'!C36<0.5),"-",IFERROR('Tabel 4 F'!C36/'Tabel 4F F'!C36*100,"-")) -> 17.94871795 | D36: =IF(OR('Tabel 4F F'!D36<5,'Tabel 4 F'!D36<0.5),"-",IFERROR('Tabel 4 F'!D36/'Tabel 4F F'!D36*100,"-")) -> 7.339449541 | E36: =IF(OR('Tabel 4F F'!E36<5,'Tabel 4 F'!E36<0.5),"-",IFERROR('Tabel 4 F'!E36/'Tabel 4F F'!E36*100,"-")) -> 4.444444444 | F36: =IF(OR('Tabel 4F F'!F36<5,'Tabel 4 F'!F36<0.5),"-",IFERROR('Tabel 4 F'!F36/'Tabel 4F F'!F36*100,"-")) -> 1.785714286 | G36: =IF(OR('Tabel 4F F'!G36<5,'Tabel 4 F'!G36<0.5),"-",IFERROR('Tabel 4 F'!G36/'Tabel 4F F'!G36*100,"-")) -> 6.52173913 | I36: =IF(OR('Tabel 4F F'!I36<5,'Tabel 4 F'!I36<0.5),"-",IFERROR('Tabel 4 F'!I36/'Tabel 4F F'!I36*100,"-")) -> 8.391608392
A37: HD | C37: =IF(OR('Tabel 4F F'!C37<5,'Tabel 4 F'!C37<0.5),"-",IFERROR('Tabel 4 F'!C37/'Tabel 4F F'!C37*100,"-")) -> 5 | D37: =IF(OR('Tabel 4F F'!D37<5,'Tabel 4 F'!D37<0.5),"-",IFERROR('Tabel 4 F'!D37/'Tabel 4F F'!D37*100,"-")) -> - | E37: =IF(OR('Tabel 4F F'!E37<5,'Tabel 4 F'!E37<0.5),"-",IFERROR('Tabel 4 F'!E37/'Tabel 4F F'!E37*100,"-")) -> - | F37: =IF(OR('Tabel 4F F'!F37<5,'Tabel 4 F'!F37<0.5),"-",IFERROR('Tabel 4 F'!F37/'Tabel 4F F'!F37*100,"-")) -> 1.030927835 | G37: =IF(OR('Tabel 4F F'!G37<5,'Tabel 4 F'!G37<0.5),"-",IFERROR('Tabel 4 F'!G37/'Tabel 4F F'!G37*100,"-")) -> 6.896551724 | I37: =IF(OR('Tabel 4F F'!I37<5,'Tabel 4 F'!I37<0.5),"-",IFERROR('Tabel 4 F'!I37/'Tabel 4F F'!I37*100,"-")) -> 2.158273381
A38: Komm. og Sprog | C38: =IF(OR('Tabel 4F F'!C38<5,'Tabel 4 F'!C38<0.5),"-",IFERROR('Tabel 4 F'!C38/'Tabel 4F F'!C38*100,"-")) -> 14.49275362 | D38: =IF(OR('Tabel 4F F'!D38<5,'Tabel 4 F'!D38<0.5),"-",IFERROR('Tabel 4 F'!D38/'Tabel 4F F'!D38*100,"-")) -> 4.201680672 | E38: =IF(OR('Tabel 4F F'!E38<5,'Tabel 4 F'!E38<0.5),"-",IFERROR('Tabel 4 F'!E38/'Tabel 4F F'!E38*100,"-")) -> 3.539823009 | F38: =IF(OR('Tabel 4F F'!F38<5,'Tabel 4 F'!F38<0.5),"-",IFERROR('Tabel 4 F'!F38/'Tabel 4F F'!F38*100,"-")) -> 2.739726027 | G38: =IF(OR('Tabel 4F F'!G38<5,'Tabel 4 F'!G38<0.5),"-",IFERROR('Tabel 4 F'!G38/'Tabel 4F F'!G38*100,"-")) -> 1.818181818 | I38: =IF(OR('Tabel 4F F'!I38<5,'Tabel 4 F'!I38<0.5),"-",IFERROR('Tabel 4 F'!I38/'Tabel 4F F'!I38*100,"-")) -> 5.128205128
A39: Bygningskonst. | C39: =IF(OR('Tabel 4F F'!C39<5,'Tabel 4 F'!C39<0.5),"-",IFERROR('Tabel 4 F'!C39/'Tabel 4F F'!C39*100,"-")) -> 4.225352113 | D39: =IF(OR('Tabel 4F F'!D39<5,'Tabel 4 F'!D39<0.5),"-",IFERROR('Tabel 4 F'!D39/'Tabel 4F F'!D39*100,"-")) -> 1.79028133 | E39: =IF(OR('Tabel 4F F'!E39<5,'Tabel 4 F'!E39<0.5),"-",IFERROR('Tabel 4 F'!E39/'Tabel 4F F'!E39*100,"-")) -> 2.448979592 | F39: =IF(OR('Tabel 4F F'!F39<5,'Tabel 4 F'!F39<0.5),"-",IFERROR('Tabel 4 F'!F39/'Tabel 4F F'!F39*100,"-")) -> 0.7751937984 | G39: =IF(OR('Tabel 4F F'!G39<5,'Tabel 4 F'!G39<0.5),"-",IFERROR('Tabel 4 F'!G39/'Tabel 4F F'!G39*100,"-")) -> - | I39: =IF(OR('Tabel 4F F'!I39<5,'Tabel 4 F'!I39<0.5),"-",IFERROR('Tabel 4 F'!I39/'Tabel 4F F'!I39*100,"-")) -> 2.123142251
A40: Cand. IT. | C40: =IF(OR('Tabel 4F F'!C40<5,'Tabel 4 F'!C40<0.5),"-",IFERROR('Tabel 4 F'!C40/'Tabel 4F F'!C40*100,"-")) -> 9.302325581 | D40: =IF(OR('Tabel 4F F'!D40<5,'Tabel 4 F'!D40<0.5),"-",IFERROR('Tabel 4 F'!D40/'Tabel 4F F'!D40*100,"-")) -> 12.26415094 | E40: =IF(OR('Tabel 4F F'!E40<5,'Tabel 4 F'!E40<0.5),"-",IFERROR('Tabel 4 F'!E40/'Tabel 4F F'!E40*100,"-")) -> 4.615384615 | F40: =IF(OR('Tabel 4F F'!F40<5,'Tabel 4 F'!F40<0.5),"-",IFERROR('Tabel 4 F'!F40/'Tabel 4F F'!F40*100,"-")) -> - | G40: =IF(OR('Tabel 4F F'!G40<5,'Tabel 4 F'!G40<0.5),"-",IFERROR('Tabel 4 F'!G40/'Tabel 4F F'!G40*100,"-")) -> - | I40: =IF(OR('Tabel 4F F'!I40<5,'Tabel 4 F'!I40<0.5),"-",IFERROR('Tabel 4 F'!I40/'Tabel 4F F'!I40*100,"-")) -> 9.009009009
A41: Bac. Samf. | C41: =IF(OR('Tabel 4F F'!C41<5,'Tabel 4 F'!C41<0.5),"-",IFERROR('Tabel 4 F'!C41/'Tabel 4F F'!C41*100,"-")) -> 13.04347826 | D41: =IF(OR('Tabel 4F F'!D41<5,'Tabel 4 F'!D41<0.5),"-",IFERROR('Tabel 4 F'!D41/'Tabel 4F F'!D41*100,"-")) -> 13.63636364 | E41: =IF(OR('Tabel 4F F'!E41<5,'Tabel 4 F'!E41<0.5),"-",IFERROR('Tabel 4 F'!E41/'Tabel 4F F'!E41*100,"-")) -> 7.142857143 | F41: =IF(OR('Tabel 4F F'!F41<5,'Tabel 4 F'!F41<0.5),"-",IFERROR('Tabel 4 F'!F41/'Tabel 4F F'!F41*100,"-")) -> 7.692307692 | G41: =IF(OR('Tabel 4F F'!G41<5,'Tabel 4 F'!G41<0.5),"-",IFERROR('Tabel 4 F'!G41/'Tabel 4F F'!G41*100,"-")) -> - | I41: =IF(OR('Tabel 4F F'!I41<5,'Tabel 4 F'!I41<0.5),"-",IFERROR('Tabel 4 F'!I41/'Tabel 4F F'!I41*100,"-")) -> 12
A42: Bac. Hum. | C42: =IF(OR('Tabel 4F F'!C42<5,'Tabel 4 F'!C42<0.5),"-",IFERROR('Tabel 4 F'!C42/'Tabel 4F F'!C42*100,"-")) -> 9.160305344 | D42: =IF(OR('Tabel 4F F'!D42<5,'Tabel 4 F'!D42<0.5),"-",IFERROR('Tabel 4 F'!D42/'Tabel 4F F'!D42*100,"-")) -> 9.473684211 | E42: =IF(OR('Tabel 4F F'!E42<5,'Tabel 4 F'!E42<0.5),"-",IFERROR('Tabel 4 F'!E42/'Tabel 4F F'!E42*100,"-")) -> 2.857142857 | F42: =IF(OR('Tabel 4F F'!F42<5,'Tabel 4 F'!F42<0.5),"-",IFERROR('Tabel 4 F'!F42/'Tabel 4F F'!F42*100,"-")) -> 3.174603175 | G42: =IF(OR('Tabel 4F F'!G42<5,'Tabel 4 F'!G42<0.5),"-",IFERROR('Tabel 4 F'!G42/'Tabel 4F F'!G42*100,"-")) -> 6.666666667 | I42: =IF(OR('Tabel 4F F'!I42<5,'Tabel 4 F'!I42<0.5),"-",IFERROR('Tabel 4 F'!I42/'Tabel 4F F'!I42*100,"-")) -> 7.524752475
A43: Bac. Nat. | C43: =IF(OR('Tabel 4F F'!C43<5,'Tabel 4 F'!C43<0.5),"-",IFERROR('Tabel 4 F'!C43/'Tabel 4F F'!C43*100,"-")) -> 12.59259259 | D43: =IF(OR('Tabel 4F F'!D43<5,'Tabel 4 F'!D43<0.5),"-",IFERROR('Tabel 4 F'!D43/'Tabel 4F F'!D43*100,"-")) -> 3.370786517 | E43: =IF(OR('Tabel 4F F'!E43<5,'Tabel 4 F'!E43<0.5),"-",IFERROR('Tabel 4 F'!E43/'Tabel 4F F'!E43*100,"-")) -> - | F43: =IF(OR('Tabel 4F F'!F43<5,'Tabel 4 F'!F43<0.5),"-",IFERROR('Tabel 4 F'!F43/'Tabel 4F F'!F43*100,"-")) -> 6.666666667 | G43: =IF(OR('Tabel 4F F'!G43<5,'Tabel 4 F'!G43<0.5),"-",IFERROR('Tabel 4 F'!G43/'Tabel 4F F'!G43*100,"-")) -> - | I43: =IF(OR('Tabel 4F F'!I43<5,'Tabel 4 F'!I43<0.5),"-",IFERROR('Tabel 4 F'!I43/'Tabel 4F F'!I43*100,"-")) -> 8.058608059
A44: Andre | C44: =IF(OR('Tabel 4F F'!C44<5,'Tabel 4 F'!C44<0.5),"-",IFERROR('Tabel 4 F'!C44/'Tabel 4F F'!C44*100,"-")) -> 8.041958042 | D44: =IF(OR('Tabel 4F F'!D44<5,'Tabel 4 F'!D44<0.5),"-",IFERROR('Tabel 4 F'!D44/'Tabel 4F F'!D44*100,"-")) -> 3.964757709 | E44: =IF(OR('Tabel 4F F'!E44<5,'Tabel 4 F'!E44<0.5),"-",IFERROR('Tabel 4 F'!E44/'Tabel 4F F'!E44*100,"-")) -> 2.777777778 | F44: =IF(OR('Tabel 4F F'!F44<5,'Tabel 4 F'!F44<0.5),"-",IFERROR('Tabel 4 F'!F44/'Tabel 4F F'!F44*100,"-")) -> 2.510460251 | G44: =IF(OR('Tabel 4F F'!G44<5,'Tabel 4 F'!G44<0.5),"-",IFERROR('Tabel 4 F'!G44/'Tabel 4F F'!G44*100,"-")) -> 9.090909091 | I44: =IF(OR('Tabel 4F F'!I44<5,'Tabel 4 F'!I44<0.5),"-",IFERROR('Tabel 4 F'!I44/'Tabel 4F F'!I44*100,"-")) -> 4.804392588
A46: Total | C46: =IF(OR('Tabel 4F F'!C46<5,'Tabel 4 F'!C46<0.5),"-",IFERROR('Tabel 4 F'!C46/'Tabel 4F F'!C46*100,"-")) -> 9.176672384 | D46: =IF(OR('Tabel 4F F'!D46<5,'Tabel 4 F'!D46<0.5),"-",IFERROR('Tabel 4 F'!D46/'Tabel 4F F'!D46*100,"-")) -> 4.212940608 | E46: =IF(OR('Tabel 4F F'!E46<5,'Tabel 4 F'!E46<0.5),"-",IFERROR('Tabel 4 F'!E46/'Tabel 4F F'!E46*100,"-")) -> 2.03180212 | F46: =IF(OR('Tabel 4F F'!F46<5,'Tabel 4 F'!F46<0.5),"-",IFERROR('Tabel 4 F'!F46/'Tabel 4F F'!F46*100,"-")) -> 2 | G46: =IF(OR('Tabel 4F F'!G46<5,'Tabel 4 F'!G46<0.5),"-",IFERROR('Tabel 4 F'!G46/'Tabel 4F F'!G46*100,"-")) -> 3.571428571 | I46: =IF(OR('Tabel 4F F'!I46<5,'Tabel 4 F'!I46<0.5),"-",IFERROR('Tabel 4 F'!I46/'Tabel 4F F'!I46*100,"-")) -> 4.224607628
A48: Ingeniører i alt | C48: =IF(OR('Tabel 4F F'!C48<5,'Tabel 4 F'!C48<0.5),"-",IFERROR('Tabel 4 F'!C48/'Tabel 4F F'!C48*100,"-")) -> 7.056451613 | D48: =IF(OR('Tabel 4F F'!D48<5,'Tabel 4 F'!D48<0.5),"-",IFERROR('Tabel 4 F'!D48/'Tabel 4F F'!D48*100,"-")) -> 2.184087363 | E48: =IF(OR('Tabel 4F F'!E48<5,'Tabel 4 F'!E48<0.5),"-",IFERROR('Tabel 4 F'!E48/'Tabel 4F F'!E48*100,"-")) -> 0.2780352178 | F48: =IF(OR('Tabel 4F F'!F48<5,'Tabel 4 F'!F48<0.5),"-",IFERROR('Tabel 4 F'!F48/'Tabel 4F F'!F48*100,"-")) -> 1.559792028 | G48: =IF(OR('Tabel 4F F'!G48<5,'Tabel 4 F'!G48<0.5),"-",IFERROR('Tabel 4 F'!G48/'Tabel 4F F'!G48*100,"-")) -> 1.417004049 | I48: =IF(OR('Tabel 4F F'!I48<5,'Tabel 4 F'!I48<0.5),"-",IFERROR('Tabel 4 F'!I48/'Tabel 4F F'!I48*100,"-")) -> 2.519496101
A49: Magistre i alt | C49: =IF(OR('Tabel 4F F'!C49<5,'Tabel 4 F'!C49<0.5),"-",IFERROR('Tabel 4 F'!C49/'Tabel 4F F'!C49*100,"-")) -> 18.54395604 | D49: =IF(OR('Tabel 4F F'!D49<5,'Tabel 4 F'!D49<0.5),"-",IFERROR('Tabel 4 F'!D49/'Tabel 4F F'!D49*100,"-")) -> 8.328411105 | E49: =IF(OR('Tabel 4F F'!E49<5,'Tabel 4 F'!E49<0.5),"-",IFERROR('Tabel 4 F'!E49/'Tabel 4F F'!E49*100,"-")) -> 3.15009265 | F49: =IF(OR('Tabel 4F F'!F49<5,'Tabel 4 F'!F49<0.5),"-",IFERROR('Tabel 4 F'!F49/'Tabel 4F F'!F49*100,"-")) -> 2.953156823 | G49: =IF(OR('Tabel 4F F'!G49<5,'Tabel 4 F'!G49<0.5),"-",IFERROR('Tabel 4 F'!G49/'Tabel 4F F'!G49*100,"-")) -> 5.571030641 | I49: =IF(OR('Tabel 4F F'!I49<5,'Tabel 4 F'!I49<0.5),"-",IFERROR('Tabel 4 F'!I49/'Tabel 4F F'!I49*100,"-")) -> 6.987548783
A50: DJØF'ere i alt | C50: =IF(OR('Tabel 4F F'!C50<5,'Tabel 4 F'!C50<0.5),"-",IFERROR('Tabel 4 F'!C50/'Tabel 4F F'!C50*100,"-")) -> 8.196721311 | D50: =IF(OR('Tabel 4F F'!D50<5,'Tabel 4 F'!D50<0.5),"-",IFERROR('Tabel 4 F'!D50/'Tabel 4F F'!D50*100,"-")) -> 3.247697528 | E50: =IF(OR('Tabel 4F F'!E50<5,'Tabel 4 F'!E50<0.5),"-",IFERROR('Tabel 4 F'!E50/'Tabel 4F F'!E50*100,"-")) -> 2.250225023 | F50: =IF(OR('Tabel 4F F'!F50<5,'Tabel 4 F'!F50<0.5),"-",IFERROR('Tabel 4 F'!F50/'Tabel 4F F'!F50*100,"-")) -> 2.264600715 | G50: =IF(OR('Tabel 4F F'!G50<5,'Tabel 4 F'!G50<0.5),"-",IFERROR('Tabel 4 F'!G50/'Tabel 4F F'!G50*100,"-")) -> 3.347280335 | I50: =IF(OR('Tabel 4F F'!I50<5,'Tabel 4 F'!I50<0.5),"-",IFERROR('Tabel 4 F'!I50/'Tabel 4F F'!I50*100,"-")) -> 3.806426932
A57: Middelfart
C59: Under 30 år | D59: 30 - 39 år | E59: 40 - 49 år | F59: 50 - 59 år | G59: Over 60 år | I59: I alt
A61: Civ. ing. | C61: =IF(OR('Tabel 4F F'!C61<5,'Tabel 4 F'!C61<0.5),"-",IFERROR('Tabel 4 F'!C61/'Tabel 4F F'!C61*100,"-")) -> - | D61: =IF(OR('Tabel 4F F'!D61<5,'Tabel 4 F'!D61<0.5),"-",IFERROR('Tabel 4 F'!D61/'Tabel 4F F'!D61*100,"-")) -> - | E61: =IF(OR('Tabel 4F F'!E61<5,'Tabel 4 F'!E61<0.5),"-",IFERROR('Tabel 4 F'!E61/'Tabel 4F F'!E61*100,"-")) -> - | F61: =IF(OR('Tabel 4F F'!F61<5,'Tabel 4 F'!F61<0.5),"-",IFERROR('Tabel 4 F'!F61/'Tabel 4F F'!F61*100,"-")) -> - | G61: =IF(OR('Tabel 4F F'!G61<5,'Tabel 4 F'!G61<0.5),"-",IFERROR('Tabel 4 F'!G61/'Tabel 4F F'!G61*100,"-")) -> - | I61: =IF(OR('Tabel 4F F'!I61<5,'Tabel 4 F'!I61<0.5),"-",IFERROR('Tabel 4 F'!I61/'Tabel 4F F'!I61*100,"-")) -> -
A62: Diplom ing. | C62: =IF(OR('Tabel 4F F'!C62<5,'Tabel 4 F'!C62<0.5),"-",IFERROR('Tabel 4 F'!C62/'Tabel 4F F'!C62*100,"-")) -> 9.523809524 | D62: =IF(OR('Tabel 4F F'!D62<5,'Tabel 4 F'!D62<0.5),"-",IFERROR('Tabel 4 F'!D62/'Tabel 4F F'!D62*100,"-")) -> - | E62: =IF(OR('Tabel 4F F'!E62<5,'Tabel 4 F'!E62<0.5),"-",IFERROR('Tabel 4 F'!E62/'Tabel 4F F'!E62*100,"-")) -> - | F62: =IF(OR('Tabel 4F F'!F62<5,'Tabel 4 F'!F62<0.5),"-",IFERROR('Tabel 4 F'!F62/'Tabel 4F F'!F62*100,"-")) -> - | G62: =IF(OR('Tabel 4F F'!G62<5,'Tabel 4 F'!G62<0.5),"-",IFERROR('Tabel 4 F'!G62/'Tabel 4F F'!G62*100,"-")) -> 4 | I62: =IF(OR('Tabel 4F F'!I62<5,'Tabel 4 F'!I62<0.5),"-",IFERROR('Tabel 4 F'!I62/'Tabel 4F F'!I62*100,"-")) -> 1.307189542
A63: Cand. Scient. Tek | C63: =IF(OR('Tabel 4F F'!C63<5,'Tabel 4 F'!C63<0.5),"-",IFERROR('Tabel 4 F'!C63/'Tabel 4F F'!C63*100,"-")) -> - | D63: =IF(OR('Tabel 4F F'!D63<5,'Tabel 4 F'!D63<0.5),"-",IFERROR('Tabel 4 F'!D63/'Tabel 4F F'!D63*100,"-")) -> 6.25 | E63: =IF(OR('Tabel 4F F'!E63<5,'Tabel 4 F'!E63<0.5),"-",IFERROR('Tabel 4 F'!E63/'Tabel 4F F'!E63*100,"-")) -> - | F63: =IF(OR('Tabel 4F F'!F63<5,'Tabel 4 F'!F63<0.5),"-",IFERROR('Tabel 4 F'!F63/'Tabel 4F F'!F63*100,"-")) -> - | G63: =IF(OR('Tabel 4F F'!G63<5,'Tabel 4 F'!G63<0.5),"-",IFERROR('Tabel 4 F'!G63/'Tabel 4F F'!G63*100,"-")) -> - | I63: =IF(OR('Tabel 4F F'!I63<5,'Tabel 4 F'!I63<0.5),"-",IFERROR('Tabel 4 F'!I63/'Tabel 4F F'!I63*100,"-")) -> 2.739726027
A64: MA. Hum. | C64: =IF(OR('Tabel 4F F'!C64<5,'Tabel 4 F'!C64<0.5),"-",IFERROR('Tabel 4 F'!C64/'Tabel 4F F'!C64*100,"-")) -> 18.75 | D64: =IF(OR('Tabel 4F F'!D64<5,'Tabel 4 F'!D64<0.5),"-",IFERROR('Tabel 4 F'!D64/'Tabel 4F F'!D64*100,"-")) -> 5.084745763 | E64: =IF(OR('Tabel 4F F'!E64<5,'Tabel 4 F'!E64<0.5),"-",IFERROR('Tabel 4 F'!E64/'Tabel 4F F'!E64*100,"-")) -> - | F64: =IF(OR('Tabel 4F F'!F64<5,'Tabel 4 F'!F64<0.5),"-",IFERROR('Tabel 4 F'!F64/'Tabel 4F F'!F64*100,"-")) -> 2.941176471 | G64: =IF(OR('Tabel 4F F'!G64<5,'Tabel 4 F'!G64<0.5),"-",IFERROR('Tabel 4 F'!G64/'Tabel 4F F'!G64*100,"-")) -> - | I64: =IF(OR('Tabel 4F F'!I64<5,'Tabel 4 F'!I64<0.5),"-",IFERROR('Tabel 4 F'!I64/'Tabel 4F F'!I64*100,"-")) -> 3.645833333
A65: MA. Nat. | C65: =IF(OR('Tabel 4F F'!C65<5,'Tabel 4 F'!C65<0.5),"-",IFERROR('Tabel 4 F'!C65/'Tabel 4F F'!C65*100,"-")) -> - | D65: =IF(OR('Tabel 4F F'!D65<5,'Tabel 4 F'!D65<0.5),"-",IFERROR('Tabel 4 F'!D65/'Tabel 4F F'!D65*100,"-")) -> 5 | E65: =IF(OR('Tabel 4F F'!E65<5,'Tabel 4 F'!E65<0.5),"-",IFERROR('Tabel 4 F'!E65/'Tabel 4F F'!E65*100,"-")) -> - | F65: =IF(OR('Tabel 4F F'!F65<5,'Tabel 4 F'!F65<0.5),"-",IFERROR('Tabel 4 F'!F65/'Tabel 4F F'!F65*100,"-")) -> - | G65: =IF(OR('Tabel 4F F'!G65<5,'Tabel 4 F'!G65<0.5),"-",IFERROR('Tabel 4 F'!G65/'Tabel 4F F'!G65*100,"-")) -> 11.11111111 | I65: =IF(OR('Tabel 4F F'!I65<5,'Tabel 4 F'!I65<0.5),"-",IFERROR('Tabel 4 F'!I65/'Tabel 4F F'!I65*100,"-")) -> 2.53164557
A66: MA. Ph.d. | C66: =IF(OR('Tabel 4F F'!C66<5,'Tabel 4 F'!C66<0.5),"-",IFERROR('Tabel 4 F'!C66/'Tabel 4F F'!C66*100,"-")) -> - | D66: =IF(OR('Tabel 4F F'!D66<5,'Tabel 4 F'!D66<0.5),"-",IFERROR('Tabel 4 F'!D66/'Tabel 4F F'!D66*100,"-")) -> - | E66: =IF(OR('Tabel 4F F'!E66<5,'Tabel 4 F'!E66<0.5),"-",IFERROR('Tabel 4 F'!E66/'Tabel 4F F'!E66*100,"-")) -> - | F66: =IF(OR('Tabel 4F F'!F66<5,'Tabel 4 F'!F66<0.5),"-",IFERROR('Tabel 4 F'!F66/'Tabel 4F F'!F66*100,"-")) -> - | G66: =IF(OR('Tabel 4F F'!G66<5,'Tabel 4 F'!G66<0.5),"-",IFERROR('Tabel 4 F'!G66/'Tabel 4F F'!G66*100,"-")) -> - | I66: =IF(OR('Tabel 4F F'!I66<5,'Tabel 4 F'!I66<0.5),"-",IFERROR('Tabel 4 F'!I66/'Tabel 4F F'!I66*100,"-")) -> -
A67: MA. Samf. | C67: =IF(OR('Tabel 4F F'!C67<5,'Tabel 4 F'!C67<0.5),"-",IFERROR('Tabel 4 F'!C67/'Tabel 4F F'!C67*100,"-")) -> - | D67: =IF(OR('Tabel 4F F'!D67<5,'Tabel 4 F'!D67<0.5),"-",IFERROR('Tabel 4 F'!D67/'Tabel 4F F'!D67*100,"-")) -> 7.692307692 | E67: =IF(OR('Tabel 4F F'!E67<5,'Tabel 4 F'!E67<0.5),"-",IFERROR('Tabel 4 F'!E67/'Tabel 4F F'!E67*100,"-")) -> - | F67: =IF(OR('Tabel 4F F'!F67<5,'Tabel 4 F'!F67<0.5),"-",IFERROR('Tabel 4 F'!F67/'Tabel 4F F'!F67*100,"-")) -> - | G67: =IF(OR('Tabel 4F F'!G67<5,'Tabel 4 F'!G67<0.5),"-",IFERROR('Tabel 4 F'!G67/'Tabel 4F F'!G67*100,"-")) -> - | I67: =IF(OR('Tabel 4F F'!I67<5,'Tabel 4 F'!I67<0.5),"-",IFERROR('Tabel 4 F'!I67/'Tabel 4F F'!I67*100,"-")) -> 4.761904762
A68: Øvrige Mag. | C68: =IF(OR('Tabel 4F F'!C68<5,'Tabel 4 F'!C68<0.5),"-",IFERROR('Tabel 4 F'!C68/'Tabel 4F F'!C68*100,"-")) -> - | D68: =IF(OR('Tabel 4F F'!D68<5,'Tabel 4 F'!D68<0.5),"-",IFERROR('Tabel 4 F'!D68/'Tabel 4F F'!D68*100,"-")) -> - | E68: =IF(OR('Tabel 4F F'!E68<5,'Tabel 4 F'!E68<0.5),"-",IFERROR('Tabel 4 F'!E68/'Tabel 4F F'!E68*100,"-")) -> - | F68: =IF(OR('Tabel 4F F'!F68<5,'Tabel 4 F'!F68<0.5),"-",IFERROR('Tabel 4 F'!F68/'Tabel 4F F'!F68*100,"-")) -> - | G68: =IF(OR('Tabel 4F F'!G68<5,'Tabel 4 F'!G68<0.5),"-",IFERROR('Tabel 4 F'!G68/'Tabel 4F F'!G68*100,"-")) -> - | I68: =IF(OR('Tabel 4F F'!I68<5,'Tabel 4 F'!I68<0.5),"-",IFERROR('Tabel 4 F'!I68/'Tabel 4F F'!I68*100,"-")) -> 10
A69: Agronom | C69: =IF(OR('Tabel 4F F'!C69<5,'Tabel 4 F'!C69<0.5),"-",IFERROR('Tabel 4 F'!C69/'Tabel 4F F'!C69*100,"-")) -> - | D69: =IF(OR('Tabel 4F F'!D69<5,'Tabel 4 F'!D69<0.5),"-",IFERROR('Tabel 4 F'!D69/'Tabel 4F F'!D69*100,"-")) -> - | E69: =IF(OR('Tabel 4F F'!E69<5,'Tabel 4 F'!E69<0.5),"-",IFERROR('Tabel 4 F'!E69/'Tabel 4F F'!E69*100,"-")) -> - | F69: =IF(OR('Tabel 4F F'!F69<5,'Tabel 4 F'!F69<0.5),"-",IFERROR('Tabel 4 F'!F69/'Tabel 4F F'!F69*100,"-")) -> - | G69: =IF(OR('Tabel 4F F'!G69<5,'Tabel 4 F'!G69<0.5),"-",IFERROR('Tabel 4 F'!G69/'Tabel 4F F'!G69*100,"-")) -> - | I69: =IF(OR('Tabel 4F F'!I69<5,'Tabel 4 F'!I69<0.5),"-",IFERROR('Tabel 4 F'!I69/'Tabel 4F F'!I69*100,"-")) -> -
A70: Landsk. Arkt. | C70: =IF(OR('Tabel 4F F'!C70<5,'Tabel 4 F'!C70<0.5),"-",IFERROR('Tabel 4 F'!C70/'Tabel 4F F'!C70*100,"-")) -> - | D70: =IF(OR('Tabel 4F F'!D70<5,'Tabel 4 F'!D70<0.5),"-",IFERROR('Tabel 4 F'!D70/'Tabel 4F F'!D70*100,"-")) -> - | E70: =IF(OR('Tabel 4F F'!E70<5,'Tabel 4 F'!E70<0.5),"-",IFERROR('Tabel 4 F'!E70/'Tabel 4F F'!E70*100,"-")) -> - | F70: =IF(OR('Tabel 4F F'!F70<5,'Tabel 4 F'!F70<0.5),"-",IFERROR('Tabel 4 F'!F70/'Tabel 4F F'!F70*100,"-")) -> - | G70: =IF(OR('Tabel 4F F'!G70<5,'Tabel 4 F'!G70<0.5),"-",IFERROR('Tabel 4 F'!G70/'Tabel 4F F'!G70*100,"-")) -> - | I70: =IF(OR('Tabel 4F F'!I70<5,'Tabel 4 F'!I70<0.5),"-",IFERROR('Tabel 4 F'!I70/'Tabel 4F F'!I70*100,"-")) -> -
A71: Hortonom | C71: =IF(OR('Tabel 4F F'!C71<5,'Tabel 4 F'!C71<0.5),"-",IFERROR('Tabel 4 F'!C71/'Tabel 4F F'!C71*100,"-")) -> - | D71: =IF(OR('Tabel 4F F'!D71<5,'Tabel 4 F'!D71<0.5),"-",IFERROR('Tabel 4 F'!D71/'Tabel 4F F'!D71*100,"-")) -> - | E71: =IF(OR('Tabel 4F F'!E71<5,'Tabel 4 F'!E71<0.5),"-",IFERROR('Tabel 4 F'!E71/'Tabel 4F F'!E71*100,"-")) -> - | F71: =IF(OR('Tabel 4F F'!F71<5,'Tabel 4 F'!F71<0.5),"-",IFERROR('Tabel 4 F'!F71/'Tabel 4F F'!F71*100,"-")) -> - | G71: =IF(OR('Tabel 4F F'!G71<5,'Tabel 4 F'!G71<0.5),"-",IFERROR('Tabel 4 F'!G71/'Tabel 4F F'!G71*100,"-")) -> - | I71: =IF(OR('Tabel 4F F'!I71<5,'Tabel 4 F'!I71<0.5),"-",IFERROR('Tabel 4 F'!I71/'Tabel 4F F'!I71*100,"-")) -> -
A72: Forstkand. | C72: =IF(OR('Tabel 4F F'!C72<5,'Tabel 4 F'!C72<0.5),"-",IFERROR('Tabel 4 F'!C72/'Tabel 4F F'!C72*100,"-")) -> - | D72: =IF(OR('Tabel 4F F'!D72<5,'Tabel 4 F'!D72<0.5),"-",IFERROR('Tabel 4 F'!D72/'Tabel 4F F'!D72*100,"-")) -> - | E72: =IF(OR('Tabel 4F F'!E72<5,'Tabel 4 F'!E72<0.5),"-",IFERROR('Tabel 4 F'!E72/'Tabel 4F F'!E72*100,"-")) -> - | F72: =IF(OR('Tabel 4F F'!F72<5,'Tabel 4 F'!F72<0.5),"-",IFERROR('Tabel 4 F'!F72/'Tabel 4F F'!F72*100,"-")) -> - | G72: =IF(OR('Tabel 4F F'!G72<5,'Tabel 4 F'!G72<0.5),"-",IFERROR('Tabel 4 F'!G72/'Tabel 4F F'!G72*100,"-")) -> - | I72: =IF(OR('Tabel 4F F'!I72<5,'Tabel 4 F'!I72<0.5),"-",IFERROR('Tabel 4 F'!I72/'Tabel 4F F'!I72*100,"-")) -> -
A73: Jordbrugsakad. | C73: =IF(OR('Tabel 4F F'!C73<5,'Tabel 4 F'!C73<0.5),"-",IFERROR('Tabel 4 F'!C73/'Tabel 4F F'!C73*100,"-")) -> - | D73: =IF(OR('Tabel 4F F'!D73<5,'Tabel 4 F'!D73<0.5),"-",IFERROR('Tabel 4 F'!D73/'Tabel 4F F'!D73*100,"-")) -> - | E73: =IF(OR('Tabel 4F F'!E73<5,'Tabel 4 F'!E73<0.5),"-",IFERROR('Tabel 4 F'!E73/'Tabel 4F F'!E73*100,"-")) -> - | F73: =IF(OR('Tabel 4F F'!F73<5,'Tabel 4 F'!F73<0.5),"-",IFERROR('Tabel 4 F'!F73/'Tabel 4F F'!F73*100,"-")) -> - | G73: =IF(OR('Tabel 4F F'!G73<5,'Tabel 4 F'!G73<0.5),"-",IFERROR('Tabel 4 F'!G73/'Tabel 4F F'!G73*100,"-")) -> - | I73: =IF(OR('Tabel 4F F'!I73<5,'Tabel 4 F'!I73<0.5),"-",IFERROR('Tabel 4 F'!I73/'Tabel 4F F'!I73*100,"-")) -> -
A74: Mejeriing. | C74: =IF(OR('Tabel 4F F'!C74<5,'Tabel 4 F'!C74<0.5),"-",IFERROR('Tabel 4 F'!C74/'Tabel 4F F'!C74*100,"-")) -> - | D74: =IF(OR('Tabel 4F F'!D74<5,'Tabel 4 F'!D74<0.5),"-",IFERROR('Tabel 4 F'!D74/'Tabel 4F F'!D74*100,"-")) -> - | E74: =IF(OR('Tabel 4F F'!E74<5,'Tabel 4 F'!E74<0.5),"-",IFERROR('Tabel 4 F'!E74/'Tabel 4F F'!E74*100,"-")) -> - | F74: =IF(OR('Tabel 4F F'!F74<5,'Tabel 4 F'!F74<0.5),"-",IFERROR('Tabel 4 F'!F74/'Tabel 4F F'!F74*100,"-")) -> - | G74: =IF(OR('Tabel 4F F'!G74<5,'Tabel 4 F'!G74<0.5),"-",IFERROR('Tabel 4 F'!G74/'Tabel 4F F'!G74*100,"-")) -> - | I74: =IF(OR('Tabel 4F F'!I74<5,'Tabel 4 F'!I74<0.5),"-",IFERROR('Tabel 4 F'!I74/'Tabel 4F F'!I74*100,"-")) -> -
A75: Levn.m.kand. | C75: =IF(OR('Tabel 4F F'!C75<5,'Tabel 4 F'!C75<0.5),"-",IFERROR('Tabel 4 F'!C75/'Tabel 4F F'!C75*100,"-")) -> - | D75: =IF(OR('Tabel 4F F'!D75<5,'Tabel 4 F'!D75<0.5),"-",IFERROR('Tabel 4 F'!D75/'Tabel 4F F'!D75*100,"-")) -> - | E75: =IF(OR('Tabel 4F F'!E75<5,'Tabel 4 F'!E75<0.5),"-",IFERROR('Tabel 4 F'!E75/'Tabel 4F F'!E75*100,"-")) -> - | F75: =IF(OR('Tabel 4F F'!F75<5,'Tabel 4 F'!F75<0.5),"-",IFERROR('Tabel 4 F'!F75/'Tabel 4F F'!F75*100,"-")) -> - | G75: =IF(OR('Tabel 4F F'!G75<5,'Tabel 4 F'!G75<0.5),"-",IFERROR('Tabel 4 F'!G75/'Tabel 4F F'!G75*100,"-")) -> - | I75: =IF(OR('Tabel 4F F'!I75<5,'Tabel 4 F'!I75<0.5),"-",IFERROR('Tabel 4 F'!I75/'Tabel 4F F'!I75*100,"-")) -> -
A76: Dyrlæge | C76: =IF(OR('Tabel 4F F'!C76<5,'Tabel 4 F'!C76<0.5),"-",IFERROR('Tabel 4 F'!C76/'Tabel 4F F'!C76*100,"-")) -> - | D76: =IF(OR('Tabel 4F F'!D76<5,'Tabel 4 F'!D76<0.5),"-",IFERROR('Tabel 4 F'!D76/'Tabel 4F F'!D76*100,"-")) -> - | E76: =IF(OR('Tabel 4F F'!E76<5,'Tabel 4 F'!E76<0.5),"-",IFERROR('Tabel 4 F'!E76/'Tabel 4F F'!E76*100,"-")) -> - | F76: =IF(OR('Tabel 4F F'!F76<5,'Tabel 4 F'!F76<0.5),"-",IFERROR('Tabel 4 F'!F76/'Tabel 4F F'!F76*100,"-")) -> - | G76: =IF(OR('Tabel 4F F'!G76<5,'Tabel 4 F'!G76<0.5),"-",IFERROR('Tabel 4 F'!G76/'Tabel 4F F'!G76*100,"-")) -> - | I76: =IF(OR('Tabel 4F F'!I76<5,'Tabel 4 F'!I76<0.5),"-",IFERROR('Tabel 4 F'!I76/'Tabel 4F F'!I76*100,"-")) -> -
A77: Farmaceut | C77: =IF(OR('Tabel 4F F'!C77<5,'Tabel 4 F'!C77<0.5),"-",IFERROR('Tabel 4 F'!C77/'Tabel 4F F'!C77*100,"-")) -> - | D77: =IF(OR('Tabel 4F F'!D77<5,'Tabel 4 F'!D77<0.5),"-",IFERROR('Tabel 4 F'!D77/'Tabel 4F F'!D77*100,"-")) -> - | E77: =IF(OR('Tabel 4F F'!E77<5,'Tabel 4 F'!E77<0.5),"-",IFERROR('Tabel 4 F'!E77/'Tabel 4F F'!E77*100,"-")) -> - | F77: =IF(OR('Tabel 4F F'!F77<5,'Tabel 4 F'!F77<0.5),"-",IFERROR('Tabel 4 F'!F77/'Tabel 4F F'!F77*100,"-")) -> - | G77: =IF(OR('Tabel 4F F'!G77<5,'Tabel 4 F'!G77<0.5),"-",IFERROR('Tabel 4 F'!G77/'Tabel 4F F'!G77*100,"-")) -> - | I77: =IF(OR('Tabel 4F F'!I77<5,'Tabel 4 F'!I77<0.5),"-",IFERROR('Tabel 4 F'!I77/'Tabel 4F F'!I77*100,"-")) -> -
A78: Læge | C78: =IF(OR('Tabel 4F F'!C78<5,'Tabel 4 F'!C78<0.5),"-",IFERROR('Tabel 4 F'!C78/'Tabel 4F F'!C78*100,"-")) -> - | D78: =IF(OR('Tabel 4F F'!D78<5,'Tabel 4 F'!D78<0.5),"-",IFERROR('Tabel 4 F'!D78/'Tabel 4F F'!D78*100,"-")) -> 2.040816327 | E78: =IF(OR('Tabel 4F F'!E78<5,'Tabel 4 F'!E78<0.5),"-",IFERROR('Tabel 4 F'!E78/'Tabel 4F F'!E78*100,"-")) -> - | F78: =IF(OR('Tabel 4F F'!F78<5,'Tabel 4 F'!F78<0.5),"-",IFERROR('Tabel 4 F'!F78/'Tabel 4F F'!F78*100,"-")) -> - | G78: =IF(OR('Tabel 4F F'!G78<5,'Tabel 4 F'!G78<0.5),"-",IFERROR('Tabel 4 F'!G78/'Tabel 4F F'!G78*100,"-")) -> - | I78: =IF(OR('Tabel 4F F'!I78<5,'Tabel 4 F'!I78<0.5),"-",IFERROR('Tabel 4 F'!I78/'Tabel 4F F'!I78*100,"-")) -> 0.9090909091
A79: Tandlæge | C79: =IF(OR('Tabel 4F F'!C79<5,'Tabel 4 F'!C79<0.5),"-",IFERROR('Tabel 4 F'!C79/'Tabel 4F F'!C79*100,"-")) -> - | D79: =IF(OR('Tabel 4F F'!D79<5,'Tabel 4 F'!D79<0.5),"-",IFERROR('Tabel 4 F'!D79/'Tabel 4F F'!D79*100,"-")) -> - | E79: =IF(OR('Tabel 4F F'!E79<5,'Tabel 4 F'!E79<0.5),"-",IFERROR('Tabel 4 F'!E79/'Tabel 4F F'!E79*100,"-")) -> - | F79: =IF(OR('Tabel 4F F'!F79<5,'Tabel 4 F'!F79<0.5),"-",IFERROR('Tabel 4 F'!F79/'Tabel 4F F'!F79*100,"-")) -> - | G79: =IF(OR('Tabel 4F F'!G79<5,'Tabel 4 F'!G79<0.5),"-",IFERROR('Tabel 4 F'!G79/'Tabel 4F F'!G79*100,"-")) -> - | I79: =IF(OR('Tabel 4F F'!I79<5,'Tabel 4 F'!I79<0.5),"-",IFERROR('Tabel 4 F'!I79/'Tabel 4F F'!I79*100,"-")) -> -
A80: Arkitekt | C80: =IF(OR('Tabel 4F F'!C80<5,'Tabel 4 F'!C80<0.5),"-",IFERROR('Tabel 4 F'!C80/'Tabel 4F F'!C80*100,"-")) -> - | D80: =IF(OR('Tabel 4F F'!D80<5,'Tabel 4 F'!D80<0.5),"-",IFERROR('Tabel 4 F'!D80/'Tabel 4F F'!D80*100,"-")) -> - | E80: =IF(OR('Tabel 4F F'!E80<5,'Tabel 4 F'!E80<0.5),"-",IFERROR('Tabel 4 F'!E80/'Tabel 4F F'!E80*100,"-")) -> - | F80: =IF(OR('Tabel 4F F'!F80<5,'Tabel 4 F'!F80<0.5),"-",IFERROR('Tabel 4 F'!F80/'Tabel 4F F'!F80*100,"-")) -> 20 | G80: =IF(OR('Tabel 4F F'!G80<5,'Tabel 4 F'!G80<0.5),"-",IFERROR('Tabel 4 F'!G80/'Tabel 4F F'!G80*100,"-")) -> - | I80: =IF(OR('Tabel 4F F'!I80<5,'Tabel 4 F'!I80<0.5),"-",IFERROR('Tabel 4 F'!I80/'Tabel 4F F'!I80*100,"-")) -> 8.333333333
A81: Landinspek. | C81: =IF(OR('Tabel 4F F'!C81<5,'Tabel 4 F'!C81<0.5),"-",IFERROR('Tabel 4 F'!C81/'Tabel 4F F'!C81*100,"-")) -> - | D81: =IF(OR('Tabel 4F F'!D81<5,'Tabel 4 F'!D81<0.5),"-",IFERROR('Tabel 4 F'!D81/'Tabel 4F F'!D81*100,"-")) -> - | E81: =IF(OR('Tabel 4F F'!E81<5,'Tabel 4 F'!E81<0.5),"-",IFERROR('Tabel 4 F'!E81/'Tabel 4F F'!E81*100,"-")) -> - | F81: =IF(OR('Tabel 4F F'!F81<5,'Tabel 4 F'!F81<0.5),"-",IFERROR('Tabel 4 F'!F81/'Tabel 4F F'!F81*100,"-")) -> - | G81: =IF(OR('Tabel 4F F'!G81<5,'Tabel 4 F'!G81<0.5),"-",IFERROR('Tabel 4 F'!G81/'Tabel 4F F'!G81*100,"-")) -> - | I81: =IF(OR('Tabel 4F F'!I81<5,'Tabel 4 F'!I81<0.5),"-",IFERROR('Tabel 4 F'!I81/'Tabel 4F F'!I81*100,"-")) -> -
A82: Bibliotekar | C82: =IF(OR('Tabel 4F F'!C82<5,'Tabel 4 F'!C82<0.5),"-",IFERROR('Tabel 4 F'!C82/'Tabel 4F F'!C82*100,"-")) -> - | D82: =IF(OR('Tabel 4F F'!D82<5,'Tabel 4 F'!D82<0.5),"-",IFERROR('Tabel 4 F'!D82/'Tabel 4F F'!D82*100,"-")) -> - | E82: =IF(OR('Tabel 4F F'!E82<5,'Tabel 4 F'!E82<0.5),"-",IFERROR('Tabel 4 F'!E82/'Tabel 4F F'!E82*100,"-")) -> - | F82: =IF(OR('Tabel 4F F'!F82<5,'Tabel 4 F'!F82<0.5),"-",IFERROR('Tabel 4 F'!F82/'Tabel 4F F'!F82*100,"-")) -> - | G82: =IF(OR('Tabel 4F F'!G82<5,'Tabel 4 F'!G82<0.5),"-",IFERROR('Tabel 4 F'!G82/'Tabel 4F F'!G82*100,"-")) -> - | I82: =IF(OR('Tabel 4F F'!I82<5,'Tabel 4 F'!I82<0.5),"-",IFERROR('Tabel 4 F'!I82/'Tabel 4F F'!I82*100,"-")) -> -
A83: Musikudd. | C83: =IF(OR('Tabel 4F F'!C83<5,'Tabel 4 F'!C83<0.5),"-",IFERROR('Tabel 4 F'!C83/'Tabel 4F F'!C83*100,"-")) -> - | D83: =IF(OR('Tabel 4F F'!D83<5,'Tabel 4 F'!D83<0.5),"-",IFERROR('Tabel 4 F'!D83/'Tabel 4F F'!D83*100,"-")) -> - | E83: =IF(OR('Tabel 4F F'!E83<5,'Tabel 4 F'!E83<0.5),"-",IFERROR('Tabel 4 F'!E83/'Tabel 4F F'!E83*100,"-")) -> - | F83: =IF(OR('Tabel 4F F'!F83<5,'Tabel 4 F'!F83<0.5),"-",IFERROR('Tabel 4 F'!F83/'Tabel 4F F'!F83*100,"-")) -> - | G83: =IF(OR('Tabel 4F F'!G83<5,'Tabel 4 F'!G83<0.5),"-",IFERROR('Tabel 4 F'!G83/'Tabel 4F F'!G83*100,"-")) -> - | I83: =IF(OR('Tabel 4F F'!I83<5,'Tabel 4 F'!I83<0.5),"-",IFERROR('Tabel 4 F'!I83/'Tabel 4F F'!I83*100,"-")) -> -
A84: Teolog | C84: =IF(OR('Tabel 4F F'!C84<5,'Tabel 4 F'!C84<0.5),"-",IFERROR('Tabel 4 F'!C84/'Tabel 4F F'!C84*100,"-")) -> - | D84: =IF(OR('Tabel 4F F'!D84<5,'Tabel 4 F'!D84<0.5),"-",IFERROR('Tabel 4 F'!D84/'Tabel 4F F'!D84*100,"-")) -> - | E84: =IF(OR('Tabel 4F F'!E84<5,'Tabel 4 F'!E84<0.5),"-",IFERROR('Tabel 4 F'!E84/'Tabel 4F F'!E84*100,"-")) -> 40 | F84: =IF(OR('Tabel 4F F'!F84<5,'Tabel 4 F'!F84<0.5),"-",IFERROR('Tabel 4 F'!F84/'Tabel 4F F'!F84*100,"-")) -> - | G84: =IF(OR('Tabel 4F F'!G84<5,'Tabel 4 F'!G84<0.5),"-",IFERROR('Tabel 4 F'!G84/'Tabel 4F F'!G84*100,"-")) -> - | I84: =IF(OR('Tabel 4F F'!I84<5,'Tabel 4 F'!I84<0.5),"-",IFERROR('Tabel 4 F'!I84/'Tabel 4F F'!I84*100,"-")) -> 14.28571429
A85: Psykolog | C85: =IF(OR('Tabel 4F F'!C85<5,'Tabel 4 F'!C85<0.5),"-",IFERROR('Tabel 4 F'!C85/'Tabel 4F F'!C85*100,"-")) -> - | D85: =IF(OR('Tabel 4F F'!D85<5,'Tabel 4 F'!D85<0.5),"-",IFERROR('Tabel 4 F'!D85/'Tabel 4F F'!D85*100,"-")) -> - | E85: =IF(OR('Tabel 4F F'!E85<5,'Tabel 4 F'!E85<0.5),"-",IFERROR('Tabel 4 F'!E85/'Tabel 4F F'!E85*100,"-")) -> - | F85: =IF(OR('Tabel 4F F'!F85<5,'Tabel 4 F'!F85<0.5),"-",IFERROR('Tabel 4 F'!F85/'Tabel 4F F'!F85*100,"-")) -> - | G85: =IF(OR('Tabel 4F F'!G85<5,'Tabel 4 F'!G85<0.5),"-",IFERROR('Tabel 4 F'!G85/'Tabel 4F F'!G85*100,"-")) -> - | I85: =IF(OR('Tabel 4F F'!I85<5,'Tabel 4 F'!I85<0.5),"-",IFERROR('Tabel 4 F'!I85/'Tabel 4F F'!I85*100,"-")) -> -
A86: Jurist | C86: =IF(OR('Tabel 4F F'!C86<5,'Tabel 4 F'!C86<0.5),"-",IFERROR('Tabel 4 F'!C86/'Tabel 4F F'!C86*100,"-")) -> - | D86: =IF(OR('Tabel 4F F'!D86<5,'Tabel 4 F'!D86<0.5),"-",IFERROR('Tabel 4 F'!D86/'Tabel 4F F'!D86*100,"-")) -> - | E86: =IF(OR('Tabel 4F F'!E86<5,'Tabel 4 F'!E86<0.5),"-",IFERROR('Tabel 4 F'!E86/'Tabel 4F F'!E86*100,"-")) -> - | F86: =IF(OR('Tabel 4F F'!F86<5,'Tabel 4 F'!F86<0.5),"-",IFERROR('Tabel 4 F'!F86/'Tabel 4F F'!F86*100,"-")) -> - | G86: =IF(OR('Tabel 4F F'!G86<5,'Tabel 4 F'!G86<0.5),"-",IFERROR('Tabel 4 F'!G86/'Tabel 4F F'!G86*100,"-")) -> - | I86: =IF(OR('Tabel 4F F'!I86<5,'Tabel 4 F'!I86<0.5),"-",IFERROR('Tabel 4 F'!I86/'Tabel 4F F'!I86*100,"-")) -> -
A87: Økonom | C87: =IF(OR('Tabel 4F F'!C87<5,'Tabel 4 F'!C87<0.5),"-",IFERROR('Tabel 4 F'!C87/'Tabel 4F F'!C87*100,"-")) -> - | D87: =IF(OR('Tabel 4F F'!D87<5,'Tabel 4 F'!D87<0.5),"-",IFERROR('Tabel 4 F'!D87/'Tabel 4F F'!D87*100,"-")) -> - | E87: =IF(OR('Tabel 4F F'!E87<5,'Tabel 4 F'!E87<0.5),"-",IFERROR('Tabel 4 F'!E87/'Tabel 4F F'!E87*100,"-")) -> - | F87: =IF(OR('Tabel 4F F'!F87<5,'Tabel 4 F'!F87<0.5),"-",IFERROR('Tabel 4 F'!F87/'Tabel 4F F'!F87*100,"-")) -> - | G87: =IF(OR('Tabel 4F F'!G87<5,'Tabel 4 F'!G87<0.5),"-",IFERROR('Tabel 4 F'!G87/'Tabel 4F F'!G87*100,"-")) -> - | I87: =IF(OR('Tabel 4F F'!I87<5,'Tabel 4 F'!I87<0.5),"-",IFERROR('Tabel 4 F'!I87/'Tabel 4F F'!I87*100,"-")) -> -
A88: Samf. Adm. | C88: =IF(OR('Tabel 4F F'!C88<5,'Tabel 4 F'!C88<0.5),"-",IFERROR('Tabel 4 F'!C88/'Tabel 4F F'!C88*100,"-")) -> - | D88: =IF(OR('Tabel 4F F'!D88<5,'Tabel 4 F'!D88<0.5),"-",IFERROR('Tabel 4 F'!D88/'Tabel 4F F'!D88*100,"-")) -> - | E88: =IF(OR('Tabel 4F F'!E88<5,'Tabel 4 F'!E88<0.5),"-",IFERROR('Tabel 4 F'!E88/'Tabel 4F F'!E88*100,"-")) -> - | F88: =IF(OR('Tabel 4F F'!F88<5,'Tabel 4 F'!F88<0.5),"-",IFERROR('Tabel 4 F'!F88/'Tabel 4F F'!F88*100,"-")) -> 6.25 | G88: =IF(OR('Tabel 4F F'!G88<5,'Tabel 4 F'!G88<0.5),"-",IFERROR('Tabel 4 F'!G88/'Tabel 4F F'!G88*100,"-")) -> - | I88: =IF(OR('Tabel 4F F'!I88<5,'Tabel 4 F'!I88<0.5),"-",IFERROR('Tabel 4 F'!I88/'Tabel 4F F'!I88*100,"-")) -> 1.063829787
A89: Cand. Merc. | C89: =IF(OR('Tabel 4F F'!C89<5,'Tabel 4 F'!C89<0.5),"-",IFERROR('Tabel 4 F'!C89/'Tabel 4F F'!C89*100,"-")) -> 9.523809524 | D89: =IF(OR('Tabel 4F F'!D89<5,'Tabel 4 F'!D89<0.5),"-",IFERROR('Tabel 4 F'!D89/'Tabel 4F F'!D89*100,"-")) -> 1.666666667 | E89: =IF(OR('Tabel 4F F'!E89<5,'Tabel 4 F'!E89<0.5),"-",IFERROR('Tabel 4 F'!E89/'Tabel 4F F'!E89*100,"-")) -> - | F89: =IF(OR('Tabel 4F F'!F89<5,'Tabel 4 F'!F89<0.5),"-",IFERROR('Tabel 4 F'!F89/'Tabel 4F F'!F89*100,"-")) -> - | G89: =IF(OR('Tabel 4F F'!G89<5,'Tabel 4 F'!G89<0.5),"-",IFERROR('Tabel 4 F'!G89/'Tabel 4F F'!G89*100,"-")) -> - | I89: =IF(OR('Tabel 4F F'!I89<5,'Tabel 4 F'!I89<0.5),"-",IFERROR('Tabel 4 F'!I89/'Tabel 4F F'!I89*100,"-")) -> 1.840490798
A90: HA | C90: =IF(OR('Tabel 4F F'!C90<5,'Tabel 4 F'!C90<0.5),"-",IFERROR('Tabel 4 F'!C90/'Tabel 4F F'!C90*100,"-")) -> - | D90: =IF(OR('Tabel 4F F'!D90<5,'Tabel 4 F'!D90<0.5),"-",IFERROR('Tabel 4 F'!D90/'Tabel 4F F'!D90*100,"-")) -> 10 | E90: =IF(OR('Tabel 4F F'!E90<5,'Tabel 4 F'!E90<0.5),"-",IFERROR('Tabel 4 F'!E90/'Tabel 4F F'!E90*100,"-")) -> - | F90: =IF(OR('Tabel 4F F'!F90<5,'Tabel 4 F'!F90<0.5),"-",IFERROR('Tabel 4 F'!F90/'Tabel 4F F'!F90*100,"-")) -> - | G90: =IF(OR('Tabel 4F F'!G90<5,'Tabel 4 F'!G90<0.5),"-",IFERROR('Tabel 4 F'!G90/'Tabel 4F F'!G90*100,"-")) -> - | I90: =IF(OR('Tabel 4F F'!I90<5,'Tabel 4 F'!I90<0.5),"-",IFERROR('Tabel 4 F'!I90/'Tabel 4F F'!I90*100,"-")) -> 2.702702703
A91: HD | C91: =IF(OR('Tabel 4F F'!C91<5,'Tabel 4 F'!C91<0.5),"-",IFERROR('Tabel 4 F'!C91/'Tabel 4F F'!C91*100,"-")) -> - | D91: =IF(OR('Tabel 4F F'!D91<5,'Tabel 4 F'!D91<0.5),"-",IFERROR('Tabel 4 F'!D91/'Tabel 4F F'!D91*100,"-")) -> - | E91: =IF(OR('Tabel 4F F'!E91<5,'Tabel 4 F'!E91<0.5),"-",IFERROR('Tabel 4 F'!E91/'Tabel 4F F'!E91*100,"-")) -> - | F91: =IF(OR('Tabel 4F F'!F91<5,'Tabel 4 F'!F91<0.5),"-",IFERROR('Tabel 4 F'!F91/'Tabel 4F F'!F91*100,"-")) -> - | G91: =IF(OR('Tabel 4F F'!G91<5,'Tabel 4 F'!G91<0.5),"-",IFERROR('Tabel 4 F'!G91/'Tabel 4F F'!G91*100,"-")) -> - | I91: =IF(OR('Tabel 4F F'!I91<5,'Tabel 4 F'!I91<0.5),"-",IFERROR('Tabel 4 F'!I91/'Tabel 4F F'!I91*100,"-")) -> -
A92: Komm. og Sprog | C92: =IF(OR('Tabel 4F F'!C92<5,'Tabel 4 F'!C92<0.5),"-",IFERROR('Tabel 4 F'!C92/'Tabel 4F F'!C92*100,"-")) -> - | D92: =IF(OR('Tabel 4F F'!D92<5,'Tabel 4 F'!D92<0.5),"-",IFERROR('Tabel 4 F'!D92/'Tabel 4F F'!D92*100,"-")) -> - | E92: =IF(OR('Tabel 4F F'!E92<5,'Tabel 4 F'!E92<0.5),"-",IFERROR('Tabel 4 F'!E92/'Tabel 4F F'!E92*100,"-")) -> - | F92: =IF(OR('Tabel 4F F'!F92<5,'Tabel 4 F'!F92<0.5),"-",IFERROR('Tabel 4 F'!F92/'Tabel 4F F'!F92*100,"-")) -> - | G92: =IF(OR('Tabel 4F F'!G92<5,'Tabel 4 F'!G92<0.5),"-",IFERROR('Tabel 4 F'!G92/'Tabel 4F F'!G92*100,"-")) -> - | I92: =IF(OR('Tabel 4F F'!I92<5,'Tabel 4 F'!I92<0.5),"-",IFERROR('Tabel 4 F'!I92/'Tabel 4F F'!I92*100,"-")) -> -
A93: Bygningskonst. | C93: =IF(OR('Tabel 4F F'!C93<5,'Tabel 4 F'!C93<0.5),"-",IFERROR('Tabel 4 F'!C93/'Tabel 4F F'!C93*100,"-")) -> - | D93: =IF(OR('Tabel 4F F'!D93<5,'Tabel 4 F'!D93<0.5),"-",IFERROR('Tabel 4 F'!D93/'Tabel 4F F'!D93*100,"-")) -> - | E93: =IF(OR('Tabel 4F F'!E93<5,'Tabel 4 F'!E93<0.5),"-",IFERROR('Tabel 4 F'!E93/'Tabel 4F F'!E93*100,"-")) -> - | F93: =IF(OR('Tabel 4F F'!F93<5,'Tabel 4 F'!F93<0.5),"-",IFERROR('Tabel 4 F'!F93/'Tabel 4F F'!F93*100,"-")) -> - | G93: =IF(OR('Tabel 4F F'!G93<5,'Tabel 4 F'!G93<0.5),"-",IFERROR('Tabel 4 F'!G93/'Tabel 4F F'!G93*100,"-")) -> - | I93: =IF(OR('Tabel 4F F'!I93<5,'Tabel 4 F'!I93<0.5),"-",IFERROR('Tabel 4 F'!I93/'Tabel 4F F'!I93*100,"-")) -> -
A94: Cand. IT. | C94: =IF(OR('Tabel 4F F'!C94<5,'Tabel 4 F'!C94<0.5),"-",IFERROR('Tabel 4 F'!C94/'Tabel 4F F'!C94*100,"-")) -> - | D94: =IF(OR('Tabel 4F F'!D94<5,'Tabel 4 F'!D94<0.5),"-",IFERROR('Tabel 4 F'!D94/'Tabel 4F F'!D94*100,"-")) -> 12.5 | E94: =IF(OR('Tabel 4F F'!E94<5,'Tabel 4 F'!E94<0.5),"-",IFERROR('Tabel 4 F'!E94/'Tabel 4F F'!E94*100,"-")) -> - | F94: =IF(OR('Tabel 4F F'!F94<5,'Tabel 4 F'!F94<0.5),"-",IFERROR('Tabel 4 F'!F94/'Tabel 4F F'!F94*100,"-")) -> - | G94: =IF(OR('Tabel 4F F'!G94<5,'Tabel 4 F'!G94<0.5),"-",IFERROR('Tabel 4 F'!G94/'Tabel 4F F'!G94*100,"-")) -> - | I94: =IF(OR('Tabel 4F F'!I94<5,'Tabel 4 F'!I94<0.5),"-",IFERROR('Tabel 4 F'!I94/'Tabel 4F F'!I94*100,"-")) -> 7.692307692
A95: Bac. Samf. | C95: =IF(OR('Tabel 4F F'!C95<5,'Tabel 4 F'!C95<0.5),"-",IFERROR('Tabel 4 F'!C95/'Tabel 4F F'!C95*100,"-")) -> - | D95: =IF(OR('Tabel 4F F'!D95<5,'Tabel 4 F'!D95<0.5),"-",IFERROR('Tabel 4 F'!D95/'Tabel 4F F'!D95*100,"-")) -> - | E95: =IF(OR('Tabel 4F F'!E95<5,'Tabel 4 F'!E95<0.5),"-",IFERROR('Tabel 4 F'!E95/'Tabel 4F F'!E95*100,"-")) -> - | F95: =IF(OR('Tabel 4F F'!F95<5,'Tabel 4 F'!F95<0.5),"-",IFERROR('Tabel 4 F'!F95/'Tabel 4F F'!F95*100,"-")) -> - | G95: =IF(OR('Tabel 4F F'!G95<5,'Tabel 4 F'!G95<0.5),"-",IFERROR('Tabel 4 F'!G95/'Tabel 4F F'!G95*100,"-")) -> - | I95: =IF(OR('Tabel 4F F'!I95<5,'Tabel 4 F'!I95<0.5),"-",IFERROR('Tabel 4 F'!I95/'Tabel 4F F'!I95*100,"-")) -> 16.66666667
A96: Bac. Hum. | C96: =IF(OR('Tabel 4F F'!C96<5,'Tabel 4 F'!C96<0.5),"-",IFERROR('Tabel 4 F'!C96/'Tabel 4F F'!C96*100,"-")) -> - | D96: =IF(OR('Tabel 4F F'!D96<5,'Tabel 4 F'!D96<0.5),"-",IFERROR('Tabel 4 F'!D96/'Tabel 4F F'!D96*100,"-")) -> - | E96: =IF(OR('Tabel 4F F'!E96<5,'Tabel 4 F'!E96<0.5),"-",IFERROR('Tabel 4 F'!E96/'Tabel 4F F'!E96*100,"-")) -> - | F96: =IF(OR('Tabel 4F F'!F96<5,'Tabel 4 F'!F96<0.5),"-",IFERROR('Tabel 4 F'!F96/'Tabel 4F F'!F96*100,"-")) -> - | G96: =IF(OR('Tabel 4F F'!G96<5,'Tabel 4 F'!G96<0.5),"-",IFERROR('Tabel 4 F'!G96/'Tabel 4F F'!G96*100,"-")) -> - | I96: =IF(OR('Tabel 4F F'!I96<5,'Tabel 4 F'!I96<0.5),"-",IFERROR('Tabel 4 F'!I96/'Tabel 4F F'!I96*100,"-")) -> -
A97: Bac. Nat. | C97: =IF(OR('Tabel 4F F'!C97<5,'Tabel 4 F'!C97<0.5),"-",IFERROR('Tabel 4 F'!C97/'Tabel 4F F'!C97*100,"-")) -> - | D97: =IF(OR('Tabel 4F F'!D97<5,'Tabel 4 F'!D97<0.5),"-",IFERROR('Tabel 4 F'!D97/'Tabel 4F F'!D97*100,"-")) -> - | E97: =IF(OR('Tabel 4F F'!E97<5,'Tabel 4 F'!E97<0.5),"-",IFERROR('Tabel 4 F'!E97/'Tabel 4F F'!E97*100,"-")) -> - | F97: =IF(OR('Tabel 4F F'!F97<5,'Tabel 4 F'!F97<0.5),"-",IFERROR('Tabel 4 F'!F97/'Tabel 4F F'!F97*100,"-")) -> - | G97: =IF(OR('Tabel 4F F'!G97<5,'Tabel 4 F'!G97<0.5),"-",IFERROR('Tabel 4 F'!G97/'Tabel 4F F'!G97*100,"-")) -> - | I97: =IF(OR('Tabel 4F F'!I97<5,'Tabel 4 F'!I97<0.5),"-",IFERROR('Tabel 4 F'!I97/'Tabel 4F F'!I97*100,"-")) -> -
A98: Andre | C98: =IF(OR('Tabel 4F F'!C98<5,'Tabel 4 F'!C98<0.5),"-",IFERROR('Tabel 4 F'!C98/'Tabel 4F F'!C98*100,"-")) -> - | D98: =IF(OR('Tabel 4F F'!D98<5,'Tabel 4 F'!D98<0.5),"-",IFERROR('Tabel 4 F'!D98/'Tabel 4F F'!D98*100,"-")) -> 4 | E98: =IF(OR('Tabel 4F F'!E98<5,'Tabel 4 F'!E98<0.5),"-",IFERROR('Tabel 4 F'!E98/'Tabel 4F F'!E98*100,"-")) -> - | F98: =IF(OR('Tabel 4F F'!F98<5,'Tabel 4 F'!F98<0.5),"-",IFERROR('Tabel 4 F'!F98/'Tabel 4F F'!F98*100,"-")) -> - | G98: =IF(OR('Tabel 4F F'!G98<5,'Tabel 4 F'!G98<0.5),"-",IFERROR('Tabel 4 F'!G98/'Tabel 4F F'!G98*100,"-")) -> - | I98: =IF(OR('Tabel 4F F'!I98<5,'Tabel 4 F'!I98<0.5),"-",IFERROR('Tabel 4 F'!I98/'Tabel 4F F'!I98*100,"-")) -> 1.123595506
A100: Total | C100: =IF(OR('Tabel 4F F'!C100<5,'Tabel 4 F'!C100<0.5),"-",IFERROR('Tabel 4 F'!C100/'Tabel 4F F'!C100*100,"-")) -> 4.191616766 | D100: =IF(OR('Tabel 4F F'!D100<5,'Tabel 4 F'!D100<0.5),"-",IFERROR('Tabel 4 F'!D100/'Tabel 4F F'!D100*100,"-")) -> 2.260869565 | E100: =IF(OR('Tabel 4F F'!E100<5,'Tabel 4 F'!E100<0.5),"-",IFERROR('Tabel 4 F'!E100/'Tabel 4F F'!E100*100,"-")) -> 0.4016064257 | F100: =IF(OR('Tabel 4F F'!F100<5,'Tabel 4 F'!F100<0.5),"-",IFERROR('Tabel 4 F'!F100/'Tabel 4F F'!F100*100,"-")) -> 0.9925558313 | G100: =IF(OR('Tabel 4F F'!G100<5,'Tabel 4 F'!G100<0.5),"-",IFERROR('Tabel 4 F'!G100/'Tabel 4F F'!G100*100,"-")) -> 2.631578947 | I100: =IF(OR('Tabel 4F F'!I100<5,'Tabel 4 F'!I100<0.5),"-",IFERROR('Tabel 4 F'!I100/'Tabel 4F F'!I100*100,"-")) -> 1.671309192
A102: Ingeniører i alt | C102: =IF(OR('Tabel 4F F'!C102<5,'Tabel 4 F'!C102<0.5),"-",IFERROR('Tabel 4 F'!C102/'Tabel 4F F'!C102*100,"-")) -> 5.405405405 | D102: =IF(OR('Tabel 4F F'!D102<5,'Tabel 4 F'!D102<0.5),"-",IFERROR('Tabel 4 F'!D102/'Tabel 4F F'!D102*100,"-")) -> - | E102: =IF(OR('Tabel 4F F'!E102<5,'Tabel 4 F'!E102<0.5),"-",IFERROR('Tabel 4 F'!E102/'Tabel 4F F'!E102*100,"-")) -> - | F102: =IF(OR('Tabel 4F F'!F102<5,'Tabel 4 F'!F102<0.5),"-",IFERROR('Tabel 4 F'!F102/'Tabel 4F F'!F102*100,"-")) -> - | G102: =IF(OR('Tabel 4F F'!G102<5,'Tabel 4 F'!G102<0.5),"-",IFERROR('Tabel 4 F'!G102/'Tabel 4F F'!G102*100,"-")) -> 3.571428571 | I102: =IF(OR('Tabel 4F F'!I102<5,'Tabel 4 F'!I102<0.5),"-",IFERROR('Tabel 4 F'!I102/'Tabel 4F F'!I102*100,"-")) -> 0.9345794393
A103: Magistre i alt | C103: =IF(OR('Tabel 4F F'!C103<5,'Tabel 4 F'!C103<0.5),"-",IFERROR('Tabel 4 F'!C103/'Tabel 4F F'!C103*100,"-")) -> 12.5 | D103: =IF(OR('Tabel 4F F'!D103<5,'Tabel 4 F'!D103<0.5),"-",IFERROR('Tabel 4 F'!D103/'Tabel 4F F'!D103*100,"-")) -> 5.263157895 | E103: =IF(OR('Tabel 4F F'!E103<5,'Tabel 4 F'!E103<0.5),"-",IFERROR('Tabel 4 F'!E103/'Tabel 4F F'!E103*100,"-")) -> - | F103: =IF(OR('Tabel 4F F'!F103<5,'Tabel 4 F'!F103<0.5),"-",IFERROR('Tabel 4 F'!F103/'Tabel 4F F'!F103*100,"-")) -> 3.389830508 | G103: =IF(OR('Tabel 4F F'!G103<5,'Tabel 4 F'!G103<0.5),"-",IFERROR('Tabel 4 F'!G103/'Tabel 4F F'!G103*100,"-")) -> 5.263157895 | I103: =IF(OR('Tabel 4F F'!I103<5,'Tabel 4 F'!I103<0.5),"-",IFERROR('Tabel 4 F'!I103/'Tabel 4F F'!I103*100,"-")) -> 3.594771242
A104: DJØF'ere i alt | C104: =IF(OR('Tabel 4F F'!C104<5,'Tabel 4 F'!C104<0.5),"-",IFERROR('Tabel 4 F'!C104/'Tabel 4F F'!C104*100,"-")) -> 5.263157895 | D104: =IF(OR('Tabel 4F F'!D104<5,'Tabel 4 F'!D104<0.5),"-",IFERROR('Tabel 4 F'!D104/'Tabel 4F F'!D104*100,"-")) -> 1.398601399 | E104: =IF(OR('Tabel 4F F'!E104<5,'Tabel 4 F'!E104<0.5),"-",IFERROR('Tabel 4 F'!E104/'Tabel 4F F'!E104*100,"-")) -> - | F104: =IF(OR('Tabel 4F F'!F104<5,'Tabel 4 F'!F104<0.5),"-",IFERROR('Tabel 4 F'!F104/'Tabel 4F F'!F104*100,"-")) -> 1.234567901 | G104: =IF(OR('Tabel 4F F'!G104<5,'Tabel 4 F'!G104<0.5),"-",IFERROR('Tabel 4 F'!G104/'Tabel 4F F'!G104*100,"-")) -> - | I104: =IF(OR('Tabel 4F F'!I104<5,'Tabel 4 F'!I104<0.5),"-",IFERROR('Tabel 4 F'!I104/'Tabel 4F F'!I104*100,"-")) -> 1.262626263
A111: Assens
C113: Under 30 år | D113: 30 - 39 år | E113: 40 - 49 år | F113: 50 - 59 år | G113: Over 60 år | I113: I alt
A115: Civ. ing. | C115: =IF(OR('Tabel 4F F'!C115<5,'Tabel 4 F'!C115<0.5),"-",IFERROR('Tabel 4 F'!C115/'Tabel 4F F'!C115*100,"-")) -> 20 | D115: =IF(OR('Tabel 4F F'!D115<5,'Tabel 4 F'!D115<0.5),"-",IFERROR('Tabel 4 F'!D115/'Tabel 4F F'!D115*100,"-")) -> - | E115: =IF(OR('Tabel 4F F'!E115<5,'Tabel 4 F'!E115<0.5),"-",IFERROR('Tabel 4 F'!E115/'Tabel 4F F'!E115*100,"-")) -> - | F115: =IF(OR('Tabel 4F F'!F115<5,'Tabel 4 F'!F115<0.5),"-",IFERROR('Tabel 4 F'!F115/'Tabel 4F F'!F115*100,"-")) -> - | G115: =IF(OR('Tabel 4F F'!G115<5,'Tabel 4 F'!G115<0.5),"-",IFERROR('Tabel 4 F'!G115/'Tabel 4F F'!G115*100,"-")) -> - | I115: =IF(OR('Tabel 4F F'!I115<5,'Tabel 4 F'!I115<0.5),"-",IFERROR('Tabel 4 F'!I115/'Tabel 4F F'!I115*100,"-")) -> 1.265822785
A116: Diplom ing. | C116: =IF(OR('Tabel 4F F'!C116<5,'Tabel 4 F'!C116<0.5),"-",IFERROR('Tabel 4 F'!C116/'Tabel 4F F'!C116*100,"-")) -> 7.692307692 | D116: =IF(OR('Tabel 4F F'!D116<5,'Tabel 4 F'!D116<0.5),"-",IFERROR('Tabel 4 F'!D116/'Tabel 4F F'!D116*100,"-")) -> - | E116: =IF(OR('Tabel 4F F'!E116<5,'Tabel 4 F'!E116<0.5),"-",IFERROR('Tabel 4 F'!E116/'Tabel 4F F'!E116*100,"-")) -> 1.639344262 | F116: =IF(OR('Tabel 4F F'!F116<5,'Tabel 4 F'!F116<0.5),"-",IFERROR('Tabel 4 F'!F116/'Tabel 4F F'!F116*100,"-")) -> 1.098901099 | G116: =IF(OR('Tabel 4F F'!G116<5,'Tabel 4 F'!G116<0.5),"-",IFERROR('Tabel 4 F'!G116/'Tabel 4F F'!G116*100,"-")) -> 2.5 | I116: =IF(OR('Tabel 4F F'!I116<5,'Tabel 4 F'!I116<0.5),"-",IFERROR('Tabel 4 F'!I116/'Tabel 4F F'!I116*100,"-")) -> 1.6
A117: Cand. Scient. Tek | C117: =IF(OR('Tabel 4F F'!C117<5,'Tabel 4 F'!C117<0.5),"-",IFERROR('Tabel 4 F'!C117/'Tabel 4F F'!C117*100,"-")) -> - | D117: =IF(OR('Tabel 4F F'!D117<5,'Tabel 4 F'!D117<0.5),"-",IFERROR('Tabel 4 F'!D117/'Tabel 4F F'!D117*100,"-")) -> - | E117: =IF(OR('Tabel 4F F'!E117<5,'Tabel 4 F'!E117<0.5),"-",IFERROR('Tabel 4 F'!E117/'Tabel 4F F'!E117*100,"-")) -> - | F117: =IF(OR('Tabel 4F F'!F117<5,'Tabel 4 F'!F117<0.5),"-",IFERROR('Tabel 4 F'!F117/'Tabel 4F F'!F117*100,"-")) -> - | G117: =IF(OR('Tabel 4F F'!G117<5,'Tabel 4 F'!G117<0.5),"-",IFERROR('Tabel 4 F'!G117/'Tabel 4F F'!G117*100,"-")) -> - | I117: =IF(OR('Tabel 4F F'!I117<5,'Tabel 4 F'!I117<0.5),"-",IFERROR('Tabel 4 F'!I117/'Tabel 4F F'!I117*100,"-")) -> -
A118: MA. Hum. | C118: =IF(OR('Tabel 4F F'!C118<5,'Tabel 4 F'!C118<0.5),"-",IFERROR('Tabel 4 F'!C118/'Tabel 4F F'!C118*100,"-")) -> - | D118: =IF(OR('Tabel 4F F'!D118<5,'Tabel 4 F'!D118<0.5),"-",IFERROR('Tabel 4 F'!D118/'Tabel 4F F'!D118*100,"-")) -> 6.666666667 | E118: =IF(OR('Tabel 4F F'!E118<5,'Tabel 4 F'!E118<0.5),"-",IFERROR('Tabel 4 F'!E118/'Tabel 4F F'!E118*100,"-")) -> 1.515151515 | F118: =IF(OR('Tabel 4F F'!F118<5,'Tabel 4 F'!F118<0.5),"-",IFERROR('Tabel 4 F'!F118/'Tabel 4F F'!F118*100,"-")) -> 8 | G118: =IF(OR('Tabel 4F F'!G118<5,'Tabel 4 F'!G118<0.5),"-",IFERROR('Tabel 4 F'!G118/'Tabel 4F F'!G118*100,"-")) -> - | I118: =IF(OR('Tabel 4F F'!I118<5,'Tabel 4 F'!I118<0.5),"-",IFERROR('Tabel 4 F'!I118/'Tabel 4F F'!I118*100,"-")) -> 3.797468354
A119: MA. Nat. | C119: =IF(OR('Tabel 4F F'!C119<5,'Tabel 4 F'!C119<0.5),"-",IFERROR('Tabel 4 F'!C119/'Tabel 4F F'!C119*100,"-")) -> - | D119: =IF(OR('Tabel 4F F'!D119<5,'Tabel 4 F'!D119<0.5),"-",IFERROR('Tabel 4 F'!D119/'Tabel 4F F'!D119*100,"-")) -> 6.666666667 | E119: =IF(OR('Tabel 4F F'!E119<5,'Tabel 4 F'!E119<0.5),"-",IFERROR('Tabel 4 F'!E119/'Tabel 4F F'!E119*100,"-")) -> 8.695652174 | F119: =IF(OR('Tabel 4F F'!F119<5,'Tabel 4 F'!F119<0.5),"-",IFERROR('Tabel 4 F'!F119/'Tabel 4F F'!F119*100,"-")) -> - | G119: =IF(OR('Tabel 4F F'!G119<5,'Tabel 4 F'!G119<0.5),"-",IFERROR('Tabel 4 F'!G119/'Tabel 4F F'!G119*100,"-")) -> - | I119: =IF(OR('Tabel 4F F'!I119<5,'Tabel 4 F'!I119<0.5),"-",IFERROR('Tabel 4 F'!I119/'Tabel 4F F'!I119*100,"-")) -> 6.779661017
A120: MA. Ph.d. | C120: =IF(OR('Tabel 4F F'!C120<5,'Tabel 4 F'!C120<0.5),"-",IFERROR('Tabel 4 F'!C120/'Tabel 4F F'!C120*100,"-")) -> - | D120: =IF(OR('Tabel 4F F'!D120<5,'Tabel 4 F'!D120<0.5),"-",IFERROR('Tabel 4 F'!D120/'Tabel 4F F'!D120*100,"-")) -> - | E120: =IF(OR('Tabel 4F F'!E120<5,'Tabel 4 F'!E120<0.5),"-",IFERROR('Tabel 4 F'!E120/'Tabel 4F F'!E120*100,"-")) -> - | F120: =IF(OR('Tabel 4F F'!F120<5,'Tabel 4 F'!F120<0.5),"-",IFERROR('Tabel 4 F'!F120/'Tabel 4F F'!F120*100,"-")) -> - | G120: =IF(OR('Tabel 4F F'!G120<5,'Tabel 4 F'!G120<0.5),"-",IFERROR('Tabel 4 F'!G120/'Tabel 4F F'!G120*100,"-")) -> - | I120: =IF(OR('Tabel 4F F'!I120<5,'Tabel 4 F'!I120<0.5),"-",IFERROR('Tabel 4 F'!I120/'Tabel 4F F'!I120*100,"-")) -> -
A121: MA. Samf. | C121: =IF(OR('Tabel 4F F'!C121<5,'Tabel 4 F'!C121<0.5),"-",IFERROR('Tabel 4 F'!C121/'Tabel 4F F'!C121*100,"-")) -> - | D121: =IF(OR('Tabel 4F F'!D121<5,'Tabel 4 F'!D121<0.5),"-",IFERROR('Tabel 4 F'!D121/'Tabel 4F F'!D121*100,"-")) -> - | E121: =IF(OR('Tabel 4F F'!E121<5,'Tabel 4 F'!E121<0.5),"-",IFERROR('Tabel 4 F'!E121/'Tabel 4F F'!E121*100,"-")) -> - | F121: =IF(OR('Tabel 4F F'!F121<5,'Tabel 4 F'!F121<0.5),"-",IFERROR('Tabel 4 F'!F121/'Tabel 4F F'!F121*100,"-")) -> - | G121: =IF(OR('Tabel 4F F'!G121<5,'Tabel 4 F'!G121<0.5),"-",IFERROR('Tabel 4 F'!G121/'Tabel 4F F'!G121*100,"-")) -> - | I121: =IF(OR('Tabel 4F F'!I121<5,'Tabel 4 F'!I121<0.5),"-",IFERROR('Tabel 4 F'!I121/'Tabel 4F F'!I121*100,"-")) -> -
A122: Øvrige Mag. | C122: =IF(OR('Tabel 4F F'!C122<5,'Tabel 4 F'!C122<0.5),"-",IFERROR('Tabel 4 F'!C122/'Tabel 4F F'!C122*100,"-")) -> - | D122: =IF(OR('Tabel 4F F'!D122<5,'Tabel 4 F'!D122<0.5),"-",IFERROR('Tabel 4 F'!D122/'Tabel 4F F'!D122*100,"-")) -> - | E122: =IF(OR('Tabel 4F F'!E122<5,'Tabel 4 F'!E122<0.5),"-",IFERROR('Tabel 4 F'!E122/'Tabel 4F F'!E122*100,"-")) -> - | F122: =IF(OR('Tabel 4F F'!F122<5,'Tabel 4 F'!F122<0.5),"-",IFERROR('Tabel 4 F'!F122/'Tabel 4F F'!F122*100,"-")) -> - | G122: =IF(OR('Tabel 4F F'!G122<5,'Tabel 4 F'!G122<0.5),"-",IFERROR('Tabel 4 F'!G122/'Tabel 4F F'!G122*100,"-")) -> - | I122: =IF(OR('Tabel 4F F'!I122<5,'Tabel 4 F'!I122<0.5),"-",IFERROR('Tabel 4 F'!I122/'Tabel 4F F'!I122*100,"-")) -> -
A123: Agronom | C123: =IF(OR('Tabel 4F F'!C123<5,'Tabel 4 F'!C123<0.5),"-",IFERROR('Tabel 4 F'!C123/'Tabel 4F F'!C123*100,"-")) -> - | D123: =IF(OR('Tabel 4F F'!D123<5,'Tabel 4 F'!D123<0.5),"-",IFERROR('Tabel 4 F'!D123/'Tabel 4F F'!D123*100,"-")) -> - | E123: =IF(OR('Tabel 4F F'!E123<5,'Tabel 4 F'!E123<0.5),"-",IFERROR('Tabel 4 F'!E123/'Tabel 4F F'!E123*100,"-")) -> - | F123: =IF(OR('Tabel 4F F'!F123<5,'Tabel 4 F'!F123<0.5),"-",IFERROR('Tabel 4 F'!F123/'Tabel 4F F'!F123*100,"-")) -> - | G123: =IF(OR('Tabel 4F F'!G123<5,'Tabel 4 F'!G123<0.5),"-",IFERROR('Tabel 4 F'!G123/'Tabel 4F F'!G123*100,"-")) -> - | I123: =IF(OR('Tabel 4F F'!I123<5,'Tabel 4 F'!I123<0.5),"-",IFERROR('Tabel 4 F'!I123/'Tabel 4F F'!I123*100,"-")) -> -
A124: Landsk. Arkt. | C124: =IF(OR('Tabel 4F F'!C124<5,'Tabel 4 F'!C124<0.5),"-",IFERROR('Tabel 4 F'!C124/'Tabel 4F F'!C124*100,"-")) -> - | D124: =IF(OR('Tabel 4F F'!D124<5,'Tabel 4 F'!D124<0.5),"-",IFERROR('Tabel 4 F'!D124/'Tabel 4F F'!D124*100,"-")) -> - | E124: =IF(OR('Tabel 4F F'!E124<5,'Tabel 4 F'!E124<0.5),"-",IFERROR('Tabel 4 F'!E124/'Tabel 4F F'!E124*100,"-")) -> - | F124: =IF(OR('Tabel 4F F'!F124<5,'Tabel 4 F'!F124<0.5),"-",IFERROR('Tabel 4 F'!F124/'Tabel 4F F'!F124*100,"-")) -> - | G124: =IF(OR('Tabel 4F F'!G124<5,'Tabel 4 F'!G124<0.5),"-",IFERROR('Tabel 4 F'!G124/'Tabel 4F F'!G124*100,"-")) -> - | I124: =IF(OR('Tabel 4F F'!I124<5,'Tabel 4 F'!I124<0.5),"-",IFERROR('Tabel 4 F'!I124/'Tabel 4F F'!I124*100,"-")) -> -
A125: Hortonom | C125: =IF(OR('Tabel 4F F'!C125<5,'Tabel 4 F'!C125<0.5),"-",IFERROR('Tabel 4 F'!C125/'Tabel 4F F'!C125*100,"-")) -> - | D125: =IF(OR('Tabel 4F F'!D125<5,'Tabel 4 F'!D125<0.5),"-",IFERROR('Tabel 4 F'!D125/'Tabel 4F F'!D125*100,"-")) -> - | E125: =IF(OR('Tabel 4F F'!E125<5,'Tabel 4 F'!E125<0.5),"-",IFERROR('Tabel 4 F'!E125/'Tabel 4F F'!E125*100,"-")) -> - | F125: =IF(OR('Tabel 4F F'!F125<5,'Tabel 4 F'!F125<0.5),"-",IFERROR('Tabel 4 F'!F125/'Tabel 4F F'!F125*100,"-")) -> - | G125: =IF(OR('Tabel 4F F'!G125<5,'Tabel 4 F'!G125<0.5),"-",IFERROR('Tabel 4 F'!G125/'Tabel 4F F'!G125*100,"-")) -> - | I125: =IF(OR('Tabel 4F F'!I125<5,'Tabel 4 F'!I125<0.5),"-",IFERROR('Tabel 4 F'!I125/'Tabel 4F F'!I125*100,"-")) -> -
A126: Forstkand. | C126: =IF(OR('Tabel 4F F'!C126<5,'Tabel 4 F'!C126<0.5),"-",IFERROR('Tabel 4 F'!C126/'Tabel 4F F'!C126*100,"-")) -> - | D126: =IF(OR('Tabel 4F F'!D126<5,'Tabel 4 F'!D126<0.5),"-",IFERROR('Tabel 4 F'!D126/'Tabel 4F F'!D126*100,"-")) -> - | E126: =IF(OR('Tabel 4F F'!E126<5,'Tabel 4 F'!E126<0.5),"-",IFERROR('Tabel 4 F'!E126/'Tabel 4F F'!E126*100,"-")) -> - | F126: =IF(OR('Tabel 4F F'!F126<5,'Tabel 4 F'!F126<0.5),"-",IFERROR('Tabel 4 F'!F126/'Tabel 4F F'!F126*100,"-")) -> - | G126: =IF(OR('Tabel 4F F'!G126<5,'Tabel 4 F'!G126<0.5),"-",IFERROR('Tabel 4 F'!G126/'Tabel 4F F'!G126*100,"-")) -> - | I126: =IF(OR('Tabel 4F F'!I126<5,'Tabel 4 F'!I126<0.5),"-",IFERROR('Tabel 4 F'!I126/'Tabel 4F F'!I126*100,"-")) -> -
A127: Jordbrugsakad. | C127: =IF(OR('Tabel 4F F'!C127<5,'Tabel 4 F'!C127<0.5),"-",IFERROR('Tabel 4 F'!C127/'Tabel 4F F'!C127*100,"-")) -> - | D127: =IF(OR('Tabel 4F F'!D127<5,'Tabel 4 F'!D127<0.5),"-",IFERROR('Tabel 4 F'!D127/'Tabel 4F F'!D127*100,"-")) -> - | E127: =IF(OR('Tabel 4F F'!E127<5,'Tabel 4 F'!E127<0.5),"-",IFERROR('Tabel 4 F'!E127/'Tabel 4F F'!E127*100,"-")) -> - | F127: =IF(OR('Tabel 4F F'!F127<5,'Tabel 4 F'!F127<0.5),"-",IFERROR('Tabel 4 F'!F127/'Tabel 4F F'!F127*100,"-")) -> - | G127: =IF(OR('Tabel 4F F'!G127<5,'Tabel 4 F'!G127<0.5),"-",IFERROR('Tabel 4 F'!G127/'Tabel 4F F'!G127*100,"-")) -> - | I127: =IF(OR('Tabel 4F F'!I127<5,'Tabel 4 F'!I127<0.5),"-",IFERROR('Tabel 4 F'!I127/'Tabel 4F F'!I127*100,"-")) -> -
A128: Mejeriing. | C128: =IF(OR('Tabel 4F F'!C128<5,'Tabel 4 F'!C128<0.5),"-",IFERROR('Tabel 4 F'!C128/'Tabel 4F F'!C128*100,"-")) -> - | D128: =IF(OR('Tabel 4F F'!D128<5,'Tabel 4 F'!D128<0.5),"-",IFERROR('Tabel 4 F'!D128/'Tabel 4F F'!D128*100,"-")) -> - | E128: =IF(OR('Tabel 4F F'!E128<5,'Tabel 4 F'!E128<0.5),"-",IFERROR('Tabel 4 F'!E128/'Tabel 4F F'!E128*100,"-")) -> - | F128: =IF(OR('Tabel 4F F'!F128<5,'Tabel 4 F'!F128<0.5),"-",IFERROR('Tabel 4 F'!F128/'Tabel 4F F'!F128*100,"-")) -> - | G128: =IF(OR('Tabel 4F F'!G128<5,'Tabel 4 F'!G128<0.5),"-",IFERROR('Tabel 4 F'!G128/'Tabel 4F F'!G128*100,"-")) -> - | I128: =IF(OR('Tabel 4F F'!I128<5,'Tabel 4 F'!I128<0.5),"-",IFERROR('Tabel 4 F'!I128/'Tabel 4F F'!I128*100,"-")) -> -
A129: Levn.m.kand. | C129: =IF(OR('Tabel 4F F'!C129<5,'Tabel 4 F'!C129<0.5),"-",IFERROR('Tabel 4 F'!C129/'Tabel 4F F'!C129*100,"-")) -> - | D129: =IF(OR('Tabel 4F F'!D129<5,'Tabel 4 F'!D129<0.5),"-",IFERROR('Tabel 4 F'!D129/'Tabel 4F F'!D129*100,"-")) -> - | E129: =IF(OR('Tabel 4F F'!E129<5,'Tabel 4 F'!E129<0.5),"-",IFERROR('Tabel 4 F'!E129/'Tabel 4F F'!E129*100,"-")) -> - | F129: =IF(OR('Tabel 4F F'!F129<5,'Tabel 4 F'!F129<0.5),"-",IFERROR('Tabel 4 F'!F129/'Tabel 4F F'!F129*100,"-")) -> - | G129: =IF(OR('Tabel 4F F'!G129<5,'Tabel 4 F'!G129<0.5),"-",IFERROR('Tabel 4 F'!G129/'Tabel 4F F'!G129*100,"-")) -> - | I129: =IF(OR('Tabel 4F F'!I129<5,'Tabel 4 F'!I129<0.5),"-",IFERROR('Tabel 4 F'!I129/'Tabel 4F F'!I129*100,"-")) -> -
A130: Dyrlæge | C130: =IF(OR('Tabel 4F F'!C130<5,'Tabel 4 F'!C130<0.5),"-",IFERROR('Tabel 4 F'!C130/'Tabel 4F F'!C130*100,"-")) -> - | D130: =IF(OR('Tabel 4F F'!D130<5,'Tabel 4 F'!D130<0.5),"-",IFERROR('Tabel 4 F'!D130/'Tabel 4F F'!D130*100,"-")) -> - | E130: =IF(OR('Tabel 4F F'!E130<5,'Tabel 4 F'!E130<0.5),"-",IFERROR('Tabel 4 F'!E130/'Tabel 4F F'!E130*100,"-")) -> - | F130: =IF(OR('Tabel 4F F'!F130<5,'Tabel 4 F'!F130<0.5),"-",IFERROR('Tabel 4 F'!F130/'Tabel 4F F'!F130*100,"-")) -> - | G130: =IF(OR('Tabel 4F F'!G130<5,'Tabel 4 F'!G130<0.5),"-",IFERROR('Tabel 4 F'!G130/'Tabel 4F F'!G130*100,"-")) -> - | I130: =IF(OR('Tabel 4F F'!I130<5,'Tabel 4 F'!I130<0.5),"-",IFERROR('Tabel 4 F'!I130/'Tabel 4F F'!I130*100,"-")) -> -
A131: Farmaceut | C131: =IF(OR('Tabel 4F F'!C131<5,'Tabel 4 F'!C131<0.5),"-",IFERROR('Tabel 4 F'!C131/'Tabel 4F F'!C131*100,"-")) -> - | D131: =IF(OR('Tabel 4F F'!D131<5,'Tabel 4 F'!D131<0.5),"-",IFERROR('Tabel 4 F'!D131/'Tabel 4F F'!D131*100,"-")) -> - | E131: =IF(OR('Tabel 4F F'!E131<5,'Tabel 4 F'!E131<0.5),"-",IFERROR('Tabel 4 F'!E131/'Tabel 4F F'!E131*100,"-")) -> - | F131: =IF(OR('Tabel 4F F'!F131<5,'Tabel 4 F'!F131<0.5),"-",IFERROR('Tabel 4 F'!F131/'Tabel 4F F'!F131*100,"-")) -> - | G131: =IF(OR('Tabel 4F F'!G131<5,'Tabel 4 F'!G131<0.5),"-",IFERROR('Tabel 4 F'!G131/'Tabel 4F F'!G131*100,"-")) -> - | I131: =IF(OR('Tabel 4F F'!I131<5,'Tabel 4 F'!I131<0.5),"-",IFERROR('Tabel 4 F'!I131/'Tabel 4F F'!I131*100,"-")) -> -
A132: Læge | C132: =IF(OR('Tabel 4F F'!C132<5,'Tabel 4 F'!C132<0.5),"-",IFERROR('Tabel 4 F'!C132/'Tabel 4F F'!C132*100,"-")) -> - | D132: =IF(OR('Tabel 4F F'!D132<5,'Tabel 4 F'!D132<0.5),"-",IFERROR('Tabel 4 F'!D132/'Tabel 4F F'!D132*100,"-")) -> - | E132: =IF(OR('Tabel 4F F'!E132<5,'Tabel 4 F'!E132<0.5),"-",IFERROR('Tabel 4 F'!E132/'Tabel 4F F'!E132*100,"-")) -> - | F132: =IF(OR('Tabel 4F F'!F132<5,'Tabel 4 F'!F132<0.5),"-",IFERROR('Tabel 4 F'!F132/'Tabel 4F F'!F132*100,"-")) -> - | G132: =IF(OR('Tabel 4F F'!G132<5,'Tabel 4 F'!G132<0.5),"-",IFERROR('Tabel 4 F'!G132/'Tabel 4F F'!G132*100,"-")) -> - | I132: =IF(OR('Tabel 4F F'!I132<5,'Tabel 4 F'!I132<0.5),"-",IFERROR('Tabel 4 F'!I132/'Tabel 4F F'!I132*100,"-")) -> -
A133: Tandlæge | C133: =IF(OR('Tabel 4F F'!C133<5,'Tabel 4 F'!C133<0.5),"-",IFERROR('Tabel 4 F'!C133/'Tabel 4F F'!C133*100,"-")) -> - | D133: =IF(OR('Tabel 4F F'!D133<5,'Tabel 4 F'!D133<0.5),"-",IFERROR('Tabel 4 F'!D133/'Tabel 4F F'!D133*100,"-")) -> - | E133: =IF(OR('Tabel 4F F'!E133<5,'Tabel 4 F'!E133<0.5),"-",IFERROR('Tabel 4 F'!E133/'Tabel 4F F'!E133*100,"-")) -> - | F133: =IF(OR('Tabel 4F F'!F133<5,'Tabel 4 F'!F133<0.5),"-",IFERROR('Tabel 4 F'!F133/'Tabel 4F F'!F133*100,"-")) -> - | G133: =IF(OR('Tabel 4F F'!G133<5,'Tabel 4 F'!G133<0.5),"-",IFERROR('Tabel 4 F'!G133/'Tabel 4F F'!G133*100,"-")) -> - | I133: =IF(OR('Tabel 4F F'!I133<5,'Tabel 4 F'!I133<0.5),"-",IFERROR('Tabel 4 F'!I133/'Tabel 4F F'!I133*100,"-")) -> -
A134: Arkitekt | C134: =IF(OR('Tabel 4F F'!C134<5,'Tabel 4 F'!C134<0.5),"-",IFERROR('Tabel 4 F'!C134/'Tabel 4F F'!C134*100,"-")) -> - | D134: =IF(OR('Tabel 4F F'!D134<5,'Tabel 4 F'!D134<0.5),"-",IFERROR('Tabel 4 F'!D134/'Tabel 4F F'!D134*100,"-")) -> - | E134: =IF(OR('Tabel 4F F'!E134<5,'Tabel 4 F'!E134<0.5),"-",IFERROR('Tabel 4 F'!E134/'Tabel 4F F'!E134*100,"-")) -> - | F134: =IF(OR('Tabel 4F F'!F134<5,'Tabel 4 F'!F134<0.5),"-",IFERROR('Tabel 4 F'!F134/'Tabel 4F F'!F134*100,"-")) -> - | G134: =IF(OR('Tabel 4F F'!G134<5,'Tabel 4 F'!G134<0.5),"-",IFERROR('Tabel 4 F'!G134/'Tabel 4F F'!G134*100,"-")) -> - | I134: =IF(OR('Tabel 4F F'!I134<5,'Tabel 4 F'!I134<0.5),"-",IFERROR('Tabel 4 F'!I134/'Tabel 4F F'!I134*100,"-")) -> -
A135: Landinspek. | C135: =IF(OR('Tabel 4F F'!C135<5,'Tabel 4 F'!C135<0.5),"-",IFERROR('Tabel 4 F'!C135/'Tabel 4F F'!C135*100,"-")) -> - | D135: =IF(OR('Tabel 4F F'!D135<5,'Tabel 4 F'!D135<0.5),"-",IFERROR('Tabel 4 F'!D135/'Tabel 4F F'!D135*100,"-")) -> - | E135: =IF(OR('Tabel 4F F'!E135<5,'Tabel 4 F'!E135<0.5),"-",IFERROR('Tabel 4 F'!E135/'Tabel 4F F'!E135*100,"-")) -> - | F135: =IF(OR('Tabel 4F F'!F135<5,'Tabel 4 F'!F135<0.5),"-",IFERROR('Tabel 4 F'!F135/'Tabel 4F F'!F135*100,"-")) -> - | G135: =IF(OR('Tabel 4F F'!G135<5,'Tabel 4 F'!G135<0.5),"-",IFERROR('Tabel 4 F'!G135/'Tabel 4F F'!G135*100,"-")) -> - | I135: =IF(OR('Tabel 4F F'!I135<5,'Tabel 4 F'!I135<0.5),"-",IFERROR('Tabel 4 F'!I135/'Tabel 4F F'!I135*100,"-")) -> -
A136: Bibliotekar | C136: =IF(OR('Tabel 4F F'!C136<5,'Tabel 4 F'!C136<0.5),"-",IFERROR('Tabel 4 F'!C136/'Tabel 4F F'!C136*100,"-")) -> - | D136: =IF(OR('Tabel 4F F'!D136<5,'Tabel 4 F'!D136<0.5),"-",IFERROR('Tabel 4 F'!D136/'Tabel 4F F'!D136*100,"-")) -> - | E136: =IF(OR('Tabel 4F F'!E136<5,'Tabel 4 F'!E136<0.5),"-",IFERROR('Tabel 4 F'!E136/'Tabel 4F F'!E136*100,"-")) -> - | F136: =IF(OR('Tabel 4F F'!F136<5,'Tabel 4 F'!F136<0.5),"-",IFERROR('Tabel 4 F'!F136/'Tabel 4F F'!F136*100,"-")) -> - | G136: =IF(OR('Tabel 4F F'!G136<5,'Tabel 4 F'!G136<0.5),"-",IFERROR('Tabel 4 F'!G136/'Tabel 4F F'!G136*100,"-")) -> - | I136: =IF(OR('Tabel 4F F'!I136<5,'Tabel 4 F'!I136<0.5),"-",IFERROR('Tabel 4 F'!I136/'Tabel 4F F'!I136*100,"-")) -> -
A137: Musikudd. | C137: =IF(OR('Tabel 4F F'!C137<5,'Tabel 4 F'!C137<0.5),"-",IFERROR('Tabel 4 F'!C137/'Tabel 4F F'!C137*100,"-")) -> - | D137: =IF(OR('Tabel 4F F'!D137<5,'Tabel 4 F'!D137<0.5),"-",IFERROR('Tabel 4 F'!D137/'Tabel 4F F'!D137*100,"-")) -> - | E137: =IF(OR('Tabel 4F F'!E137<5,'Tabel 4 F'!E137<0.5),"-",IFERROR('Tabel 4 F'!E137/'Tabel 4F F'!E137*100,"-")) -> - | F137: =IF(OR('Tabel 4F F'!F137<5,'Tabel 4 F'!F137<0.5),"-",IFERROR('Tabel 4 F'!F137/'Tabel 4F F'!F137*100,"-")) -> - | G137: =IF(OR('Tabel 4F F'!G137<5,'Tabel 4 F'!G137<0.5),"-",IFERROR('Tabel 4 F'!G137/'Tabel 4F F'!G137*100,"-")) -> 16.66666667 | I137: =IF(OR('Tabel 4F F'!I137<5,'Tabel 4 F'!I137<0.5),"-",IFERROR('Tabel 4 F'!I137/'Tabel 4F F'!I137*100,"-")) -> 8.333333333
A138: Teolog | C138: =IF(OR('Tabel 4F F'!C138<5,'Tabel 4 F'!C138<0.5),"-",IFERROR('Tabel 4 F'!C138/'Tabel 4F F'!C138*100,"-")) -> - | D138: =IF(OR('Tabel 4F F'!D138<5,'Tabel 4 F'!D138<0.5),"-",IFERROR('Tabel 4 F'!D138/'Tabel 4F F'!D138*100,"-")) -> - | E138: =IF(OR('Tabel 4F F'!E138<5,'Tabel 4 F'!E138<0.5),"-",IFERROR('Tabel 4 F'!E138/'Tabel 4F F'!E138*100,"-")) -> - | F138: =IF(OR('Tabel 4F F'!F138<5,'Tabel 4 F'!F138<0.5),"-",IFERROR('Tabel 4 F'!F138/'Tabel 4F F'!F138*100,"-")) -> - | G138: =IF(OR('Tabel 4F F'!G138<5,'Tabel 4 F'!G138<0.5),"-",IFERROR('Tabel 4 F'!G138/'Tabel 4F F'!G138*100,"-")) -> - | I138: =IF(OR('Tabel 4F F'!I138<5,'Tabel 4 F'!I138<0.5),"-",IFERROR('Tabel 4 F'!I138/'Tabel 4F F'!I138*100,"-")) -> -
A139: Psykolog | C139: =IF(OR('Tabel 4F F'!C139<5,'Tabel 4 F'!C139<0.5),"-",IFERROR('Tabel 4 F'!C139/'Tabel 4F F'!C139*100,"-")) -> - | D139: =IF(OR('Tabel 4F F'!D139<5,'Tabel 4 F'!D139<0.5),"-",IFERROR('Tabel 4 F'!D139/'Tabel 4F F'!D139*100,"-")) -> - | E139: =IF(OR('Tabel 4F F'!E139<5,'Tabel 4 F'!E139<0.5),"-",IFERROR('Tabel 4 F'!E139/'Tabel 4F F'!E139*100,"-")) -> - | F139: =IF(OR('Tabel 4F F'!F139<5,'Tabel 4 F'!F139<0.5),"-",IFERROR('Tabel 4 F'!F139/'Tabel 4F F'!F139*100,"-")) -> - | G139: =IF(OR('Tabel 4F F'!G139<5,'Tabel 4 F'!G139<0.5),"-",IFERROR('Tabel 4 F'!G139/'Tabel 4F F'!G139*100,"-")) -> - | I139: =IF(OR('Tabel 4F F'!I139<5,'Tabel 4 F'!I139<0.5),"-",IFERROR('Tabel 4 F'!I139/'Tabel 4F F'!I139*100,"-")) -> -
A140: Jurist | C140: =IF(OR('Tabel 4F F'!C140<5,'Tabel 4 F'!C140<0.5),"-",IFERROR('Tabel 4 F'!C140/'Tabel 4F F'!C140*100,"-")) -> - | D140: =IF(OR('Tabel 4F F'!D140<5,'Tabel 4 F'!D140<0.5),"-",IFERROR('Tabel 4 F'!D140/'Tabel 4F F'!D140*100,"-")) -> - | E140: =IF(OR('Tabel 4F F'!E140<5,'Tabel 4 F'!E140<0.5),"-",IFERROR('Tabel 4 F'!E140/'Tabel 4F F'!E140*100,"-")) -> 11.11111111 | F140: =IF(OR('Tabel 4F F'!F140<5,'Tabel 4 F'!F140<0.5),"-",IFERROR('Tabel 4 F'!F140/'Tabel 4F F'!F140*100,"-")) -> - | G140: =IF(OR('Tabel 4F F'!G140<5,'Tabel 4 F'!G140<0.5),"-",IFERROR('Tabel 4 F'!G140/'Tabel 4F F'!G140*100,"-")) -> - | I140: =IF(OR('Tabel 4F F'!I140<5,'Tabel 4 F'!I140<0.5),"-",IFERROR('Tabel 4 F'!I140/'Tabel 4F F'!I140*100,"-")) -> 3.225806452
A141: Økonom | C141: =IF(OR('Tabel 4F F'!C141<5,'Tabel 4 F'!C141<0.5),"-",IFERROR('Tabel 4 F'!C141/'Tabel 4F F'!C141*100,"-")) -> - | D141: =IF(OR('Tabel 4F F'!D141<5,'Tabel 4 F'!D141<0.5),"-",IFERROR('Tabel 4 F'!D141/'Tabel 4F F'!D141*100,"-")) -> - | E141: =IF(OR('Tabel 4F F'!E141<5,'Tabel 4 F'!E141<0.5),"-",IFERROR('Tabel 4 F'!E141/'Tabel 4F F'!E141*100,"-")) -> - | F141: =IF(OR('Tabel 4F F'!F141<5,'Tabel 4 F'!F141<0.5),"-",IFERROR('Tabel 4 F'!F141/'Tabel 4F F'!F141*100,"-")) -> - | G141: =IF(OR('Tabel 4F F'!G141<5,'Tabel 4 F'!G141<0.5),"-",IFERROR('Tabel 4 F'!G141/'Tabel 4F F'!G141*100,"-")) -> - | I141: =IF(OR('Tabel 4F F'!I141<5,'Tabel 4 F'!I141<0.5),"-",IFERROR('Tabel 4 F'!I141/'Tabel 4F F'!I141*100,"-")) -> -
A142: Samf. Adm. | C142: =IF(OR('Tabel 4F F'!C142<5,'Tabel 4 F'!C142<0.5),"-",IFERROR('Tabel 4 F'!C142/'Tabel 4F F'!C142*100,"-")) -> - | D142: =IF(OR('Tabel 4F F'!D142<5,'Tabel 4 F'!D142<0.5),"-",IFERROR('Tabel 4 F'!D142/'Tabel 4F F'!D142*100,"-")) -> 4.545454545 | E142: =IF(OR('Tabel 4F F'!E142<5,'Tabel 4 F'!E142<0.5),"-",IFERROR('Tabel 4 F'!E142/'Tabel 4F F'!E142*100,"-")) -> - | F142: =IF(OR('Tabel 4F F'!F142<5,'Tabel 4 F'!F142<0.5),"-",IFERROR('Tabel 4 F'!F142/'Tabel 4F F'!F142*100,"-")) -> - | G142: =IF(OR('Tabel 4F F'!G142<5,'Tabel 4 F'!G142<0.5),"-",IFERROR('Tabel 4 F'!G142/'Tabel 4F F'!G142*100,"-")) -> - | I142: =IF(OR('Tabel 4F F'!I142<5,'Tabel 4 F'!I142<0.5),"-",IFERROR('Tabel 4 F'!I142/'Tabel 4F F'!I142*100,"-")) -> 4.545454545
A143: Cand. Merc. | C143: =IF(OR('Tabel 4F F'!C143<5,'Tabel 4 F'!C143<0.5),"-",IFERROR('Tabel 4 F'!C143/'Tabel 4F F'!C143*100,"-")) -> - | D143: =IF(OR('Tabel 4F F'!D143<5,'Tabel 4 F'!D143<0.5),"-",IFERROR('Tabel 4 F'!D143/'Tabel 4F F'!D143*100,"-")) -> 5.882352941 | E143: =IF(OR('Tabel 4F F'!E143<5,'Tabel 4 F'!E143<0.5),"-",IFERROR('Tabel 4 F'!E143/'Tabel 4F F'!E143*100,"-")) -> - | F143: =IF(OR('Tabel 4F F'!F143<5,'Tabel 4 F'!F143<0.5),"-",IFERROR('Tabel 4 F'!F143/'Tabel 4F F'!F143*100,"-")) -> - | G143: =IF(OR('Tabel 4F F'!G143<5,'Tabel 4 F'!G143<0.5),"-",IFERROR('Tabel 4 F'!G143/'Tabel 4F F'!G143*100,"-")) -> - | I143: =IF(OR('Tabel 4F F'!I143<5,'Tabel 4 F'!I143<0.5),"-",IFERROR('Tabel 4 F'!I143/'Tabel 4F F'!I143*100,"-")) -> 1.492537313
A144: HA | C144: =IF(OR('Tabel 4F F'!C144<5,'Tabel 4 F'!C144<0.5),"-",IFERROR('Tabel 4 F'!C144/'Tabel 4F F'!C144*100,"-")) -> - | D144: =IF(OR('Tabel 4F F'!D144<5,'Tabel 4 F'!D144<0.5),"-",IFERROR('Tabel 4 F'!D144/'Tabel 4F F'!D144*100,"-")) -> - | E144: =IF(OR('Tabel 4F F'!E144<5,'Tabel 4 F'!E144<0.5),"-",IFERROR('Tabel 4 F'!E144/'Tabel 4F F'!E144*100,"-")) -> - | F144: =IF(OR('Tabel 4F F'!F144<5,'Tabel 4 F'!F144<0.5),"-",IFERROR('Tabel 4 F'!F144/'Tabel 4F F'!F144*100,"-")) -> - | G144: =IF(OR('Tabel 4F F'!G144<5,'Tabel 4 F'!G144<0.5),"-",IFERROR('Tabel 4 F'!G144/'Tabel 4F F'!G144*100,"-")) -> - | I144: =IF(OR('Tabel 4F F'!I144<5,'Tabel 4 F'!I144<0.5),"-",IFERROR('Tabel 4 F'!I144/'Tabel 4F F'!I144*100,"-")) -> -
A145: HD | C145: =IF(OR('Tabel 4F F'!C145<5,'Tabel 4 F'!C145<0.5),"-",IFERROR('Tabel 4 F'!C145/'Tabel 4F F'!C145*100,"-")) -> - | D145: =IF(OR('Tabel 4F F'!D145<5,'Tabel 4 F'!D145<0.5),"-",IFERROR('Tabel 4 F'!D145/'Tabel 4F F'!D145*100,"-")) -> - | E145: =IF(OR('Tabel 4F F'!E145<5,'Tabel 4 F'!E145<0.5),"-",IFERROR('Tabel 4 F'!E145/'Tabel 4F F'!E145*100,"-")) -> - | F145: =IF(OR('Tabel 4F F'!F145<5,'Tabel 4 F'!F145<0.5),"-",IFERROR('Tabel 4 F'!F145/'Tabel 4F F'!F145*100,"-")) -> - | G145: =IF(OR('Tabel 4F F'!G145<5,'Tabel 4 F'!G145<0.5),"-",IFERROR('Tabel 4 F'!G145/'Tabel 4F F'!G145*100,"-")) -> - | I145: =IF(OR('Tabel 4F F'!I145<5,'Tabel 4 F'!I145<0.5),"-",IFERROR('Tabel 4 F'!I145/'Tabel 4F F'!I145*100,"-")) -> 5.882352941
A146: Komm. og Sprog | C146: =IF(OR('Tabel 4F F'!C146<5,'Tabel 4 F'!C146<0.5),"-",IFERROR('Tabel 4 F'!C146/'Tabel 4F F'!C146*100,"-")) -> - | D146: =IF(OR('Tabel 4F F'!D146<5,'Tabel 4 F'!D146<0.5),"-",IFERROR('Tabel 4 F'!D146/'Tabel 4F F'!D146*100,"-")) -> - | E146: =IF(OR('Tabel 4F F'!E146<5,'Tabel 4 F'!E146<0.5),"-",IFERROR('Tabel 4 F'!E146/'Tabel 4F F'!E146*100,"-")) -> - | F146: =IF(OR('Tabel 4F F'!F146<5,'Tabel 4 F'!F146<0.5),"-",IFERROR('Tabel 4 F'!F146/'Tabel 4F F'!F146*100,"-")) -> - | G146: =IF(OR('Tabel 4F F'!G146<5,'Tabel 4 F'!G146<0.5),"-",IFERROR('Tabel 4 F'!G146/'Tabel 4F F'!G146*100,"-")) -> - | I146: =IF(OR('Tabel 4F F'!I146<5,'Tabel 4 F'!I146<0.5),"-",IFERROR('Tabel 4 F'!I146/'Tabel 4F F'!I146*100,"-")) -> -
A147: Bygningskonst. | C147: =IF(OR('Tabel 4F F'!C147<5,'Tabel 4 F'!C147<0.5),"-",IFERROR('Tabel 4 F'!C147/'Tabel 4F F'!C147*100,"-")) -> - | D147: =IF(OR('Tabel 4F F'!D147<5,'Tabel 4 F'!D147<0.5),"-",IFERROR('Tabel 4 F'!D147/'Tabel 4F F'!D147*100,"-")) -> - | E147: =IF(OR('Tabel 4F F'!E147<5,'Tabel 4 F'!E147<0.5),"-",IFERROR('Tabel 4 F'!E147/'Tabel 4F F'!E147*100,"-")) -> 5.555555556 | F147: =IF(OR('Tabel 4F F'!F147<5,'Tabel 4 F'!F147<0.5),"-",IFERROR('Tabel 4 F'!F147/'Tabel 4F F'!F147*100,"-")) -> - | G147: =IF(OR('Tabel 4F F'!G147<5,'Tabel 4 F'!G147<0.5),"-",IFERROR('Tabel 4 F'!G147/'Tabel 4F F'!G147*100,"-")) -> - | I147: =IF(OR('Tabel 4F F'!I147<5,'Tabel 4 F'!I147<0.5),"-",IFERROR('Tabel 4 F'!I147/'Tabel 4F F'!I147*100,"-")) -> 1.639344262
A148: Cand. IT. | C148: =IF(OR('Tabel 4F F'!C148<5,'Tabel 4 F'!C148<0.5),"-",IFERROR('Tabel 4 F'!C148/'Tabel 4F F'!C148*100,"-")) -> - | D148: =IF(OR('Tabel 4F F'!D148<5,'Tabel 4 F'!D148<0.5),"-",IFERROR('Tabel 4 F'!D148/'Tabel 4F F'!D148*100,"-")) -> - | E148: =IF(OR('Tabel 4F F'!E148<5,'Tabel 4 F'!E148<0.5),"-",IFERROR('Tabel 4 F'!E148/'Tabel 4F F'!E148*100,"-")) -> - | F148: =IF(OR('Tabel 4F F'!F148<5,'Tabel 4 F'!F148<0.5),"-",IFERROR('Tabel 4 F'!F148/'Tabel 4F F'!F148*100,"-")) -> - | G148: =IF(OR('Tabel 4F F'!G148<5,'Tabel 4 F'!G148<0.5),"-",IFERROR('Tabel 4 F'!G148/'Tabel 4F F'!G148*100,"-")) -> - | I148: =IF(OR('Tabel 4F F'!I148<5,'Tabel 4 F'!I148<0.5),"-",IFERROR('Tabel 4 F'!I148/'Tabel 4F F'!I148*100,"-")) -> -
A149: Bac. Samf. | C149: =IF(OR('Tabel 4F F'!C149<5,'Tabel 4 F'!C149<0.5),"-",IFERROR('Tabel 4 F'!C149/'Tabel 4F F'!C149*100,"-")) -> - | D149: =IF(OR('Tabel 4F F'!D149<5,'Tabel 4 F'!D149<0.5),"-",IFERROR('Tabel 4 F'!D149/'Tabel 4F F'!D149*100,"-")) -> - | E149: =IF(OR('Tabel 4F F'!E149<5,'Tabel 4 F'!E149<0.5),"-",IFERROR('Tabel 4 F'!E149/'Tabel 4F F'!E149*100,"-")) -> - | F149: =IF(OR('Tabel 4F F'!F149<5,'Tabel 4 F'!F149<0.5),"-",IFERROR('Tabel 4 F'!F149/'Tabel 4F F'!F149*100,"-")) -> - | G149: =IF(OR('Tabel 4F F'!G149<5,'Tabel 4 F'!G149<0.5),"-",IFERROR('Tabel 4 F'!G149/'Tabel 4F F'!G149*100,"-")) -> - | I149: =IF(OR('Tabel 4F F'!I149<5,'Tabel 4 F'!I149<0.5),"-",IFERROR('Tabel 4 F'!I149/'Tabel 4F F'!I149*100,"-")) -> -
A150: Bac. Hum. | C150: =IF(OR('Tabel 4F F'!C150<5,'Tabel 4 F'!C150<0.5),"-",IFERROR('Tabel 4 F'!C150/'Tabel 4F F'!C150*100,"-")) -> - | D150: =IF(OR('Tabel 4F F'!D150<5,'Tabel 4 F'!D150<0.5),"-",IFERROR('Tabel 4 F'!D150/'Tabel 4F F'!D150*100,"-")) -> 12.5 | E150: =IF(OR('Tabel 4F F'!E150<5,'Tabel 4 F'!E150<0.5),"-",IFERROR('Tabel 4 F'!E150/'Tabel 4F F'!E150*100,"-")) -> - | F150: =IF(OR('Tabel 4F F'!F150<5,'Tabel 4 F'!F150<0.5),"-",IFERROR('Tabel 4 F'!F150/'Tabel 4F F'!F150*100,"-")) -> - | G150: =IF(OR('Tabel 4F F'!G150<5,'Tabel 4 F'!G150<0.5),"-",IFERROR('Tabel 4 F'!G150/'Tabel 4F F'!G150*100,"-")) -> - | I150: =IF(OR('Tabel 4F F'!I150<5,'Tabel 4 F'!I150<0.5),"-",IFERROR('Tabel 4 F'!I150/'Tabel 4F F'!I150*100,"-")) -> 6.666666667
A151: Bac. Nat. | C151: =IF(OR('Tabel 4F F'!C151<5,'Tabel 4 F'!C151<0.5),"-",IFERROR('Tabel 4 F'!C151/'Tabel 4F F'!C151*100,"-")) -> - | D151: =IF(OR('Tabel 4F F'!D151<5,'Tabel 4 F'!D151<0.5),"-",IFERROR('Tabel 4 F'!D151/'Tabel 4F F'!D151*100,"-")) -> - | E151: =IF(OR('Tabel 4F F'!E151<5,'Tabel 4 F'!E151<0.5),"-",IFERROR('Tabel 4 F'!E151/'Tabel 4F F'!E151*100,"-")) -> - | F151: =IF(OR('Tabel 4F F'!F151<5,'Tabel 4 F'!F151<0.5),"-",IFERROR('Tabel 4 F'!F151/'Tabel 4F F'!F151*100,"-")) -> - | G151: =IF(OR('Tabel 4F F'!G151<5,'Tabel 4 F'!G151<0.5),"-",IFERROR('Tabel 4 F'!G151/'Tabel 4F F'!G151*100,"-")) -> - | I151: =IF(OR('Tabel 4F F'!I151<5,'Tabel 4 F'!I151<0.5),"-",IFERROR('Tabel 4 F'!I151/'Tabel 4F F'!I151*100,"-")) -> 14.28571429
A152: Andre | C152: =IF(OR('Tabel 4F F'!C152<5,'Tabel 4 F'!C152<0.5),"-",IFERROR('Tabel 4 F'!C152/'Tabel 4F F'!C152*100,"-")) -> - | D152: =IF(OR('Tabel 4F F'!D152<5,'Tabel 4 F'!D152<0.5),"-",IFERROR('Tabel 4 F'!D152/'Tabel 4F F'!D152*100,"-")) -> - | E152: =IF(OR('Tabel 4F F'!E152<5,'Tabel 4 F'!E152<0.5),"-",IFERROR('Tabel 4 F'!E152/'Tabel 4F F'!E152*100,"-")) -> - | F152: =IF(OR('Tabel 4F F'!F152<5,'Tabel 4 F'!F152<0.5),"-",IFERROR('Tabel 4 F'!F152/'Tabel 4F F'!F152*100,"-")) -> - | G152: =IF(OR('Tabel 4F F'!G152<5,'Tabel 4 F'!G152<0.5),"-",IFERROR('Tabel 4 F'!G152/'Tabel 4F F'!G152*100,"-")) -> 11.11111111 | I152: =IF(OR('Tabel 4F F'!I152<5,'Tabel 4 F'!I152<0.5),"-",IFERROR('Tabel 4 F'!I152/'Tabel 4F F'!I152*100,"-")) -> 1.19047619
